Workbook

Sheet PI vs x
A1: Measurement | B1: Hall
A2: Type | B2: Off-axis
A4: Project | B4: ='10 x=-2'!B5 -> 504314
A5: PS serial no | B5: ='10 x=-2'!B7 -> 2410110
A7: Measurement date | B7: =LEFT('10 x=-2'!B4,10) -> 02-10-2024
C11: Nominal gap [mm] | D11: Encoder [counts] | E11: Encoder [mm] | F11: PI [T^2mm^3] | G11: x [mm] | H11: Encoder value at 10 mm gap:
B12: ='PI vs x'!$C$12 & "mm gap" -> 10mm gap | C12: ='10 x=-2'!B48 -> 10 | D12: ='10 x=-2'!$B$50 -> 19.7503 | E12: =D12-$H$12+10 -> 10 | F12: ='10 x=-2'!$K$3 -> 10649.28353 | G12: -2 | H12: 19.7503
C13: =C12 -> 10 | D13: ='10 x=-1'!$B$50 -> 19.7503 | E13: =D13-$H$12+10 -> 10 | F13: ='10 x=-1'!$K$3 -> 10656.86076 | G13: -1
C14: =C13 -> 10 | D14: ='10 x=0'!$B$50 -> 19.7503 | E14: 10 | F14: ='10 x=0'!$K$3 -> 10659.49751 | G14: 0
C15: 10 | D15: ='10 x=1'!$B$50 -> 19.7503 | E15: 10 | F15: ='10 x=1'!$K$3 -> 10659.60221 | G15: 1
C16: 10 | D16: ='10 x=2'!$B$50 -> 19.7503 | E16: 10 | F16: ='10 x=2'!$K$3 -> 10655.14137 | G16: 2
B17: ='PI vs x'!$C$17 & "mm gap" -> 30mm gap | C17: ='30 x=-2'!B48 -> 30 | D17: ='30 x=-2'!$B$50 -> 39.7503 | E17: 30 | F17: ='30 x=-2'!$K$3 -> 2468.709409 | G17: =G12 -> -2
C18: 30 | D18: ='30 x=-1'!$B$50 -> 39.7503 | E18: 30 | F18: ='30 x=-1'!$K$3 -> 2472.531247 | G18: =G13 -> -1
C19: 30 | D19: ='30 x=0'!$B$50 -> 39.7503 | E19: 30 | F19: ='30 x=0'!$K$3 -> 2474.24478 | G19: 0
C20: 30 | D20: ='30 x=1'!$B$50 -> 39.7503 | E20: 30 | F20: ='30 x=1'!$K$3 -> 2473.542625 | G20: 1
C21: 30 | D21: ='30 x=2'!$B$50 -> 39.7503 | E21: 30 | F21: ='30 x=2'!$K$3 -> 2469.877462 | G21: 2

Sheet 10 x=-2
A1: =IF('DF raw data'!A1="","",'DF raw data'!A1) -> Number of header lines | B1: =IF('DF raw data'!B1="","",'DF raw data'!B1) -> 54 | C1: =IF('DF raw data'!C1="","",'DF raw data'!C1) ->  | D1: =IF('DF raw data'!D1="","",'DF raw data'!D1) ->  | F1: T_coeff | G1: -0.001 | H1: /degC | J1: IBy total | K1: =J1262*1000 -> -12.27181443 | L1: muTm | M1: =L1262*1000 -> 60.24644299 | R1: DF ref | S1: 1
A2: =IF('DF raw data'!A2="","",'DF raw data'!A2) -> Measured by | B2: =IF('DF raw data'!B2="","",'DF raw data'!B2) -> Danfysik | C2: =IF('DF raw data'!C2="","",'DF raw data'!C2) ->  | D2: =IF('DF raw data'!D2="","",'DF raw data'!D2) ->  | F2: Tcorr | G2: 20 | H2: degC | J2: JBy total | K2: =K1262 -> -15.02266635 | L2: muTm^2 | M2: =M1262 -> 20.59126431
A3: =IF('DF raw data'!A3="","",'DF raw data'!A3) -> Operator | B3: =IF('DF raw data'!B3="","",'DF raw data'!B3) -> PMHA | C3: =IF('DF raw data'!C3="","",'DF raw data'!C3) ->  | D3: =IF('DF raw data'!D3="","",'DF raw data'!D3) ->  | F3: Step | G3: =A63-A62 -> 0.5 | H3: mm | J3: PI total | K3: =N1262 -> 10649.28353 | L3: T^2mm^3
A4: =IF('DF raw data'!A4="","",'DF raw data'!A4) -> Data-time | B4: =IF('DF raw data'!B4="","",'DF raw data'!B4) -> 02-10-2024, 20:40:46 | C4: =IF('DF raw data'!C4="","",'DF raw data'!C4) ->  | D4: =IF('DF raw data'!D4="","",'DF raw data'!D4) -> 
A5: =IF('DF raw data'!A5="","",'DF raw data'!A5) -> Project | B5: =IF('DF raw data'!B5="","",'DF raw data'!B5) -> 504314 | C5: =IF('DF raw data'!C5="","",'DF raw data'!C5) ->  | D5: =IF('DF raw data'!D5="","",'DF raw data'!D5) -> 
A6: =IF('DF raw data'!A6="","",'DF raw data'!A6) -> Magnet type | B6: =IF('DF raw data'!B6="","",'DF raw data'!B6) -> Dipole | C6: =IF('DF raw data'!C6="","",'DF raw data'!C6) ->  | D6: =IF('DF raw data'!D6="","",'DF raw data'!D6) -> 
A7: =IF('DF raw data'!A7="","",'DF raw data'!A7) -> Magnet nr. | B7: =IF('DF raw data'!B7="","",'DF raw data'!B7) -> 2410110 | C7: =IF('DF raw data'!C7="","",'DF raw data'!C7) ->  | D7: =IF('DF raw data'!D7="","",'DF raw data'!D7) -> 
A8: =IF('DF raw data'!A8="","",'DF raw data'!A8) -> Meas. number | B8: =IF('DF raw data'!B8="","",'DF raw data'!B8) -> 979 | C8: =IF('DF raw data'!C8="","",'DF raw data'!C8) ->  | D8: =IF('DF raw data'!D8="","",'DF raw data'!D8) -> 
A9: =IF('DF raw data'!A9="","",'DF raw data'!A9) -> Add. info | B9: =IF('DF raw data'!B9="","",'DF raw data'!B9) -> X-alignment scan 1) | C9: =IF('DF raw data'!C9="","",'DF raw data'!C9) ->  | D9: =IF('DF raw data'!D9="","",'DF raw data'!D9) -> 
A10: =IF('DF raw data'!A10="","",'DF raw data'!A10) -> Device | B10: =IF('DF raw data'!B10="","",'DF raw data'!B10) -> (HAL) HALL-PROBE | C10: =IF('DF raw data'!C10="","",'DF raw data'!C10) ->  | D10: =IF('DF raw data'!D10="","",'DF raw data'!D10) -> 
A11: =IF('DF raw data'!A11="","",'DF raw data'!A11) -> Goal | B11: =IF('DF raw data'!B11="","",'DF raw data'!B11) -> (AXI) AXis Integral (Line, EFB) | C11: =IF('DF raw data'!C11="","",'DF raw data'!C11) ->  | D11: =IF('DF raw data'!D11="","",'DF raw data'!D11) -> 
A12: =IF('DF raw data'!A12="","",'DF raw data'!A12) -> Power supply mode | B12: =IF('DF raw data'!B12="","",'DF raw data'!B12) -> (PM) Permanent Magnet (no MPS in use) | C12: =IF('DF raw data'!C12="","",'DF raw data'!C12) ->  | D12: =IF('DF raw data'!D12="","",'DF raw data'!D12) -> 
A13: =IF('DF raw data'!A13="","",'DF raw data'!A13) -> Data format | B13: =IF('DF raw data'!B13="","",'DF raw data'!B13) -> Raw data text file | C13: =IF('DF raw data'!C13="","",'DF raw data'!C13) ->  | D13: =IF('DF raw data'!D13="","",'DF raw data'!D13) -> 
A14: =IF('DF raw data'!A14="","",'DF raw data'!A14) -> Direction of the pos. x-axis | B14: =IF('DF raw data'!B14="","",'DF raw data'!B14) -> See test program | C14: =IF('DF raw data'!C14="","",'DF raw data'!C14) ->  | D14: =IF('DF raw data'!D14="","",'DF raw data'!D14) -> 
A15: =IF('DF raw data'!A15="","",'DF raw data'!A15) -> Direction of the pos. y-axis | B15: =IF('DF raw data'!B15="","",'DF raw data'!B15) -> Vertical up | C15: =IF('DF raw data'!C15="","",'DF raw data'!C15) ->  | D15: =IF('DF raw data'!D15="","",'DF raw data'!D15) -> 
A16: =IF('DF raw data'!A16="","",'DF raw data'!A16) -> Direction of the pos. z-axis | B16: =IF('DF raw data'!B16="","",'DF raw data'!B16) -> See test program | C16: =IF('DF raw data'!C16="","",'DF raw data'!C16) ->  | D16: =IF('DF raw data'!D16="","",'DF raw data'!D16) -> 
A17: =IF('DF raw data'!A17="","",'DF raw data'!A17) -> Mapper type | B17: =IF('DF raw data'!B17="","",'DF raw data'!B17) -> Precision Hall Mapper | C17: =IF('DF raw data'!C17="","",'DF raw data'!C17) ->  | D17: =IF('DF raw data'!D17="","",'DF raw data'!D17) -> 
A18: =IF('DF raw data'!A18="","",'DF raw data'!A18) -> Mapper Danfysik Reg. Number | B18: =IF('DF raw data'!B18="","",'DF raw data'!B18) -> 2033-D (mapper 1) | C18: =IF('DF raw data'!C18="","",'DF raw data'!C18) ->  | D18: =IF('DF raw data'!D18="","",'DF raw data'!D18) -> 
A19: =IF('DF raw data'!A19="","",'DF raw data'!A19) -> Measurement consept | B19: =IF('DF raw data'!B19="","",'DF raw data'!B19) -> Square line grid | C19: =IF('DF raw data'!C19="","",'DF raw data'!C19) ->  | D19: =IF('DF raw data'!D19="","",'DF raw data'!D19) -> 
A20: =IF('DF raw data'!A20="","",'DF raw data'!A20) -> Mode | B20: =IF('DF raw data'!B20="","",'DF raw data'!B20) -> On-the-fly measurement | C20: =IF('DF raw data'!C20="","",'DF raw data'!C20) ->  | D20: =IF('DF raw data'!D20="","",'DF raw data'!D20) -> 
A21: =IF('DF raw data'!A21="","",'DF raw data'!A21) ->  | B21: =IF('DF raw data'!B21="","",'DF raw data'!B21) ->  | C21: =IF('DF raw data'!C21="","",'DF raw data'!C21) ->  | D21: =IF('DF raw data'!D21="","",'DF raw data'!D21) -> 
A22: =IF('DF raw data'!A22="","",'DF raw data'!A22) -> Probe Name | B22: =IF('DF raw data'!B22="","",'DF raw data'!B22) -> ID12_By | C22: =IF('DF raw data'!C22="","",'DF raw data'!C22) ->  | D22: =IF('DF raw data'!D22="","",'DF raw data'!D22) -> 
A23: =IF('DF raw data'!A23="","",'DF raw data'!A23) -> Probe Type | B23: =IF('DF raw data'!B23="","",'DF raw data'!B23) -> DF_ID_3D_Bxyz | C23: =IF('DF raw data'!C23="","",'DF raw data'!C23) ->  | D23: =IF('DF raw data'!D23="","",'DF raw data'!D23) -> 
A24: =IF('DF raw data'!A24="","",'DF raw data'!A24) -> Probe Danfysik Reg. Number | B24: =IF('DF raw data'!B24="","",'DF raw data'!B24) -> 2277 | C24: =IF('DF raw data'!C24="","",'DF raw data'!C24) ->  | D24: =IF('DF raw data'!D24="","",'DF raw data'!D24) -> 
A25: =IF('DF raw data'!A25="","",'DF raw data'!A25) -> Probe Axis | B25: =IF('DF raw data'!B25="","",'DF raw data'!B25) -> By | C25: =IF('DF raw data'!C25="","",'DF raw data'!C25) ->  | D25: =IF('DF raw data'!D25="","",'DF raw data'!D25) -> 
A26: =IF('DF raw data'!A26="","",'DF raw data'!A26) -> Probe Current Supply | B26: =IF('DF raw data'!B26="","",'DF raw data'!B26) -> 1825-D | C26: =IF('DF raw data'!C26="","",'DF raw data'!C26) ->  | D26: =IF('DF raw data'!D26="","",'DF raw data'!D26) -> 
A27: =IF('DF raw data'!A27="","",'DF raw data'!A27) -> Probe Gain Correction | B27: =IF('DF raw data'!B27="","",'DF raw data'!B27) -> 0.99615 | C27: =IF('DF raw data'!C27="","",'DF raw data'!C27) ->  | D27: =IF('DF raw data'!D27="","",'DF raw data'!D27) -> 
A28: =IF('DF raw data'!A28="","",'DF raw data'!A28) -> Probe Offset Correction | B28: =IF('DF raw data'!B28="","",'DF raw data'!B28) -> 0.0027536 | C28: =IF('DF raw data'!C28="","",'DF raw data'!C28) ->  | D28: =IF('DF raw data'!D28="","",'DF raw data'!D28) -> 
A29: =IF('DF raw data'!A29="","",'DF raw data'!A29) -> DVM Number | B29: =IF('DF raw data'!B29="","",'DF raw data'!B29) -> 2 | C29: =IF('DF raw data'!C29="","",'DF raw data'!C29) ->  | D29: =IF('DF raw data'!D29="","",'DF raw data'!D29) -> 
A30: =IF('DF raw data'!A30="","",'DF raw data'!A30) -> DVM Type | B30: =IF('DF raw data'!B30="","",'DF raw data'!B30) -> K2701 | C30: =IF('DF raw data'!C30="","",'DF raw data'!C30) ->  | D30: =IF('DF raw data'!D30="","",'DF raw data'!D30) -> 
A31: =IF('DF raw data'!A31="","",'DF raw data'!A31) -> DVM Danfysik Reg. Number | B31: =IF('DF raw data'!B31="","",'DF raw data'!B31) -> 1743-D | C31: =IF('DF raw data'!C31="","",'DF raw data'!C31) ->  | D31: =IF('DF raw data'!D31="","",'DF raw data'!D31) -> 
A32: =IF('DF raw data'!A32="","",'DF raw data'!A32) -> Probe Name | B32: =IF('DF raw data'!B32="","",'DF raw data'!B32) -> ID12_Bx | C32: =IF('DF raw data'!C32="","",'DF raw data'!C32) ->  | D32: =IF('DF raw data'!D32="","",'DF raw data'!D32) -> 
A33: =IF('DF raw data'!A33="","",'DF raw data'!A33) -> Probe Type | B33: =IF('DF raw data'!B33="","",'DF raw data'!B33) -> DF_ID_3D_Bxyz | C33: =IF('DF raw data'!C33="","",'DF raw data'!C33) ->  | D33: =IF('DF raw data'!D33="","",'DF raw data'!D33) -> 
A34: =IF('DF raw data'!A34="","",'DF raw data'!A34) -> Probe Danfysik Reg. Number | B34: =IF('DF raw data'!B34="","",'DF raw data'!B34) -> 2277 | C34: =IF('DF raw data'!C34="","",'DF raw data'!C34) ->  | D34: =IF('DF raw data'!D34="","",'DF raw data'!D34) -> 
A35: =IF('DF raw data'!A35="","",'DF raw data'!A35) -> Probe Axis | B35: =IF('DF raw data'!B35="","",'DF raw data'!B35) -> Bx | C35: =IF('DF raw data'!C35="","",'DF raw data'!C35) ->  | D35: =IF('DF raw data'!D35="","",'DF raw data'!D35) -> 
A36: =IF('DF raw data'!A36="","",'DF raw data'!A36) -> Probe Current Supply | B36: =IF('DF raw data'!B36="","",'DF raw data'!B36) -> 1825-D | C36: =IF('DF raw data'!C36="","",'DF raw data'!C36) ->  | D36: =IF('DF raw data'!D36="","",'DF raw data'!D36) -> 
A37: =IF('DF raw data'!A37="","",'DF raw data'!A37) -> Probe Gain Correction | B37: =IF('DF raw data'!B37="","",'DF raw data'!B37) -> 1 | C37: =IF('DF raw data'!C37="","",'DF raw data'!C37) ->  | D37: =IF('DF raw data'!D37="","",'DF raw data'!D37) -> 
A38: =IF('DF raw data'!A38="","",'DF raw data'!A38) -> Probe Offset Correction | B38: =IF('DF raw data'!B38="","",'DF raw data'!B38) -> -0.17575 | C38: =IF('DF raw data'!C38="","",'DF raw data'!C38) ->  | D38: =IF('DF raw data'!D38="","",'DF raw data'!D38) -> 
A39: =IF('DF raw data'!A39="","",'DF raw data'!A39) -> DVM Number | B39: =IF('DF raw data'!B39="","",'DF raw data'!B39) -> 3 | C39: =IF('DF raw data'!C39="","",'DF raw data'!C39) ->  | D39: =IF('DF raw data'!D39="","",'DF raw data'!D39) -> 
A40: =IF('DF raw data'!A40="","",'DF raw data'!A40) -> DVM Type | B40: =IF('DF raw data'!B40="","",'DF raw data'!B40) -> K2701 | C40: =IF('DF raw data'!C40="","",'DF raw data'!C40) ->  | D40: =IF('DF raw data'!D40="","",'DF raw data'!D40) -> 
A41: =IF('DF raw data'!A41="","",'DF raw data'!A41) -> DVM Danfysik Reg. Number | B41: =IF('DF raw data'!B41="","",'DF raw data'!B41) -> 1744-D | C41: =IF('DF raw data'!C41="","",'DF raw data'!C41) ->  | D41: =IF('DF raw data'!D41="","",'DF raw data'!D41) -> 
A42: =IF('DF raw data'!A42="","",'DF raw data'!A42) -> Probe Name | B42: =IF('DF raw data'!B42="","",'DF raw data'!B42) -> ID12_Bz | C42: =IF('DF raw data'!C42="","",'DF raw data'!C42) ->  | D42: =IF('DF raw data'!D42="","",'DF raw data'!D42) -> 
A43: =IF('DF raw data'!A43="","",'DF raw data'!A43) -> Probe Type | B43: =IF('DF raw data'!B43="","",'DF raw data'!B43) -> DF_ID_3D_Bxyz | C43: =IF('DF raw data'!C43="","",'DF raw data'!C43) ->  | D43: =IF('DF raw data'!D43="","",'DF raw data'!D43) -> 
A44: =IF('DF raw data'!A44="","",'DF raw data'!A44) -> Probe Danfysik Reg. Number | B44: =IF('DF raw data'!B44="","",'DF raw data'!B44) -> 2277 | C44: =IF('DF raw data'!C44="","",'DF raw data'!C44) ->  | D44: =IF('DF raw data'!D44="","",'DF raw data'!D44) -> 
A45: =IF('DF raw data'!A45="","",'DF raw data'!A45) -> Probe Axis | B45: =IF('DF raw data'!B45="","",'DF raw data'!B45) -> Bz | C45: =IF('DF raw data'!C45="","",'DF raw data'!C45) ->  | D45: =IF('DF raw data'!D45="","",'DF raw data'!D45) -> 
A46: =IF('DF raw data'!A46="","",'DF raw data'!A46) -> Probe Current Supply | B46: =IF('DF raw data'!B46="","",'DF raw data'!B46) -> 1825-D | C46: =IF('DF raw data'!C46="","",'DF raw data'!C46) ->  | D46: =IF('DF raw data'!D46="","",'DF raw data'!D46) -> 
A47: =IF('DF raw data'!A47="","",'DF raw data'!A47) -> Probe Gain Correction | B47: =IF('DF raw data'!B47="","",'DF raw data'!B47) -> 1 | C47: =IF('DF raw data'!C47="","",'DF raw data'!C47) ->  | D47: =IF('DF raw data'!D47="","",'DF raw data'!D47) -> 
A48: =IF('DF raw data'!A53="","",'DF raw data'!A53) -> PS-Gap: | B48: =IF('DF raw data'!B53="","",'DF raw data'!B53) -> 10 | C48: =IF('DF raw data'!C53="","",'DF raw data'!C53) ->  | D48: =IF('DF raw data'!D53="","",'DF raw data'!D53) -> 
A49: =IF('DF raw data'!A54="","",'DF raw data'!A54) -> PS-Temperature: | B49: =IF('DF raw data'!B54="","",'DF raw data'!B54) -> 25.3 | C49: =IF('DF raw data'!C54="","",'DF raw data'!C54) ->  | D49: =IF('DF raw data'!D54="","",'DF raw data'!D54) -> 
A50: =IF('DF raw data'!A55="","",'DF raw data'!A55) -> PS-Encoder: | B50: =IF('DF raw data'!B55="","",'DF raw data'!B55) -> 19.7503 | C50: =IF('DF raw data'!C55="","",'DF raw data'!C55) ->  | D50: =IF('DF raw data'!D55="","",'DF raw data'!D55) -> 
A51: =IF('DF raw data'!A56="","",'DF raw data'!A56) ->  | B51: =IF('DF raw data'!B56="","",'DF raw data'!B56) ->  | C51: =IF('DF raw data'!C56="","",'DF raw data'!C56) ->  | D51: =IF('DF raw data'!D56="","",'DF raw data'!D56) -> 
A52: =IF('DF raw data'!A57="","",'DF raw data'!A57) -> Monitor-Index | B52: =IF('DF raw data'!B57="","",'DF raw data'!B57) -> [1,1,4] | C52: =IF('DF raw data'!C57="","",'DF raw data'!C57) ->  | D52: =IF('DF raw data'!D57="","",'DF raw data'!D57) -> 
A53: =IF('DF raw data'!A58="","",'DF raw data'!A58) ->  | B53: =IF('DF raw data'!B58="","",'DF raw data'!B58) ->  | C53: =IF('DF raw data'!C58="","",'DF raw data'!C58) ->  | D53: =IF('DF raw data'!D58="","",'DF raw data'!D58) -> 
A54: =IF('DF raw data'!A59="","",'DF raw data'!A59) -> Time [s] | B54: =IF('DF raw data'!B59="","",'DF raw data'!B59) -> Y [mm] | C54: =IF('DF raw data'!C59="","",'DF raw data'!C59) -> X [mm] | D54: =IF('DF raw data'!D59="","",'DF raw data'!D59) -> Nominal current [A]
A55: =IF('DF raw data'!A60="","",'DF raw data'!A60) ->  | B55: =IF('DF raw data'!B60="","",'DF raw data'!B60) ->  | C55: =IF('DF raw data'!C60="","",'DF raw data'!C60) ->  | D55: =IF('DF raw data'!D60="","",'DF raw data'!D60) -> 
A56: =IF('DF raw data'!A61="","",'DF raw data'!A61) -> 217.6 | B56: =IF('DF raw data'!B61="","",'DF raw data'!B61) -> 31.15 | C56: =IF('DF raw data'!C61="","",'DF raw data'!C61) -> 299.3 | D56: =IF('DF raw data'!D61="","",'DF raw data'!D61) -> 0
A57: =IF('DF raw data'!A62="","",'DF raw data'!A62) ->  | B57: =IF('DF raw data'!B62="","",'DF raw data'!B62) ->  | C57: =IF('DF raw data'!C62="","",'DF raw data'!C62) ->  | D57: =IF('DF raw data'!D62="","",'DF raw data'!D62) -> 
A58: =IF('DF raw data'!A63="","",'DF raw data'!A63) -> Measurement-Index | B58: =IF('DF raw data'!B63="","",'DF raw data'!B63) -> [1,1,1201,2] | C58: =IF('DF raw data'!C63="","",'DF raw data'!C63) ->  | D58: =IF('DF raw data'!D63="","",'DF raw data'!D63) -> 
A59: =IF('DF raw data'!A64="","",'DF raw data'!A64) ->  | B59: =IF('DF raw data'!B64="","",'DF raw data'!B64) ->  | C59: =IF('DF raw data'!C64="","",'DF raw data'!C64) ->  | D59: =IF('DF raw data'!D64="","",'DF raw data'!D64) -> 
A60: =IF('DF raw data'!A65="","",'DF raw data'!A65) -> Z [mm] | B60: =IF('DF raw data'!B65="","",'DF raw data'!B65) -> By [T] | C60: =IF('DF raw data'!C65="","",'DF raw data'!C65) -> Bx [T] | D60: =IF('DF raw data'!D65="","",'DF raw data'!D65) -> Bz [T] | F60: By_corr | G60: Bx_corr | H60: Bz_corr | J60: Iy | K60: Jy | L60: Ix | M60: Jx | N60: PI
A62: =IF('DF raw data'!A67="","",'DF raw data'!A67) -> -300 | B62: =IF('DF raw data'!B67="","",'DF raw data'!B67) -> -4.39791e-05 | C62: =IF('DF raw data'!C67="","",'DF raw data'!C67) -> 0.000166205 | D62: =IF('DF raw data'!D67="","",'DF raw data'!D67) -> -3.23396e-05 | F62: =(1-$G$1*($B$49))*B62 -> -4.509177123e-05 | G62: =(1-$G$1*($B$49-$G$2))*C62 -> 0.0001670858865 | H62: =(1-$G$1*($B$49-$G$2))*D62 -> -3.251099988e-05 | J62: =F62*$G$3 -> -2.254588562e-05 | K62: =J62*$G$3 -> -1.127294281e-05 | L62: =G62*$G$3 -> 8.354294325e-05 | M62: =L62*$G$3 -> 4.177147163e-05 | N62: =(J62^2+L62^2)*$G$3 -> 3.743870163e-09
A63: =IF('DF raw data'!A68="","",'DF raw data'!A68) -> -299.5 | B63: =IF('DF raw data'!B68="","",'DF raw data'!B68) -> -2.77655e-05 | C63: =IF('DF raw data'!C68="","",'DF raw data'!C68) -> 0.000170608 | D63: =IF('DF raw data'!D68="","",'DF raw data'!D68) -> -3.29659e-05 | F63: =(1-$G$1*($B$49-$G$2))*B63 -> -2.791265715e-05 | G63: =(1-$G$1*($B$49-$G$2))*C63 -> 0.0001715122224 | H63: -3.314061927e-05 | J63: =F63*$G$3+J62 -> -3.650221419e-05 | K63: =J63*$G$3+K62 -> -2.95240499e-05 | L63: =G63*$G$3+L62 -> 0.0001692990544 | M63: =L63*$G$3+M62 -> 0.0001264209988 | N63: =(J63^2+L63^2)*$G$3+N62 -> 1.87411609e-08
A64: =IF('DF raw data'!A69="","",'DF raw data'!A69) -> -299 | B64: =IF('DF raw data'!B69="","",'DF raw data'!B69) -> -3.87873e-05 | C64: =IF('DF raw data'!C69="","",'DF raw data'!C69) -> 0.000169507 | D64: =IF('DF raw data'!D69="","",'DF raw data'!D69) -> -3.35872e-05 | F64: =(1-$G$1*($B$49-$G$2))*B64 -> -3.899287269e-05 | G64: 0.0001704053871 | H64: -3.376521216e-05 | J64: =F64*$G$3+J63 -> -5.599865054e-05 | K64: =J64*$G$3+K63 -> -5.752337517e-05 | L64: =G64*$G$3+L63 -> 0.000254501748 | M64: =L64*$G$3+M63 -> 0.0002536718728 | N64: =(J64^2+L64^2)*$G$3+N63 -> 5.26946552e-08
A65: =IF('DF raw data'!A70="","",'DF raw data'!A70) -> -298.5 | B65: =IF('DF raw data'!B70="","",'DF raw data'!B70) -> -2.88542e-05 | C65: =IF('DF raw data'!C70="","",'DF raw data'!C70) -> 0.000165805 | D65: =IF('DF raw data'!D70="","",'DF raw data'!D70) -> -3.37246e-05 | F65: -2.900712726e-05 | G65: 0.0001666837665 | H65: -3.390334038e-05 | J65: -7.050221417e-05 | K65: -9.277448225e-05 | L65: 0.0003378436313 | M65: 0.0004225936885 | N65: 1.122490959e-07
A66: =IF('DF raw data'!A71="","",'DF raw data'!A71) -> -298 | B66: =IF('DF raw data'!B71="","",'DF raw data'!B71) -> -2.37913e-05 | C66: =IF('DF raw data'!C71="","",'DF raw data'!C71) -> 0.000156182 | D66: =IF('DF raw data'!D71="","",'DF raw data'!D71) -> -3.43271e-05 | F66: -2.391739389e-05 | G66: 0.0001570097646 | H66: -3.450903363e-05 | J66: -8.246091111e-05 | K66: -0.0001340049378 | L66: 0.0004163485136 | M66: 0.0006307679452 | N66: 2.023220392e-07
A67: =IF('DF raw data'!A72="","",'DF raw data'!A72) -> -297.5 | B67: =IF('DF raw data'!B72="","",'DF raw data'!B72) -> -2.39831e-05 | C67: =IF('DF raw data'!C72="","",'DF raw data'!C72) -> 0.000152332 | D67: =IF('DF raw data'!D72="","",'DF raw data'!D72) -> -3.5231e-05 | F67: -2.411021043e-05 | G67: 0.0001531393596 | H67: -3.54177243e-05 | J67: -9.451601633e-05 | K67: -0.000181262946 | L67: 0.0004929181934 | M67: 0.0008772270419 | N67: 3.282728505e-07
A68: =IF('DF raw data'!A73="","",'DF raw data'!A73) -> -297 | B68: =IF('DF raw data'!B73="","",'DF raw data'!B73) -> -3.31468e-05 | C68: =IF('DF raw data'!C73="","",'DF raw data'!C73) -> 0.00016539 | D68: =IF('DF raw data'!D73="","",'DF raw data'!D73) -> -3.52559e-05 | F68: -3.332247804e-05 | G68: 0.000166266567 | H68: -3.544275627e-05 | J68: -0.0001111772553 | K68: -0.0002368515736 | L68: 0.0005760514768 | M68: 0.00116525278 | N68: 5.003706936e-07
A69: =IF('DF raw data'!A74="","",'DF raw data'!A74) -> -296.5 | B69: =IF('DF raw data'!B74="","",'DF raw data'!B74) -> -3.20579e-05 | C69: =IF('DF raw data'!C74="","",'DF raw data'!C74) -> 0.000167874 | D69: =IF('DF raw data'!D74="","",'DF raw data'!D74) -> -3.47436e-05 | F69: -3.222780687e-05 | G69: 0.0001687637322 | H69: -3.492774108e-05 | J69: -0.0001272911588 | K69: -0.000300497153 | L69: 0.0006604333429 | M69: 0.001495469452 | N69: 7.265583134e-07
A70: =IF('DF raw data'!A75="","",'DF raw data'!A75) -> -296 | B70: =IF('DF raw data'!B75="","",'DF raw data'!B75) -> -2.64825e-05 | C70: =IF('DF raw data'!C75="","",'DF raw data'!C75) -> 0.000165528 | D70: =IF('DF raw data'!D75="","",'DF raw data'!D75) -> -3.47487e-05 | F70: -2.662285725e-05 | G70: 0.0001664052984 | H70: -3.493286811e-05 | J70: -0.0001406025874 | K70: -0.0003707984467 | L70: 0.0007436359921 | M70: 0.001867287448 | N70: 1.012940102e-06
A71: =IF('DF raw data'!A76="","",'DF raw data'!A76) -> -295.5 | B71: =IF('DF raw data'!B76="","",'DF raw data'!B76) -> -3.03273e-05 | C71: =IF('DF raw data'!C76="","",'DF raw data'!C76) -> 0.000162089 | D71: =IF('DF raw data'!D76="","",'DF raw data'!D76) -> -3.52306e-05 | F71: -3.048803469e-05 | G71: 0.0001629480717 | H71: -3.541732218e-05 | J71: -0.0001558466048 | K71: -0.0004487217491 | L71: 0.000825110028 | M71: 0.002279842462 | N71: 1.365487463e-06
A72: =IF('DF raw data'!A77="","",'DF raw data'!A77) -> -295 | B72: =IF('DF raw data'!B77="","",'DF raw data'!B77) -> -3.30827e-05 | C72: =IF('DF raw data'!C77="","",'DF raw data'!C77) -> 0.000166438 | D72: =IF('DF raw data'!D77="","",'DF raw data'!D77) -> -3.55862e-05 | F72: -3.325803831e-05 | G72: 0.0001673201214 | H72: -3.577480686e-05 | J72: -0.0001724756239 | K72: -0.0005349595611 | L72: 0.0009087700887 | M72: 0.002734227506 | N72: 1.79329292e-06
A73: =IF('DF raw data'!A78="","",'DF raw data'!A78) -> -294.5 | B73: =IF('DF raw data'!B78="","",'DF raw data'!B78) -> -3.30186e-05 | C73: =IF('DF raw data'!C78="","",'DF raw data'!C78) -> 0.000164782 | D73: =IF('DF raw data'!D78="","",'DF raw data'!D78) -> -3.53363e-05 | F73: -3.319359858e-05 | G73: 0.0001656553446 | H73: -3.552358239e-05 | J73: -0.0001890724232 | K73: -0.0006294957727 | L73: 0.000991597761 | M73: 0.003230026387 | N73: 2.302800171e-06
A74: =IF('DF raw data'!A79="","",'DF raw data'!A79) -> -294 | B74: =IF('DF raw data'!B79="","",'DF raw data'!B79) -> -4.55156e-05 | C74: =IF('DF raw data'!C79="","",'DF raw data'!C79) -> 0.000167456 | D74: =IF('DF raw data'!D79="","",'DF raw data'!D79) -> -3.45417e-05 | F74: -4.575683268e-05 | G74: 0.0001683435168 | H74: -3.472477101e-05 | J74: -0.0002119508395 | K74: -0.0007354711924 | L74: 0.001075769519 | M74: 0.003767911146 | N74: 2.903901779e-06
A75: =IF('DF raw data'!A80="","",'DF raw data'!A80) -> -293.5 | B75: =IF('DF raw data'!B80="","",'DF raw data'!B80) -> -2.78928e-05 | C75: =IF('DF raw data'!C80="","",'DF raw data'!C80) -> 0.000167644 | D75: =IF('DF raw data'!D80="","",'DF raw data'!D80) -> -3.42982e-05 | F75: -2.804063184e-05 | G75: 0.0001685325132 | H75: -3.447998046e-05 | J75: -0.0002259711555 | K75: -0.0008484567702 | L75: 0.001160035776 | M75: 0.004347929034 | N75: 3.602274762e-06
A76: =IF('DF raw data'!A81="","",'DF raw data'!A81) -> -293 | B76: =IF('DF raw data'!B81="","",'DF raw data'!B81) -> -3.46212e-05 | C76: =IF('DF raw data'!C81="","",'DF raw data'!C81) -> 0.000156876 | D76: =IF('DF raw data'!D81="","",'DF raw data'!D81) -> -3.47452e-05 | F76: -3.480469236e-05 | G76: 0.0001577074428 | H76: -3.492934956e-05 | J76: -0.0002433735016 | K76: -0.000970143521 | L76: 0.001238889497 | M76: 0.004967373783 | N76: 4.399313686e-06
A77: =IF('DF raw data'!A82="","",'DF raw data'!A82) -> -292.5 | B77: =IF('DF raw data'!B82="","",'DF raw data'!B82) -> -3.52616e-05 | C77: =IF('DF raw data'!C82="","",'DF raw data'!C82) -> 0.000159974 | D77: =IF('DF raw data'!D82="","",'DF raw data'!D82) -> -3.52996e-05 | F77: -3.544848648e-05 | G77: 0.0001608218622 | H77: -3.548668788e-05 | J77: -0.0002610977449 | K77: -0.001100692393 | L77: 0.001319300429 | M77: 0.005627023997 | N77: 5.303676512e-06
A78: =IF('DF raw data'!A83="","",'DF raw data'!A83) -> -292 | B78: =IF('DF raw data'!B83="","",'DF raw data'!B83) -> -3.43643e-05 | C78: =IF('DF raw data'!C83="","",'DF raw data'!C83) -> 0.00016388 | D78: =IF('DF raw data'!D83="","",'DF raw data'!D83) -> -3.56654e-05 | F78: -3.454643079e-05 | G78: 0.000164748564 | H78: -3.585442662e-05 | J78: -0.0002783709603 | K78: -0.001239877874 | L78: 0.001401674711 | M78: 0.006327861353 | N78: 6.324767705e-06
A79: =IF('DF raw data'!A84="","",'DF raw data'!A84) -> -291.5 | B79: =IF('DF raw data'!B84="","",'DF raw data'!B84) -> -4.30869e-05 | C79: =IF('DF raw data'!C84="","",'DF raw data'!C84) -> 0.000174133 | D79: =IF('DF raw data'!D84="","",'DF raw data'!D84) -> -2.43114e-05 | F79: -4.331526057e-05 | G79: 0.0001750559049 | H79: -2.444025042e-05 | J79: -0.0003000285906 | K79: -0.001389892169 | L79: 0.001489202663 | M79: 0.007072462684 | N79: 7.478638568e-06
A80: =IF('DF raw data'!A85="","",'DF raw data'!A85) -> -291 | B80: =IF('DF raw data'!B85="","",'DF raw data'!B85) -> -4.36519e-05 | C80: =IF('DF raw data'!C85="","",'DF raw data'!C85) -> 0.0001769 | D80: =IF('DF raw data'!D85="","",'DF raw data'!D85) -> -4.2564e-05 | F80: -4.388325507e-05 | G80: 0.00017783757 | H80: -4.27895892e-05 | J80: -0.0003219702181 | K80: -0.001550877278 | L80: 0.001578121448 | M80: 0.007861523408 | N80: 8.775704631e-06
A81: =IF('DF raw data'!A86="","",'DF raw data'!A86) -> -290.5 | B81: =IF('DF raw data'!B86="","",'DF raw data'!B86) -> -4.63515e-05 | C81: =IF('DF raw data'!C86="","",'DF raw data'!C86) -> 0.000162229 | D81: =IF('DF raw data'!D86="","",'DF raw data'!D86) -> -2.98417e-05 | F81: -4.659716295e-05 | G81: 0.0001630888137 | H81: -2.999986101e-05 | J81: -0.0003452687996 | K81: -0.001723511678 | L81: 0.001659665855 | M81: 0.008691356336 | N81: 1.021255528e-05
A82: =IF('DF raw data'!A87="","",'DF raw data'!A87) -> -290 | B82: =IF('DF raw data'!B87="","",'DF raw data'!B87) -> -3.80262e-05 | C82: =IF('DF raw data'!C87="","",'DF raw data'!C87) -> 0.000155363 | D82: =IF('DF raw data'!D87="","",'DF raw data'!D87) -> -2.15627e-05 | F82: -3.822773886e-05 | G82: 0.0001561864239 | H82: -2.167698231e-05 | J82: -0.000364382669 | K82: -0.001905703012 | L82: 0.001737759067 | M82: 0.009560235869 | N82: 1.178884593e-05
A83: =IF('DF raw data'!A88="","",'DF raw data'!A88) -> -289.5 | B83: =IF('DF raw data'!B88="","",'DF raw data'!B88) -> -4.49454e-05 | C83: =IF('DF raw data'!C88="","",'DF raw data'!C88) -> 0.000163489 | D83: =IF('DF raw data'!D88="","",'DF raw data'!D88) -> -2.42984e-05 | F83: -4.518361062e-05 | G83: 0.0001643554917 | H83: -2.442718152e-05 | J83: -0.0003869744743 | K83: -0.002099190249 | L83: 0.001819936813 | M83: 0.01047020428 | N83: 1.351980555e-05
A84: =IF('DF raw data'!A89="","",'DF raw data'!A89) -> -289 | B84: =IF('DF raw data'!B89="","",'DF raw data'!B89) -> -4.60344e-05 | C84: =IF('DF raw data'!C89="","",'DF raw data'!C89) -> 0.000169566 | D84: =IF('DF raw data'!D89="","",'DF raw data'!D89) -> -2.51647e-05 | F84: -4.627838232e-05 | G84: 0.0001704646998 | H84: -2.529807291e-05 | J84: -0.0004101136655 | K84: -0.002304247082 | L84: 0.001905169163 | M84: 0.01142278886 | N84: 1.541873693e-05
A85: =IF('DF raw data'!A90="","",'DF raw data'!A90) -> -288.5 | B85: =IF('DF raw data'!B90="","",'DF raw data'!B90) -> -4.71201e-05 | C85: =IF('DF raw data'!C90="","",'DF raw data'!C90) -> 0.000160438 | D85: =IF('DF raw data'!D90="","",'DF raw data'!D90) -> -3.09638e-05 | F85: -4.736983653e-05 | G85: 0.0001612883214 | H85: -3.112790814e-05 | J85: -0.0004337985837 | K85: -0.002521146374 | L85: 0.001985813323 | M85: 0.01241569552 | N85: 1.748455481e-05
A86: =IF('DF raw data'!A91="","",'DF raw data'!A91) -> -288 | B86: =IF('DF raw data'!B91="","",'DF raw data'!B91) -> -4.20077e-05 | C86: =IF('DF raw data'!C91="","",'DF raw data'!C91) -> 0.000156032 | D86: =IF('DF raw data'!D91="","",'DF raw data'!D91) -> -8.81168e-06 | F86: -4.223034081e-05 | G86: 0.0001568589696 | H86: -8.858381904e-06 | J86: -0.0004549137541 | K86: -0.002748603251 | L86: 0.002064242808 | M86: 0.01344781692 | N86: 1.971857726e-05
A87: =IF('DF raw data'!A92="","",'DF raw data'!A92) -> -287.5 | B87: =IF('DF raw data'!B92="","",'DF raw data'!B92) -> -4.63581e-05 | C87: =IF('DF raw data'!C92="","",'DF raw data'!C92) -> 0.000161779 | D87: =IF('DF raw data'!D92="","",'DF raw data'!D92) -> -1.97076e-05 | F87: -4.660379793e-05 | G87: 0.0001626364287 | H87: -1.981205028e-05 | J87: -0.0004782156531 | K87: -0.002987711078 | L87: 0.002145561022 | M87: 0.01452059743 | N87: 2.213463842e-05
A88: =IF('DF raw data'!A93="","",'DF raw data'!A93) -> -287 | B88: =IF('DF raw data'!B93="","",'DF raw data'!B93) -> -4.09104e-05 | C88: =IF('DF raw data'!C93="","",'DF raw data'!C93) -> 0.000162892 | D88: =IF('DF raw data'!D93="","",'DF raw data'!D93) -> -2.08797e-05 | F88: -4.112722512e-05 | G88: 0.0001637553276 | H88: -2.099036241e-05 | J88: -0.0004987792657 | K88: -0.00323710071 | L88: 0.002227438686 | M88: 0.01563431678 | N88: 2.473977034e-05
A89: =IF('DF raw data'!A94="","",'DF raw data'!A94) -> -286.5 | B89: =IF('DF raw data'!B94="","",'DF raw data'!B94) -> -3.61644e-05 | C89: =IF('DF raw data'!C94="","",'DF raw data'!C94) -> 0.000160554 | D89: =IF('DF raw data'!D94="","",'DF raw data'!D94) -> -2.66752e-05 | F89: -3.635607132e-05 | G89: 0.0001614049362 | H89: -2.681657856e-05 | J89: -0.0005169573013 | K89: -0.003495579361 | L89: 0.002308141154 | M89: 0.01678838735 | N89: 2.753715056e-05
A90: =IF('DF raw data'!A95="","",'DF raw data'!A95) -> -286 | B90: =IF('DF raw data'!B95="","",'DF raw data'!B95) -> -3.87282e-05 | C90: =IF('DF raw data'!C95="","",'DF raw data'!C95) -> 0.000154974 | D90: =IF('DF raw data'!D95="","",'DF raw data'!D95) -> -2.61942e-05 | F90: -3.893345946e-05 | G90: 0.0001557953622 | H90: -2.633302926e-05 | J90: -0.0005364240311 | K90: -0.003763791377 | L90: 0.002386038835 | M90: 0.01798140677 | N90: 3.05276166e-05
A91: =IF('DF raw data'!A96="","",'DF raw data'!A96) -> -285.5 | B91: =IF('DF raw data'!B96="","",'DF raw data'!B96) -> -3.09716e-05 | C91: =IF('DF raw data'!C96="","",'DF raw data'!C96) -> 0.000166299 | D91: =IF('DF raw data'!D96="","",'DF raw data'!D96) -> -2.97906e-05 | F91: -3.113574948e-05 | G91: 0.0001671803847 | H91: -2.994849018e-05 | J91: -0.0005519919058 | K91: -0.004039787329 | L91: 0.002469629028 | M91: 0.01921622128 | N91: 3.37294979e-05
A92: =IF('DF raw data'!A97="","",'DF raw data'!A97) -> -285 | B92: =IF('DF raw data'!B97="","",'DF raw data'!B97) -> -3.62974e-05 | C92: =IF('DF raw data'!C97="","",'DF raw data'!C97) -> 0.000168687 | D92: =IF('DF raw data'!D97="","",'DF raw data'!D97) -> -1.90663e-05 | F92: -3.648977622e-05 | G92: 0.0001695810411 | H92: -1.916735139e-05 | J92: -0.0005702367939 | K92: -0.004324905726 | L92: 0.002554419548 | M92: 0.02049343106 | N92: 3.715461251e-05
A93: =IF('DF raw data'!A98="","",'DF raw data'!A98) -> -284.5 | B93: =IF('DF raw data'!B98="","",'DF raw data'!B98) -> -4.28302e-05 | C93: =IF('DF raw data'!C98="","",'DF raw data'!C98) -> 0.000163508 | D93: =IF('DF raw data'!D98="","",'DF raw data'!D98) -> -2.49027e-05 | F93: -4.305720006e-05 | G93: 0.0001643745924 | H93: -2.503468431e-05 | J93: -0.0005917653939 | K93: -0.004620788423 | L93: 0.002636606844 | M93: 0.02181173448 | N93: 4.080555348e-05
A94: =IF('DF raw data'!A99="","",'DF raw data'!A99) -> -284 | B94: =IF('DF raw data'!B99="","",'DF raw data'!B99) -> -3.37965e-05 | C94: =IF('DF raw data'!C99="","",'DF raw data'!C99) -> 0.000159679 | D94: =IF('DF raw data'!D99="","",'DF raw data'!D99) -> -2.20991e-05 | F94: -3.397562145e-05 | G94: 0.0001605252987 | H94: -2.221622523e-05 | J94: -0.0006087532047 | K94: -0.004925165026 | L94: 0.002716869494 | M94: 0.02317016923 | N94: 4.468153363e-05
A95: =IF('DF raw data'!A100="","",'DF raw data'!A100) -> -283.5 | B95: =IF('DF raw data'!B100="","",'DF raw data'!B100) -> -3.33541e-05 | C95: =IF('DF raw data'!C100="","",'DF raw data'!C100) -> 0.000159422 | D95: =IF('DF raw data'!D100="","",'DF raw data'!D100) -> -1.22737e-05 | F95: -3.353087673e-05 | G95: 0.0001602669366 | H95: -1.233875061e-05 | J95: -0.000625518643 | K95: -0.005237924347 | L95: 0.002797002962 | M95: 0.02456867071 | N95: 4.87887832e-05
A96: =IF('DF raw data'!A101="","",'DF raw data'!A101) -> -283 | B96: =IF('DF raw data'!B101="","",'DF raw data'!B101) -> -3.43124e-05 | C96: =IF('DF raw data'!C101="","",'DF raw data'!C101) -> 0.000160324 | D96: =IF('DF raw data'!D101="","",'DF raw data'!D101) -> -1.70526e-05 | F96: -3.449425572e-05 | G96: 0.0001611737172 | H96: -1.714297878e-05 | J96: -0.0006427657709 | K96: -0.005559307233 | L96: 0.002877589821 | M96: 0.02600746562 | N96: 5.313561871e-05
A97: =IF('DF raw data'!A102="","",'DF raw data'!A102) -> -282.5 | B97: =IF('DF raw data'!B102="","",'DF raw data'!B102) -> -2.23234e-05 | C97: =IF('DF raw data'!C102="","",'DF raw data'!C102) -> 0.000159117 | D97: =IF('DF raw data'!D102="","",'DF raw data'!D102) -> -2.50459e-05 | F97: -2.244171402e-05 | G97: 0.0001599603201 | H97: -2.517864327e-05 | J97: -0.0006539866279 | K97: -0.005886300547 | L97: 0.002957569981 | M97: 0.02748625061 | N97: 5.772307806e-05
A98: =IF('DF raw data'!A103="","",'DF raw data'!A103) -> -282 | B98: =IF('DF raw data'!B103="","",'DF raw data'!B103) -> -4.00072e-05 | C98: =IF('DF raw data'!C103="","",'DF raw data'!C103) -> 0.000148212 | D98: =IF('DF raw data'!D103="","",'DF raw data'!D103) -> -3.01545e-05 | F98: -4.021923816e-05 | G98: 0.0001489975236 | H98: -3.031431885e-05 | J98: -0.000674096247 | K98: -0.00622334867 | L98: 0.003032068743 | M98: 0.02900228498 | N98: 6.254700137e-05
A99: =IF('DF raw data'!A104="","",'DF raw data'!A104) -> -281.5 | B99: =IF('DF raw data'!B104="","",'DF raw data'!B104) -> -3.21903e-05 | C99: =IF('DF raw data'!C104="","",'DF raw data'!C104) -> 0.000154631 | D99: =IF('DF raw data'!D104="","",'DF raw data'!D104) -> -2.83208e-05 | F99: -3.236090859e-05 | G99: 0.0001554505443 | H99: -2.847090024e-05 | J99: -0.0006902767013 | K99: -0.006568487021 | L99: 0.003109794015 | M99: 0.03055718199 | N99: 6.762065173e-05
A100: =IF('DF raw data'!A105="","",'DF raw data'!A105) -> -281 | B100: =IF('DF raw data'!B105="","",'DF raw data'!B105) -> -4.02004e-05 | C100: =IF('DF raw data'!C105="","",'DF raw data'!C105) -> 0.00016716 | D100: =IF('DF raw data'!D105="","",'DF raw data'!D105) -> -2.88942e-05 | F100: -4.041346212e-05 | G100: 0.000168045948 | H100: -2.904733926e-05 | J100: -0.0007104834323 | K100: -0.006923728737 | L100: 0.003193816989 | M100: 0.03215409048 | N100: 7.297327857e-05
A101: =IF('DF raw data'!A106="","",'DF raw data'!A106) -> -280.5 | B101: =IF('DF raw data'!B106="","",'DF raw data'!B106) -> -3.91106e-05 | C101: =IF('DF raw data'!C106="","",'DF raw data'!C106) -> 0.000162441 | D101: =IF('DF raw data'!D106="","",'DF raw data'!D106) -> -2.93821e-05 | F101: -3.931788618e-05 | G101: 0.0001633019373 | H101: -2.953782513e-05 | J101: -0.0007301423754 | K101: -0.007288799925 | L101: 0.003275467957 | M101: 0.03379182446 | N101: 7.860417768e-05
A102: =IF('DF raw data'!A107="","",'DF raw data'!A107) -> -280 | B102: =IF('DF raw data'!B107="","",'DF raw data'!B107) -> -3.48224e-05 | C102: =IF('DF raw data'!C107="","",'DF raw data'!C107) -> 0.000163957 | D102: =IF('DF raw data'!D107="","",'DF raw data'!D107) -> -2.1065e-05 | F102: -3.500695872e-05 | G102: 0.0001648259721 | H102: -2.11766445e-05 | J102: -0.0007476458548 | K102: -0.007662622852 | L102: 0.003357880943 | M102: 0.03547076493 | N102: 8.452134706e-05
A103: =IF('DF raw data'!A108="","",'DF raw data'!A108) -> -279.5 | B103: =IF('DF raw data'!B108="","",'DF raw data'!B108) -> -2.85409e-05 | C103: =IF('DF raw data'!C108="","",'DF raw data'!C108) -> 0.000162784 | D103: =IF('DF raw data'!D108="","",'DF raw data'!D108) -> -2.30696e-05 | F103: -2.869216677e-05 | G103: 0.0001636467552 | H103: -2.319186888e-05 | J103: -0.0007619919382 | K103: -0.008043618821 | L103: 0.003439704321 | M103: 0.03719061709 | N103: 9.072744582e-05
A104: =IF('DF raw data'!A109="","",'DF raw data'!A109) -> -279 | B104: =IF('DF raw data'!B109="","",'DF raw data'!B109) -> -3.69374e-05 | C104: =IF('DF raw data'!C109="","",'DF raw data'!C109) -> 0.000160668 | D104: =IF('DF raw data'!D109="","",'DF raw data'!D109) -> -2.07801e-05 | F104: -3.713316822e-05 | G104: 0.0001615195404 | H104: -2.089023453e-05 | J104: -0.0007805585223 | K104: -0.008433898082 | L104: 0.003520464091 | M104: 0.03895084914 | N104: 9.722891534e-05
A105: =IF('DF raw data'!A110="","",'DF raw data'!A110) -> -278.5 | B105: =IF('DF raw data'!B110="","",'DF raw data'!B110) -> -3.11648e-05 | C105: =IF('DF raw data'!C110="","",'DF raw data'!C110) -> 0.000158193 | D105: =IF('DF raw data'!D110="","",'DF raw data'!D110) -> -2.86149e-05 | F105: -3.132997344e-05 | G105: 0.0001590314229 | H105: -2.876655897e-05 | J105: -0.000796223509 | K105: -0.008832009837 | L105: 0.003599979803 | M105: 0.04075083904 | N105: 0.0001040258286
A106: =IF('DF raw data'!A111="","",'DF raw data'!A111) -> -278 | B106: =IF('DF raw data'!B111="","",'DF raw data'!B111) -> -4.41168e-05 | C106: =IF('DF raw data'!C111="","",'DF raw data'!C111) -> 0.000151563 | D106: =IF('DF raw data'!D111="","",'DF raw data'!D111) -> -1.76578e-05 | F106: -4.435061904e-05 | G106: 0.0001523662839 | H106: -1.775138634e-05 | J106: -0.0008183988185 | K106: -0.009241209246 | L106: 0.003676162945 | M106: 0.04258892051 | N106: 0.0001111178039
A107: =IF('DF raw data'!A112="","",'DF raw data'!A112) -> -277.5 | B107: =IF('DF raw data'!B112="","",'DF raw data'!B112) -> -4.03901e-05 | C107: =IF('DF raw data'!C112="","",'DF raw data'!C112) -> 0.000159585 | D107: =IF('DF raw data'!D112="","",'DF raw data'!D112) -> -3.2725e-05 | F107: -4.060416753e-05 | G107: 0.0001604308005 | H107: -3.28984425e-05 | J107: -0.0008387009023 | K107: -0.009660559697 | L107: 0.003756378345 | M107: 0.04446710969 | N107: 0.0001185247026
A108: =IF('DF raw data'!A113="","",'DF raw data'!A113) -> -277 | B108: =IF('DF raw data'!B113="","",'DF raw data'!B113) -> -3.46921e-05 | C108: =IF('DF raw data'!C113="","",'DF raw data'!C113) -> 0.000163492 | D108: =IF('DF raw data'!D113="","",'DF raw data'!D113) -> -2.44809e-05 | F108: -3.487596813e-05 | G108: 0.0001643585076 | H108: -2.461064877e-05 | J108: -0.0008561388863 | K108: -0.01008862914 | L108: 0.003838557599 | M108: 0.04638638848 | N108: 0.0001262584517
A109: =IF('DF raw data'!A114="","",'DF raw data'!A114) -> -276.5 | B109: =IF('DF raw data'!B114="","",'DF raw data'!B114) -> -4.02063e-05 | C109: =IF('DF raw data'!C114="","",'DF raw data'!C114) -> 0.00016559 | D109: =IF('DF raw data'!D114="","",'DF raw data'!D114) -> -1.98823e-05 | F109: -4.041939339e-05 | G109: 0.000166467627 | H109: -1.998767619e-05 | J109: -0.000876348583 | K109: -0.01052680343 | L109: 0.003921791412 | M109: 0.04834728419 | N109: 0.0001343326691
A110: =IF('DF raw data'!A115="","",'DF raw data'!A115) -> -276 | B110: =IF('DF raw data'!B115="","",'DF raw data'!B115) -> -4.29571e-05 | C110: =IF('DF raw data'!C115="","",'DF raw data'!C115) -> 0.000159524 | D110: =IF('DF raw data'!D115="","",'DF raw data'!D115) -> -2.69637e-05 | F110: -4.318477263e-05 | G110: 0.0001603694772 | H110: -2.710660761e-05 | J110: -0.0008979409694 | K110: -0.01097577392 | L110: 0.004001976151 | M110: 0.05034827227 | N110: 0.0001427437246
A111: =IF('DF raw data'!A116="","",'DF raw data'!A116) -> -275.5 | B111: =IF('DF raw data'!B116="","",'DF raw data'!B116) -> -4.00182e-05 | C111: =IF('DF raw data'!C116="","",'DF raw data'!C116) -> 0.000152874 | D111: =IF('DF raw data'!D116="","",'DF raw data'!D116) -> -1.3274e-05 | F111: -4.023029646e-05 | G111: 0.0001536842322 | H111: -1.33443522e-05 | J111: -0.0009180561176 | K111: -0.01143480198 | L111: 0.004078818267 | M111: 0.0523876814 | N111: 0.0001514835174
A112: =IF('DF raw data'!A117="","",'DF raw data'!A117) -> -275 | B112: =IF('DF raw data'!B117="","",'DF raw data'!B117) -> -3.4563e-05 | C112: =IF('DF raw data'!C117="","",'DF raw data'!C117) -> 0.000158497 | D112: =IF('DF raw data'!D117="","",'DF raw data'!D117) -> -2.58953e-05 | F112: -3.47461839e-05 | G112: 0.0001593370341 | H112: -2.603254509e-05 | J112: -0.0009354292095 | K112: -0.01190251658 | L112: 0.004158486784 | M112: 0.05446692479 | N112: 0.0001605675374
A113: =IF('DF raw data'!A118="","",'DF raw data'!A118) -> -274.5 | B113: =IF('DF raw data'!B118="","",'DF raw data'!B118) -> -3.90542e-05 | C113: =IF('DF raw data'!C118="","",'DF raw data'!C118) -> 0.000157397 | D113: =IF('DF raw data'!D118="","",'DF raw data'!D118) -> -1.73982e-05 | F113: -3.926118726e-05 | G113: 0.0001582312041 | H113: -1.749041046e-05 | J113: -0.0009550598032 | K113: -0.01238004648 | L113: 0.004237602386 | M113: 0.05658572598 | N113: 0.0001700022441
A114: =IF('DF raw data'!A119="","",'DF raw data'!A119) -> -274 | B114: =IF('DF raw data'!B119="","",'DF raw data'!B119) -> -4.03996e-05 | C114: =IF('DF raw data'!C119="","",'DF raw data'!C119) -> 0.000161812 | D114: =IF('DF raw data'!D119="","",'DF raw data'!D119) -> -1.8082e-05 | F114: -4.061371788e-05 | G114: 0.0001626696036 | H114: -1.81778346e-05 | J114: -0.0009753666621 | K114: -0.01286772981 | L114: 0.004318937188 | M114: 0.05874519458 | N114: 0.0001798045233
A115: =IF('DF raw data'!A120="","",'DF raw data'!A120) -> -273.5 | B115: =IF('DF raw data'!B120="","",'DF raw data'!B120) -> -4.91768e-05 | C115: =IF('DF raw data'!C120="","",'DF raw data'!C120) -> 0.00016842 | D115: =IF('DF raw data'!D120="","",'DF raw data'!D120) -> -2.16996e-05 | F115: -4.943743704e-05 | G115: 0.000169312626 | H115: -2.181460788e-05 | J115: -0.001000085381 | K115: -0.0133677725 | L115: 0.004403593501 | M115: 0.06094699133 | N115: 0.0001900004266
A116: =IF('DF raw data'!A121="","",'DF raw data'!A121) -> -273 | B116: =IF('DF raw data'!B121="","",'DF raw data'!B121) -> -2.51395e-05 | C116: =IF('DF raw data'!C121="","",'DF raw data'!C121) -> 0.00016786 | D116: =IF('DF raw data'!D121="","",'DF raw data'!D121) -> -3.07823e-05 | F116: -2.527273935e-05 | G116: 0.000168749658 | H116: -3.094544619e-05 | J116: -0.00101272175 | K116: -0.01387413338 | L116: 0.00448796833 | M116: 0.06319097549 | N116: 0.0002005841591
A117: =IF('DF raw data'!A122="","",'DF raw data'!A122) -> -272.5 | B117: =IF('DF raw data'!B122="","",'DF raw data'!B122) -> -3.67454e-05 | C117: =IF('DF raw data'!C122="","",'DF raw data'!C122) -> 0.000168712 | D117: =IF('DF raw data'!D122="","",'DF raw data'!D122) -> -2.02743e-05 | F117: -3.694015062e-05 | G117: 0.0001696061736 | H117: -2.038175379e-05 | J117: -0.001031191826 | K117: -0.01438972929 | L117: 0.004572771417 | M117: 0.0654773612 | N117: 0.0002115709566
A118: =IF('DF raw data'!A123="","",'DF raw data'!A123) -> -272 | B118: =IF('DF raw data'!B123="","",'DF raw data'!B123) -> -3.88616e-05 | C118: =IF('DF raw data'!C123="","",'DF raw data'!C123) -> 0.000167974 | D118: =IF('DF raw data'!D123="","",'DF raw data'!D123) -> -1.80943e-05 | F118: -3.906756648e-05 | G118: 0.0001688642622 | H118: -1.819019979e-05 | J118: -0.001050725609 | K118: -0.0149150921 | L118: 0.004657203548 | M118: 0.06780596298 | N118: 0.0002229677412
A119: =IF('DF raw data'!A124="","",'DF raw data'!A124) -> -271.5 | B119: =IF('DF raw data'!B124="","",'DF raw data'!B124) -> -3.78964e-05 | C119: =IF('DF raw data'!C124="","",'DF raw data'!C124) -> 0.000168746 | D119: =IF('DF raw data'!D124="","",'DF raw data'!D124) -> -2.41052e-05 | F119: -3.809725092e-05 | G119: 0.0001696403538 | H119: -2.423295756e-05 | J119: -0.001069774234 | K119: -0.01544997921 | L119: 0.004742023725 | M119: 0.07017697484 | N119: 0.0002347833442
A120: =IF('DF raw data'!A125="","",'DF raw data'!A125) -> -271 | B120: =IF('DF raw data'!B125="","",'DF raw data'!B125) -> -3.84725e-05 | C120: =IF('DF raw data'!C125="","",'DF raw data'!C125) -> 0.000176145 | D120: =IF('DF raw data'!D125="","",'DF raw data'!D125) -> -2.53475e-05 | F120: -3.867640425e-05 | G120: 0.0001770785685 | H120: -2.548184175e-05 | J120: -0.001089112436 | K120: -0.01599453543 | L120: 0.004830563009 | M120: 0.07259225634 | N120: 0.0002470435966
A121: =IF('DF raw data'!A126="","",'DF raw data'!A126) -> -270.5 | B121: =IF('DF raw data'!B126="","",'DF raw data'!B126) -> -3.95669e-05 | C121: =IF('DF raw data'!C126="","",'DF raw data'!C126) -> 0.000167376 | D121: =IF('DF raw data'!D126="","",'DF raw data'!D126) -> -1.73427e-05 | F121: -3.977660457e-05 | G121: 0.0001682630928 | H121: -1.743461631e-05 | J121: -0.001109000739 | K121: -0.0165490358 | L121: 0.004914694555 | M121: 0.07504960362 | N121: 0.0002597356492
A122: =IF('DF raw data'!A127="","",'DF raw data'!A127) -> -270 | B122: =IF('DF raw data'!B127="","",'DF raw data'!B127) -> -4.64896e-05 | C122: =IF('DF raw data'!C127="","",'DF raw data'!C127) -> 0.000172873 | D122: =IF('DF raw data'!D127="","",'DF raw data'!D127) -> -1.48226e-05 | F122: -4.673599488e-05 | G122: 0.0001737892269 | H122: -1.490115978e-05 | J122: -0.001132368736 | K122: -0.01711522017 | L122: 0.005001589169 | M122: 0.0775503982 | N122: 0.0002728847258
A123: =IF('DF raw data'!A128="","",'DF raw data'!A128) -> -269.5 | B123: =IF('DF raw data'!B128="","",'DF raw data'!B128) -> -3.3917e-05 | C123: =IF('DF raw data'!C128="","",'DF raw data'!C128) -> 0.000175861 | D123: =IF('DF raw data'!D128="","",'DF raw data'!D128) -> -3.40024e-05 | F123: -3.40967601e-05 | G123: 0.0001767930633 | H123: -3.418261272e-05 | J123: -0.001149417116 | K123: -0.01768992873 | L123: 0.0050899857 | M123: 0.08009539105 | N123: 0.0002864992829
A124: =IF('DF raw data'!A129="","",'DF raw data'!A129) -> -269 | B124: =IF('DF raw data'!B129="","",'DF raw data'!B129) -> -2.82118e-05 | C124: =IF('DF raw data'!C129="","",'DF raw data'!C129) -> 0.000167149 | D124: =IF('DF raw data'!D129="","",'DF raw data'!D129) -> -3.64569e-05 | F124: -2.836132254e-05 | G124: 0.0001680348897 | H124: -3.665012157e-05 | J124: -0.001163597777 | K124: -0.01827172761 | L124: 0.005174003145 | M124: 0.08268239263 | N124: 0.000300561417
A125: =IF('DF raw data'!A130="","",'DF raw data'!A130) -> -268.5 | B125: =IF('DF raw data'!B130="","",'DF raw data'!B130) -> -4.73745e-05 | C125: =IF('DF raw data'!C130="","",'DF raw data'!C130) -> 0.000166172 | D125: =IF('DF raw data'!D130="","",'DF raw data'!D130) -> -3.41464e-05 | F125: -4.762558485e-05 | G125: 0.0001670527116 | H125: -3.432737592e-05 | J125: -0.00118741057 | K125: -0.0188654329 | L125: 0.005257529501 | M125: 0.08531115738 | N125: 0.0003150871972
A126: =IF('DF raw data'!A131="","",'DF raw data'!A131) -> -268 | B126: =IF('DF raw data'!B131="","",'DF raw data'!B131) -> -5.11e-05 | C126: =IF('DF raw data'!C131="","",'DF raw data'!C131) -> 0.000162121 | D126: =IF('DF raw data'!D131="","",'DF raw data'!D131) -> -2.06299e-05 | F126: -5.137083e-05 | G126: 0.0001629802413 | H126: -2.073923847e-05 | J126: -0.001213095985 | K126: -0.01947198089 | L126: 0.005339019622 | M126: 0.08798066719 | N126: 0.0003300755634
A127: =IF('DF raw data'!A132="","",'DF raw data'!A132) -> -267.5 | B127: =IF('DF raw data'!B132="","",'DF raw data'!B132) -> -3.03978e-05 | C127: =IF('DF raw data'!C132="","",'DF raw data'!C132) -> 0.000155491 | D127: =IF('DF raw data'!D132="","",'DF raw data'!D132) -> -2.55835e-05 | F127: -3.055890834e-05 | G127: 0.0001563151023 | H127: -2.571909255e-05 | J127: -0.001228375439 | K127: -0.02008616861 | L127: 0.005417177173 | M127: 0.09068925577 | N127: 0.0003455029208
A128: =IF('DF raw data'!A133="","",'DF raw data'!A133) -> -267 | B128: =IF('DF raw data'!B133="","",'DF raw data'!B133) -> -3.79027e-05 | C128: =IF('DF raw data'!C133="","",'DF raw data'!C133) -> 0.000162416 | D128: =IF('DF raw data'!D133="","",'DF raw data'!D133) -> -1.44516e-05 | F128: =(1-$G$1*($B$49-$G$2))*B128 -> -3.810358431e-05 | G128: 0.0001632768048 | H128: -1.452819348e-05 | J128: =F128*$G$3+J127 -> -0.001247427231 | K128: =J128*$G$3+K127 -> -0.02070988223 | L128: =G128*$G$3+L127 -> 0.005498815575 | M128: =L128*$G$3+M127 -> 0.09343866356 | N128: =(J128^2+L128^2)*$G$3+N127 -> 0.0003613994445
A129: =IF('DF raw data'!A134="","",'DF raw data'!A134) -> -266.5 | B129: =IF('DF raw data'!B134="","",'DF raw data'!B134) -> -4.76358e-05 | C129: =IF('DF raw data'!C134="","",'DF raw data'!C134) -> 0.000163393 | D129: =IF('DF raw data'!D134="","",'DF raw data'!D134) -> -2.65259e-05 | F129: -4.788826974e-05 | G129: 0.0001642589829 | H129: -2.666648727e-05 | J129: -0.001271371366 | K129: -0.02134556791 | L129: 0.005580945067 | M129: 0.0962291361 | N129: 0.000377781111
A130: =IF('DF raw data'!A135="","",'DF raw data'!A135) -> -266 | B130: =IF('DF raw data'!B135="","",'DF raw data'!B135) -> -3.66171e-05 | C130: =IF('DF raw data'!C135="","",'DF raw data'!C135) -> 0.000165241 | D130: =IF('DF raw data'!D135="","",'DF raw data'!D135) -> -2.06099e-05 | F130: -3.681117063e-05 | G130: 0.0001661167773 | H130: -2.071913247e-05 | J130: -0.001289776951 | K130: -0.02199045639 | L130: 0.005664003455 | M130: 0.09906113782 | N130: 0.0003946533408
A131: =IF('DF raw data'!A136="","",'DF raw data'!A136) -> -265.5 | B131: =IF('DF raw data'!B136="","",'DF raw data'!B136) -> -3.71233e-05 | C131: =IF('DF raw data'!C136="","",'DF raw data'!C136) -> 0.000167958 | D131: =IF('DF raw data'!D136="","",'DF raw data'!D136) -> -3.05549e-05 | F131: -3.732005349e-05 | G131: 0.0001688481774 | H131: -3.071684097e-05 | J131: -0.001308436978 | K131: -0.02264467488 | L131: 0.005748427544 | M131: 0.1019353516 | N131: 0.0004120315541
A132: =IF('DF raw data'!A137="","",'DF raw data'!A137) -> -265 | B132: =IF('DF raw data'!B137="","",'DF raw data'!B137) -> -3.46243e-05 | C132: =IF('DF raw data'!C137="","",'DF raw data'!C137) -> 0.000171251 | D132: =IF('DF raw data'!D137="","",'DF raw data'!D137) -> -3.00335e-05 | F132: -3.480780879e-05 | G132: 0.0001721586303 | H132: -3.019267755e-05 | J132: -0.001325840883 | K132: -0.02330759532 | L132: 0.005834506859 | M132: 0.104852605 | N132: 0.0004299312163
A133: =IF('DF raw data'!A138="","",'DF raw data'!A138) -> -264.5 | B133: =IF('DF raw data'!B138="","",'DF raw data'!B138) -> -3.5076e-05 | C133: =IF('DF raw data'!C138="","",'DF raw data'!C138) -> 0.000167399 | D133: =IF('DF raw data'!D138="","",'DF raw data'!D138) -> -2.54145e-05 | F133: -3.52619028e-05 | G133: 0.0001682862147 | H133: -2.554919685e-05 | J133: -0.001343471834 | K133: -0.02397933123 | L133: 0.005918649966 | M133: 0.10781193 | N133: 0.0004483488833
A134: =IF('DF raw data'!A139="","",'DF raw data'!A139) -> -264 | B134: =IF('DF raw data'!B139="","",'DF raw data'!B139) -> -4.60303e-05 | C134: =IF('DF raw data'!C139="","",'DF raw data'!C139) -> 0.000172589 | D134: =IF('DF raw data'!D139="","",'DF raw data'!D139) -> -3.17069e-05 | F134: -4.627426059e-05 | G134: 0.0001735037217 | H134: -3.187494657e-05 | J134: -0.001366608964 | K134: -0.02466263572 | L134: 0.006005401827 | M134: 0.1108146309 | N134: 0.0004673151188
A135: =IF('DF raw data'!A140="","",'DF raw data'!A140) -> -263.5 | B135: =IF('DF raw data'!B140="","",'DF raw data'!B140) -> -3.7326e-05 | C135: =IF('DF raw data'!C140="","",'DF raw data'!C140) -> 0.000173153 | D135: =IF('DF raw data'!D140="","",'DF raw data'!D140) -> -1.46547e-05 | F135: -3.75238278e-05 | G135: 0.0001740707109 | H135: -1.473236991e-05 | J135: -0.001385370878 | K135: -0.02535532115 | L135: 0.006092437183 | M135: 0.1138608495 | N135: 0.0004868336405
A136: =IF('DF raw data'!A141="","",'DF raw data'!A141) -> -263 | B136: =IF('DF raw data'!B141="","",'DF raw data'!B141) -> -3.19364e-05 | C136: =IF('DF raw data'!C141="","",'DF raw data'!C141) -> 0.000169207 | D136: =IF('DF raw data'!D141="","",'DF raw data'!D141) -> -2.46147e-05 | F136: -3.210566292e-05 | G136: 0.0001701037971 | H136: -2.474515791e-05 | J136: -0.00140142371 | K136: -0.02605603301 | L136: 0.006177489081 | M136: 0.1169495941 | N136: 0.0005068963204
A137: =IF('DF raw data'!A142="","",'DF raw data'!A142) -> -262.5 | B137: =IF('DF raw data'!B142="","",'DF raw data'!B142) -> -5.48774e-05 | C137: =IF('DF raw data'!C142="","",'DF raw data'!C142) -> 0.000164527 | D137: =IF('DF raw data'!D142="","",'DF raw data'!D142) -> -2.61781e-05 | F137: -5.516825022e-05 | G137: 0.0001653989931 | H137: -2.631684393e-05 | J137: -0.001429007835 | K137: -0.02677053693 | L137: 0.006260188578 | M137: 0.1200796883 | N137: 0.0005275123326
A138: =IF('DF raw data'!A143="","",'DF raw data'!A143) -> -262 | B138: =IF('DF raw data'!B143="","",'DF raw data'!B143) -> -2.89897e-05 | C138: =IF('DF raw data'!C143="","",'DF raw data'!C143) -> 0.000163238 | D138: =IF('DF raw data'!D143="","",'DF raw data'!D143) -> -2.26774e-05 | F138: -2.914334541e-05 | G138: 0.0001641031614 | H138: -2.279759022e-05 | J138: -0.001443579507 | K138: -0.02749232668 | L138: 0.006342240159 | M138: 0.1232508084 | N138: 0.0005486662986
A139: =IF('DF raw data'!A144="","",'DF raw data'!A144) -> -261.5 | B139: =IF('DF raw data'!B144="","",'DF raw data'!B144) -> -5.10959e-05 | C139: =IF('DF raw data'!C144="","",'DF raw data'!C144) -> 0.000168477 | D139: =IF('DF raw data'!D144="","",'DF raw data'!D144) -> -2.70181e-05 | F139: -5.136670827e-05 | G139: 0.0001693699281 | H139: -2.716129593e-05 | J139: -0.001469262862 | K139: -0.02822695811 | L139: 0.006426925123 | M139: 0.126464271 | N139: 0.0005703983485
A140: =IF('DF raw data'!A145="","",'DF raw data'!A145) -> -261 | B140: =IF('DF raw data'!B145="","",'DF raw data'!B145) -> -4.90494e-05 | C140: =IF('DF raw data'!C145="","",'DF raw data'!C145) -> 0.000166437 | D140: =IF('DF raw data'!D145="","",'DF raw data'!D145) -> -2.07172e-05 | F140: -4.930936182e-05 | G140: 0.0001673191161 | H140: -2.082700116e-05 | J140: -0.001493917542 | K140: -0.02897391688 | L140: 0.006510584681 | M140: 0.1297195633 | N140: 0.0005927080998
A141: =IF('DF raw data'!A146="","",'DF raw data'!A146) -> -260.5 | B141: =IF('DF raw data'!B146="","",'DF raw data'!B146) -> -4.12347e-05 | C141: =IF('DF raw data'!C146="","",'DF raw data'!C146) -> 0.000167355 | D141: =IF('DF raw data'!D146="","",'DF raw data'!D146) -> -1.53005e-05 | F141: -4.145324391e-05 | G141: 0.0001682419815 | H141: -1.538159265e-05 | J141: -0.001514644164 | K141: -0.02973123896 | L141: 0.006594705671 | M141: 0.1330169162 | N141: 0.0006156002447
A142: =IF('DF raw data'!A147="","",'DF raw data'!A147) -> -260 | B142: =IF('DF raw data'!B147="","",'DF raw data'!B147) -> -3.8923e-05 | C142: =IF('DF raw data'!C147="","",'DF raw data'!C147) -> 0.000168832 | D142: =IF('DF raw data'!D147="","",'DF raw data'!D147) -> -2.23077e-05 | F142: -3.91292919e-05 | G142: 0.0001697268096 | H142: -2.242593081e-05 | J142: -0.00153420881 | K142: -0.03049834337 | L142: 0.006679569076 | M142: 0.1363567007 | N142: 0.0006390854646
A143: =IF('DF raw data'!A148="","",'DF raw data'!A148) -> -259.5 | B143: =IF('DF raw data'!B148="","",'DF raw data'!B148) -> -3.90466e-05 | C143: =IF('DF raw data'!C148="","",'DF raw data'!C148) -> 0.000158726 | D143: =IF('DF raw data'!D148="","",'DF raw data'!D148) -> -2.92196e-05 | F143: -3.925354698e-05 | G143: 0.0001595672478 | H143: -2.937446388e-05 | J143: -0.001553835584 | K143: -0.03127526116 | L143: 0.0067593527 | M143: 0.139736377 | N143: 0.0006631370915
A144: =IF('DF raw data'!A149="","",'DF raw data'!A149) -> -259 | B144: =IF('DF raw data'!B149="","",'DF raw data'!B149) -> -2.50864e-05 | C144: =IF('DF raw data'!C149="","",'DF raw data'!C149) -> 0.000158232 | D144: =IF('DF raw data'!D149="","",'DF raw data'!D149) -> -1.37058e-05 | F144: -2.521935792e-05 | G144: 0.0001590706296 | H144: -1.377844074e-05 | J144: -0.001566445263 | K144: -0.03205848379 | L144: 0.006838888015 | M144: 0.1431558211 | N144: 0.0006877491616
A145: =IF('DF raw data'!A150="","",'DF raw data'!A150) -> -258.5 | B145: =IF('DF raw data'!B150="","",'DF raw data'!B150) -> -3.67512e-05 | C145: =IF('DF raw data'!C150="","",'DF raw data'!C150) -> 0.000152139 | D145: =IF('DF raw data'!D150="","",'DF raw data'!D150) -> -1.14604e-05 | F145: -3.694598136e-05 | G145: 0.0001529453367 | H145: -1.152114012e-05 | J145: -0.001584918253 | K145: -0.03285094292 | L145: 0.006915360683 | M145: 0.1466135014 | N145: 0.0007129162512
A146: =IF('DF raw data'!A151="","",'DF raw data'!A151) -> -258 | B146: =IF('DF raw data'!B151="","",'DF raw data'!B151) -> -3.00857e-05 | C146: =IF('DF raw data'!C151="","",'DF raw data'!C151) -> 0.000149955 | D146: =IF('DF raw data'!D151="","",'DF raw data'!D151) -> -1.27723e-05 | F146: -3.024515421e-05 | G146: 0.0001507497615 | H146: -1.283999319e-05 | J146: -0.001600040831 | K146: -0.03365096334 | L146: 0.006990735564 | M146: 0.1501088692 | N146: 0.0007386315084
A147: =IF('DF raw data'!A152="","",'DF raw data'!A152) -> -257.5 | B147: =IF('DF raw data'!B152="","",'DF raw data'!B152) -> -3.04623e-05 | C147: =IF('DF raw data'!C152="","",'DF raw data'!C152) -> 0.000154725 | D147: =IF('DF raw data'!D152="","",'DF raw data'!D152) -> -2.48368e-05 | F147: -3.062375019e-05 | G147: 0.0001555450425 | H147: -2.496843504e-05 | J147: -0.001615352706 | K147: -0.03445863969 | L147: 0.007068508085 | M147: 0.1536431232 | N147: 0.0007649180938
A148: =IF('DF raw data'!A153="","",'DF raw data'!A153) -> -257 | B148: =IF('DF raw data'!B153="","",'DF raw data'!B153) -> -3.97593e-05 | C148: =IF('DF raw data'!C153="","",'DF raw data'!C153) -> 0.00015835 | D148: =IF('DF raw data'!D153="","",'DF raw data'!D153) -> -1.73497e-05 | F148: -3.997002429e-05 | G148: 0.000159189255 | H148: -1.744165341e-05 | J148: -0.001635337718 | K148: -0.03527630855 | L148: 0.007148102713 | M148: 0.1572171746 | N148: 0.0007918029448
A149: =IF('DF raw data'!A154="","",'DF raw data'!A154) -> -256.5 | B149: =IF('DF raw data'!B154="","",'DF raw data'!B154) -> -4.36012e-05 | C149: =IF('DF raw data'!C154="","",'DF raw data'!C154) -> 0.000155475 | D149: =IF('DF raw data'!D154="","",'DF raw data'!D154) -> -2.2459e-05 | F149: -4.383228636e-05 | G149: 0.0001562990175 | H149: -2.25780327e-05 | J149: -0.001657253861 | K149: -0.03610493548 | L149: 0.007226252222 | M149: 0.1608303007 | N149: 0.0008192855505
A150: =IF('DF raw data'!A155="","",'DF raw data'!A155) -> -256 | B150: =IF('DF raw data'!B155="","",'DF raw data'!B155) -> -2.98878e-05 | C150: =IF('DF raw data'!C155="","",'DF raw data'!C155) -> 0.00015479 | D150: =IF('DF raw data'!D155="","",'DF raw data'!D155) -> -2.11811e-05 | F150: -3.004620534e-05 | G150: 0.000155610387 | H150: -2.129335983e-05 | J150: -0.001672276964 | K150: -0.03694107396 | L150: 0.007304057415 | M150: 0.1644823294 | N150: 0.000847358433
A151: =IF('DF raw data'!A156="","",'DF raw data'!A156) -> -255.5 | B151: =IF('DF raw data'!B156="","",'DF raw data'!B156) -> -2.2514e-05 | C151: =IF('DF raw data'!C156="","",'DF raw data'!C156) -> 0.000163871 | D151: =IF('DF raw data'!D156="","",'DF raw data'!D156) -> -2.7921e-05 | F151: -2.26333242e-05 | G151: 0.0001647395163 | H151: -2.80689813e-05 | J151: -0.001683593626 | K151: -0.03778287077 | L151: 0.007386427173 | M151: 0.168175543 | N151: 0.00087605533
A152: =IF('DF raw data'!A157="","",'DF raw data'!A157) -> -255 | B152: =IF('DF raw data'!B157="","",'DF raw data'!B157) -> -3.98212e-05 | C152: =IF('DF raw data'!C157="","",'DF raw data'!C157) -> 0.000156777 | D152: =IF('DF raw data'!D157="","",'DF raw data'!D157) -> -2.06384e-05 | F152: -4.003225236e-05 | G152: 0.0001576079181 | H152: -2.074778352e-05 | J152: -0.001703609752 | K152: -0.03863467565 | L152: 0.007465231132 | M152: 0.1719081585 | N152: 0.000905371311
A153: =IF('DF raw data'!A158="","",'DF raw data'!A158) -> -254.5 | B153: =IF('DF raw data'!B158="","",'DF raw data'!B158) -> -4.29017e-05 | C153: =IF('DF raw data'!C158="","",'DF raw data'!C158) -> 0.000153569 | D153: =IF('DF raw data'!D158="","",'DF raw data'!D158) -> -1.39655e-05 | F153: -4.312907901e-05 | G153: 0.0001543829157 | H153: -1.403951715e-05 | J153: -0.001725174291 | K153: -0.03949726279 | L153: 0.00754242259 | M153: 0.1756793698 | N153: 0.0009353034934
A154: =IF('DF raw data'!A159="","",'DF raw data'!A159) -> -254 | B154: =IF('DF raw data'!B159="","",'DF raw data'!B159) -> -3.8605e-05 | C154: =IF('DF raw data'!C159="","",'DF raw data'!C159) -> 0.000157389 | D154: =IF('DF raw data'!D159="","",'DF raw data'!D159) -> -1.88214e-05 | F154: -3.88096065e-05 | G154: 0.0001582231617 | H154: -1.892115342e-05 | J154: -0.001744579095 | K154: -0.04036955234 | L154: 0.007621534171 | M154: 0.1794901369 | N154: 0.0009658691631
A155: =IF('DF raw data'!A160="","",'DF raw data'!A160) -> -253.5 | B155: =IF('DF raw data'!B160="","",'DF raw data'!B160) -> -3.31601e-05 | C155: =IF('DF raw data'!C160="","",'DF raw data'!C160) -> 0.000167966 | D155: =IF('DF raw data'!D160="","",'DF raw data'!D160) -> -1.50386e-05 | F155: -3.333584853e-05 | G155: 0.0001688562198 | H155: -1.511830458e-05 | J155: -0.001761247019 | K155: -0.04125017585 | L155: 0.007705962281 | M155: 0.1833431181 | N155: 0.0009971110859
A156: =IF('DF raw data'!A161="","",'DF raw data'!A161) -> -253 | B156: =IF('DF raw data'!B161="","",'DF raw data'!B161) -> -3.12992e-05 | C156: =IF('DF raw data'!C161="","",'DF raw data'!C161) -> 0.000171179 | D156: =IF('DF raw data'!D161="","",'DF raw data'!D161) -> -1.9126e-05 | F156: -3.146508576e-05 | G156: 0.0001720862487 | H156: -1.92273678e-05 | J156: -0.001776979562 | K156: -0.04213866563 | L156: 0.007792005405 | M156: 0.1872391208 | N156: 0.001029047588
A157: =IF('DF raw data'!A162="","",'DF raw data'!A162) -> -252.5 | B157: =IF('DF raw data'!B162="","",'DF raw data'!B162) -> -3.28372e-05 | C157: =IF('DF raw data'!C162="","",'DF raw data'!C162) -> 0.000160246 | D157: =IF('DF raw data'!D162="","",'DF raw data'!D162) -> -1.9089e-05 | F157: -3.301123716e-05 | G157: 0.0001610953038 | H157: -1.91901717e-05 | J157: -0.00179348518 | K157: -0.04303540822 | L157: 0.007872553057 | M157: 0.1911753973 | N157: 0.001061644429
A158: =IF('DF raw data'!A163="","",'DF raw data'!A163) -> -252 | B158: =IF('DF raw data'!B163="","",'DF raw data'!B163) -> -4.15558e-05 | C158: =IF('DF raw data'!C163="","",'DF raw data'!C163) -> 0.000157398 | D158: =IF('DF raw data'!D163="","",'DF raw data'!D163) -> -1.4052e-05 | F158: -4.177604574e-05 | G158: 0.0001582322094 | H158: -1.41264756e-05 | J158: -0.001814373203 | K158: -0.04394259482 | L158: 0.007951669162 | M158: 0.1951512319 | N158: 0.001094904925
A159: =IF('DF raw data'!A164="","",'DF raw data'!A164) -> -251.5 | B159: =IF('DF raw data'!B164="","",'DF raw data'!B164) -> -3.2006e-05 | C159: =IF('DF raw data'!C164="","",'DF raw data'!C164) -> 0.0001634 | D159: =IF('DF raw data'!D164="","",'DF raw data'!D164) -> -1.60313e-05 | F159: -3.21756318e-05 | G159: 0.00016426602 | H159: -1.611626589e-05 | J159: -0.001830461019 | K159: -0.04485782533 | L159: 0.008033802172 | M159: 0.199168133 | N159: 0.001128851207
A160: =IF('DF raw data'!A165="","",'DF raw data'!A165) -> -251 | B160: =IF('DF raw data'!B165="","",'DF raw data'!B165) -> -3.309e-05 | C160: =IF('DF raw data'!C165="","",'DF raw data'!C165) -> 0.000156425 | D160: =IF('DF raw data'!D165="","",'DF raw data'!D165) -> -2.45321e-05 | F160: -3.3265377e-05 | G160: 0.0001572540525 | H160: -2.466212013e-05 | J160: -0.001847093708 | K160: -0.04578137219 | L160: 0.008112429198 | M160: 0.2032243476 | N160: 0.001163462839
A161: =IF('DF raw data'!A166="","",'DF raw data'!A166) -> -250.5 | B161: =IF('DF raw data'!B166="","",'DF raw data'!B166) -> -5.41785e-05 | C161: =IF('DF raw data'!C166="","",'DF raw data'!C166) -> 0.00015275 | D161: =IF('DF raw data'!D166="","",'DF raw data'!D166) -> -1.72771e-05 | F161: -5.446564605e-05 | G161: 0.000153559575 | H161: -1.736866863e-05 | J161: -0.001874326531 | K161: -0.04671853545 | L161: 0.008189208986 | M161: 0.2073189521 | N161: 0.001198750961
A162: =IF('DF raw data'!A167="","",'DF raw data'!A167) -> -250 | B162: =IF('DF raw data'!B167="","",'DF raw data'!B167) -> -2.95664e-05 | C162: =IF('DF raw data'!C167="","",'DF raw data'!C167) -> 0.000154232 | D162: =IF('DF raw data'!D167="","",'DF raw data'!D167) -> -2.30268e-05 | F162: -2.972310192e-05 | G162: 0.0001550494296 | H162: -2.314884204e-05 | J162: -0.001889188082 | K162: -0.04766312949 | L162: 0.0082667337 | M162: 0.2114523189 | N162: 0.001234704919
A163: =IF('DF raw data'!A168="","",'DF raw data'!A168) -> -249.5 | B163: =IF('DF raw data'!B168="","",'DF raw data'!B168) -> -4.10429e-05 | C163: =IF('DF raw data'!C168="","",'DF raw data'!C168) -> 0.000152698 | D163: =IF('DF raw data'!D168="","",'DF raw data'!D168) -> -1.44899e-05 | F163: -4.126042737e-05 | G163: 0.0001535072994 | H163: -1.456669647e-05 | J163: -0.001909818295 | K163: -0.04861803864 | L163: 0.00834348735 | M163: 0.2156240626 | N163: 0.001271335513
A164: =IF('DF raw data'!A169="","",'DF raw data'!A169) -> -249 | B164: =IF('DF raw data'!B169="","",'DF raw data'!B169) -> -3.89197e-05 | C164: =IF('DF raw data'!C169="","",'DF raw data'!C169) -> 0.000160449 | D164: =IF('DF raw data'!D169="","",'DF raw data'!D169) -> -2.74759e-05 | F164: -3.912597441e-05 | G164: 0.0001612993797 | H164: -2.762152227e-05 | J164: -0.001929381283 | K164: -0.04958272928 | L164: 0.00842413704 | M164: 0.2198361311 | N164: 0.001308679811
A165: =IF('DF raw data'!A170="","",'DF raw data'!A170) -> -248.5 | B165: =IF('DF raw data'!B170="","",'DF raw data'!B170) -> -4.68709e-05 | C165: =IF('DF raw data'!C170="","",'DF raw data'!C170) -> 0.000160363 | D165: =IF('DF raw data'!D170="","",'DF raw data'!D170) -> -2.0361e-05 | F165: -4.711931577e-05 | G165: 0.0001612129239 | H165: -2.04689133e-05 | J165: -0.00195294094 | K165: -0.05055919975 | L165: 0.008504743502 | M165: 0.2240885029 | N165: 0.001346752132
A166: =IF('DF raw data'!A171="","",'DF raw data'!A171) -> -248 | B166: =IF('DF raw data'!B171="","",'DF raw data'!B171) -> -3.29623e-05 | C166: =IF('DF raw data'!C171="","",'DF raw data'!C171) -> 0.000150971 | D166: =IF('DF raw data'!D171="","",'DF raw data'!D171) -> -2.39099e-05 | F166: -3.313700019e-05 | G166: 0.0001517711463 | H166: -2.403662247e-05 | J166: -0.001969509441 | K166: -0.05154395447 | L166: 0.008580629075 | M166: 0.2283788174 | N166: 0.001385505213
A167: =IF('DF raw data'!A172="","",'DF raw data'!A172) -> -247.5 | B167: =IF('DF raw data'!B172="","",'DF raw data'!B172) -> -3.00791e-05 | C167: =IF('DF raw data'!C172="","",'DF raw data'!C172) -> 0.000150609 | D167: =IF('DF raw data'!D172="","",'DF raw data'!D172) -> -2.28725e-05 | F167: -3.023851923e-05 | G167: 0.0001514072277 | H167: -2.299372425e-05 | J167: -0.0019846287 | K167: -0.05253626882 | L167: 0.008656332689 | M167: 0.2327069837 | N167: 0.001424940636
A168: =IF('DF raw data'!A173="","",'DF raw data'!A173) -> -247 | B168: =IF('DF raw data'!B173="","",'DF raw data'!B173) -> -2.71361e-05 | C168: =IF('DF raw data'!C173="","",'DF raw data'!C173) -> 0.000154347 | D168: =IF('DF raw data'!D173="","",'DF raw data'!D173) -> -1.56761e-05 | F168: -2.727992133e-05 | G168: 0.0001551650391 | H168: -1.575918333e-05 | J168: -0.001998268661 | K168: -0.05353540315 | L168: 0.008733915208 | M168: 0.2370739413 | N168: 0.001465077813
A169: =IF('DF raw data'!A174="","",'DF raw data'!A174) -> -246.5 | B169: =IF('DF raw data'!B174="","",'DF raw data'!B174) -> -3.96886e-05 | C169: =IF('DF raw data'!C174="","",'DF raw data'!C174) -> 0.000146832 | D169: =IF('DF raw data'!D174="","",'DF raw data'!D174) -> -2.75928e-05 | F169: -3.989894958e-05 | G169: 0.0001476102096 | H169: -2.773904184e-05 | J169: -0.002018218136 | K169: -0.05454451222 | L169: 0.008807720313 | M169: 0.2414778015 | N169: 0.001505902383
A170: =IF('DF raw data'!A175="","",'DF raw data'!A175) -> -246 | B170: =IF('DF raw data'!B175="","",'DF raw data'!B175) -> -3.2587e-05 | C170: =IF('DF raw data'!C175="","",'DF raw data'!C175) -> 0.000141578 | D170: =IF('DF raw data'!D175="","",'DF raw data'!D175) -> -9.70147e-06 | F170: -3.27597111e-05 | G170: 0.0001423283634 | H170: -9.752887791e-06 | J170: -0.002034597991 | K170: -0.05556181122 | L170: 0.008878884495 | M170: 0.2459172437 | N170: 0.001547389473
A171: =IF('DF raw data'!A176="","",'DF raw data'!A176) -> -245.5 | B171: =IF('DF raw data'!B176="","",'DF raw data'!B176) -> -4.66793e-05 | C171: =IF('DF raw data'!C176="","",'DF raw data'!C176) -> 0.000153908 | D171: =IF('DF raw data'!D176="","",'DF raw data'!D176) -> -1.92026e-05 | F171: -4.692670029e-05 | G171: 0.0001547237124 | H171: -1.930437378e-05 | J171: -0.002058061341 | K171: -0.05659084189 | L171: 0.008956246351 | M171: 0.2503953669 | N171: 0.001589614455
A172: =IF('DF raw data'!A177="","",'DF raw data'!A177) -> -245 | B172: =IF('DF raw data'!B177="","",'DF raw data'!B177) -> -3.35987e-05 | C172: =IF('DF raw data'!C177="","",'DF raw data'!C177) -> 0.000172841 | D172: =IF('DF raw data'!D177="","",'DF raw data'!D177) -> -3.06474e-05 | F172: -3.377677311e-05 | G172: 0.0001737570573 | H172: -3.080983122e-05 | J172: -0.002074949728 | K172: -0.05762831675 | L172: 0.00904312488 | M172: 0.2549169294 | N172: 0.001632656217
A173: =IF('DF raw data'!A178="","",'DF raw data'!A178) -> -244.5 | B173: =IF('DF raw data'!B178="","",'DF raw data'!B178) -> -3.58482e-05 | C173: =IF('DF raw data'!C178="","",'DF raw data'!C178) -> 0.000167769 | D173: =IF('DF raw data'!D178="","",'DF raw data'!D178) -> -2.06059e-05 | F173: -3.603819546e-05 | G173: 0.0001686581757 | H173: -2.071511127e-05 | J173: -0.002092968826 | K173: -0.05867480116 | L173: 0.009127453968 | M173: 0.2594806563 | N173: 0.001676501685
A174: =IF('DF raw data'!A179="","",'DF raw data'!A179) -> -244 | B174: =IF('DF raw data'!B179="","",'DF raw data'!B179) -> -4.60332e-05 | C174: =IF('DF raw data'!C179="","",'DF raw data'!C179) -> 0.000163736 | D174: =IF('DF raw data'!D179="","",'DF raw data'!D179) -> -2.73712e-05 | F174: -4.627717596e-05 | G174: 0.0001646038008 | H174: -2.751626736e-05 | J174: -0.002116107414 | K174: -0.05973285487 | L174: 0.009209755868 | M174: 0.2640855343 | N174: 0.001721150441
A175: =IF('DF raw data'!A180="","",'DF raw data'!A180) -> -243.5 | B175: =IF('DF raw data'!B180="","",'DF raw data'!B180) -> -3.06581e-05 | C175: =IF('DF raw data'!C180="","",'DF raw data'!C180) -> 0.000156239 | D175: =IF('DF raw data'!D180="","",'DF raw data'!D180) -> -1.96025e-05 | F175: -3.082058793e-05 | G175: 0.0001570670667 | H175: -1.970639325e-05 | J175: -0.002131517708 | K175: -0.06079861373 | L175: 0.009288289401 | M175: 0.268729679 | N175: 0.001766558285
A176: =IF('DF raw data'!A181="","",'DF raw data'!A181) -> -243 | B176: =IF('DF raw data'!B181="","",'DF raw data'!B181) -> -4.58386e-05 | C176: =IF('DF raw data'!C181="","",'DF raw data'!C181) -> 0.000145848 | D176: =IF('DF raw data'!D181="","",'DF raw data'!D181) -> -3.07745e-05 | F176: -4.608154458e-05 | G176: 0.0001466209944 | H176: -3.093760485e-05 | J176: -0.00215455848 | K176: -0.06187589296 | L176: 0.009361599898 | M176: 0.2734104789 | N176: 0.001812699123
A177: =IF('DF raw data'!A182="","",'DF raw data'!A182) -> -242.5 | B177: =IF('DF raw data'!B182="","",'DF raw data'!B182) -> -3.62912e-05 | C177: =IF('DF raw data'!C182="","",'DF raw data'!C182) -> 0.00014749 | D177: =IF('DF raw data'!D182="","",'DF raw data'!D182) -> -2.90803e-05 | F177: -3.648354336e-05 | G177: 0.000148271697 | H177: -2.923442559e-05 | J177: -0.002172800252 | K177: -0.06296229309 | L177: 0.009435735747 | M177: 0.2781283468 | N177: 0.001859576208
A178: =IF('DF raw data'!A183="","",'DF raw data'!A183) -> -242 | B178: =IF('DF raw data'!B183="","",'DF raw data'!B183) -> -3.5843e-05 | C178: =IF('DF raw data'!C183="","",'DF raw data'!C183) -> 0.000148093 | D178: =IF('DF raw data'!D183="","",'DF raw data'!D183) -> -2.86298e-05 | F178: -3.60329679e-05 | G178: 0.0001488778929 | H178: -2.878153794e-05 | J178: -0.002190816735 | K178: -0.06405770146 | L178: 0.009510174693 | M178: 0.2828834341 | N178: 0.001907197758
A179: =IF('DF raw data'!A184="","",'DF raw data'!A184) -> -241.5 | B179: =IF('DF raw data'!B184="","",'DF raw data'!B184) -> -3.82279e-05 | C179: =IF('DF raw data'!C184="","",'DF raw data'!C184) -> 0.000147504 | D179: =IF('DF raw data'!D184="","",'DF raw data'!D184) -> -7.49849e-06 | F179: -3.843050787e-05 | G179: 0.0001482857712 | H179: -7.538231997e-06 | J179: -0.002210031989 | K179: -0.06516271745 | L179: 0.009584317579 | M179: 0.2876755929 | N179: 0.001955569451
A180: =IF('DF raw data'!A185="","",'DF raw data'!A185) -> -241 | B180: =IF('DF raw data'!B185="","",'DF raw data'!B185) -> -2.38663e-05 | C180: =IF('DF raw data'!C185="","",'DF raw data'!C185) -> 0.000157113 | D180: =IF('DF raw data'!D185="","",'DF raw data'!D185) -> -1.78973e-05 | F180: -2.399279139e-05 | G180: 0.0001579456989 | H180: -1.799215569e-05 | J180: -0.002222028385 | K180: -0.06627373165 | L180: 0.009663290428 | M180: 0.2925072382 | N180: 0.002004727747
A181: =IF('DF raw data'!A186="","",'DF raw data'!A186) -> -240.5 | B181: =IF('DF raw data'!B186="","",'DF raw data'!B186) -> -4.30301e-05 | C181: =IF('DF raw data'!C186="","",'DF raw data'!C186) -> 0.000159288 | D181: =IF('DF raw data'!D186="","",'DF raw data'!D186) -> -1.37518e-05 | F181: -4.325815953e-05 | G181: 0.0001601322264 | H181: -1.382468454e-05 | J181: -0.002243657465 | K181: -0.06739556038 | L181: 0.009743356542 | M181: 0.2973789164 | N181: 0.002054711244
A182: =IF('DF raw data'!A187="","",'DF raw data'!A187) -> -240 | B182: =IF('DF raw data'!B187="","",'DF raw data'!B187) -> -3.28375e-05 | C182: =IF('DF raw data'!C187="","",'DF raw data'!C187) -> 0.000153246 | D182: =IF('DF raw data'!D187="","",'DF raw data'!D187) -> -1.86502e-05 | F182: -3.301153875e-05 | G182: 0.0001540582038 | H182: -1.874904606e-05 | J182: -0.002260163234 | K182: -0.068525642 | L182: 0.009820385644 | M182: 0.3022891092 | N182: 0.0021054854
A183: =IF('DF raw data'!A188="","",'DF raw data'!A188) -> -239.5 | B183: =IF('DF raw data'!B188="","",'DF raw data'!B188) -> -4.34042e-05 | C183: =IF('DF raw data'!C188="","",'DF raw data'!C188) -> 0.000150572 | D183: =IF('DF raw data'!D188="","",'DF raw data'!D188) -> -2.98155e-05 | F183: -4.363424226e-05 | G183: 0.0001513700316 | H183: -2.997352215e-05 | J183: -0.002281980355 | K183: -0.06966663217 | L183: 0.009896070659 | M183: 0.3072371446 | N183: 0.002157055225
A184: =IF('DF raw data'!A189="","",'DF raw data'!A189) -> -239 | B184: =IF('DF raw data'!B189="","",'DF raw data'!B189) -> -3.5706e-05 | C184: =IF('DF raw data'!C189="","",'DF raw data'!C189) -> 0.000149921 | D184: =IF('DF raw data'!D189="","",'DF raw data'!D189) -> -4.22522e-05 | F184: -3.58952418e-05 | G184: 0.0001507155813 | H184: -4.247613666e-05 | J184: -0.002299927976 | K184: -0.07081659616 | L184: 0.00997142845 | M184: 0.3122228588 | N184: 0.002209414752
A185: =IF('DF raw data'!A190="","",'DF raw data'!A190) -> -238.5 | B185: =IF('DF raw data'!B190="","",'DF raw data'!B190) -> -2.84737e-05 | C185: =IF('DF raw data'!C190="","",'DF raw data'!C190) -> 0.000155215 | D185: =IF('DF raw data'!D190="","",'DF raw data'!D190) -> -2.80562e-05 | F185: -2.862461061e-05 | G185: 0.0001560376395 | H185: -2.820489786e-05 | J185: -0.002314240282 | K185: -0.0719737163 | L185: 0.01004944727 | M185: 0.3172475824 | N185: 0.002262588301
A186: =IF('DF raw data'!A191="","",'DF raw data'!A191) -> -238 | B186: =IF('DF raw data'!B191="","",'DF raw data'!B191) -> -4.50097e-05 | C186: =IF('DF raw data'!C191="","",'DF raw data'!C191) -> 0.000163182 | D186: =IF('DF raw data'!D191="","",'DF raw data'!D191) -> -2.46274e-05 | F186: -4.524825141e-05 | G186: 0.0001640468646 | H186: -2.475792522e-05 | J186: -0.002336864407 | K186: -0.07314214851 | L186: 0.0101314707 | M186: 0.3223133178 | N186: 0.002316642118
A187: =IF('DF raw data'!A192="","",'DF raw data'!A192) -> -237.5 | B187: =IF('DF raw data'!B192="","",'DF raw data'!B192) -> -4.69366e-05 | C187: =IF('DF raw data'!C192="","",'DF raw data'!C192) -> 0.000153174 | D187: =IF('DF raw data'!D192="","",'DF raw data'!D192) -> -1.777e-05 | F187: -4.718536398e-05 | G187: 0.0001539858222 | H187: -1.7864181e-05 | J187: -0.002360457089 | K187: -0.07432237705 | L187: 0.01020846361 | M187: 0.3274175496 | N187: 0.002371534361
A188: =IF('DF raw data'!A193="","",'DF raw data'!A193) -> -237 | B188: =IF('DF raw data'!B193="","",'DF raw data'!B193) -> -3.71973e-05 | C188: =IF('DF raw data'!C193="","",'DF raw data'!C193) -> 0.000153328 | D188: =IF('DF raw data'!D193="","",'DF raw data'!D193) -> -1.56031e-05 | F188: -3.739444569e-05 | G188: 0.0001541406384 | H188: -1.568579643e-05 | J188: -0.002379154312 | K188: -0.07551195421 | L188: 0.01028553393 | M188: 0.3325603166 | N188: 0.002427260653
A189: =IF('DF raw data'!A194="","",'DF raw data'!A194) -> -236.5 | B189: =IF('DF raw data'!B194="","",'DF raw data'!B194) -> -3.78985e-05 | C189: =IF('DF raw data'!C194="","",'DF raw data'!C194) -> 0.000164308 | D189: =IF('DF raw data'!D194="","",'DF raw data'!D194) -> -2.11992e-05 | F189: -3.809936205e-05 | G189: 0.0001651788324 | H189: -2.131155576e-05 | J189: -0.002398203993 | K189: -0.0767110562 | L189: 0.01036812335 | M189: 0.3377443782 | N189: 0.002483885335
A190: =IF('DF raw data'!A195="","",'DF raw data'!A195) -> -236 | B190: =IF('DF raw data'!B195="","",'DF raw data'!B195) -> -3.52695e-05 | C190: =IF('DF raw data'!C195="","",'DF raw data'!C195) -> 0.000159684 | D190: =IF('DF raw data'!D195="","",'DF raw data'!D195) -> -2.34401e-05 | F190: -3.545642835e-05 | G190: 0.0001605303252 | H190: -2.356433253e-05 | J190: -0.002415932207 | K190: -0.07791902231 | L190: 0.01044838851 | M190: 0.3429685725 | N190: 0.002541388111
A191: =IF('DF raw data'!A196="","",'DF raw data'!A196) -> -235.5 | B191: =IF('DF raw data'!B196="","",'DF raw data'!B196) -> -4.15469e-05 | C191: =IF('DF raw data'!C196="","",'DF raw data'!C196) -> 0.000155163 | D191: =IF('DF raw data'!D196="","",'DF raw data'!D196) -> -2.79623e-05 | F191: -4.176709857e-05 | G191: 0.0001559853639 | H191: -2.811050019e-05 | J191: -0.002436815757 | K191: -0.07913743018 | L191: 0.01052638119 | M191: 0.3482317631 | N191: 0.002599759497
A192: =IF('DF raw data'!A197="","",'DF raw data'!A197) -> -235 | B192: =IF('DF raw data'!B197="","",'DF raw data'!B197) -> -3.49477e-05 | C192: =IF('DF raw data'!C197="","",'DF raw data'!C197) -> 0.000147141 | D192: =IF('DF raw data'!D197="","",'DF raw data'!D197) -> -2.59431e-05 | F192: =(1-$G$1*($B$49-$G$2))*B192 -> -3.513292281e-05 | G192: 0.0001479208473 | H192: -2.608059843e-05 | J192: =F192*$G$3+J191 -> -0.002454382218 | K192: =J192*$G$3+K191 -> -0.08036462129 | L192: =G192*$G$3+L191 -> 0.01060034162 | M192: =L192*$G$3+M191 -> 0.3535319339 | N192: =(J192^2+L192^2)*$G$3+N191 -> 0.002658955114
A193: =IF('DF raw data'!A198="","",'DF raw data'!A198) -> -234.5 | B193: =IF('DF raw data'!B198="","",'DF raw data'!B198) -> -4.82844e-05 | C193: =IF('DF raw data'!C198="","",'DF raw data'!C198) -> 0.000148216 | D193: =IF('DF raw data'!D198="","",'DF raw data'!D198) -> -1.48373e-05 | F193: -4.854030732e-05 | G193: 0.0001490015448 | H193: -1.491593769e-05 | J193: -0.002478652372 | K193: -0.08160394748 | L193: 0.01067484239 | M193: 0.3588693551 | N193: 0.002719003103
A194: =IF('DF raw data'!A199="","",'DF raw data'!A199) -> -234 | B194: =IF('DF raw data'!B199="","",'DF raw data'!B199) -> -3.80216e-05 | C194: =IF('DF raw data'!C199="","",'DF raw data'!C199) -> 0.000148121 | D194: =IF('DF raw data'!D199="","",'DF raw data'!D199) -> -2.89582e-05 | F194: -3.822311448e-05 | G194: 0.0001489060413 | H194: -2.911167846e-05 | J194: -0.002497763929 | K194: -0.08285282944 | L194: 0.01074929541 | M194: 0.3642440028 | N194: 0.002779896191
A195: =IF('DF raw data'!A200="","",'DF raw data'!A200) -> -233.5 | B195: =IF('DF raw data'!B200="","",'DF raw data'!B200) -> -4.11017e-05 | C195: =IF('DF raw data'!C200="","",'DF raw data'!C200) -> 0.000143636 | D195: =IF('DF raw data'!D200="","",'DF raw data'!D200) -> -2.30142e-05 | F195: -4.131953901e-05 | G195: 0.0001443972708 | H195: -2.313617526e-05 | J195: -0.002518423698 | K195: -0.08411204129 | L195: 0.01082149405 | M195: 0.3696547498 | N195: 0.002841619787
A196: =IF('DF raw data'!A201="","",'DF raw data'!A201) -> -233 | B196: =IF('DF raw data'!B201="","",'DF raw data'!B201) -> -3.69366e-05 | C196: =IF('DF raw data'!C201="","",'DF raw data'!C201) -> 0.000149525 | D196: =IF('DF raw data'!D201="","",'DF raw data'!D201) -> -2.2403e-05 | F196: -3.713236398e-05 | G196: 0.0001503174825 | H196: -2.25217359e-05 | J196: -0.00253698988 | K196: -0.08538053623 | L196: 0.01089665279 | M196: 0.3751030762 | N196: 0.002904206466
A197: =IF('DF raw data'!A202="","",'DF raw data'!A202) -> -232.5 | B197: =IF('DF raw data'!B202="","",'DF raw data'!B202) -> -3.58418e-05 | C197: =IF('DF raw data'!C202="","",'DF raw data'!C202) -> 0.000155427 | D197: =IF('DF raw data'!D202="","",'DF raw data'!D202) -> -3.06158e-05 | F197: -3.603176154e-05 | G197: 0.0001562507631 | H197: -3.077806374e-05 | J197: -0.002555005761 | K197: -0.08665803911 | L197: 0.01097477817 | M197: 0.3805904653 | N197: 0.002967693372
A198: =IF('DF raw data'!A203="","",'DF raw data'!A203) -> -232 | B198: =IF('DF raw data'!B203="","",'DF raw data'!B203) -> -4.18657e-05 | C198: =IF('DF raw data'!C203="","",'DF raw data'!C203) -> 0.000152404 | D198: =IF('DF raw data'!D203="","",'DF raw data'!D203) -> -3.06714e-05 | F198: -4.208758821e-05 | G198: 0.0001532117412 | H198: -3.083395842e-05 | J198: -0.002576049555 | K198: -0.08794606389 | L198: 0.01105138404 | M198: 0.3861161573 | N198: 0.003032077932
A199: =IF('DF raw data'!A204="","",'DF raw data'!A204) -> -231.5 | B199: =IF('DF raw data'!B204="","",'DF raw data'!B204) -> -4.17999e-05 | C199: =IF('DF raw data'!C204="","",'DF raw data'!C204) -> 0.000153257 | D199: =IF('DF raw data'!D204="","",'DF raw data'!D204) -> -3.30464e-05 | F199: -4.202143947e-05 | G199: 0.0001540692621 | H199: -3.322154592e-05 | J199: -0.002597060275 | K199: -0.08924459403 | L199: 0.01112841867 | M199: 0.3916803666 | N199: 0.003097371144
A200: =IF('DF raw data'!A205="","",'DF raw data'!A205) -> -231 | B200: =IF('DF raw data'!B205="","",'DF raw data'!B205) -> -4.59048e-05 | C200: =IF('DF raw data'!C205="","",'DF raw data'!C205) -> 0.000145312 | D200: =IF('DF raw data'!D205="","",'DF raw data'!D205) -> -2.78464e-05 | F200: -4.614809544e-05 | G200: 0.0001460821536 | H200: -2.799398592e-05 | J200: -0.002620134323 | K200: -0.09055466119 | L200: 0.01120145975 | M200: 0.3972810965 | N200: 0.003163540046
A201: =IF('DF raw data'!A206="","",'DF raw data'!A206) -> -230.5 | B201: =IF('DF raw data'!B206="","",'DF raw data'!B206) -> -4.12992e-05 | C201: =IF('DF raw data'!C206="","",'DF raw data'!C206) -> 0.000148082 | D201: =IF('DF raw data'!D206="","",'DF raw data'!D206) -> -1.47276e-05 | F201: -4.151808576e-05 | G201: 0.0001488668346 | H201: -1.480565628e-05 | J201: -0.002640893366 | K201: -0.09187510787 | L201: 0.01127589316 | M201: 0.4029190431 | N201: 0.003230600088
... 1061 more rows

Sheet 10 x=-1
A1: =IF('DF raw data'!E1="","",'DF raw data'!E1) -> Number of header lines | B1: =IF('DF raw data'!F1="","",'DF raw data'!F1) -> 54 | C1: =IF('DF raw data'!G1="","",'DF raw data'!G1) ->  | D1: =IF('DF raw data'!H1="","",'DF raw data'!H1) ->  | F1: T_coeff | G1: -0.001 | H1: /degC | J1: IBy total | K1: =J1262*1000 -> -10.85056209 | L1: muTm | M1: =L1262*1000 -> 47.28072227 | R1: DF ref | S1: ='10 x=-2'!S1 -> 1
A2: =IF('DF raw data'!E2="","",'DF raw data'!E2) -> Measured by | B2: =IF('DF raw data'!F2="","",'DF raw data'!F2) -> Danfysik | C2: =IF('DF raw data'!G2="","",'DF raw data'!G2) ->  | D2: =IF('DF raw data'!H2="","",'DF raw data'!H2) ->  | F2: Tcorr | G2: 20 | H2: degC | J2: JBy total | K2: =K1262 -> -14.41963638 | L2: muTm^2 | M2: =M1262 -> 16.18922978
A3: =IF('DF raw data'!E3="","",'DF raw data'!E3) -> Operator | B3: =IF('DF raw data'!F3="","",'DF raw data'!F3) -> PMHA | C3: =IF('DF raw data'!G3="","",'DF raw data'!G3) ->  | D3: =IF('DF raw data'!H3="","",'DF raw data'!H3) ->  | F3: Step | G3: =A63-A62 -> 0.5 | H3: mm | J3: PI total | K3: =N1262 -> 10656.86076 | L3: T^2mm^3
A4: =IF('DF raw data'!E4="","",'DF raw data'!E4) -> Data-time | B4: =IF('DF raw data'!F4="","",'DF raw data'!F4) -> 02-10-2024, 20:44:17 | C4: =IF('DF raw data'!G4="","",'DF raw data'!G4) ->  | D4: =IF('DF raw data'!H4="","",'DF raw data'!H4) -> 
A5: =IF('DF raw data'!E5="","",'DF raw data'!E5) -> Project | B5: =IF('DF raw data'!F5="","",'DF raw data'!F5) -> 504314 | C5: =IF('DF raw data'!G5="","",'DF raw data'!G5) ->  | D5: =IF('DF raw data'!H5="","",'DF raw data'!H5) -> 
A6: =IF('DF raw data'!E6="","",'DF raw data'!E6) -> Magnet type | B6: =IF('DF raw data'!F6="","",'DF raw data'!F6) -> Dipole | C6: =IF('DF raw data'!G6="","",'DF raw data'!G6) ->  | D6: =IF('DF raw data'!H6="","",'DF raw data'!H6) -> 
A7: =IF('DF raw data'!E7="","",'DF raw data'!E7) -> Magnet nr. | B7: =IF('DF raw data'!F7="","",'DF raw data'!F7) -> 2410110 | C7: =IF('DF raw data'!G7="","",'DF raw data'!G7) ->  | D7: =IF('DF raw data'!H7="","",'DF raw data'!H7) -> 
A8: =IF('DF raw data'!E8="","",'DF raw data'!E8) -> Meas. number | B8: =IF('DF raw data'!F8="","",'DF raw data'!F8) -> 980 | C8: =IF('DF raw data'!G8="","",'DF raw data'!G8) ->  | D8: =IF('DF raw data'!H8="","",'DF raw data'!H8) -> 
A9: =IF('DF raw data'!E9="","",'DF raw data'!E9) -> Add. info | B9: =IF('DF raw data'!F9="","",'DF raw data'!F9) -> X-alignment scan 2) | C9: =IF('DF raw data'!G9="","",'DF raw data'!G9) ->  | D9: =IF('DF raw data'!H9="","",'DF raw data'!H9) -> 
A10: =IF('DF raw data'!E10="","",'DF raw data'!E10) -> Device | B10: =IF('DF raw data'!F10="","",'DF raw data'!F10) -> (HAL) HALL-PROBE | C10: =IF('DF raw data'!G10="","",'DF raw data'!G10) ->  | D10: =IF('DF raw data'!H10="","",'DF raw data'!H10) -> 
A11: =IF('DF raw data'!E11="","",'DF raw data'!E11) -> Goal | B11: =IF('DF raw data'!F11="","",'DF raw data'!F11) -> (AXI) AXis Integral (Line, EFB) | C11: =IF('DF raw data'!G11="","",'DF raw data'!G11) ->  | D11: =IF('DF raw data'!H11="","",'DF raw data'!H11) -> 
A12: =IF('DF raw data'!E12="","",'DF raw data'!E12) -> Power supply mode | B12: =IF('DF raw data'!F12="","",'DF raw data'!F12) -> (PM) Permanent Magnet (no MPS in use) | C12: =IF('DF raw data'!G12="","",'DF raw data'!G12) ->  | D12: =IF('DF raw data'!H12="","",'DF raw data'!H12) -> 
A13: =IF('DF raw data'!E13="","",'DF raw data'!E13) -> Data format | B13: =IF('DF raw data'!F13="","",'DF raw data'!F13) -> Raw data text file | C13: =IF('DF raw data'!G13="","",'DF raw data'!G13) ->  | D13: =IF('DF raw data'!H13="","",'DF raw data'!H13) -> 
A14: =IF('DF raw data'!E14="","",'DF raw data'!E14) -> Direction of the pos. x-axis | B14: =IF('DF raw data'!F14="","",'DF raw data'!F14) -> See test program | C14: =IF('DF raw data'!G14="","",'DF raw data'!G14) ->  | D14: =IF('DF raw data'!H14="","",'DF raw data'!H14) -> 
A15: =IF('DF raw data'!E15="","",'DF raw data'!E15) -> Direction of the pos. y-axis | B15: =IF('DF raw data'!F15="","",'DF raw data'!F15) -> Vertical up | C15: =IF('DF raw data'!G15="","",'DF raw data'!G15) ->  | D15: =IF('DF raw data'!H15="","",'DF raw data'!H15) -> 
A16: =IF('DF raw data'!E16="","",'DF raw data'!E16) -> Direction of the pos. z-axis | B16: =IF('DF raw data'!F16="","",'DF raw data'!F16) -> See test program | C16: =IF('DF raw data'!G16="","",'DF raw data'!G16) ->  | D16: =IF('DF raw data'!H16="","",'DF raw data'!H16) -> 
A17: =IF('DF raw data'!E17="","",'DF raw data'!E17) -> Mapper type | B17: =IF('DF raw data'!F17="","",'DF raw data'!F17) -> Precision Hall Mapper | C17: =IF('DF raw data'!G17="","",'DF raw data'!G17) ->  | D17: =IF('DF raw data'!H17="","",'DF raw data'!H17) -> 
A18: =IF('DF raw data'!E18="","",'DF raw data'!E18) -> Mapper Danfysik Reg. Number | B18: =IF('DF raw data'!F18="","",'DF raw data'!F18) -> 2033-D (mapper 1) | C18: =IF('DF raw data'!G18="","",'DF raw data'!G18) ->  | D18: =IF('DF raw data'!H18="","",'DF raw data'!H18) -> 
A19: =IF('DF raw data'!E19="","",'DF raw data'!E19) -> Measurement consept | B19: =IF('DF raw data'!F19="","",'DF raw data'!F19) -> Square line grid | C19: =IF('DF raw data'!G19="","",'DF raw data'!G19) ->  | D19: =IF('DF raw data'!H19="","",'DF raw data'!H19) -> 
A20: =IF('DF raw data'!E20="","",'DF raw data'!E20) -> Mode | B20: =IF('DF raw data'!F20="","",'DF raw data'!F20) -> On-the-fly measurement | C20: =IF('DF raw data'!G20="","",'DF raw data'!G20) ->  | D20: =IF('DF raw data'!H20="","",'DF raw data'!H20) -> 
A21: =IF('DF raw data'!E21="","",'DF raw data'!E21) ->  | B21: =IF('DF raw data'!F21="","",'DF raw data'!F21) ->  | C21: =IF('DF raw data'!G21="","",'DF raw data'!G21) ->  | D21: =IF('DF raw data'!H21="","",'DF raw data'!H21) -> 
A22: =IF('DF raw data'!E22="","",'DF raw data'!E22) -> Probe Name | B22: =IF('DF raw data'!F22="","",'DF raw data'!F22) -> ID12_By | C22: =IF('DF raw data'!G22="","",'DF raw data'!G22) ->  | D22: =IF('DF raw data'!H22="","",'DF raw data'!H22) -> 
A23: =IF('DF raw data'!E23="","",'DF raw data'!E23) -> Probe Type | B23: =IF('DF raw data'!F23="","",'DF raw data'!F23) -> DF_ID_3D_Bxyz | C23: =IF('DF raw data'!G23="","",'DF raw data'!G23) ->  | D23: =IF('DF raw data'!H23="","",'DF raw data'!H23) -> 
A24: =IF('DF raw data'!E24="","",'DF raw data'!E24) -> Probe Danfysik Reg. Number | B24: =IF('DF raw data'!F24="","",'DF raw data'!F24) -> 2277 | C24: =IF('DF raw data'!G24="","",'DF raw data'!G24) ->  | D24: =IF('DF raw data'!H24="","",'DF raw data'!H24) -> 
A25: =IF('DF raw data'!E25="","",'DF raw data'!E25) -> Probe Axis | B25: =IF('DF raw data'!F25="","",'DF raw data'!F25) -> By | C25: =IF('DF raw data'!G25="","",'DF raw data'!G25) ->  | D25: =IF('DF raw data'!H25="","",'DF raw data'!H25) -> 
A26: =IF('DF raw data'!E26="","",'DF raw data'!E26) -> Probe Current Supply | B26: =IF('DF raw data'!F26="","",'DF raw data'!F26) -> 1825-D | C26: =IF('DF raw data'!G26="","",'DF raw data'!G26) ->  | D26: =IF('DF raw data'!H26="","",'DF raw data'!H26) -> 
A27: =IF('DF raw data'!E27="","",'DF raw data'!E27) -> Probe Gain Correction | B27: =IF('DF raw data'!F27="","",'DF raw data'!F27) -> 0.99615 | C27: =IF('DF raw data'!G27="","",'DF raw data'!G27) ->  | D27: =IF('DF raw data'!H27="","",'DF raw data'!H27) -> 
A28: =IF('DF raw data'!E28="","",'DF raw data'!E28) -> Probe Offset Correction | B28: =IF('DF raw data'!F28="","",'DF raw data'!F28) -> 0.0027536 | C28: =IF('DF raw data'!G28="","",'DF raw data'!G28) ->  | D28: =IF('DF raw data'!H28="","",'DF raw data'!H28) -> 
A29: =IF('DF raw data'!E29="","",'DF raw data'!E29) -> DVM Number | B29: =IF('DF raw data'!F29="","",'DF raw data'!F29) -> 2 | C29: =IF('DF raw data'!G29="","",'DF raw data'!G29) ->  | D29: =IF('DF raw data'!H29="","",'DF raw data'!H29) -> 
A30: =IF('DF raw data'!E30="","",'DF raw data'!E30) -> DVM Type | B30: =IF('DF raw data'!F30="","",'DF raw data'!F30) -> K2701 | C30: =IF('DF raw data'!G30="","",'DF raw data'!G30) ->  | D30: =IF('DF raw data'!H30="","",'DF raw data'!H30) -> 
A31: =IF('DF raw data'!E31="","",'DF raw data'!E31) -> DVM Danfysik Reg. Number | B31: =IF('DF raw data'!F31="","",'DF raw data'!F31) -> 1743-D | C31: =IF('DF raw data'!G31="","",'DF raw data'!G31) ->  | D31: =IF('DF raw data'!H31="","",'DF raw data'!H31) -> 
A32: =IF('DF raw data'!E32="","",'DF raw data'!E32) -> Probe Name | B32: =IF('DF raw data'!F32="","",'DF raw data'!F32) -> ID12_Bx | C32: =IF('DF raw data'!G32="","",'DF raw data'!G32) ->  | D32: =IF('DF raw data'!H32="","",'DF raw data'!H32) -> 
A33: =IF('DF raw data'!E33="","",'DF raw data'!E33) -> Probe Type | B33: =IF('DF raw data'!F33="","",'DF raw data'!F33) -> DF_ID_3D_Bxyz | C33: =IF('DF raw data'!G33="","",'DF raw data'!G33) ->  | D33: =IF('DF raw data'!H33="","",'DF raw data'!H33) -> 
A34: =IF('DF raw data'!E34="","",'DF raw data'!E34) -> Probe Danfysik Reg. Number | B34: =IF('DF raw data'!F34="","",'DF raw data'!F34) -> 2277 | C34: =IF('DF raw data'!G34="","",'DF raw data'!G34) ->  | D34: =IF('DF raw data'!H34="","",'DF raw data'!H34) -> 
A35: =IF('DF raw data'!E35="","",'DF raw data'!E35) -> Probe Axis | B35: =IF('DF raw data'!F35="","",'DF raw data'!F35) -> Bx | C35: =IF('DF raw data'!G35="","",'DF raw data'!G35) ->  | D35: =IF('DF raw data'!H35="","",'DF raw data'!H35) -> 
A36: =IF('DF raw data'!E36="","",'DF raw data'!E36) -> Probe Current Supply | B36: =IF('DF raw data'!F36="","",'DF raw data'!F36) -> 1825-D | C36: =IF('DF raw data'!G36="","",'DF raw data'!G36) ->  | D36: =IF('DF raw data'!H36="","",'DF raw data'!H36) -> 
A37: =IF('DF raw data'!E37="","",'DF raw data'!E37) -> Probe Gain Correction | B37: =IF('DF raw data'!F37="","",'DF raw data'!F37) -> 1 | C37: =IF('DF raw data'!G37="","",'DF raw data'!G37) ->  | D37: =IF('DF raw data'!H37="","",'DF raw data'!H37) -> 
A38: =IF('DF raw data'!E38="","",'DF raw data'!E38) -> Probe Offset Correction | B38: =IF('DF raw data'!F38="","",'DF raw data'!F38) -> -0.17575 | C38: =IF('DF raw data'!G38="","",'DF raw data'!G38) ->  | D38: =IF('DF raw data'!H38="","",'DF raw data'!H38) -> 
A39: =IF('DF raw data'!E39="","",'DF raw data'!E39) -> DVM Number | B39: =IF('DF raw data'!F39="","",'DF raw data'!F39) -> 3 | C39: =IF('DF raw data'!G39="","",'DF raw data'!G39) ->  | D39: =IF('DF raw data'!H39="","",'DF raw data'!H39) -> 
A40: =IF('DF raw data'!E40="","",'DF raw data'!E40) -> DVM Type | B40: =IF('DF raw data'!F40="","",'DF raw data'!F40) -> K2701 | C40: =IF('DF raw data'!G40="","",'DF raw data'!G40) ->  | D40: =IF('DF raw data'!H40="","",'DF raw data'!H40) -> 
A41: =IF('DF raw data'!E41="","",'DF raw data'!E41) -> DVM Danfysik Reg. Number | B41: =IF('DF raw data'!F41="","",'DF raw data'!F41) -> 1744-D | C41: =IF('DF raw data'!G41="","",'DF raw data'!G41) ->  | D41: =IF('DF raw data'!H41="","",'DF raw data'!H41) -> 
A42: =IF('DF raw data'!E42="","",'DF raw data'!E42) -> Probe Name | B42: =IF('DF raw data'!F42="","",'DF raw data'!F42) -> ID12_Bz | C42: =IF('DF raw data'!G42="","",'DF raw data'!G42) ->  | D42: =IF('DF raw data'!H42="","",'DF raw data'!H42) -> 
A43: =IF('DF raw data'!E43="","",'DF raw data'!E43) -> Probe Type | B43: =IF('DF raw data'!F43="","",'DF raw data'!F43) -> DF_ID_3D_Bxyz | C43: =IF('DF raw data'!G43="","",'DF raw data'!G43) ->  | D43: =IF('DF raw data'!H43="","",'DF raw data'!H43) -> 
A44: =IF('DF raw data'!E44="","",'DF raw data'!E44) -> Probe Danfysik Reg. Number | B44: =IF('DF raw data'!F44="","",'DF raw data'!F44) -> 2277 | C44: =IF('DF raw data'!G44="","",'DF raw data'!G44) ->  | D44: =IF('DF raw data'!H44="","",'DF raw data'!H44) -> 
A45: =IF('DF raw data'!E45="","",'DF raw data'!E45) -> Probe Axis | B45: =IF('DF raw data'!F45="","",'DF raw data'!F45) -> Bz | C45: =IF('DF raw data'!G45="","",'DF raw data'!G45) ->  | D45: =IF('DF raw data'!H45="","",'DF raw data'!H45) -> 
A46: =IF('DF raw data'!E46="","",'DF raw data'!E46) -> Probe Current Supply | B46: =IF('DF raw data'!F46="","",'DF raw data'!F46) -> 1825-D | C46: =IF('DF raw data'!G46="","",'DF raw data'!G46) ->  | D46: =IF('DF raw data'!H46="","",'DF raw data'!H46) -> 
A47: =IF('DF raw data'!E47="","",'DF raw data'!E47) -> Probe Gain Correction | B47: =IF('DF raw data'!F47="","",'DF raw data'!F47) -> 1 | C47: =IF('DF raw data'!G47="","",'DF raw data'!G47) ->  | D47: =IF('DF raw data'!H47="","",'DF raw data'!H47) -> 
A48: =IF('DF raw data'!E53="","",'DF raw data'!E53) -> PS-Gap: | B48: =IF('DF raw data'!F53="","",'DF raw data'!F53) -> 10 | C48: =IF('DF raw data'!G53="","",'DF raw data'!G53) ->  | D48: =IF('DF raw data'!H53="","",'DF raw data'!H53) -> 
A49: =IF('DF raw data'!E54="","",'DF raw data'!E54) -> PS-Temperature: | B49: =IF('DF raw data'!F54="","",'DF raw data'!F54) -> 25.3 | C49: =IF('DF raw data'!G54="","",'DF raw data'!G54) ->  | D49: =IF('DF raw data'!H54="","",'DF raw data'!H54) -> 
A50: =IF('DF raw data'!E55="","",'DF raw data'!E55) -> PS-Encoder: | B50: =IF('DF raw data'!F55="","",'DF raw data'!F55) -> 19.7503 | C50: =IF('DF raw data'!G55="","",'DF raw data'!G55) ->  | D50: =IF('DF raw data'!H55="","",'DF raw data'!H55) -> 
A51: =IF('DF raw data'!E56="","",'DF raw data'!E56) ->  | B51: =IF('DF raw data'!F56="","",'DF raw data'!F56) ->  | C51: =IF('DF raw data'!G56="","",'DF raw data'!G56) ->  | D51: =IF('DF raw data'!H56="","",'DF raw data'!H56) -> 
A52: =IF('DF raw data'!E57="","",'DF raw data'!E57) -> Monitor-Index | B52: =IF('DF raw data'!F57="","",'DF raw data'!F57) -> [1,1,4] | C52: =IF('DF raw data'!G57="","",'DF raw data'!G57) ->  | D52: =IF('DF raw data'!H57="","",'DF raw data'!H57) -> 
A53: =IF('DF raw data'!E58="","",'DF raw data'!E58) ->  | B53: =IF('DF raw data'!F58="","",'DF raw data'!F58) ->  | C53: =IF('DF raw data'!G58="","",'DF raw data'!G58) ->  | D53: =IF('DF raw data'!H58="","",'DF raw data'!H58) -> 
A54: =IF('DF raw data'!E59="","",'DF raw data'!E59) -> Time [s] | B54: =IF('DF raw data'!F59="","",'DF raw data'!F59) -> Y [mm] | C54: =IF('DF raw data'!G59="","",'DF raw data'!G59) -> X [mm] | D54: =IF('DF raw data'!H59="","",'DF raw data'!H59) -> Nominal current [A]
A55: =IF('DF raw data'!E60="","",'DF raw data'!E60) ->  | B55: =IF('DF raw data'!F60="","",'DF raw data'!F60) ->  | C55: =IF('DF raw data'!G60="","",'DF raw data'!G60) ->  | D55: =IF('DF raw data'!H60="","",'DF raw data'!H60) -> 
A56: =IF('DF raw data'!E61="","",'DF raw data'!E61) -> 209.5 | B56: =IF('DF raw data'!F61="","",'DF raw data'!F61) -> 31.15 | C56: =IF('DF raw data'!G61="","",'DF raw data'!G61) -> 300.3 | D56: =IF('DF raw data'!H61="","",'DF raw data'!H61) -> 0
A57: =IF('DF raw data'!E62="","",'DF raw data'!E62) ->  | B57: =IF('DF raw data'!F62="","",'DF raw data'!F62) ->  | C57: =IF('DF raw data'!G62="","",'DF raw data'!G62) ->  | D57: =IF('DF raw data'!H62="","",'DF raw data'!H62) -> 
A58: =IF('DF raw data'!E63="","",'DF raw data'!E63) -> Measurement-Index | B58: =IF('DF raw data'!F63="","",'DF raw data'!F63) -> [1,1,1201,2] | C58: =IF('DF raw data'!G63="","",'DF raw data'!G63) ->  | D58: =IF('DF raw data'!H63="","",'DF raw data'!H63) -> 
A59: =IF('DF raw data'!E64="","",'DF raw data'!E64) ->  | B59: =IF('DF raw data'!F64="","",'DF raw data'!F64) ->  | C59: =IF('DF raw data'!G64="","",'DF raw data'!G64) ->  | D59: =IF('DF raw data'!H64="","",'DF raw data'!H64) -> 
A60: =IF('DF raw data'!E65="","",'DF raw data'!E65) -> Z [mm] | B60: By [T] | C60: Bx [T] | D60: Bz [T] | F60: By_corr | G60: Bx_corr | H60: Bz_corr | J60: Iy | K60: Jy | L60: Ix | M60: Jx | N60: PI
A62: =IF('DF raw data'!E67="","",'DF raw data'!E67) -> -300 | B62: =IF('DF raw data'!F67="","",'DF raw data'!F67) -> -3.9406e-05 | C62: =IF('DF raw data'!G67="","",'DF raw data'!G67) -> 0.000108246 | D62: =IF('DF raw data'!H67="","",'DF raw data'!H67) -> -2.18125e-05 | F62: =(1-$G$1*($B$49))*B62 -> -4.04029718e-05 | G62: =(1-$G$1*($B$49-$G$2))*C62 -> 0.0001088197038 | H62: =(1-$G$1*($B$49-$G$2))*D62 -> -2.192810625e-05 | J62: =F62*$G$3 -> -2.02014859e-05 | K62: =J62*$G$3 -> -1.010074295e-05 | L62: =G62*$G$3 -> 5.44098519e-05 | M62: =L62*$G$3 -> 2.720492595e-05 | N62: =(J62^2+L62^2)*$G$3 -> 1.684266008e-09
A63: =IF('DF raw data'!E68="","",'DF raw data'!E68) -> -299.5 | B63: =IF('DF raw data'!F68="","",'DF raw data'!F68) -> -2.81897e-05 | C63: =IF('DF raw data'!G68="","",'DF raw data'!G68) -> 0.000111193 | D63: =IF('DF raw data'!H68="","",'DF raw data'!H68) -> -2.26528e-05 | F63: =(1-$G$1*($B$49-$G$2))*B63 -> -2.833910541e-05 | G63: =(1-$G$1*($B$49-$G$2))*C63 -> 0.0001117823229 | H63: -2.277285984e-05 | J63: =F63*$G$3+J62 -> -3.437103861e-05 | K63: =J63*$G$3+K62 -> -2.728626225e-05 | L63: =G63*$G$3+L62 -> 0.0001103010134 | M63: =L63*$G$3+M62 -> 8.235543262e-05 | N63: =(J63^2+L63^2)*$G$3+N62 -> 8.358106929e-09
A64: =IF('DF raw data'!E69="","",'DF raw data'!E69) -> -299 | B64: =IF('DF raw data'!F69="","",'DF raw data'!F69) -> -2.70354e-05 | C64: =IF('DF raw data'!G69="","",'DF raw data'!G69) -> 0.000120883 | D64: =IF('DF raw data'!H69="","",'DF raw data'!H69) -> -2.37751e-05 | F64: =(1-$G$1*($B$49-$G$2))*B64 -> -2.717868762e-05 | G64: 0.0001215236799 | H64: -2.390110803e-05 | J64: =F64*$G$3+J63 -> -4.796038242e-05 | K64: =J64*$G$3+K63 -> -5.126645346e-05 | L64: =G64*$G$3+L63 -> 0.0001710628533 | M64: =L64*$G$3+M63 -> 0.0001678868593 | N64: =(J64^2+L64^2)*$G$3+N63 -> 2.413945596e-08
A65: =IF('DF raw data'!E70="","",'DF raw data'!E70) -> -298.5 | B65: =IF('DF raw data'!F70="","",'DF raw data'!F70) -> -4.01096e-05 | C65: =IF('DF raw data'!G70="","",'DF raw data'!G70) -> 0.000118998 | D65: =IF('DF raw data'!H70="","",'DF raw data'!H70) -> -2.3733e-05 | F65: -4.032218088e-05 | G65: 0.0001196286894 | H65: -2.38587849e-05 | J65: -6.812147286e-05 | K65: -8.532718989e-05 | L65: 0.000230877198 | M65: 0.0002833254583 | N65: 5.311186377e-08
A66: =IF('DF raw data'!E71="","",'DF raw data'!E71) -> -298 | B66: =IF('DF raw data'!F71="","",'DF raw data'!F71) -> -2.60102e-05 | C66: =IF('DF raw data'!G71="","",'DF raw data'!G71) -> 0.000122048 | D66: =IF('DF raw data'!H71="","",'DF raw data'!H71) -> -2.33985e-05 | F66: -2.614805406e-05 | G66: 0.0001226948544 | H66: -2.352251205e-05 | J66: -8.119549989e-05 | K66: -0.0001259249398 | L66: 0.0002922246252 | M66: 0.0004294377709 | N66: 9.910583416e-08
A67: =IF('DF raw data'!E72="","",'DF raw data'!E72) -> -297.5 | B67: =IF('DF raw data'!F72="","",'DF raw data'!F72) -> -2.61385e-05 | C67: =IF('DF raw data'!G72="","",'DF raw data'!G72) -> 0.000126509 | D67: =IF('DF raw data'!H72="","",'DF raw data'!H72) -> -2.33285e-05 | F67: -2.627703405e-05 | G67: 0.0001271794977 | H67: -2.345214105e-05 | J67: -9.433401691e-05 | K67: -0.0001730919483 | L67: 0.000355814374 | M67: 0.0006073449579 | N67: 1.668572219e-07
A68: =IF('DF raw data'!E73="","",'DF raw data'!E73) -> -297 | B68: =IF('DF raw data'!F73="","",'DF raw data'!F73) -> -3.41495e-05 | C68: =IF('DF raw data'!G73="","",'DF raw data'!G73) -> 0.000120465 | D68: =IF('DF raw data'!H73="","",'DF raw data'!H73) -> -2.3339e-05 | F68: -3.433049235e-05 | G68: 0.0001211034645 | H68: -2.34626967e-05 | J68: -0.0001114992631 | K68: -0.0002288415798 | L68: 0.0004163661063 | M68: 0.0008155280111 | N68: 2.59753632e-07
A69: =IF('DF raw data'!E74="","",'DF raw data'!E74) -> -296.5 | B69: =IF('DF raw data'!F74="","",'DF raw data'!F74) -> -1.33842e-05 | C69: =IF('DF raw data'!G74="","",'DF raw data'!G74) -> 0.000117986 | D69: =IF('DF raw data'!H74="","",'DF raw data'!H74) -> -2.39118e-05 | F69: -1.345513626e-05 | G69: 0.0001186113258 | H69: -2.403853254e-05 | J69: -0.0001182268312 | K69: -0.0002879549954 | L69: 0.0004756717692 | M69: 0.001053363896 | N69: 3.798742398e-07
A70: =IF('DF raw data'!E75="","",'DF raw data'!E75) -> -296 | B70: =IF('DF raw data'!F75="","",'DF raw data'!F75) -> -3.01111e-05 | C70: =IF('DF raw data'!G75="","",'DF raw data'!G75) -> 0.000114876 | D70: =IF('DF raw data'!H75="","",'DF raw data'!H75) -> -2.45367e-05 | F70: -3.027068883e-05 | G70: 0.0001154848428 | H70: -2.466674451e-05 | J70: -0.0001333621756 | K70: -0.0003546360833 | L70: 0.0005334141906 | M70: 0.001320070991 | N70: 5.310323241e-07
A71: =IF('DF raw data'!E76="","",'DF raw data'!E76) -> -295.5 | B71: =IF('DF raw data'!F76="","",'DF raw data'!F76) -> -2.78682e-05 | C71: =IF('DF raw data'!G76="","",'DF raw data'!G76) -> 0.000119517 | D71: =IF('DF raw data'!H76="","",'DF raw data'!H76) -> -2.4434e-05 | F71: -2.801590146e-05 | G71: 0.0001201504401 | H71: -2.45635002e-05 | J71: -0.0001473701264 | K71: -0.0004283211464 | L71: 0.0005934894107 | M71: 0.001616815696 | N71: 7.180061415e-07
A72: =IF('DF raw data'!E77="","",'DF raw data'!E77) -> -295 | B72: =IF('DF raw data'!F77="","",'DF raw data'!F77) -> -3.01758e-05 | C72: =IF('DF raw data'!G77="","",'DF raw data'!G77) -> 0.00011735 | D72: =IF('DF raw data'!H77="","",'DF raw data'!H77) -> -2.37266e-05 | F72: -3.033573174e-05 | G72: 0.000117971955 | H72: -2.385235098e-05 | J72: -0.0001625379922 | K72: -0.0005095901425 | L72: 0.0006524753882 | M72: 0.00194305339 | N72: 9.44077507e-07
A73: =IF('DF raw data'!E78="","",'DF raw data'!E78) -> -294.5 | B73: =IF('DF raw data'!F78="","",'DF raw data'!F78) -> -2.78048e-05 | C73: =IF('DF raw data'!G78="","",'DF raw data'!G78) -> 0.00011794 | D73: =IF('DF raw data'!H78="","",'DF raw data'!H78) -> -2.32498e-05 | F73: -2.795216544e-05 | G73: 0.000118565082 | H73: -2.337302394e-05 | J73: -0.000176514075 | K73: -0.00059784718 | L73: 0.0007117579292 | M73: 0.002298932355 | N73: 1.212955791e-06
A74: =IF('DF raw data'!E79="","",'DF raw data'!E79) -> -294 | B74: =IF('DF raw data'!F79="","",'DF raw data'!F79) -> -2.34466e-05 | C74: =IF('DF raw data'!G79="","",'DF raw data'!G79) -> 0.000123445 | D74: =IF('DF raw data'!H79="","",'DF raw data'!H79) -> -2.36315e-05 | F74: -2.357086698e-05 | G74: 0.0001240992585 | H74: -2.375674695e-05 | J74: -0.0001882995084 | K74: -0.0006919969342 | L74: 0.0007738075584 | M74: 0.002685836134 | N74: 1.530073212e-06
A75: =IF('DF raw data'!E80="","",'DF raw data'!E80) -> -293.5 | B75: =IF('DF raw data'!F80="","",'DF raw data'!F80) -> -1.80623e-05 | C75: =IF('DF raw data'!G80="","",'DF raw data'!G80) -> 0.000128001 | D75: =IF('DF raw data'!H80="","",'DF raw data'!H80) -> -2.45607e-05 | F75: -1.815803019e-05 | G75: 0.0001286794053 | H75: -2.469087171e-05 | J75: -0.0001973785235 | K75: -0.000790686196 | L75: 0.000838147261 | M75: 0.003104909765 | N75: 1.900797769e-06
A76: =IF('DF raw data'!E81="","",'DF raw data'!E81) -> -293 | B76: =IF('DF raw data'!F81="","",'DF raw data'!F81) -> -3.25467e-05 | C76: =IF('DF raw data'!G81="","",'DF raw data'!G81) -> 0.000130615 | D76: =IF('DF raw data'!H81="","",'DF raw data'!H81) -> -2.45284e-05 | F76: -3.271919751e-05 | G76: 0.0001313072595 | H76: -2.465840052e-05 | J76: -0.0002137381223 | K76: -0.0008975552572 | L76: 0.0009038008908 | M76: 0.00355681021 | N76: 2.332067786e-06
A77: =IF('DF raw data'!E82="","",'DF raw data'!E82) -> -292.5 | B77: =IF('DF raw data'!F82="","",'DF raw data'!F82) -> -3.32522e-05 | C77: =IF('DF raw data'!G82="","",'DF raw data'!G82) -> 0.000130245 | D77: =IF('DF raw data'!H82="","",'DF raw data'!H82) -> -2.35526e-05 | F77: -3.342843666e-05 | G77: 0.0001309352985 | H77: -2.367742878e-05 | J77: -0.0002304523406 | K77: -0.001012781427 | L77: 0.0009692685401 | M77: 0.00404144448 | N77: 2.828362678e-06
A78: =IF('DF raw data'!E83="","",'DF raw data'!E83) -> -292 | B78: =IF('DF raw data'!F83="","",'DF raw data'!F83) -> -1.97295e-05 | C78: =IF('DF raw data'!G83="","",'DF raw data'!G83) -> 0.000131616 | D78: =IF('DF raw data'!H83="","",'DF raw data'!H83) -> -2.32685e-05 | F78: -1.983406635e-05 | G78: 0.0001323135648 | H78: -2.339182305e-05 | J78: -0.0002403693738 | K78: -0.001132966114 | L78: 0.001035425322 | M78: 0.004559157141 | N78: 3.393304195e-06
A79: =IF('DF raw data'!E84="","",'DF raw data'!E84) -> -291.5 | B79: =IF('DF raw data'!F84="","",'DF raw data'!F84) -> -2.48463e-05 | C79: =IF('DF raw data'!G84="","",'DF raw data'!G84) -> 0.000134362 | D79: =IF('DF raw data'!H84="","",'DF raw data'!H84) -> -3.93137e-05 | F79: -2.497798539e-05 | G79: 0.0001350741186 | H79: -3.952206261e-05 | J79: -0.0002528583665 | K79: -0.001259395298 | L79: 0.001102962382 | M79: 0.005110638332 | N79: 4.03353588e-06
A80: =IF('DF raw data'!E85="","",'DF raw data'!E85) -> -291 | B80: =IF('DF raw data'!F85="","",'DF raw data'!F85) -> -2.17066e-05 | C80: =IF('DF raw data'!G85="","",'DF raw data'!G85) -> 0.000135562 | D80: =IF('DF raw data'!H85="","",'DF raw data'!H85) -> -3.82749e-05 | F80: -2.182164498e-05 | G80: 0.0001362804786 | H80: -3.847775697e-05 | J80: -0.000263769189 | K80: -0.001391279892 | L80: 0.001171102621 | M80: 0.005696189643 | N80: 4.754063647e-06
A81: =IF('DF raw data'!E86="","",'DF raw data'!E86) -> -290.5 | B81: =IF('DF raw data'!F86="","",'DF raw data'!F86) -> -3.22876e-05 | C81: =IF('DF raw data'!G86="","",'DF raw data'!G86) -> 0.000135722 | D81: =IF('DF raw data'!H86="","",'DF raw data'!H86) -> -2.88069e-05 | F81: -3.245872428e-05 | G81: 0.0001364413266 | H81: -2.895957657e-05 | J81: -0.0002799985511 | K81: -0.001531279168 | L81: 0.001239323284 | M81: 0.006315851285 | N81: 5.561224343e-06
A82: =IF('DF raw data'!E87="","",'DF raw data'!E87) -> -290 | B82: =IF('DF raw data'!F87="","",'DF raw data'!F87) -> -2.47258e-05 | C82: =IF('DF raw data'!G87="","",'DF raw data'!G87) -> 0.000131752 | D82: =IF('DF raw data'!H87="","",'DF raw data'!H87) -> -2.75871e-05 | F82: -2.485684674e-05 | G82: 0.0001324502856 | H82: -2.773331163e-05 | J82: -0.0002924269745 | K82: -0.001677492655 | L82: 0.001305548427 | M82: 0.006968625498 | N82: 6.456209458e-06
A83: =IF('DF raw data'!E88="","",'DF raw data'!E88) -> -289.5 | B83: =IF('DF raw data'!F88="","",'DF raw data'!F88) -> -3.28026e-05 | C83: =IF('DF raw data'!G88="","",'DF raw data'!G88) -> 0.000126214 | D83: =IF('DF raw data'!H88="","",'DF raw data'!H88) -> -2.52467e-05 | F83: -3.297645378e-05 | G83: 0.0001268829342 | H83: -2.538050751e-05 | J83: -0.0003089152014 | K83: -0.001831950256 | L83: 0.001368989894 | M83: 0.007653120446 | N83: 7.440990424e-06
A84: =IF('DF raw data'!E89="","",'DF raw data'!E89) -> -289 | B84: =IF('DF raw data'!F89="","",'DF raw data'!F89) -> -2.74824e-05 | C84: =IF('DF raw data'!G89="","",'DF raw data'!G89) -> 0.000126977 | D84: =IF('DF raw data'!H89="","",'DF raw data'!H89) -> -2.64128e-05 | F84: -2.762805672e-05 | G84: 0.0001276499781 | H84: -2.655278784e-05 | J84: -0.0003227292297 | K84: -0.00199331487 | L84: 0.001432814883 | M84: 0.008369527887 | N84: 8.519546747e-06
A85: =IF('DF raw data'!E90="","",'DF raw data'!E90) -> -288.5 | B85: =IF('DF raw data'!F90="","",'DF raw data'!F90) -> -3.94031e-05 | C85: =IF('DF raw data'!G90="","",'DF raw data'!G90) -> 0.000130087 | D85: =IF('DF raw data'!H90="","",'DF raw data'!H90) -> -2.62403e-05 | F85: -3.961193643e-05 | G85: 0.0001307764611 | H85: -2.637937359e-05 | J85: -0.000342535198 | K85: -0.002164582469 | L85: 0.001498203114 | M85: 0.009118629444 | N85: 9.700518213e-06
A86: =IF('DF raw data'!E91="","",'DF raw data'!E91) -> -288 | B86: =IF('DF raw data'!F91="","",'DF raw data'!F91) -> -2.49813e-05 | C86: =IF('DF raw data'!G91="","",'DF raw data'!G91) -> 0.000136966 | D86: =IF('DF raw data'!H91="","",'DF raw data'!H91) -> -2.88273e-05 | F86: -2.511370089e-05 | G86: 0.0001376919198 | H86: -2.898008469e-05 | J86: -0.0003550920484 | K86: -0.002342128494 | L86: 0.001567049074 | M86: 0.009902153981 | N86: 1.099138479e-05
A87: =IF('DF raw data'!E92="","",'DF raw data'!E92) -> -287.5 | B87: =IF('DF raw data'!F92="","",'DF raw data'!F92) -> -2.87614e-05 | C87: =IF('DF raw data'!G92="","",'DF raw data'!G92) -> 0.00013416 | D87: =IF('DF raw data'!H92="","",'DF raw data'!H92) -> -3.06727e-05 | F87: -2.891383542e-05 | G87: 0.000134871048 | H87: -3.083526531e-05 | J87: -0.0003695489661 | K87: -0.002526902977 | L87: 0.001634484598 | M87: 0.01071939628 | N87: 1.239543796e-05
A88: =IF('DF raw data'!E93="","",'DF raw data'!E93) -> -287 | B88: =IF('DF raw data'!F93="","",'DF raw data'!F93) -> -2.56211e-05 | C88: =IF('DF raw data'!G93="","",'DF raw data'!G93) -> 0.000133538 | D88: =IF('DF raw data'!H93="","",'DF raw data'!H93) -> -3.05108e-05 | F88: -2.575689183e-05 | G88: 0.0001342457514 | H88: -3.067250724e-05 | J88: -0.000382427412 | K88: -0.002718116683 | L88: 0.001701607473 | M88: 0.01157020002 | N88: 1.391629732e-05
A89: =IF('DF raw data'!E94="","",'DF raw data'!E94) -> -286.5 | B89: =IF('DF raw data'!F94="","",'DF raw data'!F94) -> -3.14514e-05 | C89: =IF('DF raw data'!G94="","",'DF raw data'!G94) -> 0.000137778 | D89: =IF('DF raw data'!H94="","",'DF raw data'!H94) -> -3.32264e-05 | F89: -3.161809242e-05 | G89: 0.0001385082234 | H89: -3.340249992e-05 | J89: -0.0003982364582 | K89: -0.002917234912 | L89: 0.001770861585 | M89: 0.01245563081 | N89: 1.556356884e-05
A90: =IF('DF raw data'!E95="","",'DF raw data'!E95) -> -286 | B90: =IF('DF raw data'!F95="","",'DF raw data'!F95) -> -3.15133e-05 | C90: =IF('DF raw data'!G95="","",'DF raw data'!G95) -> 0.00013079 | D90: =IF('DF raw data'!H95="","",'DF raw data'!H95) -> -3.68213e-05 | F90: -3.168032049e-05 | G90: 0.000131483187 | H90: -3.701645289e-05 | J90: -0.0004140766185 | K90: -0.003124273221 | L90: 0.001836603179 | M90: 0.0133739324 | N90: 1.733585418e-05
A91: =IF('DF raw data'!E96="","",'DF raw data'!E96) -> -285.5 | B91: =IF('DF raw data'!F96="","",'DF raw data'!F96) -> -2.49131e-05 | C91: =IF('DF raw data'!G96="","",'DF raw data'!G96) -> 0.000128855 | D91: =IF('DF raw data'!H96="","",'DF raw data'!H96) -> -3.49364e-05 | F91: -2.504513943e-05 | G91: 0.0001295379315 | H91: -3.512156292e-05 | J91: -0.0004265991882 | K91: -0.003337572815 | L91: 0.001901372144 | M91: 0.01432461847 | N91: 1.923445563e-05
A92: =IF('DF raw data'!E97="","",'DF raw data'!E97) -> -285 | B92: =IF('DF raw data'!F97="","",'DF raw data'!F97) -> -1.67822e-05 | C92: =IF('DF raw data'!G97="","",'DF raw data'!G97) -> 0.000129708 | D92: =IF('DF raw data'!H97="","",'DF raw data'!H97) -> -2.20744e-05 | F92: -1.687114566e-05 | G92: 0.0001303954524 | H92: -2.219139432e-05 | J92: -0.000435034761 | K92: -0.003555090196 | L92: 0.001966569871 | M92: 0.01530790341 | N92: 2.126278178e-05
A93: =IF('DF raw data'!E98="","",'DF raw data'!E98) -> -284.5 | B93: =IF('DF raw data'!F98="","",'DF raw data'!F98) -> -2.7541e-05 | C93: =IF('DF raw data'!G98="","",'DF raw data'!G98) -> 0.000124285 | D93: =IF('DF raw data'!H98="","",'DF raw data'!H98) -> -3.46723e-05 | F93: -2.76869673e-05 | G93: 0.0001249437105 | H93: -3.485606319e-05 | J93: -0.0004488782447 | K93: -0.003779529318 | L93: 0.002029041726 | M93: 0.01632242427 | N93: 2.342203278e-05
A94: =IF('DF raw data'!E99="","",'DF raw data'!E99) -> -284 | B94: =IF('DF raw data'!F99="","",'DF raw data'!F99) -> -3.13203e-05 | C94: =IF('DF raw data'!G99="","",'DF raw data'!G99) -> 0.000130265 | D94: =IF('DF raw data'!H99="","",'DF raw data'!H99) -> -3.77019e-05 | F94: -3.148629759e-05 | G94: 0.0001309554045 | H94: -3.790172007e-05 | J94: -0.0004646213935 | K94: -0.004011840015 | L94: 0.002094519428 | M94: 0.01736968398 | N94: 2.572347512e-05
A95: =IF('DF raw data'!E100="","",'DF raw data'!E100) -> -283.5 | B95: =IF('DF raw data'!F100="","",'DF raw data'!F100) -> -4.45298e-05 | C95: =IF('DF raw data'!G100="","",'DF raw data'!G100) -> 0.000133537 | D95: =IF('DF raw data'!H100="","",'DF raw data'!H100) -> -2.659e-05 | F95: -4.476580794e-05 | G95: 0.0001342447461 | H95: -2.6730927e-05 | J95: -0.0004870042974 | K95: -0.004255342163 | L95: 0.002161641801 | M95: 0.01845050488 | N95: 2.817840935e-05
A96: =IF('DF raw data'!E101="","",'DF raw data'!E101) -> -283 | B96: =IF('DF raw data'!F101="","",'DF raw data'!F101) -> -3.02346e-05 | C96: =IF('DF raw data'!G101="","",'DF raw data'!G101) -> 0.000126765 | D96: =IF('DF raw data'!H101="","",'DF raw data'!H101) -> -3.17349e-05 | F96: -3.039484338e-05 | G96: 0.0001274368545 | H96: -3.190309497e-05 | J96: -0.0005022017191 | K96: -0.004506443023 | L96: 0.002225360228 | M96: 0.019563185 | N96: 3.078062671e-05
A97: =IF('DF raw data'!E102="","",'DF raw data'!E102) -> -282.5 | B97: =IF('DF raw data'!F102="","",'DF raw data'!F102) -> -3.39544e-05 | C97: =IF('DF raw data'!G102="","",'DF raw data'!G102) -> 0.000122654 | D97: =IF('DF raw data'!H102="","",'DF raw data'!H102) -> -2.7879e-05 | F97: -3.413435832e-05 | G97: 0.0001233040662 | H97: -2.80267587e-05 | J97: -0.0005192688983 | K97: -0.004766077472 | L97: 0.002287012261 | M97: 0.02070669113 | N97: 3.353065934e-05
A98: =IF('DF raw data'!E103="","",'DF raw data'!E103) -> -282 | B98: =IF('DF raw data'!F103="","",'DF raw data'!F103) -> -3.92151e-05 | C98: =IF('DF raw data'!G103="","",'DF raw data'!G103) -> 0.000122759 | D98: =IF('DF raw data'!H103="","",'DF raw data'!H103) -> -1.93843e-05 | F98: -3.942294003e-05 | G98: 0.0001234096227 | H98: -1.948703679e-05 | J98: -0.0005389803683 | K98: -0.005035567656 | L98: 0.002348717073 | M98: 0.02188104966 | N98: 3.64341452e-05
A99: =IF('DF raw data'!E104="","",'DF raw data'!E104) -> -281.5 | B99: =IF('DF raw data'!F104="","",'DF raw data'!F104) -> -4.04295e-05 | C99: =IF('DF raw data'!G104="","",'DF raw data'!G104) -> 0.000119731 | D99: =IF('DF raw data'!H104="","",'DF raw data'!H104) -> -2.46413e-05 | F99: -4.064377635e-05 | G99: 0.0001203655743 | H99: -2.477189889e-05 | J99: -0.0005593022565 | K99: -0.005315218785 | L99: 0.00240889986 | M99: 0.02308549959 | N99: 3.949195398e-05
A100: =IF('DF raw data'!E105="","",'DF raw data'!E105) -> -281 | B100: =IF('DF raw data'!F105="","",'DF raw data'!F105) -> -1.65107e-05 | C100: =IF('DF raw data'!G105="","",'DF raw data'!G105) -> 0.000125789 | D100: =IF('DF raw data'!H105="","",'DF raw data'!H105) -> -4.54362e-05 | F100: -1.659820671e-05 | G100: 0.0001264556817 | H100: -4.567701186e-05 | J100: -0.0005676013598 | K100: -0.005599019464 | L100: 0.002472127701 | M100: 0.02432156345 | N100: 4.270874732e-05
A101: =IF('DF raw data'!E106="","",'DF raw data'!E106) -> -280.5 | B101: =IF('DF raw data'!F106="","",'DF raw data'!F106) -> -3.49758e-05 | C101: =IF('DF raw data'!G106="","",'DF raw data'!G106) -> 0.000126939 | D101: =IF('DF raw data'!H106="","",'DF raw data'!H106) -> -3.40353e-05 | F101: -3.516117174e-05 | G101: 0.0001276117767 | H101: -3.421568709e-05 | J101: -0.0005851819457 | K101: -0.005891610437 | L101: 0.002535933589 | M101: 0.02558953024 | N101: 4.609544585e-05
A102: =IF('DF raw data'!E107="","",'DF raw data'!E107) -> -280 | B102: =IF('DF raw data'!F107="","",'DF raw data'!F107) -> -3.25408e-05 | C102: =IF('DF raw data'!G107="","",'DF raw data'!G107) -> 0.000123749 | D102: =IF('DF raw data'!H107="","",'DF raw data'!H107) -> -3.3623e-05 | F102: -3.271326624e-05 | G102: 0.0001244048697 | H102: -3.38012019e-05 | J102: -0.0006015385788 | K102: -0.006192379727 | L102: 0.002598136024 | M102: 0.02688859825 | N102: 4.965152559e-05
A103: =IF('DF raw data'!E108="","",'DF raw data'!E108) -> -279.5 | B103: =IF('DF raw data'!F108="","",'DF raw data'!F108) -> -3.3322e-05 | C103: =IF('DF raw data'!G108="","",'DF raw data'!G108) -> 0.000121768 | D103: =IF('DF raw data'!H108="","",'DF raw data'!H108) -> -1.49024e-05 | F103: -3.34986066e-05 | G103: 0.0001224133704 | H103: -1.498138272e-05 | J103: -0.0006182878821 | K103: -0.006501523668 | L103: 0.002659342709 | M103: 0.02821826961 | N103: 5.337871736e-05
A104: =IF('DF raw data'!E109="","",'DF raw data'!E109) -> -279 | B104: =IF('DF raw data'!F109="","",'DF raw data'!F109) -> -2.42149e-05 | C104: =IF('DF raw data'!G109="","",'DF raw data'!G109) -> 0.000123973 | D104: =IF('DF raw data'!H109="","",'DF raw data'!H109) -> -2.47509e-05 | F104: -2.434323897e-05 | G104: 0.0001246300569 | H104: -2.488207977e-05 | J104: -0.0006304595016 | K104: -0.006816753419 | L104: 0.002721657738 | M104: 0.02957909848 | N104: 5.728116737e-05
A105: =IF('DF raw data'!E110="","",'DF raw data'!E110) -> -278.5 | B105: =IF('DF raw data'!F110="","",'DF raw data'!F110) -> -2.41535e-05 | C105: =IF('DF raw data'!G110="","",'DF raw data'!G110) -> 0.000123651 | D105: =IF('DF raw data'!H110="","",'DF raw data'!H110) -> -2.03821e-05 | F105: -2.428151355e-05 | G105: 0.0001243063503 | H105: -2.049012513e-05 | J105: -0.0006426002584 | K105: -0.007138053548 | L105: 0.002783810913 | M105: 0.03097100393 | N105: 6.136243652e-05
A106: =IF('DF raw data'!E111="","",'DF raw data'!E111) -> -278 | B106: =IF('DF raw data'!F111="","",'DF raw data'!F111) -> -3.57514e-05 | C106: =IF('DF raw data'!G111="","",'DF raw data'!G111) -> 0.000126958 | D106: =IF('DF raw data'!H111="","",'DF raw data'!H111) -> -2.39556e-05 | F106: -3.594088242e-05 | G106: 0.0001276308774 | H106: -2.408256468e-05 | J106: -0.0006605706996 | K106: -0.007468338898 | L106: 0.002847626352 | M106: 0.03239481711 | N106: 6.563510126e-05
A107: =IF('DF raw data'!E112="","",'DF raw data'!E112) -> -277.5 | B107: =IF('DF raw data'!F112="","",'DF raw data'!F112) -> -3.84401e-05 | C107: =IF('DF raw data'!G112="","",'DF raw data'!G112) -> 0.000125671 | D107: =IF('DF raw data'!H112="","",'DF raw data'!H112) -> -2.8573e-05 | F107: -3.864383253e-05 | G107: 0.0001263370563 | H107: -2.87244369e-05 | J107: -0.0006798926159 | K107: -0.007808285206 | L107: 0.00291079488 | M107: 0.03385021455 | N107: 7.010259166e-05
A108: =IF('DF raw data'!E113="","",'DF raw data'!E113) -> -277 | B108: =IF('DF raw data'!F113="","",'DF raw data'!F113) -> -2.75492e-05 | C108: =IF('DF raw data'!G113="","",'DF raw data'!G113) -> 0.000118165 | D108: =IF('DF raw data'!H113="","",'DF raw data'!H113) -> -2.2014e-05 | F108: -2.769521076e-05 | G108: 0.0001187912745 | H108: -2.21306742e-05 | J108: -0.0006937402212 | K108: -0.008155155316 | L108: 0.002970190517 | M108: 0.03533530981 | N108: 7.475424526e-05
A109: =IF('DF raw data'!E114="","",'DF raw data'!E114) -> -276.5 | B109: =IF('DF raw data'!F114="","",'DF raw data'!F114) -> -3.31848e-05 | C109: =IF('DF raw data'!G114="","",'DF raw data'!G114) -> 0.00012037 | D109: =IF('DF raw data'!H114="","",'DF raw data'!H114) -> -2.87517e-05 | F109: -3.336067944e-05 | G109: 0.000121007961 | H109: -2.890408401e-05 | J109: -0.000710420561 | K109: -0.008510365597 | L109: 0.003030694497 | M109: 0.03685065705 | N109: 7.959914852e-05
A110: =IF('DF raw data'!E115="","",'DF raw data'!E115) -> -276 | B110: =IF('DF raw data'!F115="","",'DF raw data'!F115) -> -3.01055e-05 | C110: =IF('DF raw data'!G115="","",'DF raw data'!G115) -> 0.000112493 | D110: =IF('DF raw data'!H115="","",'DF raw data'!H115) -> -3.31766e-05 | F110: -3.026505915e-05 | G110: 0.0001130892129 | H110: -3.335243598e-05 | J110: -0.0007255530905 | K110: -0.008873142142 | L110: 0.003087239104 | M110: 0.03839427661 | N110: 8.46278848e-05
A111: =IF('DF raw data'!E116="","",'DF raw data'!E116) -> -275.5 | B111: =IF('DF raw data'!F116="","",'DF raw data'!F116) -> -3.37034e-05 | C111: =IF('DF raw data'!G116="","",'DF raw data'!G116) -> 0.000113895 | D111: =IF('DF raw data'!H116="","",'DF raw data'!H116) -> -1.96653e-05 | F111: -3.388202802e-05 | G111: 0.0001144986435 | H111: -1.976952609e-05 | J111: -0.0007424941045 | K111: -0.009244389194 | L111: 0.003144488426 | M111: 0.03996652082 | N111: 8.984743728e-05
A112: =IF('DF raw data'!E117="","",'DF raw data'!E117) -> -275 | B112: =IF('DF raw data'!F117="","",'DF raw data'!F117) -> -1.59524e-05 | C112: =IF('DF raw data'!G117="","",'DF raw data'!G117) -> 0.000121145 | D112: =IF('DF raw data'!H117="","",'DF raw data'!H117) -> -1.66365e-05 | F112: -1.603694772e-05 | G112: 0.0001217870685 | H112: -1.672467345e-05 | J112: -0.0007505125784 | K112: -0.009619645483 | L112: 0.00320538196 | M112: 0.0415692118 | N112: 9.52663086e-05
A113: =IF('DF raw data'!E118="","",'DF raw data'!E118) -> -274.5 | B113: =IF('DF raw data'!F118="","",'DF raw data'!F118) -> -1.16542e-05 | C113: =IF('DF raw data'!G118="","",'DF raw data'!G118) -> 0.000126365 | D113: =IF('DF raw data'!H118="","",'DF raw data'!H118) -> -2.31711e-05 | F113: -1.171596726e-05 | G113: 0.0001270347345 | H113: -2.329390683e-05 | J113: -0.000756370562 | K113: -0.009997830764 | L113: 0.003268899327 | M113: 0.04320366146 | N113: 0.0001008952082
A114: =IF('DF raw data'!E119="","",'DF raw data'!E119) -> -274 | B114: =IF('DF raw data'!F119="","",'DF raw data'!F119) -> -2.54941e-05 | C114: =IF('DF raw data'!G119="","",'DF raw data'!G119) -> 0.000123058 | D114: =IF('DF raw data'!H119="","",'DF raw data'!H119) -> -2.85654e-05 | F114: -2.562921873e-05 | G114: 0.0001237102074 | H114: -2.871679662e-05 | J114: -0.0007691851714 | K114: -0.01038242335 | L114: 0.003330754431 | M114: 0.04486903868 | N114: 0.0001067379937
A115: =IF('DF raw data'!E120="","",'DF raw data'!E120) -> -273.5 | B115: =IF('DF raw data'!F120="","",'DF raw data'!F120) -> -2.79274e-05 | C115: =IF('DF raw data'!G120="","",'DF raw data'!G120) -> 0.000123714 | D115: =IF('DF raw data'!H120="","",'DF raw data'!H120) -> -3.17721e-05 | F115: -2.807541522e-05 | G115: 0.0001243696842 | H115: -3.194049213e-05 | J115: -0.000783222879 | K115: -0.01077403479 | L115: 0.003392939273 | M115: 0.04656550831 | N115: 0.0001128007312
A116: =IF('DF raw data'!E121="","",'DF raw data'!E121) -> -273 | B116: =IF('DF raw data'!F121="","",'DF raw data'!F121) -> -3.11975e-05 | C116: =IF('DF raw data'!G121="","",'DF raw data'!G121) -> 0.000124294 | D116: =IF('DF raw data'!H121="","",'DF raw data'!H121) -> -2.93902e-05 | F116: -3.136284675e-05 | G116: 0.0001249527582 | H116: -2.954596806e-05 | J116: -0.0007989043024 | K116: -0.01117348694 | L116: 0.003455415652 | M116: 0.04829321614 | N116: 0.0001190898039
A117: =IF('DF raw data'!E122="","",'DF raw data'!E122) -> -272.5 | B117: =IF('DF raw data'!F122="","",'DF raw data'!F122) -> -2.81225e-05 | C117: =IF('DF raw data'!G122="","",'DF raw data'!G122) -> 0.000129795 | D117: =IF('DF raw data'!H122="","",'DF raw data'!H122) -> -2.76084e-05 | F117: -2.827154925e-05 | G117: 0.0001304829135 | H117: -2.775472452e-05 | J117: -0.000813040077 | K117: -0.01158000698 | L117: 0.003520657109 | M117: 0.0500535447 | N117: 0.0001256178342
A118: =IF('DF raw data'!E123="","",'DF raw data'!E123) -> -272 | B118: =IF('DF raw data'!F123="","",'DF raw data'!F123) -> -3.1517e-05 | C118: =IF('DF raw data'!G123="","",'DF raw data'!G123) -> 0.000123602 | D118: =IF('DF raw data'!H123="","",'DF raw data'!H123) -> -3.10586e-05 | F118: -3.16840401e-05 | G118: 0.0001242570906 | H118: -3.122321058e-05 | J118: -0.0008288820971 | K118: -0.01199444803 | L118: 0.003582785654 | M118: 0.05184493752 | N118: 0.0001323795335
A119: =IF('DF raw data'!E124="","",'DF raw data'!E124) -> -271.5 | B119: =IF('DF raw data'!F124="","",'DF raw data'!F124) -> -3.06213e-05 | C119: =IF('DF raw data'!G124="","",'DF raw data'!G124) -> 0.000117227 | D119: =IF('DF raw data'!H124="","",'DF raw data'!H124) -> -2.82936e-05 | F119: -3.078359289e-05 | G119: 0.0001178483031 | H119: -2.844355608e-05 | J119: -0.0008442738935 | K119: -0.01241658497 | L119: 0.003641709806 | M119: 0.05366579243 | N119: 0.0001393669578
A120: =IF('DF raw data'!E125="","",'DF raw data'!E125) -> -271 | B120: =IF('DF raw data'!F125="","",'DF raw data'!F125) -> -1.9922e-05 | C120: =IF('DF raw data'!G125="","",'DF raw data'!G125) -> 0.000118411 | D120: =IF('DF raw data'!H125="","",'DF raw data'!H125) -> -2.30001e-05 | F120: -2.00275866e-05 | G120: 0.0001190385783 | H120: -2.312200053e-05 | J120: -0.0008542876868 | K120: -0.01284372882 | L120: 0.003701229095 | M120: 0.05551640697 | N120: 0.00014658141
A121: =IF('DF raw data'!E126="","",'DF raw data'!E126) -> -270.5 | B121: =IF('DF raw data'!F126="","",'DF raw data'!F126) -> -1.94153e-05 | C121: =IF('DF raw data'!G126="","",'DF raw data'!G126) -> 0.000121169 | D121: =IF('DF raw data'!H126="","",'DF raw data'!H126) -> -1.37577e-05 | F121: -1.951820109e-05 | G121: 0.0001218111957 | H121: -1.383061581e-05 | J121: -0.0008640467874 | K121: -0.01327575221 | L121: 0.003762134693 | M121: 0.05739747432 | N121: 0.0001540315271
A122: =IF('DF raw data'!E127="","",'DF raw data'!E127) -> -270 | B122: =IF('DF raw data'!F127="","",'DF raw data'!F127) -> -2.42813e-05 | C122: =IF('DF raw data'!G127="","",'DF raw data'!G127) -> 0.000121962 | D122: =IF('DF raw data'!H127="","",'DF raw data'!H127) -> -2.09469e-05 | F122: -2.440999089e-05 | G122: 0.0001226083986 | H122: -2.105791857e-05 | J122: -0.0008762517828 | K122: -0.0137138781 | L122: 0.003823438892 | M122: 0.05930919376 | N122: 0.0001617247782
A123: =IF('DF raw data'!E128="","",'DF raw data'!E128) -> -269.5 | B123: =IF('DF raw data'!F128="","",'DF raw data'!F128) -> -1.73539e-05 | C123: =IF('DF raw data'!G128="","",'DF raw data'!G128) -> 0.000115015 | D123: =IF('DF raw data'!H128="","",'DF raw data'!H128) -> -2.97385e-05 | F123: -1.744587567e-05 | G123: 0.0001156245795 | H123: -2.989611405e-05 | J123: -0.0008849747206 | K123: -0.01415636546 | L123: 0.003881251182 | M123: 0.06124981936 | N123: 0.0001696484237
A124: =IF('DF raw data'!E129="","",'DF raw data'!E129) -> -269 | B124: =IF('DF raw data'!F129="","",'DF raw data'!F129) -> -2.41473e-05 | C124: =IF('DF raw data'!G129="","",'DF raw data'!G129) -> 0.000115753 | D124: =IF('DF raw data'!H129="","",'DF raw data'!H129) -> -2.98893e-05 | F124: -2.427528069e-05 | G124: 0.0001163664909 | H124: -3.004771329e-05 | J124: -0.000897112361 | K124: -0.01460492164 | L124: 0.003939434427 | M124: 0.06321953657 | N124: 0.0001778104008
A125: =IF('DF raw data'!E130="","",'DF raw data'!E130) -> -268.5 | B125: =IF('DF raw data'!F130="","",'DF raw data'!F130) -> -3.99127e-05 | C125: =IF('DF raw data'!G130="","",'DF raw data'!G130) -> 0.000124875 | D125: =IF('DF raw data'!H130="","",'DF raw data'!H130) -> -3.09238e-05 | F125: -4.012423731e-05 | G125: 0.0001255368375 | H125: -3.108769614e-05 | J125: -0.0009171744796 | K125: -0.01506350888 | L125: 0.004002202846 | M125: 0.06522063799 | N125: 0.0001862398191
A126: =IF('DF raw data'!E131="","",'DF raw data'!E131) -> -268 | B126: =IF('DF raw data'!F131="","",'DF raw data'!F131) -> -3.91434e-05 | C126: =IF('DF raw data'!G131="","",'DF raw data'!G131) -> 0.000129092 | D126: =IF('DF raw data'!H131="","",'DF raw data'!H131) -> -3.12799e-05 | F126: -3.935086002e-05 | G126: 0.0001297761876 | H126: -3.144568347e-05 | J126: -0.0009368499096 | K126: -0.01553193384 | L126: 0.00406709094 | M126: 0.06725418346 | N126: 0.0001949492773
A127: =IF('DF raw data'!E132="","",'DF raw data'!E132) -> -267.5 | B127: =IF('DF raw data'!F132="","",'DF raw data'!F132) -> -3.63872e-05 | C127: =IF('DF raw data'!G132="","",'DF raw data'!G132) -> 0.000127789 | D127: =IF('DF raw data'!H132="","",'DF raw data'!H132) -> -3.17223e-05 | F127: -3.658005216e-05 | G127: 0.0001284662817 | H127: -3.189042819e-05 | J127: -0.0009551399357 | K127: -0.01600950381 | L127: 0.004131324081 | M127: 0.0693198455 | N127: 0.0002039393428
A128: =IF('DF raw data'!E133="","",'DF raw data'!E133) -> -267 | B128: =IF('DF raw data'!F133="","",'DF raw data'!F133) -> -3.90748e-05 | C128: =IF('DF raw data'!G133="","",'DF raw data'!G133) -> 0.000124904 | D128: =IF('DF raw data'!H133="","",'DF raw data'!H133) -> -3.80826e-05 | F128: =(1-$G$1*($B$49-$G$2))*B128 -> -3.928189644e-05 | G128: 0.0001255659912 | H128: -3.828443778e-05 | J128: =F128*$G$3+J127 -> -0.0009747808839 | K128: =J128*$G$3+K127 -> -0.01649689425 | L128: =G128*$G$3+L127 -> 0.004194107076 | M128: =L128*$G$3+M127 -> 0.07141689904 | N128: =(J128^2+L128^2)*$G$3+N127 -> 0.0002132097088
A129: =IF('DF raw data'!E134="","",'DF raw data'!E134) -> -266.5 | B129: =IF('DF raw data'!F134="","",'DF raw data'!F134) -> -2.74853e-05 | C129: =IF('DF raw data'!G134="","",'DF raw data'!G134) -> 0.000126193 | D129: =IF('DF raw data'!H134="","",'DF raw data'!H134) -> -2.18793e-05 | F129: -2.763097209e-05 | G129: 0.0001268618229 | H129: -2.199526029e-05 | J129: -0.00098859637 | K129: -0.01699119243 | L129: 0.004257537988 | M129: 0.07354566803 | N129: 0.000222761685
A130: =IF('DF raw data'!E135="","",'DF raw data'!E135) -> -266 | B130: =IF('DF raw data'!F135="","",'DF raw data'!F135) -> -2.64603e-05 | C130: =IF('DF raw data'!G135="","",'DF raw data'!G135) -> 0.00013164 | D130: =IF('DF raw data'!H135="","",'DF raw data'!H135) -> -2.09107e-05 | F130: -2.660053959e-05 | G130: 0.000132337692 | H130: -2.102152671e-05 | J130: -0.00100189664 | K130: -0.01749214075 | L130: 0.004323706834 | M130: 0.07570752145 | N130: 0.0002326108039
A131: =IF('DF raw data'!E136="","",'DF raw data'!E136) -> -265.5 | B131: =IF('DF raw data'!F136="","",'DF raw data'!F136) -> -3.78011e-05 | C131: =IF('DF raw data'!G136="","",'DF raw data'!G136) -> 0.000126131 | D131: =IF('DF raw data'!H136="","",'DF raw data'!H136) -> -2.56151e-05 | F131: -3.800144583e-05 | G131: 0.0001267994943 | H131: -2.575086003e-05 | J131: -0.001020897363 | K131: -0.01800258943 | L131: 0.004387106581 | M131: 0.07790107474 | N131: 0.0002427552717
A132: =IF('DF raw data'!E137="","",'DF raw data'!E137) -> -265 | B132: =IF('DF raw data'!F137="","",'DF raw data'!F137) -> -4.03038e-05 | C132: =IF('DF raw data'!G137="","",'DF raw data'!G137) -> 0.000124022 | D132: =IF('DF raw data'!H137="","",'DF raw data'!H137) -> -2.07194e-05 | F132: -4.051741014e-05 | G132: 0.0001246793166 | H132: -2.082921282e-05 | J132: -0.001041156068 | K132: -0.01852316747 | L132: 0.004449446239 | M132: 0.08012579786 | N132: 0.0002531960606
A133: =IF('DF raw data'!E138="","",'DF raw data'!E138) -> -264.5 | B133: =IF('DF raw data'!F138="","",'DF raw data'!F138) -> -3.62516e-05 | C133: =IF('DF raw data'!G138="","",'DF raw data'!G138) -> 0.000125741 | D133: =IF('DF raw data'!H138="","",'DF raw data'!H138) -> -4.31344e-05 | F133: -3.644373348e-05 | G133: 0.0001264074273 | H133: -4.336301232e-05 | J133: -0.001059377935 | K133: -0.01905285644 | L133: 0.004512649953 | M133: 0.08238212284 | N133: 0.0002639392062
A134: =IF('DF raw data'!E139="","",'DF raw data'!E139) -> -264 | B134: =IF('DF raw data'!F139="","",'DF raw data'!F139) -> -3.30497e-05 | C134: =IF('DF raw data'!G139="","",'DF raw data'!G139) -> 0.000131003 | D134: =IF('DF raw data'!H139="","",'DF raw data'!H139) -> -3.94387e-05 | F134: -3.322486341e-05 | G134: 0.0001316973159 | H134: -3.964772511e-05 | J134: -0.001075990366 | K134: -0.01959085162 | L134: 0.004578498611 | M134: 0.08467137214 | N134: 0.0002749994086
A135: =IF('DF raw data'!E140="","",'DF raw data'!E140) -> -263.5 | B135: =IF('DF raw data'!F140="","",'DF raw data'!F140) -> -3.85655e-05 | C135: =IF('DF raw data'!G140="","",'DF raw data'!G140) -> 0.000133097 | D135: =IF('DF raw data'!H140="","",'DF raw data'!H140) -> -3.28223e-05 | F135: -3.876989715e-05 | G135: 0.0001338024141 | H135: -3.299625819e-05 | J135: -0.001095375315 | K135: -0.02013853928 | L135: 0.004645399818 | M135: 0.08699407205 | N135: 0.0002863892018
A136: =IF('DF raw data'!E141="","",'DF raw data'!E141) -> -263 | B136: =IF('DF raw data'!F141="","",'DF raw data'!F141) -> -2.40802e-05 | C136: =IF('DF raw data'!G141="","",'DF raw data'!G141) -> 0.000128581 | D136: =IF('DF raw data'!H141="","",'DF raw data'!H141) -> -3.47469e-05 | F136: -2.420782506e-05 | G136: 0.0001292624793 | H136: -3.493105857e-05 | J136: -0.001107479227 | K136: -0.02069227889 | L136: 0.004710031057 | M136: 0.08934908758 | N136: 0.0002980946532
A137: =IF('DF raw data'!E142="","",'DF raw data'!E142) -> -262.5 | B137: =IF('DF raw data'!F142="","",'DF raw data'!F142) -> -3.3636e-05 | C137: =IF('DF raw data'!G142="","",'DF raw data'!G142) -> 0.000129197 | D137: =IF('DF raw data'!H142="","",'DF raw data'!H142) -> -2.44939e-05 | F137: -3.38142708e-05 | G137: 0.0001298817441 | H137: -2.462371767e-05 | J137: -0.001124386363 | K137: -0.02125447207 | L137: 0.004774971929 | M137: 0.09173657354 | N137: 0.000310126954
A138: =IF('DF raw data'!E143="","",'DF raw data'!E143) -> -262 | B138: =IF('DF raw data'!F143="","",'DF raw data'!F143) -> -3.22864e-05 | C138: =IF('DF raw data'!G143="","",'DF raw data'!G143) -> 0.000134138 | D138: =IF('DF raw data'!H143="","",'DF raw data'!H143) -> -3.04871e-05 | F138: -3.245751792e-05 | G138: 0.0001348489314 | H138: -3.064868163e-05 | J138: -0.001140615122 | K138: -0.02182477963 | L138: 0.004842396395 | M138: 0.09415777174 | N138: 0.0003225018569
A139: =IF('DF raw data'!E144="","",'DF raw data'!E144) -> -261.5 | B139: =IF('DF raw data'!F144="","",'DF raw data'!F144) -> -3.21011e-05 | C139: =IF('DF raw data'!G144="","",'DF raw data'!G144) -> 0.000137565 | D139: =IF('DF raw data'!H144="","",'DF raw data'!H144) -> -1.9551e-05 | F139: -3.227123583e-05 | G139: 0.0001382940945 | H139: -1.96546203e-05 | J139: -0.00115675074 | K139: -0.022403155 | L139: 0.004911543442 | M139: 0.09661354346 | N139: 0.0003352325225
A140: =IF('DF raw data'!E145="","",'DF raw data'!E145) -> -261 | B140: =IF('DF raw data'!F145="","",'DF raw data'!F145) -> -2.47347e-05 | C140: =IF('DF raw data'!G145="","",'DF raw data'!G145) -> 0.000131198 | D140: =IF('DF raw data'!H145="","",'DF raw data'!H145) -> -1.37388e-05 | F140: -2.486579391e-05 | G140: 0.0001318933494 | H140: -1.381161564e-05 | J140: -0.001169183637 | K140: -0.02298774682 | L140: 0.004977490117 | M140: 0.09910228852 | N140: 0.0003483037216
A141: =IF('DF raw data'!E146="","",'DF raw data'!E146) -> -260.5 | B141: =IF('DF raw data'!F146="","",'DF raw data'!F146) -> -2.21022e-05 | C141: =IF('DF raw data'!G146="","",'DF raw data'!G146) -> 0.000122161 | D141: =IF('DF raw data'!H146="","",'DF raw data'!H146) -> -2.10521e-05 | F141: -2.221934166e-05 | G141: 0.0001228084533 | H141: -2.116367613e-05 | J141: -0.001180293307 | K141: -0.02357789347 | L141: 0.005038894344 | M141: 0.1016217357 | N141: 0.0003616954959
A142: =IF('DF raw data'!E147="","",'DF raw data'!E147) -> -260 | B142: =IF('DF raw data'!F147="","",'DF raw data'!F147) -> -3.17127e-05 | C142: =IF('DF raw data'!G147="","",'DF raw data'!G147) -> 0.000119568 | D142: =IF('DF raw data'!H147="","",'DF raw data'!H147) -> -2.55937e-05 | F142: -3.188077731e-05 | G142: 0.0001202017104 | H142: -2.572934661e-05 | J142: -0.001196233696 | K142: -0.02417601032 | L142: 0.005098995199 | M142: 0.1041712333 | N142: 0.0003754108594
A143: =IF('DF raw data'!E148="","",'DF raw data'!E148) -> -259.5 | B143: =IF('DF raw data'!F148="","",'DF raw data'!F148) -> -4.34438e-05 | C143: =IF('DF raw data'!G148="","",'DF raw data'!G148) -> 0.000124556 | D143: =IF('DF raw data'!H148="","",'DF raw data'!H148) -> -2.14504e-05 | F143: -4.367405214e-05 | G143: 0.0001252161468 | H143: -2.156408712e-05 | J143: -0.001218070722 | K143: -0.02478504568 | L143: 0.005161603272 | M143: 0.1067520349 | N143: 0.0003894737817
A144: =IF('DF raw data'!E149="","",'DF raw data'!E149) -> -259 | B144: =IF('DF raw data'!F149="","",'DF raw data'!F149) -> -2.22245e-05 | C144: =IF('DF raw data'!G149="","",'DF raw data'!G149) -> 0.000124946 | D144: =IF('DF raw data'!H149="","",'DF raw data'!H149) -> -3.01659e-05 | F144: -2.234228985e-05 | G144: 0.0001256082138 | H144: -3.032577927e-05 | J144: -0.001229241867 | K144: -0.02539966662 | L144: 0.005224407379 | M144: 0.1093642386 | N144: 0.0004038765158
A145: =IF('DF raw data'!E150="","",'DF raw data'!E150) -> -258.5 | B145: =IF('DF raw data'!F150="","",'DF raw data'!F150) -> -3.81222e-05 | C145: =IF('DF raw data'!G150="","",'DF raw data'!G150) -> 0.000128841 | D145: =IF('DF raw data'!H150="","",'DF raw data'!H150) -> -2.47841e-05 | F145: -3.832424766e-05 | G145: 0.0001295238573 | H145: -2.491545573e-05 | J145: -0.001248403991 | K145: -0.02602386861 | L145: 0.005289169308 | M145: 0.1120088233 | N145: 0.000418643428
A146: =IF('DF raw data'!E151="","",'DF raw data'!E151) -> -258 | B146: =IF('DF raw data'!F151="","",'DF raw data'!F151) -> -3.67738e-05 | C146: =IF('DF raw data'!G151="","",'DF raw data'!G151) -> 0.000130082 | D146: =IF('DF raw data'!H151="","",'DF raw data'!H151) -> -2.85759e-05 | F146: -3.696870114e-05 | G146: 0.0001307714346 | H146: -2.872735227e-05 | J146: -0.001266888341 | K146: -0.02665731278 | L146: 0.005354555025 | M146: 0.1146861008 | N146: 0.0004337815608
A147: =IF('DF raw data'!E152="","",'DF raw data'!E152) -> -257.5 | B147: =IF('DF raw data'!F152="","",'DF raw data'!F152) -> -4.15137e-05 | C147: =IF('DF raw data'!G152="","",'DF raw data'!G152) -> 0.00012157 | D147: =IF('DF raw data'!H152="","",'DF raw data'!H152) -> -3.28858e-05 | F147: -4.173372261e-05 | G147: 0.000122214321 | H147: -3.306009474e-05 | J147: -0.001287755203 | K147: -0.02730119038 | L147: 0.005415662186 | M147: 0.1173939319 | N147: 0.000449275416
A148: =IF('DF raw data'!E153="","",'DF raw data'!E153) -> -257 | B148: =IF('DF raw data'!F153="","",'DF raw data'!F153) -> -2.10784e-05 | C148: =IF('DF raw data'!G153="","",'DF raw data'!G153) -> 0.000123095 | D148: =IF('DF raw data'!H153="","",'DF raw data'!H153) -> -1.85454e-05 | F148: -2.119011552e-05 | G148: 0.0001237474035 | H148: -1.864369062e-05 | J148: -0.00129835026 | K148: -0.02795036551 | L148: 0.005477535887 | M148: 0.1201326998 | N148: 0.0004651199724
A149: =IF('DF raw data'!E154="","",'DF raw data'!E154) -> -256.5 | B149: =IF('DF raw data'!F154="","",'DF raw data'!F154) -> -1.74877e-05 | C149: =IF('DF raw data'!G154="","",'DF raw data'!G154) -> 0.000132858 | D149: =IF('DF raw data'!H154="","",'DF raw data'!H154) -> -2.0995e-05 | F149: -1.758038481e-05 | G149: 0.0001335621474 | H149: -2.11062735e-05 | J149: -0.001307140453 | K149: -0.02860393574 | L149: 0.005544316961 | M149: 0.1229048583 | N149: 0.0004813440057
A150: =IF('DF raw data'!E155="","",'DF raw data'!E155) -> -256 | B150: =IF('DF raw data'!F155="","",'DF raw data'!F155) -> -1.46037e-05 | C150: =IF('DF raw data'!G155="","",'DF raw data'!G155) -> 0.000132844 | D150: =IF('DF raw data'!H155="","",'DF raw data'!H155) -> -2.12492e-05 | F150: -1.468109961e-05 | G150: 0.0001335480732 | H150: -2.136182076e-05 | J150: -0.001314481003 | K150: -0.02926117624 | L150: 0.005611090998 | M150: 0.1257104038 | N150: 0.000497950107
A151: =IF('DF raw data'!E156="","",'DF raw data'!E156) -> -255.5 | B151: =IF('DF raw data'!F156="","",'DF raw data'!F156) -> -3.14558e-05 | C151: =IF('DF raw data'!G156="","",'DF raw data'!G156) -> 0.000121645 | D151: =IF('DF raw data'!H156="","",'DF raw data'!H156) -> -2.6397e-05 | F151: -3.162251574e-05 | G151: 0.0001222897185 | H151: -2.65369041e-05 | J151: -0.001330292261 | K151: -0.02992632237 | L151: 0.005672235857 | M151: 0.1285465217 | N151: 0.0005149220756
A152: =IF('DF raw data'!E157="","",'DF raw data'!E157) -> -255 | B152: =IF('DF raw data'!F157="","",'DF raw data'!F157) -> -3.60675e-05 | C152: =IF('DF raw data'!G157="","",'DF raw data'!G157) -> 0.000128578 | D152: =IF('DF raw data'!H157="","",'DF raw data'!H157) -> -3.07355e-05 | F152: -3.625865775e-05 | G152: 0.0001292594634 | H152: -3.089839815e-05 | J152: -0.001348421589 | K152: -0.03060053317 | L152: 0.005736865589 | M152: 0.1314149545 | N152: 0.0005322870093
A153: =IF('DF raw data'!E158="","",'DF raw data'!E158) -> -254.5 | B153: =IF('DF raw data'!F158="","",'DF raw data'!F158) -> -3.50454e-05 | C153: =IF('DF raw data'!G158="","",'DF raw data'!G158) -> 0.000133783 | D153: =IF('DF raw data'!H158="","",'DF raw data'!H158) -> -2.53228e-05 | F153: -3.523114062e-05 | G153: 0.0001344920499 | H153: -2.545701084e-05 | J153: -0.00136603716 | K153: -0.03128355175 | L153: 0.005804111614 | M153: 0.1343170103 | N153: 0.0005500638939
A154: =IF('DF raw data'!E159="","",'DF raw data'!E159) -> -254 | B154: =IF('DF raw data'!F159="","",'DF raw data'!F159) -> -2.61422e-05 | C154: =IF('DF raw data'!G159="","",'DF raw data'!G159) -> 0.000132398 | D154: =IF('DF raw data'!H159="","",'DF raw data'!H159) -> -1.74429e-05 | F154: -2.628075366e-05 | G154: 0.0001330997094 | H154: -1.753534737e-05 | J154: -0.001379177537 | K154: -0.03197314052 | L154: 0.005870661468 | M154: 0.1372523411 | N154: 0.0005682472923
A155: =IF('DF raw data'!E160="","",'DF raw data'!E160) -> -253.5 | B155: =IF('DF raw data'!F160="","",'DF raw data'!F160) -> -3.13891e-05 | C155: =IF('DF raw data'!G160="","",'DF raw data'!G160) -> 0.000131101 | D155: =IF('DF raw data'!H160="","",'DF raw data'!H160) -> -3.05251e-05 | F155: -3.155546223e-05 | G155: 0.0001317958353 | H155: -3.068688303e-05 | J155: -0.001394955268 | K155: -0.03267061815 | L155: 0.005936559386 | M155: 0.1402206208 | N155: 0.0005868416111
A156: =IF('DF raw data'!E161="","",'DF raw data'!E161) -> -253 | B156: =IF('DF raw data'!F161="","",'DF raw data'!F161) -> -2.83799e-05 | C156: =IF('DF raw data'!G161="","",'DF raw data'!G161) -> 0.000134545 | D156: =IF('DF raw data'!H161="","",'DF raw data'!H161) -> -2.59274e-05 | F156: -2.853031347e-05 | G156: 0.0001352580885 | H156: -2.606481522e-05 | J156: -0.001409220424 | K156: -0.03337522836 | L156: 0.00600418843 | M156: 0.143222715 | N156: 0.0006058597015
A157: =IF('DF raw data'!E162="","",'DF raw data'!E162) -> -252.5 | B157: =IF('DF raw data'!F162="","",'DF raw data'!F162) -> -4.45273e-05 | C157: =IF('DF raw data'!G162="","",'DF raw data'!G162) -> 0.000134024 | D157: =IF('DF raw data'!H162="","",'DF raw data'!H162) -> -3.04419e-05 | F157: -4.476329469e-05 | G157: 0.0001347343272 | H157: -3.060324207e-05 | J157: -0.001431602072 | K157: -0.0340910294 | L157: 0.006071555594 | M157: 0.1462584928 | N157: 0.0006253163374
A158: =IF('DF raw data'!E163="","",'DF raw data'!E163) -> -252 | B158: =IF('DF raw data'!F163="","",'DF raw data'!F163) -> -3.29255e-05 | C158: =IF('DF raw data'!G163="","",'DF raw data'!G163) -> 0.000129596 | D158: =IF('DF raw data'!H163="","",'DF raw data'!H163) -> -3.31407e-05 | F158: -3.310000515e-05 | G158: 0.0001302828588 | H158: -3.331634571e-05 | J158: -0.001448152074 | K158: -0.03481510543 | L158: 0.006136697023 | M158: 0.1493268413 | N158: 0.0006451944348
A159: =IF('DF raw data'!E164="","",'DF raw data'!E164) -> -251.5 | B159: =IF('DF raw data'!F164="","",'DF raw data'!F164) -> -3.5546e-05 | C159: =IF('DF raw data'!G164="","",'DF raw data'!G164) -> 0.000131136 | D159: =IF('DF raw data'!H164="","",'DF raw data'!H164) -> -4.39676e-05 | F159: -3.57343938e-05 | G159: 0.0001318310208 | H159: -4.420062828e-05 | J159: -0.001466019271 | K159: -0.03554811507 | L159: 0.006202612534 | M159: 0.1524281475 | N159: 0.0006655052422
A160: =IF('DF raw data'!E165="","",'DF raw data'!E165) -> -251 | B160: =IF('DF raw data'!F165="","",'DF raw data'!F165) -> -3.43396e-05 | C160: =IF('DF raw data'!G165="","",'DF raw data'!G165) -> 0.000128865 | D160: =IF('DF raw data'!H165="","",'DF raw data'!H165) -> -2.67404e-05 | F160: -3.452159988e-05 | G160: 0.0001295479845 | H160: -2.688212412e-05 | J160: -0.001483280071 | K160: -0.03628975511 | L160: 0.006267386526 | M160: 0.1555618408 | N160: 0.000686245369
A161: =IF('DF raw data'!E166="","",'DF raw data'!E166) -> -250.5 | B161: =IF('DF raw data'!F166="","",'DF raw data'!F166) -> -3.16503e-05 | C161: =IF('DF raw data'!G166="","",'DF raw data'!G166) -> 0.000124987 | D161: =IF('DF raw data'!H166="","",'DF raw data'!H166) -> -2.31618e-05 | F161: -3.181804659e-05 | G161: 0.0001256494311 | H161: -2.328455754e-05 | J161: -0.001499189094 | K161: -0.03703934965 | L161: 0.006330211241 | M161: 0.1587269464 | N161: 0.0007074049402
A162: =IF('DF raw data'!E167="","",'DF raw data'!E167) -> -250 | B162: =IF('DF raw data'!F167="","",'DF raw data'!F167) -> -3.46015e-05 | C162: =IF('DF raw data'!G167="","",'DF raw data'!G167) -> 0.000134557 | D162: =IF('DF raw data'!H167="","",'DF raw data'!H167) -> -1.81193e-05 | F162: -3.478488795e-05 | G162: 0.0001352701521 | H162: -1.821533229e-05 | J162: -0.001516581538 | K162: -0.03779764042 | L162: 0.006397846317 | M162: 0.1619258696 | N162: 0.0007290211687
A163: =IF('DF raw data'!E168="","",'DF raw data'!E168) -> -249.5 | B163: =IF('DF raw data'!F168="","",'DF raw data'!F168) -> -3.88161e-05 | C163: =IF('DF raw data'!G168="","",'DF raw data'!G168) -> 0.000133118 | D163: =IF('DF raw data'!H168="","",'DF raw data'!H168) -> -4.15524e-05 | F163: -3.902182533e-05 | G163: 0.0001338235254 | H163: -4.177262772e-05 | J163: -0.001536092451 | K163: -0.03856568665 | L163: 0.00646475808 | M163: 0.1651582486 | N163: 0.0007510975072
A164: =IF('DF raw data'!E169="","",'DF raw data'!E169) -> -249 | B164: =IF('DF raw data'!F169="","",'DF raw data'!F169) -> -3.40209e-05 | C164: =IF('DF raw data'!G169="","",'DF raw data'!G169) -> 0.000127418 | D164: =IF('DF raw data'!H169="","",'DF raw data'!H169) -> -2.39201e-05 | F164: -3.420121077e-05 | G164: 0.0001280933154 | H164: -2.404687653e-05 | J164: -0.001553193057 | K164: -0.03934228318 | L164: 0.006528804738 | M164: 0.168422651 | N164: 0.0007736163572
A165: =IF('DF raw data'!E170="","",'DF raw data'!E170) -> -248.5 | B165: =IF('DF raw data'!F170="","",'DF raw data'!F170) -> -3.95258e-05 | C165: =IF('DF raw data'!G170="","",'DF raw data'!G170) -> 0.000128218 | D165: =IF('DF raw data'!H170="","",'DF raw data'!H170) -> -3.45327e-05 | F165: -3.973528674e-05 | G165: 0.0001288975554 | H165: -3.471572331e-05 | J165: -0.0015730607 | K165: -0.04012881353 | L165: 0.006593253516 | M165: 0.1717192778 | N165: 0.0007965891131
A166: =IF('DF raw data'!E171="","",'DF raw data'!E171) -> -248 | B166: =IF('DF raw data'!F171="","",'DF raw data'!F171) -> -2.86398e-05 | C166: =IF('DF raw data'!G171="","",'DF raw data'!G171) -> 0.000131371 | D166: =IF('DF raw data'!H171="","",'DF raw data'!H171) -> -2.03735e-05 | F166: -2.879159094e-05 | G166: 0.0001320672663 | H166: -2.048147955e-05 | J166: -0.001587456495 | K166: -0.04092254177 | L166: 0.006659287149 | M166: 0.1750489213 | N166: 0.0008200221749
A167: =IF('DF raw data'!E172="","",'DF raw data'!E172) -> -247.5 | B167: =IF('DF raw data'!F172="","",'DF raw data'!F172) -> -2.77397e-05 | C167: =IF('DF raw data'!G172="","",'DF raw data'!G172) -> 0.000136694 | D167: =IF('DF raw data'!H172="","",'DF raw data'!H172) -> -2.47994e-05 | F167: -2.788672041e-05 | G167: 0.0001374184782 | H167: -2.493083682e-05 | J167: -0.001601399856 | K167: -0.0417232417 | L167: 0.006727996388 | M167: 0.1784129195 | N167: 0.0008439373833
A168: =IF('DF raw data'!E173="","",'DF raw data'!E173) -> -247 | B168: =IF('DF raw data'!F173="","",'DF raw data'!F173) -> -2.92772e-05 | C168: =IF('DF raw data'!G173="","",'DF raw data'!G173) -> 0.000140134 | D168: =IF('DF raw data'!H173="","",'DF raw data'!H173) -> -2.57132e-05 | F168: -2.943236916e-05 | G168: 0.0001408767102 | H168: -2.584947996e-05 | J168: -0.00161611604 | K168: -0.04253129972 | L168: 0.006798434743 | M168: 0.1818121369 | N168: 0.0008683526563
A169: =IF('DF raw data'!E174="","",'DF raw data'!E174) -> -246.5 | B169: =IF('DF raw data'!F174="","",'DF raw data'!F174) -> -3.70888e-05 | C169: =IF('DF raw data'!G174="","",'DF raw data'!G174) -> 0.000134757 | D169: =IF('DF raw data'!H174="","",'DF raw data'!H174) -> -3.71296e-05 | F169: -3.728537064e-05 | G169: 0.0001354712121 | H169: -3.732638688e-05 | J169: -0.001634758725 | K169: -0.04334867908 | L169: 0.006866170349 | M169: 0.1852452221 | N169: 0.000893261022
A170: =IF('DF raw data'!E175="","",'DF raw data'!E175) -> -246 | B170: =IF('DF raw data'!F175="","",'DF raw data'!F175) -> -3.80637e-05 | C170: =IF('DF raw data'!G175="","",'DF raw data'!G175) -> 0.000125473 | D170: =IF('DF raw data'!H175="","",'DF raw data'!H175) -> -1.58699e-05 | F170: -3.826543761e-05 | G170: 0.0001261380069 | H170: -1.595401047e-05 | J170: -0.001653891444 | K170: -0.04417562481 | L170: 0.006929239352 | M170: 0.1887098417 | N170: 0.0009186358795
A171: =IF('DF raw data'!E176="","",'DF raw data'!E176) -> -245.5 | B171: =IF('DF raw data'!F176="","",'DF raw data'!F176) -> -4.1135e-05 | C171: =IF('DF raw data'!G176="","",'DF raw data'!G176) -> 0.000131278 | D171: =IF('DF raw data'!H176="","",'DF raw data'!H176) -> -2.37815e-05 | F171: -4.13530155e-05 | G171: 0.0001319737734 | H171: -2.390754195e-05 | J171: -0.001674567952 | K171: -0.04501290878 | L171: 0.006995226239 | M171: 0.1922074549 | N171: 0.0009445045634
A172: =IF('DF raw data'!E177="","",'DF raw data'!E177) -> -245 | B172: =IF('DF raw data'!F177="","",'DF raw data'!F177) -> -2.99196e-05 | C172: =IF('DF raw data'!G177="","",'DF raw data'!G177) -> 0.00013562 | D172: =IF('DF raw data'!H177="","",'DF raw data'!H177) -> -2.33373e-05 | F172: -3.007817388e-05 | G172: 0.000136338786 | H172: -2.346098769e-05 | J172: -0.001689607039 | K172: -0.0458577123 | L172: 0.007063395632 | M172: 0.1957391527 | N172: 0.0009708777283
A173: =IF('DF raw data'!E178="","",'DF raw data'!E178) -> -244.5 | B173: =IF('DF raw data'!F178="","",'DF raw data'!F178) -> -3.32535e-05 | C173: =IF('DF raw data'!G178="","",'DF raw data'!G178) -> 0.000127401 | D173: =IF('DF raw data'!H178="","",'DF raw data'!H178) -> -2.13763e-05 | F173: -3.342974355e-05 | G173: 0.0001280762253 | H173: -2.148959439e-05 | J173: -0.001706321911 | K173: -0.04671087326 | L173: 0.007127433745 | M173: 0.1993028696 | N173: 0.0009977336515
A174: =IF('DF raw data'!E179="","",'DF raw data'!E179) -> -244 | B174: =IF('DF raw data'!F179="","",'DF raw data'!F179) -> -3.55602e-05 | C174: =IF('DF raw data'!G179="","",'DF raw data'!G179) -> 0.000125075 | D174: =IF('DF raw data'!H179="","",'DF raw data'!H179) -> -2.19531e-05 | F174: -3.574866906e-05 | G174: 0.0001257378975 | H174: -2.206945143e-05 | J174: -0.001724196245 | K174: -0.04757297138 | L174: 0.007190302694 | M174: 0.2028980209 | N174: 0.001025070304
A175: =IF('DF raw data'!E180="","",'DF raw data'!E180) -> -243.5 | B175: =IF('DF raw data'!F180="","",'DF raw data'!F180) -> -3.02997e-05 | C175: =IF('DF raw data'!G180="","",'DF raw data'!G180) -> 0.000133886 | D175: =IF('DF raw data'!H180="","",'DF raw data'!H180) -> -3.01391e-05 | F175: -3.046028841e-05 | G175: 0.0001345955958 | H175: -3.029883723e-05 | J175: -0.001739426389 | K175: -0.04844268457 | L175: 0.007257600491 | M175: 0.2065268211 | N175: 0.001052919489
A176: =IF('DF raw data'!E181="","",'DF raw data'!E181) -> -243 | B176: =IF('DF raw data'!F181="","",'DF raw data'!F181) -> -4.86958e-05 | C176: =IF('DF raw data'!G181="","",'DF raw data'!G181) -> 0.000137545 | D176: =IF('DF raw data'!H181="","",'DF raw data'!H181) -> -2.61427e-05 | F176: -4.895388774e-05 | G176: 0.0001382739885 | H176: -2.628125631e-05 | J176: -0.001763903333 | K176: -0.04932463624 | L176: 0.007326737486 | M176: 0.2101901899 | N176: 0.001081315707
A177: =IF('DF raw data'!E182="","",'DF raw data'!E182) -> -242.5 | B177: =IF('DF raw data'!F182="","",'DF raw data'!F182) -> -3.31917e-05 | C177: =IF('DF raw data'!G182="","",'DF raw data'!G182) -> 0.000140498 | D177: =IF('DF raw data'!H182="","",'DF raw data'!H182) -> -1.80281e-05 | F177: -3.336761601e-05 | G177: 0.0001412426394 | H177: -1.812364893e-05 | J177: -0.001780587141 | K177: -0.05021492981 | L177: 0.007397358805 | M177: 0.2138888693 | N177: 0.001110261411
A178: =IF('DF raw data'!E183="","",'DF raw data'!E183) -> -242 | B178: =IF('DF raw data'!F183="","",'DF raw data'!F183) -> -4.38906e-05 | C178: =IF('DF raw data'!G183="","",'DF raw data'!G183) -> 0.000128208 | D178: =IF('DF raw data'!H183="","",'DF raw data'!H183) -> -2.38995e-05 | F178: -4.412322018e-05 | G178: 0.0001288875024 | H178: -2.402616735e-05 | J178: -0.001802648751 | K178: -0.05111625419 | L178: 0.007461802557 | M178: 0.2176197706 | N178: 0.001139725431
A179: =IF('DF raw data'!E184="","",'DF raw data'!E184) -> -241.5 | B179: =IF('DF raw data'!F184="","",'DF raw data'!F184) -> -3.78654e-05 | C179: =IF('DF raw data'!G184="","",'DF raw data'!G184) -> 0.000135638 | D179: =IF('DF raw data'!H184="","",'DF raw data'!H184) -> -2.5398e-05 | F179: -3.806608662e-05 | G179: 0.0001363568814 | H179: -2.55326094e-05 | J179: -0.001821681795 | K179: -0.05202709508 | L179: 0.007529980997 | M179: 0.2213847611 | N179: 0.001169735
A180: =IF('DF raw data'!E185="","",'DF raw data'!E185) -> -241 | B180: =IF('DF raw data'!F185="","",'DF raw data'!F185) -> -3.63296e-05 | C180: =IF('DF raw data'!G185="","",'DF raw data'!G185) -> 0.000137432 | D180: =IF('DF raw data'!H185="","",'DF raw data'!H185) -> -2.1873e-05 | F180: -3.652214688e-05 | G180: 0.0001381603896 | H180: -2.19889269e-05 | J180: -0.001839942868 | K180: -0.05294706652 | L180: 0.007599061192 | M180: 0.2251842917 | N180: 0.001200300561
A181: =IF('DF raw data'!E186="","",'DF raw data'!E186) -> -240.5 | B181: =IF('DF raw data'!F186="","",'DF raw data'!F186) -> -3.87652e-05 | C181: =IF('DF raw data'!G186="","",'DF raw data'!G186) -> 0.000132492 | D181: =IF('DF raw data'!H186="","",'DF raw data'!H186) -> -2.13667e-05 | F181: -3.897065556e-05 | G181: 0.0001331942076 | H181: -2.147994351e-05 | J181: -0.001859428196 | K181: -0.05387678062 | L181: 0.007665658296 | M181: 0.2290171208 | N181: 0.001231410456
A182: =IF('DF raw data'!E187="","",'DF raw data'!E187) -> -240 | B182: =IF('DF raw data'!F187="","",'DF raw data'!F187) -> -3.22847e-05 | C182: =IF('DF raw data'!G187="","",'DF raw data'!G187) -> 0.000129905 | D182: =IF('DF raw data'!H187="","",'DF raw data'!H187) -> -3.30465e-05 | F182: -3.245580891e-05 | G182: 0.0001305934965 | H182: -3.322164645e-05 | J182: -0.0018756561 | K182: -0.05481460867 | L182: 0.007730955044 | M182: 0.2328825983 | N182: 0.001263053332
A183: =IF('DF raw data'!E188="","",'DF raw data'!E188) -> -239.5 | B183: =IF('DF raw data'!F188="","",'DF raw data'!F188) -> -3.85658e-05 | C183: =IF('DF raw data'!G188="","",'DF raw data'!G188) -> 0.000131452 | D183: =IF('DF raw data'!H188="","",'DF raw data'!H188) -> -3.2208e-05 | F183: -3.877019874e-05 | G183: 0.0001321486956 | H183: -3.23787024e-05 | J183: -0.0018950412 | K183: -0.05576212927 | L183: 0.007797029392 | M183: 0.236781113 | N183: 0.001295245756
A184: =IF('DF raw data'!E189="","",'DF raw data'!E189) -> -239 | B184: =IF('DF raw data'!F189="","",'DF raw data'!F189) -> -3.4211e-05 | C184: =IF('DF raw data'!G189="","",'DF raw data'!G189) -> 0.000134866 | D184: =IF('DF raw data'!H189="","",'DF raw data'!H189) -> -2.73662e-05 | F184: -3.43923183e-05 | G184: 0.0001355807898 | H184: -2.751124086e-05 | J184: -0.001912237359 | K184: -0.05671824795 | L184: 0.007864819787 | M184: 0.2407135229 | N184: 0.001328001777
A185: =IF('DF raw data'!E190="","",'DF raw data'!E190) -> -238.5 | B185: =IF('DF raw data'!F190="","",'DF raw data'!F190) -> -3.18998e-05 | C185: =IF('DF raw data'!G190="","",'DF raw data'!G190) -> 0.000142414 | D185: =IF('DF raw data'!H190="","",'DF raw data'!H190) -> -3.35786e-05 | F185: -3.206886894e-05 | G185: 0.0001431687942 | H185: -3.375656658e-05 | J185: -0.001928271793 | K185: -0.05768238384 | L185: 0.007936404184 | M185: 0.244681725 | N185: 0.001361354149
A186: =IF('DF raw data'!E191="","",'DF raw data'!E191) -> -238 | B186: =IF('DF raw data'!F191="","",'DF raw data'!F191) -> -2.38943e-05 | C186: =IF('DF raw data'!G191="","",'DF raw data'!G191) -> 0.00013767 | D186: =IF('DF raw data'!H191="","",'DF raw data'!H191) -> -2.46134e-05 | F186: -2.402093979e-05 | G186: 0.000138399651 | H186: -2.474385102e-05 | J186: -0.001940282263 | K186: -0.05865252497 | L186: 0.008005604009 | M186: 0.248684527 | N186: 0.001395281344
A187: =IF('DF raw data'!E192="","",'DF raw data'!E192) -> -237.5 | B187: =IF('DF raw data'!F192="","",'DF raw data'!F192) -> -3.2414e-05 | C187: =IF('DF raw data'!G192="","",'DF raw data'!G192) -> 0.000136691 | D187: =IF('DF raw data'!H192="","",'DF raw data'!H192) -> -3.13486e-05 | F187: -3.25857942e-05 | G187: 0.0001374154623 | H187: -3.151474758e-05 | J187: -0.00195657516 | K187: -0.05963081255 | L187: 0.008074311741 | M187: 0.2527216829 | N187: 0.001429792692
A188: =IF('DF raw data'!E193="","",'DF raw data'!E193) -> -237 | B188: =IF('DF raw data'!F193="","",'DF raw data'!F193) -> -1.36427e-05 | C188: =IF('DF raw data'!G193="","",'DF raw data'!G193) -> 0.000128219 | D188: =IF('DF raw data'!H193="","",'DF raw data'!H193) -> -2.05673e-05 | F188: -1.371500631e-05 | G188: 0.0001288985607 | H188: -2.067630669e-05 | J188: -0.001963432664 | K188: -0.06061252889 | L188: 0.008138761021 | M188: 0.2567910634 | N188: 0.001464839942
A189: =IF('DF raw data'!E194="","",'DF raw data'!E194) -> -236.5 | B189: =IF('DF raw data'!F194="","",'DF raw data'!F194) -> -3.64606e-05 | C189: =IF('DF raw data'!G194="","",'DF raw data'!G194) -> 0.000136454 | D189: =IF('DF raw data'!H194="","",'DF raw data'!H194) -> -1.752e-05 | F189: -3.665384118e-05 | G189: 0.0001371772062 | H189: -1.7612856e-05 | J189: -0.001981759584 | K189: -0.06160340868 | L189: 0.008207349624 | M189: 0.2608947382 | N189: 0.001500483921
A190: =IF('DF raw data'!E195="","",'DF raw data'!E195) -> -236 | B190: =IF('DF raw data'!F195="","",'DF raw data'!F195) -> -3.7479e-05 | C190: =IF('DF raw data'!G195="","",'DF raw data'!G195) -> 0.000134464 | D190: =IF('DF raw data'!H195="","",'DF raw data'!H195) -> -2.82884e-05 | F190: -3.76776387e-05 | G190: 0.0001351766592 | H190: -2.843832852e-05 | J190: -0.002000598403 | K190: -0.06260370788 | L190: 0.008274937954 | M190: 0.2650322072 | N190: 0.001536722417
A191: =IF('DF raw data'!E196="","",'DF raw data'!E196) -> -235.5 | B191: =IF('DF raw data'!F196="","",'DF raw data'!F196) -> -4.00459e-05 | C191: =IF('DF raw data'!G196="","",'DF raw data'!G196) -> 0.000144298 | D191: =IF('DF raw data'!H196="","",'DF raw data'!H196) -> -2.30167e-05 | F191: -4.025814327e-05 | G191: 0.0001450627794 | H191: -2.313868851e-05 | J191: -0.002020727475 | K191: -0.06361407162 | L191: 0.008347469343 | M191: 0.2692059419 | N191: 0.001573604209
A192: =IF('DF raw data'!E197="","",'DF raw data'!E197) -> -235 | B192: =IF('DF raw data'!F197="","",'DF raw data'!F197) -> -4.17722e-05 | C192: =IF('DF raw data'!G197="","",'DF raw data'!G197) -> 0.000138406 | D192: =IF('DF raw data'!H197="","",'DF raw data'!H197) -> -2.95696e-05 | F192: =(1-$G$1*($B$49-$G$2))*B192 -> -4.199359266e-05 | G192: 0.0001391395518 | H192: -2.972631888e-05 | J192: =F192*$G$3+J191 -> -0.002041724271 | K192: =J192*$G$3+K191 -> -0.06463493375 | L192: =G192*$G$3+L191 -> 0.008417039119 | M192: =L192*$G$3+M191 -> 0.2734144614 | N192: =(J192^2+L192^2)*$G$3+N191 -> 0.001611111802
A193: =IF('DF raw data'!E198="","",'DF raw data'!E198) -> -234.5 | B193: =IF('DF raw data'!F198="","",'DF raw data'!F198) -> -2.23535e-05 | C193: =IF('DF raw data'!G198="","",'DF raw data'!G198) -> 0.00013033 | D193: =IF('DF raw data'!H198="","",'DF raw data'!H198) -> -2.87602e-05 | F193: -2.247197355e-05 | G193: 0.000131020749 | H193: -2.891262906e-05 | J193: -0.002052960258 | K193: -0.06566141388 | L193: 0.008482549494 | M193: 0.2776557362 | N193: 0.001649195948
A194: =IF('DF raw data'!E199="","",'DF raw data'!E199) -> -234 | B194: =IF('DF raw data'!F199="","",'DF raw data'!F199) -> -4.99125e-05 | C194: =IF('DF raw data'!G199="","",'DF raw data'!G199) -> 0.000129849 | D194: =IF('DF raw data'!H199="","",'DF raw data'!H199) -> -2.79175e-05 | F194: -5.017703625e-05 | G194: 0.0001305371997 | H194: -2.806546275e-05 | J194: -0.002078048776 | K194: -0.06670043827 | L194: 0.008547818094 | M194: 0.2819296452 | N194: 0.001687887688
A195: =IF('DF raw data'!E200="","",'DF raw data'!E200) -> -233.5 | B195: =IF('DF raw data'!F200="","",'DF raw data'!F200) -> -2.97246e-05 | C195: =IF('DF raw data'!G200="","",'DF raw data'!G200) -> 0.000139167 | D195: =IF('DF raw data'!H200="","",'DF raw data'!H200) -> -2.74022e-05 | F195: -2.988214038e-05 | G195: 0.0001399045851 | H195: -2.754743166e-05 | J195: -0.002092989847 | K195: -0.06774693319 | L195: 0.008617770386 | M195: 0.2862385304 | N195: 0.001727210975
A196: =IF('DF raw data'!E201="","",'DF raw data'!E201) -> -233 | B196: =IF('DF raw data'!F201="","",'DF raw data'!F201) -> -3.61376e-05 | C196: =IF('DF raw data'!G201="","",'DF raw data'!G201) -> 0.000142103 | D196: =IF('DF raw data'!H201="","",'DF raw data'!H201) -> -2.11531e-05 | F196: -3.632912928e-05 | G196: 0.0001428561459 | H196: -2.126521143e-05 | J196: -0.002111154411 | K196: -0.0688025104 | L196: 0.008689198459 | M196: 0.2905831296 | N196: 0.001767190546
A197: =IF('DF raw data'!E202="","",'DF raw data'!E202) -> -232.5 | B197: =IF('DF raw data'!F202="","",'DF raw data'!F202) -> -3.63916e-05 | C197: =IF('DF raw data'!G202="","",'DF raw data'!G202) -> 0.000147982 | D197: =IF('DF raw data'!H202="","",'DF raw data'!H202) -> -2.49177e-05 | F197: -3.658447548e-05 | G197: 0.0001487663046 | H197: -2.504976381e-05 | J197: -0.002129446649 | K197: -0.06986723372 | L197: 0.008763581611 | M197: 0.2949649204 | N197: 0.001807857999
A198: =IF('DF raw data'!E203="","",'DF raw data'!E203) -> -232 | B198: =IF('DF raw data'!F203="","",'DF raw data'!F203) -> -3.60654e-05 | C198: =IF('DF raw data'!G203="","",'DF raw data'!G203) -> 0.000144358 | D198: =IF('DF raw data'!H203="","",'DF raw data'!H203) -> -3.38826e-05 | F198: -3.625654662e-05 | G198: 0.0001451230974 | H198: -3.406217778e-05 | J198: -0.002147574922 | K198: -0.07094102119 | L198: 0.00883614316 | M198: 0.299382992 | N198: 0.001849202751
A199: =IF('DF raw data'!E204="","",'DF raw data'!E204) -> -231.5 | B199: =IF('DF raw data'!F204="","",'DF raw data'!F204) -> -3.54872e-05 | C199: =IF('DF raw data'!G204="","",'DF raw data'!G204) -> 0.000140308 | D199: =IF('DF raw data'!H204="","",'DF raw data'!H204) -> -3.59069e-05 | F199: -3.567528216e-05 | G199: 0.0001410516324 | H199: -3.609720657e-05 | J199: -0.002165412563 | K199: -0.07202372747 | L199: 0.008906668976 | M199: 0.3038363265 | N199: 0.001891211633
A200: =IF('DF raw data'!E205="","",'DF raw data'!E205) -> -231 | B200: =IF('DF raw data'!F205="","",'DF raw data'!F205) -> -5.21561e-05 | C200: =IF('DF raw data'!G205="","",'DF raw data'!G205) -> 0.00014148 | D200: =IF('DF raw data'!H205="","",'DF raw data'!H205) -> -2.71758e-05 | F200: -5.243252733e-05 | G200: 0.000142229844 | H200: -2.731983174e-05 | J200: -0.002191628827 | K200: -0.07311954188 | L200: 0.008977783898 | M200: 0.3083252185 | N200: 0.001933913553
A201: =IF('DF raw data'!E206="","",'DF raw data'!E206) -> -230.5 | B201: =IF('DF raw data'!F206="","",'DF raw data'!F206) -> -2.95961e-05 | C201: =IF('DF raw data'!G206="","",'DF raw data'!G206) -> 0.0001407 | D201: =IF('DF raw data'!H206="","",'DF raw data'!H206) -> -2.79051e-05 | F201: -2.975295933e-05 | G201: 0.00014144571 | H201: -2.805299703e-05 | J201: -0.002206505307 | K201: -0.07422279453 | L201: 0.009048506753 | M201: 0.3128494718 | N201: 0.001977285623
... 1061 more rows

Sheet 10 x=0
A1: =IF('DF raw data'!I1="","",'DF raw data'!I1) -> Number of header lines | B1: =IF('DF raw data'!J1="","",'DF raw data'!J1) -> 54 | C1: =IF('DF raw data'!K1="","",'DF raw data'!K1) ->  | D1: =IF('DF raw data'!L1="","",'DF raw data'!L1) ->  | F1: T_coeff | G1: -0.001 | H1: /degC | J1: IBy total | K1: =J1262*1000 -> -12.57153633 | L1: muTm | M1: =L1262*1000 -> 9.314878163 | R1: DF ref | S1: ='10 x=-2'!S1 -> 1
A2: =IF('DF raw data'!I2="","",'DF raw data'!I2) -> Measured by | B2: =IF('DF raw data'!J2="","",'DF raw data'!J2) -> Danfysik | C2: =IF('DF raw data'!K2="","",'DF raw data'!K2) ->  | D2: =IF('DF raw data'!L2="","",'DF raw data'!L2) ->  | F2: Tcorr | G2: 20 | H2: degC | J2: JBy total | K2: =K1262 -> -15.04537508 | L2: muTm^2 | M2: =M1262 -> 4.222957603
A3: =IF('DF raw data'!I3="","",'DF raw data'!I3) -> Operator | B3: =IF('DF raw data'!J3="","",'DF raw data'!J3) -> PMHA | C3: =IF('DF raw data'!K3="","",'DF raw data'!K3) ->  | D3: =IF('DF raw data'!L3="","",'DF raw data'!L3) ->  | F3: Step | G3: =A63-A62 -> 0.5 | H3: mm | J3: PI total | K3: =N1262 -> 10659.49751 | L3: T^2mm^3
A4: =IF('DF raw data'!I4="","",'DF raw data'!I4) -> Data-time | B4: =IF('DF raw data'!J4="","",'DF raw data'!J4) -> 02-10-2024, 20:47:48 | C4: =IF('DF raw data'!K4="","",'DF raw data'!K4) ->  | D4: =IF('DF raw data'!L4="","",'DF raw data'!L4) -> 
A5: =IF('DF raw data'!I5="","",'DF raw data'!I5) -> Project | B5: =IF('DF raw data'!J5="","",'DF raw data'!J5) -> 504314 | C5: =IF('DF raw data'!K5="","",'DF raw data'!K5) ->  | D5: =IF('DF raw data'!L5="","",'DF raw data'!L5) -> 
A6: =IF('DF raw data'!I6="","",'DF raw data'!I6) -> Magnet type | B6: =IF('DF raw data'!J6="","",'DF raw data'!J6) -> Dipole | C6: =IF('DF raw data'!K6="","",'DF raw data'!K6) ->  | D6: =IF('DF raw data'!L6="","",'DF raw data'!L6) -> 
A7: =IF('DF raw data'!I7="","",'DF raw data'!I7) -> Magnet nr. | B7: =IF('DF raw data'!J7="","",'DF raw data'!J7) -> 2410110 | C7: =IF('DF raw data'!K7="","",'DF raw data'!K7) ->  | D7: =IF('DF raw data'!L7="","",'DF raw data'!L7) -> 
A8: =IF('DF raw data'!I8="","",'DF raw data'!I8) -> Meas. number | B8: =IF('DF raw data'!J8="","",'DF raw data'!J8) -> 981 | C8: =IF('DF raw data'!K8="","",'DF raw data'!K8) ->  | D8: =IF('DF raw data'!L8="","",'DF raw data'!L8) -> 
A9: =IF('DF raw data'!I9="","",'DF raw data'!I9) -> Add. info | B9: =IF('DF raw data'!J9="","",'DF raw data'!J9) -> X-alignment scan 3) | C9: =IF('DF raw data'!K9="","",'DF raw data'!K9) ->  | D9: =IF('DF raw data'!L9="","",'DF raw data'!L9) -> 
A10: =IF('DF raw data'!I10="","",'DF raw data'!I10) -> Device | B10: =IF('DF raw data'!J10="","",'DF raw data'!J10) -> (HAL) HALL-PROBE | C10: =IF('DF raw data'!K10="","",'DF raw data'!K10) ->  | D10: =IF('DF raw data'!L10="","",'DF raw data'!L10) -> 
A11: =IF('DF raw data'!I11="","",'DF raw data'!I11) -> Goal | B11: =IF('DF raw data'!J11="","",'DF raw data'!J11) -> (AXI) AXis Integral (Line, EFB) | C11: =IF('DF raw data'!K11="","",'DF raw data'!K11) ->  | D11: =IF('DF raw data'!L11="","",'DF raw data'!L11) -> 
A12: =IF('DF raw data'!I12="","",'DF raw data'!I12) -> Power supply mode | B12: =IF('DF raw data'!J12="","",'DF raw data'!J12) -> (PM) Permanent Magnet (no MPS in use) | C12: =IF('DF raw data'!K12="","",'DF raw data'!K12) ->  | D12: =IF('DF raw data'!L12="","",'DF raw data'!L12) -> 
A13: =IF('DF raw data'!I13="","",'DF raw data'!I13) -> Data format | B13: =IF('DF raw data'!J13="","",'DF raw data'!J13) -> Raw data text file | C13: =IF('DF raw data'!K13="","",'DF raw data'!K13) ->  | D13: =IF('DF raw data'!L13="","",'DF raw data'!L13) -> 
A14: =IF('DF raw data'!I14="","",'DF raw data'!I14) -> Direction of the pos. x-axis | B14: =IF('DF raw data'!J14="","",'DF raw data'!J14) -> See test program | C14: =IF('DF raw data'!K14="","",'DF raw data'!K14) ->  | D14: =IF('DF raw data'!L14="","",'DF raw data'!L14) -> 
A15: =IF('DF raw data'!I15="","",'DF raw data'!I15) -> Direction of the pos. y-axis | B15: =IF('DF raw data'!J15="","",'DF raw data'!J15) -> Vertical up | C15: =IF('DF raw data'!K15="","",'DF raw data'!K15) ->  | D15: =IF('DF raw data'!L15="","",'DF raw data'!L15) -> 
A16: =IF('DF raw data'!I16="","",'DF raw data'!I16) -> Direction of the pos. z-axis | B16: =IF('DF raw data'!J16="","",'DF raw data'!J16) -> See test program | C16: =IF('DF raw data'!K16="","",'DF raw data'!K16) ->  | D16: =IF('DF raw data'!L16="","",'DF raw data'!L16) -> 
A17: =IF('DF raw data'!I17="","",'DF raw data'!I17) -> Mapper type | B17: =IF('DF raw data'!J17="","",'DF raw data'!J17) -> Precision Hall Mapper | C17: =IF('DF raw data'!K17="","",'DF raw data'!K17) ->  | D17: =IF('DF raw data'!L17="","",'DF raw data'!L17) -> 
A18: =IF('DF raw data'!I18="","",'DF raw data'!I18) -> Mapper Danfysik Reg. Number | B18: =IF('DF raw data'!J18="","",'DF raw data'!J18) -> 2033-D (mapper 1) | C18: =IF('DF raw data'!K18="","",'DF raw data'!K18) ->  | D18: =IF('DF raw data'!L18="","",'DF raw data'!L18) -> 
A19: =IF('DF raw data'!I19="","",'DF raw data'!I19) -> Measurement consept | B19: =IF('DF raw data'!J19="","",'DF raw data'!J19) -> Square line grid | C19: =IF('DF raw data'!K19="","",'DF raw data'!K19) ->  | D19: =IF('DF raw data'!L19="","",'DF raw data'!L19) -> 
A20: =IF('DF raw data'!I20="","",'DF raw data'!I20) -> Mode | B20: =IF('DF raw data'!J20="","",'DF raw data'!J20) -> On-the-fly measurement | C20: =IF('DF raw data'!K20="","",'DF raw data'!K20) ->  | D20: =IF('DF raw data'!L20="","",'DF raw data'!L20) -> 
A21: =IF('DF raw data'!I21="","",'DF raw data'!I21) ->  | B21: =IF('DF raw data'!J21="","",'DF raw data'!J21) ->  | C21: =IF('DF raw data'!K21="","",'DF raw data'!K21) ->  | D21: =IF('DF raw data'!L21="","",'DF raw data'!L21) -> 
A22: =IF('DF raw data'!I22="","",'DF raw data'!I22) -> Probe Name | B22: =IF('DF raw data'!J22="","",'DF raw data'!J22) -> ID12_By | C22: =IF('DF raw data'!K22="","",'DF raw data'!K22) ->  | D22: =IF('DF raw data'!L22="","",'DF raw data'!L22) -> 
A23: =IF('DF raw data'!I23="","",'DF raw data'!I23) -> Probe Type | B23: =IF('DF raw data'!J23="","",'DF raw data'!J23) -> DF_ID_3D_Bxyz | C23: =IF('DF raw data'!K23="","",'DF raw data'!K23) ->  | D23: =IF('DF raw data'!L23="","",'DF raw data'!L23) -> 
A24: =IF('DF raw data'!I24="","",'DF raw data'!I24) -> Probe Danfysik Reg. Number | B24: =IF('DF raw data'!J24="","",'DF raw data'!J24) -> 2277 | C24: =IF('DF raw data'!K24="","",'DF raw data'!K24) ->  | D24: =IF('DF raw data'!L24="","",'DF raw data'!L24) -> 
A25: =IF('DF raw data'!I25="","",'DF raw data'!I25) -> Probe Axis | B25: =IF('DF raw data'!J25="","",'DF raw data'!J25) -> By | C25: =IF('DF raw data'!K25="","",'DF raw data'!K25) ->  | D25: =IF('DF raw data'!L25="","",'DF raw data'!L25) -> 
A26: =IF('DF raw data'!I26="","",'DF raw data'!I26) -> Probe Current Supply | B26: =IF('DF raw data'!J26="","",'DF raw data'!J26) -> 1825-D | C26: =IF('DF raw data'!K26="","",'DF raw data'!K26) ->  | D26: =IF('DF raw data'!L26="","",'DF raw data'!L26) -> 
A27: =IF('DF raw data'!I27="","",'DF raw data'!I27) -> Probe Gain Correction | B27: =IF('DF raw data'!J27="","",'DF raw data'!J27) -> 0.99615 | C27: =IF('DF raw data'!K27="","",'DF raw data'!K27) ->  | D27: =IF('DF raw data'!L27="","",'DF raw data'!L27) -> 
A28: =IF('DF raw data'!I28="","",'DF raw data'!I28) -> Probe Offset Correction | B28: =IF('DF raw data'!J28="","",'DF raw data'!J28) -> 0.0027536 | C28: =IF('DF raw data'!K28="","",'DF raw data'!K28) ->  | D28: =IF('DF raw data'!L28="","",'DF raw data'!L28) -> 
A29: =IF('DF raw data'!I29="","",'DF raw data'!I29) -> DVM Number | B29: =IF('DF raw data'!J29="","",'DF raw data'!J29) -> 2 | C29: =IF('DF raw data'!K29="","",'DF raw data'!K29) ->  | D29: =IF('DF raw data'!L29="","",'DF raw data'!L29) -> 
A30: =IF('DF raw data'!I30="","",'DF raw data'!I30) -> DVM Type | B30: =IF('DF raw data'!J30="","",'DF raw data'!J30) -> K2701 | C30: =IF('DF raw data'!K30="","",'DF raw data'!K30) ->  | D30: =IF('DF raw data'!L30="","",'DF raw data'!L30) -> 
A31: =IF('DF raw data'!I31="","",'DF raw data'!I31) -> DVM Danfysik Reg. Number | B31: =IF('DF raw data'!J31="","",'DF raw data'!J31) -> 1743-D | C31: =IF('DF raw data'!K31="","",'DF raw data'!K31) ->  | D31: =IF('DF raw data'!L31="","",'DF raw data'!L31) -> 
A32: =IF('DF raw data'!I32="","",'DF raw data'!I32) -> Probe Name | B32: =IF('DF raw data'!J32="","",'DF raw data'!J32) -> ID12_Bx | C32: =IF('DF raw data'!K32="","",'DF raw data'!K32) ->  | D32: =IF('DF raw data'!L32="","",'DF raw data'!L32) -> 
A33: =IF('DF raw data'!I33="","",'DF raw data'!I33) -> Probe Type | B33: =IF('DF raw data'!J33="","",'DF raw data'!J33) -> DF_ID_3D_Bxyz | C33: =IF('DF raw data'!K33="","",'DF raw data'!K33) ->  | D33: =IF('DF raw data'!L33="","",'DF raw data'!L33) -> 
A34: =IF('DF raw data'!I34="","",'DF raw data'!I34) -> Probe Danfysik Reg. Number | B34: =IF('DF raw data'!J34="","",'DF raw data'!J34) -> 2277 | C34: =IF('DF raw data'!K34="","",'DF raw data'!K34) ->  | D34: =IF('DF raw data'!L34="","",'DF raw data'!L34) -> 
A35: =IF('DF raw data'!I35="","",'DF raw data'!I35) -> Probe Axis | B35: =IF('DF raw data'!J35="","",'DF raw data'!J35) -> Bx | C35: =IF('DF raw data'!K35="","",'DF raw data'!K35) ->  | D35: =IF('DF raw data'!L35="","",'DF raw data'!L35) -> 
A36: =IF('DF raw data'!I36="","",'DF raw data'!I36) -> Probe Current Supply | B36: =IF('DF raw data'!J36="","",'DF raw data'!J36) -> 1825-D | C36: =IF('DF raw data'!K36="","",'DF raw data'!K36) ->  | D36: =IF('DF raw data'!L36="","",'DF raw data'!L36) -> 
A37: =IF('DF raw data'!I37="","",'DF raw data'!I37) -> Probe Gain Correction | B37: =IF('DF raw data'!J37="","",'DF raw data'!J37) -> 1 | C37: =IF('DF raw data'!K37="","",'DF raw data'!K37) ->  | D37: =IF('DF raw data'!L37="","",'DF raw data'!L37) -> 
A38: =IF('DF raw data'!I38="","",'DF raw data'!I38) -> Probe Offset Correction | B38: =IF('DF raw data'!J38="","",'DF raw data'!J38) -> -0.17575 | C38: =IF('DF raw data'!K38="","",'DF raw data'!K38) ->  | D38: =IF('DF raw data'!L38="","",'DF raw data'!L38) -> 
A39: =IF('DF raw data'!I39="","",'DF raw data'!I39) -> DVM Number | B39: =IF('DF raw data'!J39="","",'DF raw data'!J39) -> 3 | C39: =IF('DF raw data'!K39="","",'DF raw data'!K39) ->  | D39: =IF('DF raw data'!L39="","",'DF raw data'!L39) -> 
A40: =IF('DF raw data'!I40="","",'DF raw data'!I40) -> DVM Type | B40: =IF('DF raw data'!J40="","",'DF raw data'!J40) -> K2701 | C40: =IF('DF raw data'!K40="","",'DF raw data'!K40) ->  | D40: =IF('DF raw data'!L40="","",'DF raw data'!L40) -> 
A41: =IF('DF raw data'!I41="","",'DF raw data'!I41) -> DVM Danfysik Reg. Number | B41: =IF('DF raw data'!J41="","",'DF raw data'!J41) -> 1744-D | C41: =IF('DF raw data'!K41="","",'DF raw data'!K41) ->  | D41: =IF('DF raw data'!L41="","",'DF raw data'!L41) -> 
A42: =IF('DF raw data'!I42="","",'DF raw data'!I42) -> Probe Name | B42: =IF('DF raw data'!J42="","",'DF raw data'!J42) -> ID12_Bz | C42: =IF('DF raw data'!K42="","",'DF raw data'!K42) ->  | D42: =IF('DF raw data'!L42="","",'DF raw data'!L42) -> 
A43: =IF('DF raw data'!I43="","",'DF raw data'!I43) -> Probe Type | B43: =IF('DF raw data'!J43="","",'DF raw data'!J43) -> DF_ID_3D_Bxyz | C43: =IF('DF raw data'!K43="","",'DF raw data'!K43) ->  | D43: =IF('DF raw data'!L43="","",'DF raw data'!L43) -> 
A44: =IF('DF raw data'!I44="","",'DF raw data'!I44) -> Probe Danfysik Reg. Number | B44: =IF('DF raw data'!J44="","",'DF raw data'!J44) -> 2277 | C44: =IF('DF raw data'!K44="","",'DF raw data'!K44) ->  | D44: =IF('DF raw data'!L44="","",'DF raw data'!L44) -> 
A45: =IF('DF raw data'!I45="","",'DF raw data'!I45) -> Probe Axis | B45: =IF('DF raw data'!J45="","",'DF raw data'!J45) -> Bz | C45: =IF('DF raw data'!K45="","",'DF raw data'!K45) ->  | D45: =IF('DF raw data'!L45="","",'DF raw data'!L45) -> 
A46: =IF('DF raw data'!I46="","",'DF raw data'!I46) -> Probe Current Supply | B46: =IF('DF raw data'!J46="","",'DF raw data'!J46) -> 1825-D | C46: =IF('DF raw data'!K46="","",'DF raw data'!K46) ->  | D46: =IF('DF raw data'!L46="","",'DF raw data'!L46) -> 
A47: =IF('DF raw data'!I47="","",'DF raw data'!I47) -> Probe Gain Correction | B47: =IF('DF raw data'!J47="","",'DF raw data'!J47) -> 1 | C47: =IF('DF raw data'!K47="","",'DF raw data'!K47) ->  | D47: =IF('DF raw data'!L47="","",'DF raw data'!L47) -> 
A48: =IF('DF raw data'!I53="","",'DF raw data'!I53) -> PS-Gap: | B48: =IF('DF raw data'!J53="","",'DF raw data'!J53) -> 10 | C48: =IF('DF raw data'!K53="","",'DF raw data'!K53) ->  | D48: =IF('DF raw data'!L53="","",'DF raw data'!L53) -> 
A49: =IF('DF raw data'!I54="","",'DF raw data'!I54) -> PS-Temperature: | B49: =IF('DF raw data'!J54="","",'DF raw data'!J54) -> 25.3 | C49: =IF('DF raw data'!K54="","",'DF raw data'!K54) ->  | D49: =IF('DF raw data'!L54="","",'DF raw data'!L54) -> 
A50: =IF('DF raw data'!I55="","",'DF raw data'!I55) -> PS-Encoder: | B50: =IF('DF raw data'!J55="","",'DF raw data'!J55) -> 19.7503 | C50: =IF('DF raw data'!K55="","",'DF raw data'!K55) ->  | D50: =IF('DF raw data'!L55="","",'DF raw data'!L55) -> 
A51: =IF('DF raw data'!I56="","",'DF raw data'!I56) ->  | B51: =IF('DF raw data'!J56="","",'DF raw data'!J56) ->  | C51: =IF('DF raw data'!K56="","",'DF raw data'!K56) ->  | D51: =IF('DF raw data'!L56="","",'DF raw data'!L56) -> 
A52: =IF('DF raw data'!I57="","",'DF raw data'!I57) -> Monitor-Index | B52: =IF('DF raw data'!J57="","",'DF raw data'!J57) -> [1,1,4] | C52: =IF('DF raw data'!K57="","",'DF raw data'!K57) ->  | D52: =IF('DF raw data'!L57="","",'DF raw data'!L57) -> 
A53: =IF('DF raw data'!I58="","",'DF raw data'!I58) ->  | B53: =IF('DF raw data'!J58="","",'DF raw data'!J58) ->  | C53: =IF('DF raw data'!K58="","",'DF raw data'!K58) ->  | D53: =IF('DF raw data'!L58="","",'DF raw data'!L58) -> 
A54: =IF('DF raw data'!I59="","",'DF raw data'!I59) -> Time [s] | B54: =IF('DF raw data'!J59="","",'DF raw data'!J59) -> Y [mm] | C54: =IF('DF raw data'!K59="","",'DF raw data'!K59) -> X [mm] | D54: =IF('DF raw data'!L59="","",'DF raw data'!L59) -> Nominal current [A]
A55: =IF('DF raw data'!I60="","",'DF raw data'!I60) ->  | B55: =IF('DF raw data'!J60="","",'DF raw data'!J60) ->  | C55: =IF('DF raw data'!K60="","",'DF raw data'!K60) ->  | D55: =IF('DF raw data'!L60="","",'DF raw data'!L60) -> 
A56: =IF('DF raw data'!I61="","",'DF raw data'!I61) -> 211.3 | B56: =IF('DF raw data'!J61="","",'DF raw data'!J61) -> 31.15 | C56: =IF('DF raw data'!K61="","",'DF raw data'!K61) -> 301.3 | D56: =IF('DF raw data'!L61="","",'DF raw data'!L61) -> 0
A57: =IF('DF raw data'!I62="","",'DF raw data'!I62) ->  | B57: =IF('DF raw data'!J62="","",'DF raw data'!J62) ->  | C57: =IF('DF raw data'!K62="","",'DF raw data'!K62) ->  | D57: =IF('DF raw data'!L62="","",'DF raw data'!L62) -> 
A58: =IF('DF raw data'!I63="","",'DF raw data'!I63) -> Measurement-Index | B58: =IF('DF raw data'!J63="","",'DF raw data'!J63) -> [1,1,1201,2] | C58: =IF('DF raw data'!K63="","",'DF raw data'!K63) ->  | D58: =IF('DF raw data'!L63="","",'DF raw data'!L63) -> 
A59: =IF('DF raw data'!I64="","",'DF raw data'!I64) ->  | B59: =IF('DF raw data'!J64="","",'DF raw data'!J64) ->  | C59: =IF('DF raw data'!K64="","",'DF raw data'!K64) ->  | D59: =IF('DF raw data'!L64="","",'DF raw data'!L64) -> 
A60: =IF('DF raw data'!I65="","",'DF raw data'!I65) -> Z [mm] | B60: By [T] | C60: Bx [T] | D60: Bz [T] | F60: By_corr | G60: Bx_corr | H60: Bz_corr | J60: Iy | K60: Jy | L60: Ix | M60: Jx | N60: PI
A62: =IF('DF raw data'!I67="","",'DF raw data'!I67) -> -300 | B62: =IF('DF raw data'!J67="","",'DF raw data'!J67) -> -2.67027e-05 | C62: =IF('DF raw data'!K67="","",'DF raw data'!K67) -> 8.62133e-05 | D62: =IF('DF raw data'!L67="","",'DF raw data'!L67) -> -2.8258e-05 | F62: =(1-$G$1*($B$49))*B62 -> -2.737827831e-05 | G62: =(1-$G$1*($B$49-$G$2))*C62 -> 8.667023049e-05 | H62: =(1-$G$1*($B$49-$G$2))*D62 -> -2.84077674e-05 | J62: =F62*$G$3 -> -1.368913916e-05 | K62: =J62*$G$3 -> -6.844569578e-06 | L62: =G62*$G$3 -> 4.333511525e-05 | M62: =L62*$G$3 -> 2.166755762e-05 | N62: =(J62^2+L62^2)*$G$3 -> 1.032662372e-09
A63: =IF('DF raw data'!I68="","",'DF raw data'!I68) -> -299.5 | B63: =IF('DF raw data'!J68="","",'DF raw data'!J68) -> -2.01008e-05 | C63: =IF('DF raw data'!K68="","",'DF raw data'!K68) -> 8.98683e-05 | D63: =IF('DF raw data'!L68="","",'DF raw data'!L68) -> -2.87383e-05 | F63: =(1-$G$1*($B$49-$G$2))*B63 -> -2.020733424e-05 | G63: =(1-$G$1*($B$49-$G$2))*C63 -> 9.034460199e-05 | H63: -2.889061299e-05 | J63: =F63*$G$3+J62 -> -2.379280628e-05 | K63: =J63*$G$3+K62 -> -1.874097272e-05 | L63: =G63*$G$3+L62 -> 8.850741624e-05 | M63: =L63*$G$3+M62 -> 6.592126574e-05 | N63: =(J63^2+L63^2)*$G$3+N62 -> 5.232492552e-09
A64: =IF('DF raw data'!I69="","",'DF raw data'!I69) -> -299 | B64: =IF('DF raw data'!J69="","",'DF raw data'!J69) -> -2.63813e-05 | C64: =IF('DF raw data'!K69="","",'DF raw data'!K69) -> 9.66866e-05 | D64: =IF('DF raw data'!L69="","",'DF raw data'!L69) -> -2.9486e-05 | F64: =(1-$G$1*($B$49-$G$2))*B64 -> -2.652112089e-05 | G64: 9.719903898e-05 | H64: -2.96422758e-05 | J64: =F64*$G$3+J63 -> -3.705336672e-05 | K64: =J64*$G$3+K63 -> -3.726765607e-05 | L64: =G64*$G$3+L63 -> 0.0001371069357 | M64: =L64*$G$3+M63 -> 0.0001344747336 | N64: =(J64^2+L64^2)*$G$3+N63 -> 1.531812446e-08
A65: =IF('DF raw data'!I70="","",'DF raw data'!I70) -> -298.5 | B65: =IF('DF raw data'!J70="","",'DF raw data'!J70) -> -2.81756e-05 | C65: =IF('DF raw data'!K70="","",'DF raw data'!K70) -> 0.000100984 | D65: =IF('DF raw data'!L70="","",'DF raw data'!L70) -> -2.97828e-05 | F65: -2.832493068e-05 | G65: 0.0001015192152 | H65: -2.994064884e-05 | J65: -5.121583206e-05 | K65: -6.287557211e-05 | L65: 0.0001878665433 | M65: 0.0002284080053 | N65: 3.427657424e-08
A66: =IF('DF raw data'!I71="","",'DF raw data'!I71) -> -298 | B66: =IF('DF raw data'!J71="","",'DF raw data'!J71) -> -2.92012e-05 | C66: =IF('DF raw data'!K71="","",'DF raw data'!K71) -> 9.40563e-05 | D66: =IF('DF raw data'!L71="","",'DF raw data'!L71) -> -2.95314e-05 | F66: -2.935596636e-05 | G66: 9.455479839e-05 | H66: -2.968791642e-05 | J66: -6.589381524e-05 | K66: -9.582247973e-05 | L66: 0.0002351439425 | M66: 0.0003459799765 | N66: 6.409390853e-08
A67: =IF('DF raw data'!I72="","",'DF raw data'!I72) -> -297.5 | B67: =IF('DF raw data'!J72="","",'DF raw data'!J72) -> -3.92638e-05 | C67: =IF('DF raw data'!K72="","",'DF raw data'!K72) -> 8.60245e-05 | D67: =IF('DF raw data'!L72="","",'DF raw data'!L72) -> -2.91841e-05 | F67: -3.947189814e-05 | G67: 8.648042985e-05 | H67: -2.933877573e-05 | J67: -8.562976431e-05 | K67: -0.0001386373619 | L67: 0.0002783841575 | M67: 0.0004851720553 | N67: 1.065090064e-07
A68: =IF('DF raw data'!I73="","",'DF raw data'!I73) -> -297 | B68: =IF('DF raw data'!J73="","",'DF raw data'!J73) -> -2.23437e-05 | C68: =IF('DF raw data'!K73="","",'DF raw data'!K73) -> 9.44746e-05 | D68: =IF('DF raw data'!L73="","",'DF raw data'!L73) -> -2.93007e-05 | F68: -2.246212161e-05 | G68: 9.497531538e-05 | H68: -2.945599371e-05 | J68: -9.686082512e-05 | K68: -0.0001870677744 | L68: 0.0003258718151 | M68: 0.0006481079628 | N68: 1.64296236e-07
A69: =IF('DF raw data'!I74="","",'DF raw data'!I74) -> -296.5 | B69: =IF('DF raw data'!J74="","",'DF raw data'!J74) -> -4.25326e-05 | C69: =IF('DF raw data'!K74="","",'DF raw data'!K74) -> 8.70511e-05 | D69: =IF('DF raw data'!L74="","",'DF raw data'!L74) -> -2.90159e-05 | F69: -4.275802278e-05 | G69: 8.751247083e-05 | H69: -2.916968427e-05 | J69: -0.0001182398365 | K69: -0.0002461876927 | L69: 0.0003696280506 | M69: 0.0008329219881 | N69: 2.395990134e-07
A70: =IF('DF raw data'!I75="","",'DF raw data'!I75) -> -296 | B70: =IF('DF raw data'!J75="","",'DF raw data'!J75) -> -3.35604e-05 | C70: =IF('DF raw data'!K75="","",'DF raw data'!K75) -> 8.61237e-05 | D70: =IF('DF raw data'!L75="","",'DF raw data'!L75) -> -2.81444e-05 | F70: -3.373827012e-05 | G70: 8.658015561e-05 | H70: -2.829356532e-05 | J70: -0.0001351089716 | K70: -0.0003137421785 | L70: 0.0004129181284 | M70: 0.001039381052 | N70: 3.339769208e-07
A71: =IF('DF raw data'!I76="","",'DF raw data'!I76) -> -295.5 | B71: =IF('DF raw data'!J76="","",'DF raw data'!J76) -> -3.10611e-05 | C71: =IF('DF raw data'!K76="","",'DF raw data'!K76) -> 8.87048e-05 | D71: =IF('DF raw data'!L76="","",'DF raw data'!L76) -> -2.77054e-05 | F71: -3.122572383e-05 | G71: 8.917493544e-05 | H71: -2.785223862e-05 | J71: -0.0001507218335 | K71: -0.0003891030952 | L71: 0.0004575055961 | M71: 0.00126813385 | N71: 4.499911416e-07
A72: =IF('DF raw data'!I77="","",'DF raw data'!I77) -> -295 | B72: =IF('DF raw data'!J77="","",'DF raw data'!J77) -> -2.05498e-05 | C72: =IF('DF raw data'!K77="","",'DF raw data'!K77) -> 8.64872e-05 | D72: =IF('DF raw data'!L77="","",'DF raw data'!L77) -> -2.83526e-05 | F72: -2.065871394e-05 | G72: 8.694558216e-05 | H72: -2.850286878e-05 | J72: -0.0001610511905 | K72: -0.0004696286904 | L72: 0.0005009783872 | M72: 0.001518623044 | N72: 5.884495568e-07
A73: =IF('DF raw data'!I78="","",'DF raw data'!I78) -> -294.5 | B73: =IF('DF raw data'!J78="","",'DF raw data'!J78) -> -2.90093e-05 | C73: =IF('DF raw data'!K78="","",'DF raw data'!K78) -> 8.30258e-05 | D73: =IF('DF raw data'!L78="","",'DF raw data'!L78) -> -2.92347e-05 | F73: -2.916304929e-05 | G73: 8.346583674e-05 | H73: -2.938964391e-05 | J73: -0.0001756327151 | K73: -0.000557445048 | L73: 0.0005427113055 | M73: 0.001789978697 | N73: 7.511407627e-07
A74: =IF('DF raw data'!I79="","",'DF raw data'!I79) -> -294 | B74: =IF('DF raw data'!J79="","",'DF raw data'!J79) -> -2.22792e-05 | C74: =IF('DF raw data'!K79="","",'DF raw data'!K79) -> 9.24685e-05 | D74: =IF('DF raw data'!L79="","",'DF raw data'!L79) -> -2.96381e-05 | F74: -2.239727976e-05 | G74: 9.295858305e-05 | H74: -2.979518193e-05 | J74: -0.000186831355 | K74: -0.0006508607255 | L74: 0.0005891905971 | M74: 0.002084573995 | N74: 9.421665201e-07
A75: =IF('DF raw data'!I80="","",'DF raw data'!I80) -> -293.5 | B75: =IF('DF raw data'!J80="","",'DF raw data'!J80) -> -3.97763e-05 | C75: =IF('DF raw data'!K80="","",'DF raw data'!K80) -> 9.28786e-05 | D75: =IF('DF raw data'!L80="","",'DF raw data'!L80) -> -2.94655e-05 | F75: -3.998711439e-05 | G75: 9.337085658e-05 | H75: -2.962166715e-05 | J75: -0.0002068249122 | K75: -0.0007542731816 | L75: 0.0006358760253 | M75: 0.002402512008 | N75: 1.165723952e-06
A76: =IF('DF raw data'!I81="","",'DF raw data'!I81) -> -293 | B76: =IF('DF raw data'!J81="","",'DF raw data'!J81) -> -2.22154e-05 | C76: =IF('DF raw data'!K81="","",'DF raw data'!K81) -> 9.62738e-05 | D76: =IF('DF raw data'!L81="","",'DF raw data'!L81) -> -2.94597e-05 | F76: -2.233314162e-05 | G76: 9.678405114e-05 | H76: -2.961583641e-05 | J76: -0.000217991483 | K76: -0.000863268923 | L76: 0.0006842680509 | M76: 0.002744646033 | N76: 1.423595478e-06
A77: =IF('DF raw data'!I82="","",'DF raw data'!I82) -> -292.5 | B77: =IF('DF raw data'!J82="","",'DF raw data'!J82) -> -4.07379e-05 | C77: =IF('DF raw data'!K82="","",'DF raw data'!K82) -> 0.000105458 | D77: =IF('DF raw data'!L82="","",'DF raw data'!L82) -> -2.93794e-05 | F77: -4.095381087e-05 | G77: 0.0001060169274 | H77: -2.953511082e-05 | J77: -0.0002384683884 | K77: -0.0009825031173 | L77: 0.0007372765146 | M77: 0.003113284291 | N77: 1.723817394e-06
A78: =IF('DF raw data'!I83="","",'DF raw data'!I83) -> -292 | B78: =IF('DF raw data'!J83="","",'DF raw data'!J83) -> -3.24061e-05 | C78: =IF('DF raw data'!K83="","",'DF raw data'!K83) -> 9.72773e-05 | D78: =IF('DF raw data'!L83="","",'DF raw data'!L83) -> -2.91784e-05 | F78: -3.257785233e-05 | G78: 9.779286969e-05 | H78: -2.933304552e-05 | J78: -0.0002547573146 | K78: -0.001109881775 | L78: 0.0007861729495 | M78: 0.003506370765 | N78: 2.065301992e-06
A79: =IF('DF raw data'!I84="","",'DF raw data'!I84) -> -291.5 | B79: =IF('DF raw data'!J84="","",'DF raw data'!J84) -> -3.61257e-05 | C79: =IF('DF raw data'!K84="","",'DF raw data'!K84) -> 9.07475e-05 | D79: =IF('DF raw data'!L84="","",'DF raw data'!L84) -> -2.54305e-05 | F79: -3.631716621e-05 | G79: 9.122846175e-05 | H79: -2.556528165e-05 | J79: -0.0002729158977 | K79: -0.001246339723 | L79: 0.0008317871803 | M79: 0.003922264356 | N79: 2.448478492e-06
A80: =IF('DF raw data'!I85="","",'DF raw data'!I85) -> -291 | B80: =IF('DF raw data'!J85="","",'DF raw data'!J85) -> -3.61202e-05 | C80: =IF('DF raw data'!K85="","",'DF raw data'!K85) -> 9.6071e-05 | D80: =IF('DF raw data'!L85="","",'DF raw data'!L85) -> -3.39788e-05 | F80: -3.631163706e-05 | G80: 9.65801763e-05 | H80: -3.415888764e-05 | J80: -0.0002910717162 | K80: -0.001391875581 | L80: 0.0008800772685 | M80: 0.00436230299 | N80: 2.878107863e-06
A81: =IF('DF raw data'!I86="","",'DF raw data'!I86) -> -290.5 | B81: =IF('DF raw data'!J86="","",'DF raw data'!J86) -> -3.484e-05 | C81: =IF('DF raw data'!K86="","",'DF raw data'!K86) -> 9.17691e-05 | D81: =IF('DF raw data'!L86="","",'DF raw data'!L86) -> -3.15921e-05 | F81: -3.5024652e-05 | G81: 9.225547623e-05 | H81: -3.175953813e-05 | J81: -0.0003085840422 | K81: -0.001546167603 | L81: 0.0009262050066 | M81: 0.004825405493 | N81: 3.354647776e-06
A82: =IF('DF raw data'!I87="","",'DF raw data'!I87) -> -290 | B82: =IF('DF raw data'!J87="","",'DF raw data'!J87) -> -4.34938e-05 | C82: =IF('DF raw data'!K87="","",'DF raw data'!K87) -> 9.6864e-05 | D82: =IF('DF raw data'!L87="","",'DF raw data'!L87) -> -2.93922e-05 | F82: -4.372431714e-05 | G82: 9.73773792e-05 | H82: -2.954797866e-05 | J82: -0.0003304462008 | K82: -0.001711390703 | L82: 0.0009748936962 | M82: 0.005312852341 | N82: 3.884453981e-06
A83: =IF('DF raw data'!I88="","",'DF raw data'!I88) -> -289.5 | B83: =IF('DF raw data'!J88="","",'DF raw data'!J88) -> -3.97747e-05 | C83: =IF('DF raw data'!K88="","",'DF raw data'!K88) -> 9.21724e-05 | D83: =IF('DF raw data'!L88="","",'DF raw data'!L88) -> -3.19367e-05 | F83: -3.998550591e-05 | G83: 9.266091372e-05 | H83: -3.210596451e-05 | J83: -0.0003504389537 | K83: -0.00188661018 | L83: 0.001021224153 | M83: 0.005823464418 | N83: 4.467307097e-06
A84: =IF('DF raw data'!I89="","",'DF raw data'!I89) -> -289 | B84: =IF('DF raw data'!J89="","",'DF raw data'!J89) -> -2.97137e-05 | C84: =IF('DF raw data'!K89="","",'DF raw data'!K89) -> 9.20296e-05 | D84: =IF('DF raw data'!L89="","",'DF raw data'!L89) -> -2.97612e-05 | F84: -2.987118261e-05 | G84: 9.251735688e-05 | H84: -2.991893436e-05 | J84: -0.000365374545 | K84: -0.002069297452 | L84: 0.001067482831 | M84: 0.006357205833 | N84: 5.103816174e-06
A85: =IF('DF raw data'!I90="","",'DF raw data'!I90) -> -288.5 | B85: =IF('DF raw data'!J90="","",'DF raw data'!J90) -> -3.60652e-05 | C85: =IF('DF raw data'!K90="","",'DF raw data'!K90) -> 9.8154e-05 | D85: =IF('DF raw data'!L90="","",'DF raw data'!L90) -> -2.01574e-05 | F85: -3.625634556e-05 | G85: 9.86742162e-05 | H85: -2.026423422e-05 | J85: -0.0003835027178 | K85: -0.002261048811 | L85: 0.00111681994 | M85: 0.006915615803 | N85: 5.80099673e-06
A86: =IF('DF raw data'!I91="","",'DF raw data'!I91) -> -288 | B86: =IF('DF raw data'!J91="","",'DF raw data'!J91) -> -1.82396e-05 | C86: =IF('DF raw data'!K91="","",'DF raw data'!K91) -> 9.49451e-05 | D86: =IF('DF raw data'!L91="","",'DF raw data'!L91) -> -3.25505e-05 | F86: -1.833626988e-05 | G86: 9.544830903e-05 | H86: -3.272301765e-05 | J86: -0.0003926708528 | K86: -0.002457384238 | L86: 0.001164544094 | M86: 0.00749788785 | N86: 6.556173402e-06
A87: =IF('DF raw data'!I92="","",'DF raw data'!I92) -> -287.5 | B87: =IF('DF raw data'!J92="","",'DF raw data'!J92) -> -3.29804e-05 | C87: =IF('DF raw data'!K92="","",'DF raw data'!K92) -> 9.73756e-05 | D87: =IF('DF raw data'!L92="","",'DF raw data'!L92) -> -3.28316e-05 | F87: -3.315519612e-05 | G87: 9.789169068e-05 | H87: -3.300560748e-05 | J87: -0.0004092484508 | K87: -0.002662008463 | L87: 0.001213489939 | M87: 0.00810463282 | N87: 7.376194466e-06
A88: =IF('DF raw data'!I93="","",'DF raw data'!I93) -> -287 | B88: =IF('DF raw data'!J93="","",'DF raw data'!J93) -> -4.33578e-05 | C88: =IF('DF raw data'!K93="","",'DF raw data'!K93) -> 0.000104231 | D88: =IF('DF raw data'!L93="","",'DF raw data'!L93) -> -4.13647e-05 | F88: -4.358759634e-05 | G88: 0.0001047834243 | H88: -4.158393291e-05 | J88: -0.000431042249 | K88: -0.002877529588 | L88: 0.001265881652 | M88: 0.008737573646 | N88: 8.270321354e-06
A89: =IF('DF raw data'!I94="","",'DF raw data'!I94) -> -286.5 | B89: =IF('DF raw data'!J94="","",'DF raw data'!J94) -> -4.17575e-05 | C89: =IF('DF raw data'!K94="","",'DF raw data'!K94) -> 0.000101406 | D89: =IF('DF raw data'!L94="","",'DF raw data'!L94) -> -3.82086e-05 | F89: -4.197881475e-05 | G89: 0.0001019434518 | H89: -3.841110558e-05 | J89: -0.0004520316564 | K89: -0.003103545416 | L89: 0.001316853378 | M89: 0.009396000335 | N89: 9.239539073e-06
A90: =IF('DF raw data'!I95="","",'DF raw data'!I95) -> -286 | B90: =IF('DF raw data'!J95="","",'DF raw data'!J95) -> -2.61846e-05 | C90: =IF('DF raw data'!K95="","",'DF raw data'!K95) -> 0.000108794 | D90: =IF('DF raw data'!L95="","",'DF raw data'!L95) -> -3.61157e-05 | F90: -2.632337838e-05 | G90: 0.0001093706082 | H90: -3.630711321e-05 | J90: -0.0004651933456 | K90: -0.003336142089 | L90: 0.001371538682 | M90: 0.01008176968 | N90: 1.028830067e-05
A91: =IF('DF raw data'!I96="","",'DF raw data'!I96) -> -285.5 | B91: =IF('DF raw data'!J96="","",'DF raw data'!J96) -> -3.79224e-05 | C91: =IF('DF raw data'!K96="","",'DF raw data'!K96) -> 0.000102142 | D91: =IF('DF raw data'!L96="","",'DF raw data'!L96) -> -2.20075e-05 | F91: -3.812338872e-05 | G91: 0.0001026833526 | H91: -2.212413975e-05 | J91: -0.0004842550399 | K91: -0.003578269609 | L91: 0.001422880358 | M91: 0.01079320985 | N91: 1.14178464e-05
A92: =IF('DF raw data'!I97="","",'DF raw data'!I97) -> -285 | B92: =IF('DF raw data'!J97="","",'DF raw data'!J97) -> -2.2276e-05 | C92: =IF('DF raw data'!K97="","",'DF raw data'!K97) -> 9.30692e-05 | D92: =IF('DF raw data'!L97="","",'DF raw data'!L97) -> -3.456e-05 | F92: -2.23940628e-05 | G92: 9.356246676e-05 | H92: -3.4743168e-05 | J92: -0.0004954520713 | K92: -0.003825995644 | L92: 0.001469661591 | M92: 0.01152804065 | N92: 1.262053538e-05
A93: =IF('DF raw data'!I98="","",'DF raw data'!I98) -> -284.5 | B93: =IF('DF raw data'!J98="","",'DF raw data'!J98) -> -2.88159e-05 | C93: =IF('DF raw data'!K98="","",'DF raw data'!K98) -> 9.78397e-05 | D93: =IF('DF raw data'!L98="","",'DF raw data'!L98) -> -3.07461e-05 | F93: -2.896862427e-05 | G93: 9.835825041e-05 | H93: -3.090905433e-05 | J93: -0.0005099363835 | K93: -0.004080963836 | L93: 0.001518840716 | M93: 0.01228746101 | N93: 1.39039915e-05
A94: =IF('DF raw data'!I99="","",'DF raw data'!I99) -> -284 | B94: =IF('DF raw data'!J99="","",'DF raw data'!J99) -> -3.54108e-05 | C94: =IF('DF raw data'!K99="","",'DF raw data'!K99) -> 9.20464e-05 | D94: =IF('DF raw data'!L99="","",'DF raw data'!L99) -> -4.09628e-05 | F94: -3.559847724e-05 | G94: 9.253424592e-05 | H94: -4.117990284e-05 | J94: -0.0005277356221 | K94: -0.004344831647 | L94: 0.001565107839 | M94: 0.01307001493 | N94: 1.526802521e-05
A95: =IF('DF raw data'!I100="","",'DF raw data'!I100) -> -283.5 | B95: =IF('DF raw data'!J100="","",'DF raw data'!J100) -> -2.7536e-05 | C95: =IF('DF raw data'!K100="","",'DF raw data'!K100) -> 8.25607e-05 | D95: =IF('DF raw data'!L100="","",'DF raw data'!L100) -> -2.77422e-05 | F95: -2.76819408e-05 | G95: 8.299827171e-05 | H95: -2.788923366e-05 | J95: -0.0005415765925 | K95: -0.004615619943 | L95: 0.001606606975 | M95: 0.01387331842 | N95: 1.67052708e-05
A96: =IF('DF raw data'!I101="","",'DF raw data'!I101) -> -283 | B96: =IF('DF raw data'!J101="","",'DF raw data'!J101) -> -3.11913e-05 | C96: =IF('DF raw data'!K101="","",'DF raw data'!K101) -> 9.13172e-05 | D96: =IF('DF raw data'!L101="","",'DF raw data'!L101) -> -2.45047e-05 | F96: -3.135661389e-05 | G96: 9.180118116e-05 | H96: -2.463457491e-05 | J96: -0.0005572548994 | K96: -0.004894247393 | L96: 0.001652507566 | M96: 0.0146995722 | N96: 1.822592794e-05
A97: =IF('DF raw data'!I102="","",'DF raw data'!I102) -> -282.5 | B97: =IF('DF raw data'!J102="","",'DF raw data'!J102) -> -3.9723e-05 | C97: =IF('DF raw data'!K102="","",'DF raw data'!K102) -> 8.77934e-05 | D97: =IF('DF raw data'!L102="","",'DF raw data'!L102) -> -1.30332e-05 | F97: -3.99335319e-05 | G97: 8.825870502e-05 | H97: -1.310227596e-05 | J97: -0.0005772216654 | K97: -0.005182858226 | L97: 0.001696636918 | M97: 0.01554789066 | N97: 1.983180878e-05
A98: =IF('DF raw data'!I103="","",'DF raw data'!I103) -> -282 | B98: =IF('DF raw data'!J103="","",'DF raw data'!J103) -> -2.44651e-05 | C98: =IF('DF raw data'!K103="","",'DF raw data'!K103) -> 9.07568e-05 | D98: =IF('DF raw data'!L103="","",'DF raw data'!L103) -> -1.94255e-05 | F98: -2.459476503e-05 | G98: 9.123781104e-05 | H98: -1.952845515e-05 | J98: -0.0005895190479 | K98: -0.00547761775 | L98: 0.001742255824 | M98: 0.01641901857 | N98: 2.152330282e-05
A99: =IF('DF raw data'!I104="","",'DF raw data'!I104) -> -281.5 | B99: =IF('DF raw data'!J104="","",'DF raw data'!J104) -> -3.08719e-05 | C99: =IF('DF raw data'!K104="","",'DF raw data'!K104) -> 8.77376e-05 | D99: =IF('DF raw data'!L104="","",'DF raw data'!L104) -> -2.31217e-05 | F99: -3.103552107e-05 | G99: 8.820260928e-05 | H99: -2.324424501e-05 | J99: -0.0006050368084 | K99: -0.005780136154 | L99: 0.001786357129 | M99: 0.01731219713 | N99: 2.330187348e-05
A100: =IF('DF raw data'!I105="","",'DF raw data'!I105) -> -281 | B100: =IF('DF raw data'!J105="","",'DF raw data'!J105) -> -2.65811e-05 | C100: =IF('DF raw data'!K105="","",'DF raw data'!K105) -> 9.44891e-05 | D100: =IF('DF raw data'!L105="","",'DF raw data'!L105) -> -1.80226e-05 | F100: -2.672197983e-05 | G100: 9.498989223e-05 | H100: -1.811811978e-05 | J100: -0.0006183977983 | K100: -0.006089335053 | L100: 0.001833852075 | M100: 0.01822912317 | N100: 2.517458812e-05
A101: =IF('DF raw data'!I106="","",'DF raw data'!I106) -> -280.5 | B101: =IF('DF raw data'!J106="","",'DF raw data'!J106) -> -3.93368e-05 | C101: =IF('DF raw data'!K106="","",'DF raw data'!K106) -> 0.000100935 | D101: =IF('DF raw data'!L106="","",'DF raw data'!L106) -> -1.55044e-05 | F101: -3.954528504e-05 | G101: 0.0001014699555 | H101: -1.558657332e-05 | J101: -0.0006381704409 | K101: -0.006408420273 | L101: 0.001884587052 | M101: 0.0191714167 | N101: 2.715405305e-05
A102: =IF('DF raw data'!I107="","",'DF raw data'!I107) -> -280 | B102: =IF('DF raw data'!J107="","",'DF raw data'!J107) -> -1.81197e-05 | C102: =IF('DF raw data'!K107="","",'DF raw data'!K107) -> 9.56158e-05 | D102: =IF('DF raw data'!L107="","",'DF raw data'!L107) -> -1.98107e-05 | F102: -1.821573441e-05 | G102: 9.612256374e-05 | H102: -1.991569671e-05 | J102: -0.0006472783081 | K102: -0.006732059427 | L102: 0.001932648334 | M102: 0.02013774086 | N102: 2.923110245e-05
A103: =IF('DF raw data'!I108="","",'DF raw data'!I108) -> -279.5 | B103: =IF('DF raw data'!J108="","",'DF raw data'!J108) -> -2.61382e-05 | C103: =IF('DF raw data'!K108="","",'DF raw data'!K108) -> 9.19118e-05 | D103: =IF('DF raw data'!L108="","",'DF raw data'!L108) -> -9.09601e-06 | F103: -2.627673246e-05 | G103: 9.239893254e-05 | H103: -9.144218853e-06 | J103: -0.0006604166743 | K103: -0.007062267764 | L103: 0.001978847801 | M103: 0.02112716476 | N103: 3.140709685e-05
A104: =IF('DF raw data'!I109="","",'DF raw data'!I109) -> -279 | B104: =IF('DF raw data'!J109="","",'DF raw data'!J109) -> -3.02305e-05 | C104: =IF('DF raw data'!K109="","",'DF raw data'!K109) -> 9.63914e-05 | D104: =IF('DF raw data'!L109="","",'DF raw data'!L109) -> -2.35352e-05 | F104: -3.039072165e-05 | G104: 9.690227442e-05 | H104: -2.365993656e-05 | J104: -0.0006756120351 | K104: -0.007400073782 | L104: 0.002027298938 | M104: 0.02214081423 | N104: 3.369029315e-05
A105: =IF('DF raw data'!I110="","",'DF raw data'!I110) -> -278.5 | B105: =IF('DF raw data'!J110="","",'DF raw data'!J110) -> -2.30552e-05 | C105: =IF('DF raw data'!K110="","",'DF raw data'!K110) -> 9.38193e-05 | D105: =IF('DF raw data'!L110="","",'DF raw data'!L110) -> -1.94238e-05 | F105: -2.317739256e-05 | G105: 9.431654229e-05 | H105: -1.952674614e-05 | J105: -0.0006872007314 | K105: -0.007743674148 | L105: 0.002074457209 | M105: 0.02317804284 | N105: 3.607810193e-05
A106: =IF('DF raw data'!I111="","",'DF raw data'!I111) -> -278 | B106: =IF('DF raw data'!J111="","",'DF raw data'!J111) -> -4.09318e-05 | C106: =IF('DF raw data'!K111="","",'DF raw data'!K111) -> 9.47689e-05 | D106: =IF('DF raw data'!L111="","",'DF raw data'!L111) -> -2.65757e-05 | F106: -4.114873854e-05 | G106: 9.527117517e-05 | H106: -2.671655121e-05 | J106: -0.0007077751007 | K106: -0.008097561698 | L106: 0.002122092797 | M106: 0.02423908924 | N106: 3.858021364e-05
A107: =IF('DF raw data'!I112="","",'DF raw data'!I112) -> -277.5 | B107: =IF('DF raw data'!J112="","",'DF raw data'!J112) -> -4.33107e-05 | C107: =IF('DF raw data'!K112="","",'DF raw data'!K112) -> 0.000106676 | D107: =IF('DF raw data'!L112="","",'DF raw data'!L112) -> -1.49147e-05 | F107: -4.354024671e-05 | G107: 0.0001072413828 | H107: -1.499374791e-05 | J107: -0.000729545224 | K107: -0.00846233431 | L107: 0.002175713488 | M107: 0.02532694598 | N107: 4.121319635e-05
A108: =IF('DF raw data'!I113="","",'DF raw data'!I113) -> -277 | B108: =IF('DF raw data'!J113="","",'DF raw data'!J113) -> -3.504e-05 | C108: =IF('DF raw data'!K113="","",'DF raw data'!K113) -> 0.000109278 | D108: =IF('DF raw data'!L113="","",'DF raw data'!L113) -> -1.96764e-05 | F108: -3.5225712e-05 | G108: 0.0001098571734 | H108: -1.978068492e-05 | J108: -0.00074715808 | K108: -0.00883591335 | L108: 0.002230642075 | M108: 0.02644226702 | N108: 4.398020098e-05
A109: =IF('DF raw data'!I114="","",'DF raw data'!I114) -> -276.5 | B109: =IF('DF raw data'!J114="","",'DF raw data'!J114) -> -2.20312e-05 | C109: =IF('DF raw data'!K114="","",'DF raw data'!K114) -> 9.23621e-05 | D109: =IF('DF raw data'!L114="","",'DF raw data'!L114) -> -1.67708e-05 | F109: -2.214796536e-05 | G109: 9.285161913e-05 | H109: -1.685968524e-05 | J109: -0.0007582320627 | K109: -0.009215029381 | L109: 0.002277067884 | M109: 0.02758080096 | N109: 4.686017799e-05
A110: =IF('DF raw data'!I115="","",'DF raw data'!I115) -> -276 | B110: =IF('DF raw data'!J115="","",'DF raw data'!J115) -> -3.12578e-05 | C110: =IF('DF raw data'!K115="","",'DF raw data'!K115) -> 8.91067e-05 | D110: =IF('DF raw data'!L115="","",'DF raw data'!L115) -> -2.10067e-05 | F110: -3.142346634e-05 | G110: 8.957896551e-05 | H110: -2.111803551e-05 | J110: -0.0007739437959 | K110: -0.009602001279 | L110: 0.002321857367 | M110: 0.02874172964 | N110: 4.98551833e-05
A111: =IF('DF raw data'!I116="","",'DF raw data'!I116) -> -275.5 | B111: =IF('DF raw data'!J116="","",'DF raw data'!J116) -> -2.86283e-05 | C111: =IF('DF raw data'!K116="","",'DF raw data'!K116) -> 8.81135e-05 | D111: =IF('DF raw data'!L116="","",'DF raw data'!L116) -> -2.35795e-05 | F111: -2.878002999e-05 | G111: 8.858050155e-05 | H111: -2.370447135e-05 | J111: -0.0007883338109 | K111: -0.009996168185 | L111: 0.002366147618 | M111: 0.02992480345 | N111: 5.296524567e-05
A112: =IF('DF raw data'!I117="","",'DF raw data'!I117) -> -275 | B112: =IF('DF raw data'!J117="","",'DF raw data'!J117) -> -2.49643e-05 | C112: =IF('DF raw data'!K117="","",'DF raw data'!K117) -> 9.14403e-05 | D112: =IF('DF raw data'!L117="","",'DF raw data'!L117) -> -4.03319e-05 | F112: -2.509661079e-05 | G112: 9.192493359e-05 | H112: -4.054565907e-05 | J112: -0.0008008821163 | K112: -0.01039660924 | L112: 0.002412110084 | M112: 0.03113085849 | N112: 5.619508929e-05
A113: =IF('DF raw data'!I118="","",'DF raw data'!I118) -> -274.5 | B113: =IF('DF raw data'!J118="","",'DF raw data'!J118) -> -2.38066e-05 | C113: =IF('DF raw data'!K118="","",'DF raw data'!K118) -> 0.000103729 | D113: =IF('DF raw data'!L118="","",'DF raw data'!L118) -> -4.65494e-05 | F113: -2.393277498e-05 | G113: 0.0001042787637 | H113: -4.679611182e-05 | J113: -0.0008128485038 | K113: -0.01080303349 | L113: 0.002464249466 | M113: 0.03236298323 | N113: 5.956171335e-05
A114: =IF('DF raw data'!I119="","",'DF raw data'!I119) -> -274 | B114: =IF('DF raw data'!J119="","",'DF raw data'!J119) -> -4.64367e-05 | C114: =IF('DF raw data'!K119="","",'DF raw data'!K119) -> 9.73273e-05 | D114: =IF('DF raw data'!L119="","",'DF raw data'!L119) -> -3.73381e-05 | F114: -4.668281451e-05 | G114: 9.784313469e-05 | H114: -3.753599193e-05 | J114: -0.000836189911 | K114: -0.01122112845 | L114: 0.002513171034 | M114: 0.03361956874 | N114: 6.306933445e-05
A115: =IF('DF raw data'!I120="","",'DF raw data'!I120) -> -273.5 | B115: =IF('DF raw data'!J120="","",'DF raw data'!J120) -> -3.65875e-05 | C115: =IF('DF raw data'!K120="","",'DF raw data'!K120) -> 9.18875e-05 | D115: =IF('DF raw data'!L120="","",'DF raw data'!L120) -> -5.26943e-06 | F115: -3.678141375e-05 | G115: 9.237450375e-05 | H115: -5.297357979e-06 | J115: -0.0008545806179 | K115: -0.01164841876 | L115: 0.002559358286 | M115: 0.03489924789 | N115: 6.670964589e-05
A116: =IF('DF raw data'!I121="","",'DF raw data'!I121) -> -273 | B116: =IF('DF raw data'!J121="","",'DF raw data'!J121) -> -2.87575e-05 | C116: =IF('DF raw data'!K121="","",'DF raw data'!K121) -> 8.74575e-05 | D116: =IF('DF raw data'!L121="","",'DF raw data'!L121) -> -2.21168e-05 | F116: -2.890991475e-05 | G116: 8.792102475e-05 | H116: -2.223401904e-05 | J116: -0.0008690355753 | K116: -0.01208293655 | L116: 0.002603318798 | M116: 0.03620090729 | N116: 7.047589168e-05
A117: =IF('DF raw data'!I122="","",'DF raw data'!I122) -> -272.5 | B117: =IF('DF raw data'!J122="","",'DF raw data'!J122) -> -3.14446e-05 | C117: =IF('DF raw data'!K122="","",'DF raw data'!K122) -> 8.50849e-05 | D117: =IF('DF raw data'!L122="","",'DF raw data'!L122) -> -2.9196e-05 | F117: -3.161125638e-05 | G117: 8.553584997e-05 | H117: -2.93507388e-05 | J117: -0.0008848412034 | K117: -0.01252535715 | L117: 0.002646086723 | M117: 0.03752395065 | N117: 7.436825113e-05
A118: =IF('DF raw data'!I123="","",'DF raw data'!I123) -> -272 | B118: =IF('DF raw data'!J123="","",'DF raw data'!J123) -> -3.06064e-05 | C118: =IF('DF raw data'!K123="","",'DF raw data'!K123) -> 9.18875e-05 | D118: =IF('DF raw data'!L123="","",'DF raw data'!L123) -> -3.72323e-05 | F118: -3.076861392e-05 | G118: 9.237450375e-05 | H118: -3.742963119e-05 | J118: -0.0009002255104 | K118: -0.0129754699 | L118: 0.002692273975 | M118: 0.03887008764 | N118: 7.83976237e-05
A119: =IF('DF raw data'!I124="","",'DF raw data'!I124) -> -271.5 | B119: =IF('DF raw data'!J124="","",'DF raw data'!J124) -> -3.8686e-05 | C119: =IF('DF raw data'!K124="","",'DF raw data'!K124) -> 9.24521e-05 | D119: =IF('DF raw data'!L124="","",'DF raw data'!L124) -> -3.08505e-05 | F119: -3.88910358e-05 | G119: 9.294209613e-05 | H119: -3.101400765e-05 | J119: -0.0009196710283 | K119: -0.01343530542 | L119: 0.002738745023 | M119: 0.04023946015 | N119: 8.257088325e-05
A120: =IF('DF raw data'!I125="","",'DF raw data'!I125) -> -271 | B120: =IF('DF raw data'!J125="","",'DF raw data'!J125) -> -4.15057e-05 | C120: =IF('DF raw data'!K125="","",'DF raw data'!K125) -> 9.59037e-05 | D120: =IF('DF raw data'!L125="","",'DF raw data'!L125) -> -3.1128e-05 | F120: -4.172568021e-05 | G120: 9.641198961e-05 | H120: -3.12929784e-05 | J120: -0.0009405338684 | K120: -0.01390557235 | L120: 0.002786951018 | M120: 0.04163293566 | N120: 8.689673321e-05
A121: =IF('DF raw data'!I126="","",'DF raw data'!I126) -> -270.5 | B121: =IF('DF raw data'!J126="","",'DF raw data'!J126) -> -4.21476e-05 | C121: =IF('DF raw data'!K126="","",'DF raw data'!K126) -> 0.000100627 | D121: =IF('DF raw data'!L126="","",'DF raw data'!L126) -> -2.96177e-05 | F121: -4.237098228e-05 | G121: 0.0001011603231 | H121: -2.977467381e-05 | J121: -0.0009617193596 | K121: -0.01438643203 | L121: 0.002837531179 | M121: 0.04305170124 | N121: 9.138497687e-05
A122: =IF('DF raw data'!I127="","",'DF raw data'!I127) -> -270 | B122: =IF('DF raw data'!J127="","",'DF raw data'!J127) -> -2.49718e-05 | C122: =IF('DF raw data'!K127="","",'DF raw data'!K127) -> 0.00010059 | D122: =IF('DF raw data'!L127="","",'DF raw data'!L127) -> -2.8758e-05 | F122: -2.510415054e-05 | G122: 0.000101123127 | H122: -2.89104174e-05 | J122: -0.0009742714348 | K122: -0.01487356775 | L122: 0.002888092743 | M122: 0.04449574762 | N122: 9.603011913e-05
A123: =IF('DF raw data'!I128="","",'DF raw data'!I128) -> -269.5 | B123: =IF('DF raw data'!J128="","",'DF raw data'!J128) -> -2.50983e-05 | C123: =IF('DF raw data'!K128="","",'DF raw data'!K128) -> 9.67667e-05 | D123: =IF('DF raw data'!L128="","",'DF raw data'!L128) -> -3.12358e-05 | F123: -2.523132099e-05 | G123: 9.727956351e-05 | H123: -3.140134974e-05 | J123: -0.0009868870953 | K123: -0.0153670113 | L123: 0.002936732524 | M123: 0.04596411388 | N123: 0.0001008292912
A124: =IF('DF raw data'!I129="","",'DF raw data'!I129) -> -269 | B124: =IF('DF raw data'!J129="","",'DF raw data'!J129) -> -2.86912e-05 | C124: =IF('DF raw data'!K129="","",'DF raw data'!K129) -> 9.69454e-05 | D124: =IF('DF raw data'!L129="","",'DF raw data'!L129) -> -2.51873e-05 | F124: -2.884326336e-05 | G124: 9.745921062e-05 | H124: -2.532079269e-05 | J124: -0.001001308727 | K124: -0.01586766566 | L124: 0.00298546213 | M124: 0.04745684494 | N124: 0.0001057870928
A125: =IF('DF raw data'!I130="","",'DF raw data'!I130) -> -268.5 | B125: =IF('DF raw data'!J130="","",'DF raw data'!J130) -> -2.91331e-05 | C125: =IF('DF raw data'!K130="","",'DF raw data'!K130) -> 9.29355e-05 | D125: =IF('DF raw data'!L130="","",'DF raw data'!L130) -> -3.57617e-05 | F125: -2.928750543e-05 | G125: 9.342805815e-05 | H125: -3.595123701e-05 | J125: -0.00101595248 | K125: -0.0163756419 | L125: 0.003032176159 | M125: 0.04897293302 | N125: 0.0001109002187
A126: =IF('DF raw data'!I131="","",'DF raw data'!I131) -> -268 | B126: =IF('DF raw data'!J131="","",'DF raw data'!J131) -> -4.72191e-05 | C126: =IF('DF raw data'!K131="","",'DF raw data'!K131) -> 9.45447e-05 | D126: =IF('DF raw data'!L131="","",'DF raw data'!L131) -> -1.66489e-05 | F126: -4.746936123e-05 | G126: 9.504578691e-05 | H126: -1.673713917e-05 | J126: -0.00103968716 | K126: -0.01689548548 | L126: 0.003079699052 | M126: 0.05051278255 | N126: 0.0001161829665
A127: =IF('DF raw data'!I132="","",'DF raw data'!I132) -> -267.5 | B127: =IF('DF raw data'!J132="","",'DF raw data'!J132) -> -2.18917e-05 | C127: =IF('DF raw data'!K132="","",'DF raw data'!K132) -> 0.000104099 | D127: =IF('DF raw data'!L132="","",'DF raw data'!L132) -> -3.4265e-05 | F127: -2.200772601e-05 | G127: 0.0001046507247 | H127: -3.44466045e-05 | J127: -0.001050691023 | K127: -0.01742083099 | L127: 0.003132024415 | M127: 0.05207879476 | N127: 0.0001216397308
A128: =IF('DF raw data'!I133="","",'DF raw data'!I133) -> -267 | B128: =IF('DF raw data'!J133="","",'DF raw data'!J133) -> -3.16363e-05 | C128: =IF('DF raw data'!K133="","",'DF raw data'!K133) -> 9.98627e-05 | D128: =IF('DF raw data'!L133="","",'DF raw data'!L133) -> -3.02928e-05 | F128: =(1-$G$1*($B$49-$G$2))*B128 -> -3.180397239e-05 | G128: 0.0001003919723 | H128: -3.045335184e-05 | J128: =F128*$G$3+J127 -> -0.00106659301 | K128: =J128*$G$3+K127 -> -0.0179541275 | L128: =G128*$G$3+L127 -> 0.003182220401 | M128: =L128*$G$3+M127 -> 0.05366990496 | N128: =(J128^2+L128^2)*$G$3+N127 -> 0.0001272718044
A129: =IF('DF raw data'!I134="","",'DF raw data'!I134) -> -266.5 | B129: =IF('DF raw data'!J134="","",'DF raw data'!J134) -> -3.61287e-05 | C129: =IF('DF raw data'!K134="","",'DF raw data'!K134) -> 8.74034e-05 | D129: =IF('DF raw data'!L134="","",'DF raw data'!L134) -> -2.08036e-05 | F129: -3.632018211e-05 | G129: 8.786663802e-05 | H129: -2.091385908e-05 | J129: -0.001084753101 | K129: -0.01849650405 | L129: 0.00322615372 | M129: 0.05528298182 | N129: 0.000133064183
A130: =IF('DF raw data'!I135="","",'DF raw data'!I135) -> -266 | B130: =IF('DF raw data'!J135="","",'DF raw data'!J135) -> -3.16443e-05 | C130: =IF('DF raw data'!K135="","",'DF raw data'!K135) -> 8.5575e-05 | D130: =IF('DF raw data'!L135="","",'DF raw data'!L135) -> -1.79645e-05 | F130: -3.181201479e-05 | G130: 8.60285475e-05 | H130: -1.805971185e-05 | J130: -0.001100659108 | K130: -0.0190468336 | L130: 0.003269167994 | M130: 0.05691756581 | N130: 0.0001390136379
A131: =IF('DF raw data'!I136="","",'DF raw data'!I136) -> -265.5 | B131: =IF('DF raw data'!J136="","",'DF raw data'!J136) -> -3.77258e-05 | C131: =IF('DF raw data'!K136="","",'DF raw data'!K136) -> 8.22194e-05 | D131: =IF('DF raw data'!L136="","",'DF raw data'!L136) -> -2.88349e-05 | F131: -3.792574674e-05 | G131: 8.265516282e-05 | H131: -2.898772497e-05 | J131: -0.001119621981 | K131: -0.01960664459 | L131: 0.003310495575 | M131: 0.0585728136 | N131: 0.0001451201051
A132: =IF('DF raw data'!I137="","",'DF raw data'!I137) -> -265 | B132: =IF('DF raw data'!J137="","",'DF raw data'!J137) -> -4.02966e-05 | C132: =IF('DF raw data'!K137="","",'DF raw data'!K137) -> 7.79822e-05 | D132: =IF('DF raw data'!L137="","",'DF raw data'!L137) -> -1.75713e-05 | F132: -4.051017198e-05 | G132: 7.839550566e-05 | H132: -1.766442789e-05 | J132: -0.001139877067 | K132: -0.02017658313 | L132: 0.003349693328 | M132: 0.06024766026 | N132: 0.0001513799876
A133: =IF('DF raw data'!I138="","",'DF raw data'!I138) -> -264.5 | B133: =IF('DF raw data'!J138="","",'DF raw data'!J138) -> -3.1257e-05 | C133: =IF('DF raw data'!K138="","",'DF raw data'!K138) -> 8.12669e-05 | D133: =IF('DF raw data'!L138="","",'DF raw data'!L138) -> -2.22601e-05 | F133: -3.14226621e-05 | G133: 8.169761457e-05 | H133: -2.237807853e-05 | J133: -0.001155588398 | K133: -0.02075437732 | L133: 0.003390542135 | M133: 0.06194293133 | N133: 0.0001577955679
A134: =IF('DF raw data'!I139="","",'DF raw data'!I139) -> -264 | B134: =IF('DF raw data'!J139="","",'DF raw data'!J139) -> -4.20235e-05 | C134: =IF('DF raw data'!K139="","",'DF raw data'!K139) -> 8.69406e-05 | D134: =IF('DF raw data'!L139="","",'DF raw data'!L139) -> -2.33081e-05 | F134: -4.224622455e-05 | G134: 8.740138518e-05 | H134: -2.343163293e-05 | J134: -0.001176711511 | K134: -0.02134273308 | L134: 0.003434242828 | M134: 0.06366005275 | N134: 0.0001643849048
A135: =IF('DF raw data'!I140="","",'DF raw data'!I140) -> -263.5 | B135: =IF('DF raw data'!J140="","",'DF raw data'!J140) -> -3.3244e-05 | C135: =IF('DF raw data'!K140="","",'DF raw data'!K140) -> 9.5107e-05 | D135: =IF('DF raw data'!L140="","",'DF raw data'!L140) -> -2.15917e-05 | F135: -3.34201932e-05 | G135: 9.56110671e-05 | H135: -2.170613601e-05 | J135: -0.001193421607 | K135: -0.02193944388 | L135: 0.003482048361 | M135: 0.06540107693 | N135: 0.0001711593627
A136: =IF('DF raw data'!I141="","",'DF raw data'!I141) -> -263 | B136: =IF('DF raw data'!J141="","",'DF raw data'!J141) -> -3.28564e-05 | C136: =IF('DF raw data'!K141="","",'DF raw data'!K141) -> 9.21236e-05 | D136: =IF('DF raw data'!L141="","",'DF raw data'!L141) -> -2.63304e-05 | F136: -3.303053892e-05 | G136: 9.261185508e-05 | H136: -2.646995112e-05 | J136: -0.001209936877 | K136: -0.02254441232 | L136: 0.003528354289 | M136: 0.06716525407 | N136: 0.0001781159784
A137: =IF('DF raw data'!I142="","",'DF raw data'!I142) -> -262.5 | B137: =IF('DF raw data'!J142="","",'DF raw data'!J142) -> -3.17649e-05 | C137: =IF('DF raw data'!K142="","",'DF raw data'!K142) -> 9.03633e-05 | D137: =IF('DF raw data'!L142="","",'DF raw data'!L142) -> -2.96019e-05 | F137: -3.193325397e-05 | G137: 9.084222549e-05 | H137: -2.975879007e-05 | J137: -0.001225903504 | K137: -0.02315736407 | L137: 0.003573775402 | M137: 0.06895214177 | N137: 0.0001852533334
A138: =IF('DF raw data'!I143="","",'DF raw data'!I143) -> -262 | B138: =IF('DF raw data'!J143="","",'DF raw data'!J143) -> -4.15786e-05 | C138: =IF('DF raw data'!K143="","",'DF raw data'!K143) -> 9.08562e-05 | D138: =IF('DF raw data'!L143="","",'DF raw data'!L143) -> -1.72844e-05 | F138: -4.179896658e-05 | G138: 9.133773786e-05 | H138: -1.737600732e-05 | J138: -0.001246802987 | K138: -0.02378076557 | L138: 0.00361944427 | M138: 0.07076186391 | N138: 0.0001925807806
A139: =IF('DF raw data'!I144="","",'DF raw data'!I144) -> -261.5 | B139: =IF('DF raw data'!J144="","",'DF raw data'!J144) -> -3.86198e-05 | C139: =IF('DF raw data'!K144="","",'DF raw data'!K144) -> 9.22343e-05 | D139: =IF('DF raw data'!L144="","",'DF raw data'!L144) -> -3.38283e-05 | F139: -3.882448494e-05 | G139: 9.272314179e-05 | H139: -3.400758999e-05 | J139: -0.001266215229 | K139: -0.02441387318 | L139: 0.003665805841 | M139: 0.07259476683 | N139: 0.0002001014974
A140: =IF('DF raw data'!I145="","",'DF raw data'!I145) -> -261 | B140: =IF('DF raw data'!J145="","",'DF raw data'!J145) -> -3.16948e-05 | C140: =IF('DF raw data'!K145="","",'DF raw data'!K145) -> 9.58237e-05 | D140: =IF('DF raw data'!L145="","",'DF raw data'!L145) -> -3.87065e-05 | F140: -3.186278244e-05 | G140: 9.633156561e-05 | H140: -3.891164445e-05 | J140: -0.001282146621 | K140: -0.02505494649 | L140: 0.003713971624 | M140: 0.07445175264 | N140: 0.00020782024
A141: =IF('DF raw data'!I146="","",'DF raw data'!I146) -> -260.5 | B141: =IF('DF raw data'!J146="","",'DF raw data'!J146) -> -2.86277e-05 | C141: =IF('DF raw data'!K146="","",'DF raw data'!K146) -> 9.75675e-05 | D141: =IF('DF raw data'!L146="","",'DF raw data'!L146) -> -2.45606e-05 | F141: -2.877942681e-05 | G141: 9.808460775e-05 | H141: -2.469077118e-05 | J141: -0.001296536334 | K141: -0.02570321466 | L141: 0.003763013928 | M141: 0.0763332596 | N141: 0.0002157408801
A142: =IF('DF raw data'!I147="","",'DF raw data'!I147) -> -260 | B142: =IF('DF raw data'!J147="","",'DF raw data'!J147) -> -4.00301e-05 | C142: =IF('DF raw data'!K147="","",'DF raw data'!K147) -> 9.17028e-05 | D142: =IF('DF raw data'!L147="","",'DF raw data'!L147) -> -3.33321e-05 | F142: -4.024225953e-05 | G142: 9.218882484e-05 | H142: -3.350876013e-05 | J142: -0.001316657464 | K142: -0.02636154339 | L142: 0.00380910834 | M142: 0.07823781377 | N142: 0.0002238623267
A143: =IF('DF raw data'!I148="","",'DF raw data'!I148) -> -259.5 | B143: =IF('DF raw data'!J148="","",'DF raw data'!J148) -> -4.40077e-05 | C143: =IF('DF raw data'!K148="","",'DF raw data'!K148) -> 8.72474e-05 | D143: =IF('DF raw data'!L148="","",'DF raw data'!L148) -> -2.73892e-05 | F143: -4.424094081e-05 | G143: 8.770981122e-05 | H143: -2.753436276e-05 | J143: -0.001338777934 | K143: -0.02703093236 | L143: 0.003852963246 | M143: 0.0801642954 | N143: 0.0002321811528
A144: =IF('DF raw data'!I149="","",'DF raw data'!I149) -> -259 | B144: =IF('DF raw data'!J149="","",'DF raw data'!J149) -> -3.08071e-05 | C144: =IF('DF raw data'!K149="","",'DF raw data'!K149) -> 8.53431e-05 | D144: =IF('DF raw data'!L149="","",'DF raw data'!L149) -> -2.38906e-05 | F144: -3.097037763e-05 | G144: 8.579541843e-05 | H144: -2.401722018e-05 | J144: -0.001354263123 | K144: -0.02770806392 | L144: 0.003895860955 | M144: 0.08211222587 | N144: 0.0002406870334
A145: =IF('DF raw data'!I150="","",'DF raw data'!I150) -> -258.5 | B145: =IF('DF raw data'!J150="","",'DF raw data'!J150) -> -3.94636e-05 | C145: =IF('DF raw data'!K150="","",'DF raw data'!K150) -> 8.44513e-05 | D145: =IF('DF raw data'!L150="","",'DF raw data'!L150) -> -1.75988e-05 | F145: -3.967275708e-05 | G145: 8.489889189e-05 | H145: -1.769207364e-05 | J145: -0.001374099502 | K145: -0.02839511367 | L145: 0.003938310401 | M145: 0.08408138108 | N145: 0.0002493862525
A146: =IF('DF raw data'!I151="","",'DF raw data'!I151) -> -258 | B146: =IF('DF raw data'!J151="","",'DF raw data'!J151) -> -3.43347e-05 | C146: =IF('DF raw data'!K151="","",'DF raw data'!K151) -> 7.89316e-05 | D146: =IF('DF raw data'!L151="","",'DF raw data'!L151) -> -1.99965e-05 | F146: -3.451667391e-05 | G146: 7.934993748e-05 | H146: -2.010248145e-05 | J146: -0.001391357839 | K146: -0.02909079259 | L146: 0.00397798537 | M146: 0.08607037376 | N146: 0.0002582663746
A147: =IF('DF raw data'!I152="","",'DF raw data'!I152) -> -257.5 | B147: =IF('DF raw data'!J152="","",'DF raw data'!J152) -> -4.63765e-05 | C147: =IF('DF raw data'!K152="","",'DF raw data'!K152) -> 8.38861e-05 | D147: =IF('DF raw data'!L152="","",'DF raw data'!L152) -> -3.09241e-05 | F147: -4.662229545e-05 | G147: 8.433069633e-05 | H147: -3.108799773e-05 | J147: -0.001414668986 | K147: -0.02979812708 | L147: 0.004020150718 | M147: 0.08808044912 | N147: 0.0002673478247
A148: =IF('DF raw data'!I153="","",'DF raw data'!I153) -> -257 | B148: =IF('DF raw data'!J153="","",'DF raw data'!J153) -> -3.22135e-05 | C148: =IF('DF raw data'!K153="","",'DF raw data'!K153) -> 7.85134e-05 | D148: =IF('DF raw data'!L153="","",'DF raw data'!L153) -> -2.93775e-05 | F148: -3.238423155e-05 | G148: 7.892952102e-05 | H148: -2.953320075e-05 | J148: -0.001430861102 | K148: -0.03051355763 | L148: 0.004059615479 | M148: 0.09011025686 | N148: 0.0002766117453
A149: =IF('DF raw data'!I154="","",'DF raw data'!I154) -> -256.5 | B149: =IF('DF raw data'!J154="","",'DF raw data'!J154) -> -3.71512e-05 | C149: =IF('DF raw data'!K154="","",'DF raw data'!K154) -> 7.97445e-05 | D149: =IF('DF raw data'!L154="","",'DF raw data'!L154) -> -2.52445e-05 | F149: -3.734810136e-05 | G149: 8.016714585e-05 | H149: -2.537829585e-05 | J149: -0.001449535153 | K149: -0.03123832521 | L149: 0.004099699052 | M149: 0.09216010638 | N149: 0.0002860660876
A150: =IF('DF raw data'!I155="","",'DF raw data'!I155) -> -256 | B150: =IF('DF raw data'!J155="","",'DF raw data'!J155) -> -4.65771e-05 | C150: =IF('DF raw data'!K155="","",'DF raw data'!K155) -> 8.49199e-05 | D150: =IF('DF raw data'!L155="","",'DF raw data'!L155) -> -1.82945e-05 | F150: -4.682395863e-05 | G150: 8.536997547e-05 | H150: -1.839146085e-05 | J150: -0.001472947132 | K150: -0.03197479878 | L150: 0.004142384039 | M150: 0.0942312984 | N150: 0.000295730547
A151: =IF('DF raw data'!I156="","",'DF raw data'!I156) -> -255.5 | B151: =IF('DF raw data'!J156="","",'DF raw data'!J156) -> -2.51025e-05 | C151: =IF('DF raw data'!K156="","",'DF raw data'!K156) -> 9.32602e-05 | D151: =IF('DF raw data'!L156="","",'DF raw data'!L156) -> -2.48426e-05 | F151: -2.523554325e-05 | G151: 9.375447906e-05 | H151: -2.497426578e-05 | J151: -0.001485564904 | K151: -0.03271758123 | L151: 0.004189261279 | M151: 0.09632592904 | N151: 0.0003056089535
A152: =IF('DF raw data'!I157="","",'DF raw data'!I157) -> -255 | B152: =IF('DF raw data'!J157="","",'DF raw data'!J157) -> -1.97798e-05 | C152: =IF('DF raw data'!K157="","",'DF raw data'!K157) -> 7.685e-05 | D152: =IF('DF raw data'!L157="","",'DF raw data'!L157) -> -2.96442e-05 | F152: -1.988463294e-05 | G152: 7.7257305e-05 | H152: -2.980131426e-05 | J152: -0.00149550722 | K152: -0.03346533484 | L152: 0.004227889931 | M152: 0.09843987401 | N152: 0.0003156647511
A153: =IF('DF raw data'!I158="","",'DF raw data'!I158) -> -254.5 | B153: =IF('DF raw data'!J158="","",'DF raw data'!J158) -> -3.54182e-05 | C153: =IF('DF raw data'!K158="","",'DF raw data'!K158) -> 6.87108e-05 | D153: =IF('DF raw data'!L158="","",'DF raw data'!L158) -> -2.94196e-05 | F153: -3.560591646e-05 | G153: 6.907496724e-05 | H153: -2.957552388e-05 | J153: -0.001513310178 | K153: -0.03422198993 | L153: 0.004262427415 | M153: 0.1005710877 | N153: 0.0003258939487
A154: =IF('DF raw data'!I159="","",'DF raw data'!I159) -> -254 | B154: =IF('DF raw data'!J159="","",'DF raw data'!J159) -> -3.26613e-05 | C154: =IF('DF raw data'!K159="","",'DF raw data'!K159) -> 7.75731e-05 | D154: =IF('DF raw data'!L159="","",'DF raw data'!L159) -> -3.09173e-05 | F154: -3.283440489e-05 | G154: 7.798423743e-05 | H154: -3.108116169e-05 | J154: -0.001529727381 | K154: -0.03498685362 | L154: 0.004301419534 | M154: 0.1027217975 | N154: 0.0003363150866
A155: =IF('DF raw data'!I160="","",'DF raw data'!I160) -> -253.5 | B155: =IF('DF raw data'!J160="","",'DF raw data'!J160) -> -3.22141e-05 | C155: =IF('DF raw data'!K160="","",'DF raw data'!K160) -> 8.18654e-05 | D155: =IF('DF raw data'!L160="","",'DF raw data'!L160) -> -2.84478e-05 | F155: -3.238483473e-05 | G155: 8.229928662e-05 | H155: -2.859857334e-05 | J155: -0.001545919798 | K155: -0.03575981352 | L155: 0.004342569177 | M155: 0.1048930821 | N155: 0.0003469389742
A156: =IF('DF raw data'!I161="","",'DF raw data'!I161) -> -253 | B156: =IF('DF raw data'!J161="","",'DF raw data'!J161) -> -3.47845e-05 | C156: =IF('DF raw data'!K161="","",'DF raw data'!K161) -> 7.88976e-05 | D156: =IF('DF raw data'!L161="","",'DF raw data'!L161) -> -1.83637e-05 | F156: -3.496885785e-05 | G156: 7.931575728e-05 | H156: -1.846102761e-05 | J156: -0.001563404227 | K156: -0.03654151563 | L156: 0.004382227056 | M156: 0.1070841956 | N156: 0.0003577630475
A157: =IF('DF raw data'!I162="","",'DF raw data'!I162) -> -252.5 | B157: =IF('DF raw data'!J162="","",'DF raw data'!J162) -> -3.89513e-05 | C157: =IF('DF raw data'!K162="","",'DF raw data'!K162) -> 8.80945e-05 | D157: =IF('DF raw data'!L162="","",'DF raw data'!L162) -> -1.6882e-05 | F157: -3.915774189e-05 | G157: 8.856140085e-05 | H157: -1.69714746e-05 | J157: -0.001582983098 | K157: -0.03733300718 | L157: 0.004426507756 | M157: 0.1092974495 | N157: 0.0003688129507
A158: =IF('DF raw data'!I163="","",'DF raw data'!I163) -> -252 | B158: =IF('DF raw data'!J163="","",'DF raw data'!J163) -> -3.88853e-05 | C158: =IF('DF raw data'!K163="","",'DF raw data'!K163) -> 8.82126e-05 | D158: =IF('DF raw data'!L163="","",'DF raw data'!L163) -> -1.96962e-05 | F158: -3.909139209e-05 | G158: 8.868012678e-05 | H158: -1.980058986e-05 | J158: -0.001602528794 | K158: -0.03813427158 | L158: 0.004470847819 | M158: 0.1115328734 | N158: 0.0003800912401
A159: =IF('DF raw data'!I164="","",'DF raw data'!I164) -> -251.5 | B159: =IF('DF raw data'!J164="","",'DF raw data'!J164) -> -4.03519e-05 | C159: =IF('DF raw data'!K164="","",'DF raw data'!K164) -> 8.99416e-05 | D159: =IF('DF raw data'!L164="","",'DF raw data'!L164) -> -3.13538e-05 | F159: -4.056576507e-05 | G159: 9.041829048e-05 | H159: -3.151997514e-05 | J159: -0.001622811677 | K159: -0.03894567742 | L159: 0.004516056965 | M159: 0.1137909019 | N159: 0.0003916053842
A160: =IF('DF raw data'!I165="","",'DF raw data'!I165) -> -251 | B160: =IF('DF raw data'!J165="","",'DF raw data'!J165) -> -2.96476e-05 | C160: =IF('DF raw data'!K165="","",'DF raw data'!K165) -> 9.30418e-05 | D160: =IF('DF raw data'!L165="","",'DF raw data'!L165) -> -3.29579e-05 | F160: -2.980473228e-05 | G160: 9.353492154e-05 | H160: -3.313257687e-05 | J160: -0.001637714043 | K160: -0.03976453444 | L160: 0.004562824425 | M160: 0.1160723141 | N160: 0.0004033561213
A161: =IF('DF raw data'!I166="","",'DF raw data'!I166) -> -250.5 | B161: =IF('DF raw data'!J166="","",'DF raw data'!J166) -> -3.13857e-05 | C161: =IF('DF raw data'!K166="","",'DF raw data'!K166) -> 9.03358e-05 | D161: =IF('DF raw data'!L166="","",'DF raw data'!L166) -> -2.14046e-05 | F161: -3.155204421e-05 | G161: 9.081457974e-05 | H161: -2.151804438e-05 | J161: -0.001653490065 | K161: -0.04059127947 | L161: 0.004608231715 | M161: 0.1183764299 | N161: 0.0004153410357
A162: =IF('DF raw data'!I167="","",'DF raw data'!I167) -> -250 | B162: =IF('DF raw data'!J167="","",'DF raw data'!J167) -> -4.18974e-05 | C162: =IF('DF raw data'!K167="","",'DF raw data'!K167) -> 9.5493e-05 | D162: =IF('DF raw data'!L167="","",'DF raw data'!L167) -> -1.99081e-05 | F162: -4.211945622e-05 | G162: 9.59991129e-05 | H162: -2.001361293e-05 | J162: -0.001674549793 | K162: -0.04142855437 | L162: 0.004656231272 | M162: 0.1207045456 | N162: 0.0004275833391
A163: =IF('DF raw data'!I168="","",'DF raw data'!I168) -> -249.5 | B163: =IF('DF raw data'!J168="","",'DF raw data'!J168) -> -3.65705e-05 | C163: =IF('DF raw data'!K168="","",'DF raw data'!K168) -> 9.35761e-05 | D163: =IF('DF raw data'!L168="","",'DF raw data'!L168) -> -3.14316e-05 | F163: -3.676432365e-05 | G163: 9.407205333e-05 | H163: -3.159818748e-05 | J163: -0.001692931955 | K163: -0.04227502034 | L163: 0.004703267298 | M163: 0.1230561792 | N163: 0.00044007671
A164: =IF('DF raw data'!I169="","",'DF raw data'!I169) -> -249 | B164: =IF('DF raw data'!J169="","",'DF raw data'!J169) -> -2.63773e-05 | C164: =IF('DF raw data'!K169="","",'DF raw data'!K169) -> 8.75689e-05 | D164: =IF('DF raw data'!L169="","",'DF raw data'!L169) -> -3.55786e-05 | F164: -2.651709969e-05 | G164: 8.803301517e-05 | H164: -3.576716658e-05 | J164: -0.001706190505 | K164: -0.0431281156 | L164: 0.004747283806 | M164: 0.1254298211 | N164: 0.0004528006048
A165: =IF('DF raw data'!I170="","",'DF raw data'!I170) -> -248.5 | B165: =IF('DF raw data'!J170="","",'DF raw data'!J170) -> -3.95843e-05 | C165: =IF('DF raw data'!K170="","",'DF raw data'!K170) -> 8.09602e-05 | D165: =IF('DF raw data'!L170="","",'DF raw data'!L170) -> -2.91232e-05 | F165: -3.979409679e-05 | G165: 8.138928906e-05 | H165: -2.927755296e-05 | J165: -0.001726087553 | K165: -0.04399115937 | L165: 0.004787978451 | M165: 0.1278238104 | N165: 0.0004657526627
A166: =IF('DF raw data'!I171="","",'DF raw data'!I171) -> -248 | B166: =IF('DF raw data'!J171="","",'DF raw data'!J171) -> -3.1058e-05 | C166: =IF('DF raw data'!K171="","",'DF raw data'!K171) -> 7.82714e-05 | D166: =IF('DF raw data'!L171="","",'DF raw data'!L171) -> -3.22972e-05 | F166: -3.12226074e-05 | G166: 7.868623842e-05 | H166: -3.246837516e-05 | J166: -0.001741698857 | K166: -0.0448620088 | L166: 0.00482732157 | M166: 0.1302374711 | N166: 0.0004789209369
A167: =IF('DF raw data'!I172="","",'DF raw data'!I172) -> -247.5 | B167: =IF('DF raw data'!J172="","",'DF raw data'!J172) -> -4.12502e-05 | C167: =IF('DF raw data'!K172="","",'DF raw data'!K172) -> 8.46135e-05 | D167: =IF('DF raw data'!L172="","",'DF raw data'!L172) -> -2.96255e-05 | F167: -4.146882606e-05 | G167: 8.506195155e-05 | H167: -2.978251515e-05 | J167: -0.00176243327 | K167: -0.04574322544 | L167: 0.004869852546 | M167: 0.1326723974 | N167: 0.0004923317544
A168: =IF('DF raw data'!I173="","",'DF raw data'!I173) -> -247 | B168: =IF('DF raw data'!J173="","",'DF raw data'!J173) -> -3.74127e-05 | C168: =IF('DF raw data'!K173="","",'DF raw data'!K173) -> 9.23533e-05 | D168: =IF('DF raw data'!L173="","",'DF raw data'!L173) -> -1.7229e-05 | F168: -3.761098731e-05 | G168: 9.284277249e-05 | H168: -1.73203137e-05 | J168: -0.001781238763 | K168: -0.04663384482 | L168: 0.004916273932 | M168: 0.1351305344 | N168: 0.0005060030348
A169: =IF('DF raw data'!I174="","",'DF raw data'!I174) -> -246.5 | B169: =IF('DF raw data'!J174="","",'DF raw data'!J174) -> -4.66417e-05 | C169: =IF('DF raw data'!K174="","",'DF raw data'!K174) -> 8.50415e-05 | D169: =IF('DF raw data'!L174="","",'DF raw data'!L174) -> -1.76803e-05 | F169: -4.688890101e-05 | G169: 8.549221995e-05 | H169: -1.777400559e-05 | J169: -0.001804683214 | K169: -0.04753618642 | L169: 0.004959020042 | M169: 0.1376100444 | N169: 0.0005199274155
A170: =IF('DF raw data'!I175="","",'DF raw data'!I175) -> -246 | B170: =IF('DF raw data'!J175="","",'DF raw data'!J175) -> -3.38844e-05 | C170: =IF('DF raw data'!K175="","",'DF raw data'!K175) -> 7.66015e-05 | D170: =IF('DF raw data'!L175="","",'DF raw data'!L175) -> -2.23232e-05 | F170: -3.406398732e-05 | G170: 7.700748795e-05 | H170: -2.244151296e-05 | J170: -0.001821715208 | K170: -0.04844704403 | L170: 0.004997523786 | M170: 0.1401088063 | N170: 0.0005340743606
A171: =IF('DF raw data'!I176="","",'DF raw data'!I176) -> -245.5 | B171: =IF('DF raw data'!J176="","",'DF raw data'!J176) -> -3.98384e-05 | C171: =IF('DF raw data'!K176="","",'DF raw data'!K176) -> 8.01695e-05 | D171: =IF('DF raw data'!L176="","",'DF raw data'!L176) -> -3.25399e-05 | F171: -4.004954352e-05 | G171: 8.059439835e-05 | H171: -3.271236147e-05 | J171: -0.001841739979 | K171: -0.04936791402 | L171: 0.005037820985 | M171: 0.1426277168 | N171: 0.0005484601838
A172: =IF('DF raw data'!I177="","",'DF raw data'!I177) -> -245 | B172: =IF('DF raw data'!J177="","",'DF raw data'!J177) -> -3.56681e-05 | C172: =IF('DF raw data'!K177="","",'DF raw data'!K177) -> 7.53564e-05 | D172: =IF('DF raw data'!L177="","",'DF raw data'!L177) -> -3.92744e-05 | F172: -3.585714093e-05 | G172: 7.575578892e-05 | H172: -3.948255432e-05 | J172: -0.00185966855 | K172: -0.05029774829 | L172: 0.005075698879 | M172: 0.1451655662 | N172: 0.0005630707269
A173: =IF('DF raw data'!I178="","",'DF raw data'!I178) -> -244.5 | B173: =IF('DF raw data'!J178="","",'DF raw data'!J178) -> -3.7977e-05 | C173: =IF('DF raw data'!K178="","",'DF raw data'!K178) -> 8.32286e-05 | D173: =IF('DF raw data'!L178="","",'DF raw data'!L178) -> -3.66819e-05 | F173: -3.81782781e-05 | G173: 8.366971158e-05 | H173: -3.687631407e-05 | J173: -0.001878757689 | K173: -0.05123712714 | L173: 0.005117533735 | M173: 0.1477243331 | N173: 0.0005779301679
A174: =IF('DF raw data'!I179="","",'DF raw data'!I179) -> -244 | B174: =IF('DF raw data'!J179="","",'DF raw data'!J179) -> -4.59895e-05 | C174: =IF('DF raw data'!K179="","",'DF raw data'!K179) -> 8.74822e-05 | D174: =IF('DF raw data'!L179="","",'DF raw data'!L179) -> -3.47242e-05 | F174: -4.623324435e-05 | G174: 8.794585566e-05 | H174: -3.490823826e-05 | J174: -0.001901874311 | K174: -0.05218806429 | L174: 0.005161506663 | M174: 0.1503050864 | N174: 0.0005930593064
A175: =IF('DF raw data'!I180="","",'DF raw data'!I180) -> -243.5 | B175: =IF('DF raw data'!J180="","",'DF raw data'!J180) -> -3.55511e-05 | C175: =IF('DF raw data'!K180="","",'DF raw data'!K180) -> 7.89852e-05 | D175: =IF('DF raw data'!L180="","",'DF raw data'!L180) -> -2.19979e-05 | F175: -3.573952083e-05 | G175: 7.940382156e-05 | H175: -2.211448887e-05 | J175: -0.001919744071 | K175: -0.05314793633 | L175: 0.005201208574 | M175: 0.1529056907 | N175: 0.0006084283003
A176: =IF('DF raw data'!I181="","",'DF raw data'!I181) -> -243 | B176: =IF('DF raw data'!J181="","",'DF raw data'!J181) -> -2.86192e-05 | C176: =IF('DF raw data'!K181="","",'DF raw data'!K181) -> 8.06682e-05 | D176: =IF('DF raw data'!L181="","",'DF raw data'!L181) -> -3.75977e-05 | F176: -2.877088176e-05 | G176: 8.109574146e-05 | H176: -3.779696781e-05 | J176: -0.001934129512 | K176: -0.05411500108 | L176: 0.005241756444 | M176: 0.1555265689 | N176: 0.0006240367341
A177: =IF('DF raw data'!I182="","",'DF raw data'!I182) -> -242.5 | B177: =IF('DF raw data'!J182="","",'DF raw data'!J182) -> -4.2012e-05 | C177: =IF('DF raw data'!K182="","",'DF raw data'!K182) -> 8.05388e-05 | D177: =IF('DF raw data'!L182="","",'DF raw data'!L182) -> -4.08203e-05 | F177: -4.22346636e-05 | G177: 8.096565564e-05 | H177: -4.103664759e-05 | J177: -0.001955246844 | K177: -0.05509262451 | L177: 0.005282239272 | M177: 0.1581676886 | N177: 0.0006398992551
A178: =IF('DF raw data'!I183="","",'DF raw data'!I183) -> -242 | B178: =IF('DF raw data'!J183="","",'DF raw data'!J183) -> -3.81039e-05 | C178: =IF('DF raw data'!K183="","",'DF raw data'!K183) -> 8.10824e-05 | D178: =IF('DF raw data'!L183="","",'DF raw data'!L183) -> -3.86356e-05 | F178: -3.830585067e-05 | G178: 8.151213672e-05 | H178: -3.884036868e-05 | J178: -0.00197439977 | K178: -0.05607982439 | L178: 0.005322995341 | M178: 0.1608291862 | N178: 0.000656015522
A179: =IF('DF raw data'!I184="","",'DF raw data'!I184) -> -241.5 | B179: =IF('DF raw data'!J184="","",'DF raw data'!J184) -> -4.53474e-05 | C179: =IF('DF raw data'!K184="","",'DF raw data'!K184) -> 8.53767e-05 | D179: =IF('DF raw data'!L184="","",'DF raw data'!L184) -> -3.65923e-05 | F179: -4.558774122e-05 | G179: 8.582919651e-05 | H179: -3.678623919e-05 | J179: -0.00199719364 | K179: -0.05707842121 | L179: 0.005365909939 | M179: 0.1635121412 | N179: 0.000672406408
A180: =IF('DF raw data'!I185="","",'DF raw data'!I185) -> -241 | B180: =IF('DF raw data'!J185="","",'DF raw data'!J185) -> -2.88209e-05 | C180: =IF('DF raw data'!K185="","",'DF raw data'!K185) -> 9.05151e-05 | D180: =IF('DF raw data'!L185="","",'DF raw data'!L185) -> -2.2868e-05 | F180: -2.897365077e-05 | G180: 9.099483003e-05 | H180: -2.29892004e-05 | J180: -0.002011680465 | K180: -0.05808426144 | L180: 0.005411407354 | M180: 0.1662178449 | N180: 0.0006890715019
A181: =IF('DF raw data'!I186="","",'DF raw data'!I186) -> -240.5 | B181: =IF('DF raw data'!J186="","",'DF raw data'!J186) -> -4.43276e-05 | C181: =IF('DF raw data'!K186="","",'DF raw data'!K186) -> 8.89302e-05 | D181: =IF('DF raw data'!L186="","",'DF raw data'!L186) -> -2.79524e-05 | F181: -4.456253628e-05 | G181: 8.940153006e-05 | H181: -2.810054772e-05 | J181: -0.002033961734 | K181: -0.05910124231 | L181: 0.005456108119 | M181: 0.1689458989 | N181: 0.00070602456
A182: =IF('DF raw data'!I187="","",'DF raw data'!I187) -> -240 | B182: =IF('DF raw data'!J187="","",'DF raw data'!J187) -> -3.16414e-05 | C182: =IF('DF raw data'!K187="","",'DF raw data'!K187) -> 8.85668e-05 | D182: =IF('DF raw data'!L187="","",'DF raw data'!L187) -> -2.23111e-05 | F182: -3.180909942e-05 | G182: 8.903620404e-05 | H182: -2.242934883e-05 | J182: -0.002049866283 | K182: -0.06012617545 | L182: 0.005500626221 | M182: 0.1716962121 | N182: 0.0007232539803
A183: =IF('DF raw data'!I188="","",'DF raw data'!I188) -> -239.5 | B183: =IF('DF raw data'!J188="","",'DF raw data'!J188) -> -2.54242e-05 | C183: =IF('DF raw data'!K188="","",'DF raw data'!K188) -> 8.33792e-05 | D183: =IF('DF raw data'!L188="","",'DF raw data'!L188) -> -2.26688e-05 | F183: -2.555894826e-05 | G183: 8.382110976e-05 | H183: -2.278894464e-05 | J183: -0.002062645757 | K183: -0.06115749833 | L183: 0.005542536776 | M183: 0.1744674804 | N183: 0.000740741091
A184: =IF('DF raw data'!I189="","",'DF raw data'!I189) -> -239 | B184: =IF('DF raw data'!J189="","",'DF raw data'!J189) -> -3.7086e-05 | C184: =IF('DF raw data'!K189="","",'DF raw data'!K189) -> 8.45128e-05 | D184: =IF('DF raw data'!L189="","",'DF raw data'!L189) -> -2.70943e-05 | F184: -3.72825558e-05 | G184: 8.496071784e-05 | H184: -2.723789979e-05 | J184: -0.002081287035 | K184: -0.06219814185 | L184: 0.005585017135 | M184: 0.177259989 | N184: 0.0007585031771
A185: =IF('DF raw data'!I190="","",'DF raw data'!I190) -> -238.5 | B185: =IF('DF raw data'!J190="","",'DF raw data'!J190) -> -3.11239e-05 | C185: =IF('DF raw data'!K190="","",'DF raw data'!K190) -> 8.92379e-05 | D185: =IF('DF raw data'!L190="","",'DF raw data'!L190) -> -2.96619e-05 | F185: -3.128885667e-05 | G185: 8.971086087e-05 | H185: -2.981910807e-05 | J185: -0.002096931464 | K185: -0.06324660758 | L185: 0.005629872565 | M185: 0.1800749253 | N185: 0.0007765494704
A186: =IF('DF raw data'!I191="","",'DF raw data'!I191) -> -238 | B186: =IF('DF raw data'!J191="","",'DF raw data'!J191) -> -3.58037e-05 | C186: =IF('DF raw data'!K191="","",'DF raw data'!K191) -> 8.48726e-05 | D186: =IF('DF raw data'!L191="","",'DF raw data'!L191) -> -2.78598e-05 | F186: -3.599345961e-05 | G186: 8.532242478e-05 | H186: -2.800745694e-05 | J186: -0.002114928194 | K186: -0.06430407168 | L186: 0.005672533778 | M186: 0.1829111922 | N186: 0.0007948747508
A187: =IF('DF raw data'!I192="","",'DF raw data'!I192) -> -237.5 | B187: =IF('DF raw data'!J192="","",'DF raw data'!J192) -> -4.54192e-05 | C187: =IF('DF raw data'!K192="","",'DF raw data'!K192) -> 7.63681e-05 | D187: =IF('DF raw data'!L192="","",'DF raw data'!L192) -> -2.4821e-05 | F187: -4.565992176e-05 | G187: 7.677285093e-05 | H187: -2.49525513e-05 | J187: -0.002137758154 | K187: -0.06537295075 | L187: 0.005710920203 | M187: 0.1857666523 | N187: 0.0008134670605
A188: =IF('DF raw data'!I193="","",'DF raw data'!I193) -> -237 | B188: =IF('DF raw data'!J193="","",'DF raw data'!J193) -> -3.44592e-05 | C188: =IF('DF raw data'!K193="","",'DF raw data'!K193) -> 6.95872e-05 | D188: =IF('DF raw data'!L193="","",'DF raw data'!L193) -> -2.55829e-05 | F188: -3.464183376e-05 | G188: 6.995601216e-05 | H188: -2.571848937e-05 | J188: -0.002155079071 | K188: -0.06645049029 | L188: 0.005745898209 | M188: 0.1886396014 | N188: 0.0008322969165
A189: =IF('DF raw data'!I194="","",'DF raw data'!I194) -> -236.5 | B189: =IF('DF raw data'!J194="","",'DF raw data'!J194) -> -2.97142e-05 | C189: =IF('DF raw data'!K194="","",'DF raw data'!K194) -> 7.3436e-05 | D189: =IF('DF raw data'!L194="","",'DF raw data'!L194) -> -2.89085e-05 | F189: -2.987168526e-05 | G189: 7.38252108e-05 | H189: -2.906171505e-05 | J189: -0.002170014914 | K189: -0.06753549775 | L189: 0.005782810815 | M189: 0.1915310068 | N189: 0.0008513718493
A190: =IF('DF raw data'!I195="","",'DF raw data'!I195) -> -236 | B190: =IF('DF raw data'!J195="","",'DF raw data'!J195) -> -4.27828e-05 | C190: =IF('DF raw data'!K195="","",'DF raw data'!K195) -> 8.2066e-05 | D190: =IF('DF raw data'!L195="","",'DF raw data'!L195) -> -3.80929e-05 | F190: -4.300954884e-05 | G190: 8.25009498e-05 | H190: -3.829479237e-05 | J190: -0.002191519688 | K190: -0.06863125759 | L190: 0.005824061289 | M190: 0.1944430374 | N190: 0.0008707330736
A191: =IF('DF raw data'!I196="","",'DF raw data'!I196) -> -235.5 | B191: =IF('DF raw data'!J196="","",'DF raw data'!J196) -> -3.43276e-05 | C191: =IF('DF raw data'!K196="","",'DF raw data'!K196) -> 8.04778e-05 | D191: =IF('DF raw data'!L196="","",'DF raw data'!L196) -> -3.08568e-05 | F191: -3.450953628e-05 | G191: 8.090433234e-05 | H191: -3.102034104e-05 | J191: -0.002208774456 | K191: -0.06973564482 | L191: 0.005864513456 | M191: 0.1973752942 | N191: 0.0008903686749
A192: =IF('DF raw data'!I197="","",'DF raw data'!I197) -> -235 | B192: =IF('DF raw data'!J197="","",'DF raw data'!J197) -> -3.27287e-05 | C192: =IF('DF raw data'!K197="","",'DF raw data'!K197) -> 7.7113e-05 | D192: =IF('DF raw data'!L197="","",'DF raw data'!L197) -> -2.55323e-05 | F192: =(1-$G$1*($B$49-$G$2))*B192 -> -3.290216211e-05 | G192: 7.75216989e-05 | H192: -2.566762119e-05 | J192: =F192*$G$3+J191 -> -0.002225225538 | K192: =J192*$G$3+K191 -> -0.07084825759 | L192: =G192*$G$3+L191 -> 0.005903274305 | M192: =L192*$G$3+M191 -> 0.2003269313 | N192: =(J192^2+L192^2)*$G$3+N191 -> 0.000910268813
A193: =IF('DF raw data'!I198="","",'DF raw data'!I198) -> -234.5 | B193: =IF('DF raw data'!J198="","",'DF raw data'!J198) -> -3.88153e-05 | C193: =IF('DF raw data'!K198="","",'DF raw data'!K198) -> 8.19254e-05 | D193: =IF('DF raw data'!L198="","",'DF raw data'!L198) -> -2.88859e-05 | F193: -3.902102109e-05 | G193: 8.235960462e-05 | H193: -2.903899527e-05 | J193: -0.002244736048 | K193: -0.07197062561 | L193: 0.005944454107 | M193: 0.2032991584 | N193: 0.0009304565003
A194: =IF('DF raw data'!I199="","",'DF raw data'!I199) -> -234 | B194: =IF('DF raw data'!J199="","",'DF raw data'!J199) -> -3.05551e-05 | C194: =IF('DF raw data'!K199="","",'DF raw data'!K199) -> 7.83005e-05 | D194: =IF('DF raw data'!L199="","",'DF raw data'!L199) -> -1.71747e-05 | F194: -3.071704203e-05 | G194: 7.871549265e-05 | H194: -1.726572591e-05 | J194: -0.002260094569 | K194: -0.0731006729 | L194: 0.005983811854 | M194: 0.2062910643 | N194: 0.0009509135162
A195: =IF('DF raw data'!I200="","",'DF raw data'!I200) -> -233.5 | B195: =IF('DF raw data'!J200="","",'DF raw data'!J200) -> -2.48458e-05 | C195: =IF('DF raw data'!K200="","",'DF raw data'!K200) -> 7.20761e-05 | D195: =IF('DF raw data'!L200="","",'DF raw data'!L200) -> -2.51888e-05 | F195: -2.497748274e-05 | G195: 7.245810333e-05 | H195: -2.532230064e-05 | J195: -0.00227258331 | K195: -0.07423696455 | L195: 0.006020040905 | M195: 0.2093010848 | N195: 0.0009716162799
A196: =IF('DF raw data'!I201="","",'DF raw data'!I201) -> -233 | B196: =IF('DF raw data'!J201="","",'DF raw data'!J201) -> -3.23419e-05 | C196: =IF('DF raw data'!K201="","",'DF raw data'!K201) -> 7.87284e-05 | D196: =IF('DF raw data'!L201="","",'DF raw data'!L201) -> -2.89499e-05 | F196: -3.251331207e-05 | G196: 7.914566052e-05 | H196: -2.910333447e-05 | J196: -0.002288839966 | K196: -0.07538138454 | L196: 0.006059613736 | M196: 0.2123308916 | N196: 0.0009925951334
A197: =IF('DF raw data'!I202="","",'DF raw data'!I202) -> -232.5 | B197: =IF('DF raw data'!J202="","",'DF raw data'!J202) -> -4.31674e-05 | C197: =IF('DF raw data'!K202="","",'DF raw data'!K202) -> 7.71279e-05 | D197: =IF('DF raw data'!L202="","",'DF raw data'!L202) -> -3.79839e-05 | F197: -4.339618722e-05 | G197: 7.753667787e-05 | H197: -3.818521467e-05 | J197: -0.00231053806 | K197: -0.07653665357 | L197: 0.006098382075 | M197: 0.2153800827 | N197: 0.001013859558
A198: =IF('DF raw data'!I203="","",'DF raw data'!I203) -> -232 | B198: =IF('DF raw data'!J203="","",'DF raw data'!J203) -> -3.02897e-05 | C198: =IF('DF raw data'!K203="","",'DF raw data'!K203) -> 7.40907e-05 | D198: =IF('DF raw data'!L203="","",'DF raw data'!L203) -> -3.10213e-05 | F198: -3.045023541e-05 | G198: 7.448338071e-05 | H198: -3.118571289e-05 | J198: -0.002325763178 | K198: -0.07769953515 | L198: 0.006135623765 | M198: 0.2184478945 | N198: 0.001035387085
A199: =IF('DF raw data'!I204="","",'DF raw data'!I204) -> -231.5 | B199: =IF('DF raw data'!J204="","",'DF raw data'!J204) -> -3.3049e-05 | C199: =IF('DF raw data'!K204="","",'DF raw data'!K204) -> 7.67567e-05 | D199: =IF('DF raw data'!L204="","",'DF raw data'!L204) -> -2.59276e-05 | F199: -3.32241597e-05 | G199: 7.716351051e-05 | H199: -2.606501628e-05 | J199: -0.002342375258 | K199: -0.07887072278 | L199: 0.00617420552 | M199: 0.2215349973 | N199: 0.001057190853
A200: =IF('DF raw data'!I205="","",'DF raw data'!I205) -> -231 | B200: =IF('DF raw data'!J205="","",'DF raw data'!J205) -> -3.56083e-05 | C200: =IF('DF raw data'!K205="","",'DF raw data'!K205) -> 7.78091e-05 | D200: =IF('DF raw data'!L205="","",'DF raw data'!L205) -> -3.25045e-05 | F200: -3.579702399e-05 | G200: 7.822148823e-05 | H200: -3.267677385e-05 | J200: -0.00236027377 | K200: -0.08005085967 | L200: 0.006213316264 | M200: 0.2246416554 | N200: 0.001079278949
A201: =IF('DF raw data'!I206="","",'DF raw data'!I206) -> -230.5 | B201: =IF('DF raw data'!J206="","",'DF raw data'!J206) -> -2.64492e-05 | C201: =IF('DF raw data'!K206="","",'DF raw data'!K206) -> 7.79278e-05 | D201: =IF('DF raw data'!L206="","",'DF raw data'!L206) -> -2.3274e-05 | F201: -2.658938076e-05 | G201: 7.834081734e-05 | H201: -2.33973522e-05 | J201: -0.00237356846 | K201: -0.0812376439 | L201: 0.006252486673 | M201: 0.2277678988 | N201: 0.001101642657
... 1061 more rows

Sheet 10 x=1
A1: =IF('DF raw data'!M1="","",'DF raw data'!M1) -> Number of header lines | B1: =IF('DF raw data'!N1="","",'DF raw data'!N1) -> 54 | C1: =IF('DF raw data'!O1="","",'DF raw data'!O1) ->  | D1: =IF('DF raw data'!P1="","",'DF raw data'!P1) ->  | F1: T_coeff | G1: -0.001 | H1: /degC | J1: ='10 x=-2'!J1 -> IBy total | K1: ='10 x=-2'!K1 -> -12.27181443 | L1: ='10 x=-2'!L1 -> muTm | R1: ='10 x=-2'!R1 -> DF ref | S1: ='10 x=-2'!S1 -> 1
A2: =IF('DF raw data'!M2="","",'DF raw data'!M2) -> Measured by | B2: =IF('DF raw data'!N2="","",'DF raw data'!N2) -> Danfysik | C2: =IF('DF raw data'!O2="","",'DF raw data'!O2) ->  | D2: =IF('DF raw data'!P2="","",'DF raw data'!P2) ->  | F2: Tcorr | G2: 20 | H2: degC | J2: JBy total | K2: =K1262 -> -14.70778321 | L2: muTm^2 | M2: =M1262 -> 21.80655467
A3: =IF('DF raw data'!M3="","",'DF raw data'!M3) -> Operator | B3: =IF('DF raw data'!N3="","",'DF raw data'!N3) -> PMHA | C3: =IF('DF raw data'!O3="","",'DF raw data'!O3) ->  | D3: =IF('DF raw data'!P3="","",'DF raw data'!P3) ->  | F3: Step | G3: =A63-A62 -> 0.5 | H3: mm | J3: PI total | K3: =N1262 -> 10659.60221 | L3: T^2mm^3
A4: =IF('DF raw data'!M4="","",'DF raw data'!M4) -> Data-time | B4: =IF('DF raw data'!N4="","",'DF raw data'!N4) -> 02-10-2024, 20:51:19 | C4: =IF('DF raw data'!O4="","",'DF raw data'!O4) ->  | D4: =IF('DF raw data'!P4="","",'DF raw data'!P4) -> 
A5: =IF('DF raw data'!M5="","",'DF raw data'!M5) -> Project | B5: =IF('DF raw data'!N5="","",'DF raw data'!N5) -> 504314 | C5: =IF('DF raw data'!O5="","",'DF raw data'!O5) ->  | D5: =IF('DF raw data'!P5="","",'DF raw data'!P5) -> 
A6: =IF('DF raw data'!M6="","",'DF raw data'!M6) -> Magnet type | B6: =IF('DF raw data'!N6="","",'DF raw data'!N6) -> Dipole | C6: =IF('DF raw data'!O6="","",'DF raw data'!O6) ->  | D6: =IF('DF raw data'!P6="","",'DF raw data'!P6) -> 
A7: =IF('DF raw data'!M7="","",'DF raw data'!M7) -> Magnet nr. | B7: =IF('DF raw data'!N7="","",'DF raw data'!N7) -> 2410110 | C7: =IF('DF raw data'!O7="","",'DF raw data'!O7) ->  | D7: =IF('DF raw data'!P7="","",'DF raw data'!P7) -> 
A8: =IF('DF raw data'!M8="","",'DF raw data'!M8) -> Meas. number | B8: =IF('DF raw data'!N8="","",'DF raw data'!N8) -> 982 | C8: =IF('DF raw data'!O8="","",'DF raw data'!O8) ->  | D8: =IF('DF raw data'!P8="","",'DF raw data'!P8) -> 
A9: =IF('DF raw data'!M9="","",'DF raw data'!M9) -> Add. info | B9: =IF('DF raw data'!N9="","",'DF raw data'!N9) -> X-alignment scan 4) | C9: =IF('DF raw data'!O9="","",'DF raw data'!O9) ->  | D9: =IF('DF raw data'!P9="","",'DF raw data'!P9) -> 
A10: =IF('DF raw data'!M10="","",'DF raw data'!M10) -> Device | B10: =IF('DF raw data'!N10="","",'DF raw data'!N10) -> (HAL) HALL-PROBE | C10: =IF('DF raw data'!O10="","",'DF raw data'!O10) ->  | D10: =IF('DF raw data'!P10="","",'DF raw data'!P10) -> 
A11: =IF('DF raw data'!M11="","",'DF raw data'!M11) -> Goal | B11: =IF('DF raw data'!N11="","",'DF raw data'!N11) -> (AXI) AXis Integral (Line, EFB) | C11: =IF('DF raw data'!O11="","",'DF raw data'!O11) ->  | D11: =IF('DF raw data'!P11="","",'DF raw data'!P11) -> 
A12: =IF('DF raw data'!M12="","",'DF raw data'!M12) -> Power supply mode | B12: =IF('DF raw data'!N12="","",'DF raw data'!N12) -> (PM) Permanent Magnet (no MPS in use) | C12: =IF('DF raw data'!O12="","",'DF raw data'!O12) ->  | D12: =IF('DF raw data'!P12="","",'DF raw data'!P12) -> 
A13: =IF('DF raw data'!M13="","",'DF raw data'!M13) -> Data format | B13: =IF('DF raw data'!N13="","",'DF raw data'!N13) -> Raw data text file | C13: =IF('DF raw data'!O13="","",'DF raw data'!O13) ->  | D13: =IF('DF raw data'!P13="","",'DF raw data'!P13) -> 
A14: =IF('DF raw data'!M14="","",'DF raw data'!M14) -> Direction of the pos. x-axis | B14: =IF('DF raw data'!N14="","",'DF raw data'!N14) -> See test program | C14: =IF('DF raw data'!O14="","",'DF raw data'!O14) ->  | D14: =IF('DF raw data'!P14="","",'DF raw data'!P14) -> 
A15: =IF('DF raw data'!M15="","",'DF raw data'!M15) -> Direction of the pos. y-axis | B15: =IF('DF raw data'!N15="","",'DF raw data'!N15) -> Vertical up | C15: =IF('DF raw data'!O15="","",'DF raw data'!O15) ->  | D15: =IF('DF raw data'!P15="","",'DF raw data'!P15) -> 
A16: =IF('DF raw data'!M16="","",'DF raw data'!M16) -> Direction of the pos. z-axis | B16: =IF('DF raw data'!N16="","",'DF raw data'!N16) -> See test program | C16: =IF('DF raw data'!O16="","",'DF raw data'!O16) ->  | D16: =IF('DF raw data'!P16="","",'DF raw data'!P16) -> 
A17: =IF('DF raw data'!M17="","",'DF raw data'!M17) -> Mapper type | B17: =IF('DF raw data'!N17="","",'DF raw data'!N17) -> Precision Hall Mapper | C17: =IF('DF raw data'!O17="","",'DF raw data'!O17) ->  | D17: =IF('DF raw data'!P17="","",'DF raw data'!P17) -> 
A18: =IF('DF raw data'!M18="","",'DF raw data'!M18) -> Mapper Danfysik Reg. Number | B18: =IF('DF raw data'!N18="","",'DF raw data'!N18) -> 2033-D (mapper 1) | C18: =IF('DF raw data'!O18="","",'DF raw data'!O18) ->  | D18: =IF('DF raw data'!P18="","",'DF raw data'!P18) -> 
A19: =IF('DF raw data'!M19="","",'DF raw data'!M19) -> Measurement consept | B19: =IF('DF raw data'!N19="","",'DF raw data'!N19) -> Square line grid | C19: =IF('DF raw data'!O19="","",'DF raw data'!O19) ->  | D19: =IF('DF raw data'!P19="","",'DF raw data'!P19) -> 
A20: =IF('DF raw data'!M20="","",'DF raw data'!M20) -> Mode | B20: =IF('DF raw data'!N20="","",'DF raw data'!N20) -> On-the-fly measurement | C20: =IF('DF raw data'!O20="","",'DF raw data'!O20) ->  | D20: =IF('DF raw data'!P20="","",'DF raw data'!P20) -> 
A21: =IF('DF raw data'!M21="","",'DF raw data'!M21) ->  | B21: =IF('DF raw data'!N21="","",'DF raw data'!N21) ->  | C21: =IF('DF raw data'!O21="","",'DF raw data'!O21) ->  | D21: =IF('DF raw data'!P21="","",'DF raw data'!P21) -> 
A22: =IF('DF raw data'!M22="","",'DF raw data'!M22) -> Probe Name | B22: =IF('DF raw data'!N22="","",'DF raw data'!N22) -> ID12_By | C22: =IF('DF raw data'!O22="","",'DF raw data'!O22) ->  | D22: =IF('DF raw data'!P22="","",'DF raw data'!P22) -> 
A23: =IF('DF raw data'!M23="","",'DF raw data'!M23) -> Probe Type | B23: =IF('DF raw data'!N23="","",'DF raw data'!N23) -> DF_ID_3D_Bxyz | C23: =IF('DF raw data'!O23="","",'DF raw data'!O23) ->  | D23: =IF('DF raw data'!P23="","",'DF raw data'!P23) -> 
A24: =IF('DF raw data'!M24="","",'DF raw data'!M24) -> Probe Danfysik Reg. Number | B24: =IF('DF raw data'!N24="","",'DF raw data'!N24) -> 2277 | C24: =IF('DF raw data'!O24="","",'DF raw data'!O24) ->  | D24: =IF('DF raw data'!P24="","",'DF raw data'!P24) -> 
A25: =IF('DF raw data'!M25="","",'DF raw data'!M25) -> Probe Axis | B25: =IF('DF raw data'!N25="","",'DF raw data'!N25) -> By | C25: =IF('DF raw data'!O25="","",'DF raw data'!O25) ->  | D25: =IF('DF raw data'!P25="","",'DF raw data'!P25) -> 
A26: =IF('DF raw data'!M26="","",'DF raw data'!M26) -> Probe Current Supply | B26: =IF('DF raw data'!N26="","",'DF raw data'!N26) -> 1825-D | C26: =IF('DF raw data'!O26="","",'DF raw data'!O26) ->  | D26: =IF('DF raw data'!P26="","",'DF raw data'!P26) -> 
A27: =IF('DF raw data'!M27="","",'DF raw data'!M27) -> Probe Gain Correction | B27: =IF('DF raw data'!N27="","",'DF raw data'!N27) -> 0.99615 | C27: =IF('DF raw data'!O27="","",'DF raw data'!O27) ->  | D27: =IF('DF raw data'!P27="","",'DF raw data'!P27) -> 
A28: =IF('DF raw data'!M28="","",'DF raw data'!M28) -> Probe Offset Correction | B28: =IF('DF raw data'!N28="","",'DF raw data'!N28) -> 0.0027536 | C28: =IF('DF raw data'!O28="","",'DF raw data'!O28) ->  | D28: =IF('DF raw data'!P28="","",'DF raw data'!P28) -> 
A29: =IF('DF raw data'!M29="","",'DF raw data'!M29) -> DVM Number | B29: =IF('DF raw data'!N29="","",'DF raw data'!N29) -> 2 | C29: =IF('DF raw data'!O29="","",'DF raw data'!O29) ->  | D29: =IF('DF raw data'!P29="","",'DF raw data'!P29) -> 
A30: =IF('DF raw data'!M30="","",'DF raw data'!M30) -> DVM Type | B30: =IF('DF raw data'!N30="","",'DF raw data'!N30) -> K2701 | C30: =IF('DF raw data'!O30="","",'DF raw data'!O30) ->  | D30: =IF('DF raw data'!P30="","",'DF raw data'!P30) -> 
A31: =IF('DF raw data'!M31="","",'DF raw data'!M31) -> DVM Danfysik Reg. Number | B31: =IF('DF raw data'!N31="","",'DF raw data'!N31) -> 1743-D | C31: =IF('DF raw data'!O31="","",'DF raw data'!O31) ->  | D31: =IF('DF raw data'!P31="","",'DF raw data'!P31) -> 
A32: =IF('DF raw data'!M32="","",'DF raw data'!M32) -> Probe Name | B32: =IF('DF raw data'!N32="","",'DF raw data'!N32) -> ID12_Bx | C32: =IF('DF raw data'!O32="","",'DF raw data'!O32) ->  | D32: =IF('DF raw data'!P32="","",'DF raw data'!P32) -> 
A33: =IF('DF raw data'!M33="","",'DF raw data'!M33) -> Probe Type | B33: =IF('DF raw data'!N33="","",'DF raw data'!N33) -> DF_ID_3D_Bxyz | C33: =IF('DF raw data'!O33="","",'DF raw data'!O33) ->  | D33: =IF('DF raw data'!P33="","",'DF raw data'!P33) -> 
A34: =IF('DF raw data'!M34="","",'DF raw data'!M34) -> Probe Danfysik Reg. Number | B34: =IF('DF raw data'!N34="","",'DF raw data'!N34) -> 2277 | C34: =IF('DF raw data'!O34="","",'DF raw data'!O34) ->  | D34: =IF('DF raw data'!P34="","",'DF raw data'!P34) -> 
A35: =IF('DF raw data'!M35="","",'DF raw data'!M35) -> Probe Axis | B35: =IF('DF raw data'!N35="","",'DF raw data'!N35) -> Bx | C35: =IF('DF raw data'!O35="","",'DF raw data'!O35) ->  | D35: =IF('DF raw data'!P35="","",'DF raw data'!P35) -> 
A36: =IF('DF raw data'!M36="","",'DF raw data'!M36) -> Probe Current Supply | B36: =IF('DF raw data'!N36="","",'DF raw data'!N36) -> 1825-D | C36: =IF('DF raw data'!O36="","",'DF raw data'!O36) ->  | D36: =IF('DF raw data'!P36="","",'DF raw data'!P36) -> 
A37: =IF('DF raw data'!M37="","",'DF raw data'!M37) -> Probe Gain Correction | B37: =IF('DF raw data'!N37="","",'DF raw data'!N37) -> 1 | C37: =IF('DF raw data'!O37="","",'DF raw data'!O37) ->  | D37: =IF('DF raw data'!P37="","",'DF raw data'!P37) -> 
A38: =IF('DF raw data'!M38="","",'DF raw data'!M38) -> Probe Offset Correction | B38: =IF('DF raw data'!N38="","",'DF raw data'!N38) -> -0.17575 | C38: =IF('DF raw data'!O38="","",'DF raw data'!O38) ->  | D38: =IF('DF raw data'!P38="","",'DF raw data'!P38) -> 
A39: =IF('DF raw data'!M39="","",'DF raw data'!M39) -> DVM Number | B39: =IF('DF raw data'!N39="","",'DF raw data'!N39) -> 3 | C39: =IF('DF raw data'!O39="","",'DF raw data'!O39) ->  | D39: =IF('DF raw data'!P39="","",'DF raw data'!P39) -> 
A40: =IF('DF raw data'!M40="","",'DF raw data'!M40) -> DVM Type | B40: =IF('DF raw data'!N40="","",'DF raw data'!N40) -> K2701 | C40: =IF('DF raw data'!O40="","",'DF raw data'!O40) ->  | D40: =IF('DF raw data'!P40="","",'DF raw data'!P40) -> 
A41: =IF('DF raw data'!M41="","",'DF raw data'!M41) -> DVM Danfysik Reg. Number | B41: =IF('DF raw data'!N41="","",'DF raw data'!N41) -> 1744-D | C41: =IF('DF raw data'!O41="","",'DF raw data'!O41) ->  | D41: =IF('DF raw data'!P41="","",'DF raw data'!P41) -> 
A42: =IF('DF raw data'!M42="","",'DF raw data'!M42) -> Probe Name | B42: =IF('DF raw data'!N42="","",'DF raw data'!N42) -> ID12_Bz | C42: =IF('DF raw data'!O42="","",'DF raw data'!O42) ->  | D42: =IF('DF raw data'!P42="","",'DF raw data'!P42) -> 
A43: =IF('DF raw data'!M43="","",'DF raw data'!M43) -> Probe Type | B43: =IF('DF raw data'!N43="","",'DF raw data'!N43) -> DF_ID_3D_Bxyz | C43: =IF('DF raw data'!O43="","",'DF raw data'!O43) ->  | D43: =IF('DF raw data'!P43="","",'DF raw data'!P43) -> 
A44: =IF('DF raw data'!M44="","",'DF raw data'!M44) -> Probe Danfysik Reg. Number | B44: =IF('DF raw data'!N44="","",'DF raw data'!N44) -> 2277 | C44: =IF('DF raw data'!O44="","",'DF raw data'!O44) ->  | D44: =IF('DF raw data'!P44="","",'DF raw data'!P44) -> 
A45: =IF('DF raw data'!M45="","",'DF raw data'!M45) -> Probe Axis | B45: =IF('DF raw data'!N45="","",'DF raw data'!N45) -> Bz | C45: =IF('DF raw data'!O45="","",'DF raw data'!O45) ->  | D45: =IF('DF raw data'!P45="","",'DF raw data'!P45) -> 
A46: =IF('DF raw data'!M46="","",'DF raw data'!M46) -> Probe Current Supply | B46: =IF('DF raw data'!N46="","",'DF raw data'!N46) -> 1825-D | C46: =IF('DF raw data'!O46="","",'DF raw data'!O46) ->  | D46: =IF('DF raw data'!P46="","",'DF raw data'!P46) -> 
A47: =IF('DF raw data'!M47="","",'DF raw data'!M47) -> Probe Gain Correction | B47: =IF('DF raw data'!N47="","",'DF raw data'!N47) -> 1 | C47: =IF('DF raw data'!O47="","",'DF raw data'!O47) ->  | D47: =IF('DF raw data'!P47="","",'DF raw data'!P47) -> 
A48: =IF('DF raw data'!M53="","",'DF raw data'!M53) -> PS-Gap: | B48: =IF('DF raw data'!N53="","",'DF raw data'!N53) -> 10 | C48: =IF('DF raw data'!O53="","",'DF raw data'!O53) ->  | D48: =IF('DF raw data'!P53="","",'DF raw data'!P53) -> 
A49: =IF('DF raw data'!M54="","",'DF raw data'!M54) -> PS-Temperature: | B49: =IF('DF raw data'!N54="","",'DF raw data'!N54) -> 25.3 | C49: =IF('DF raw data'!O54="","",'DF raw data'!O54) ->  | D49: =IF('DF raw data'!P54="","",'DF raw data'!P54) -> 
A50: =IF('DF raw data'!M55="","",'DF raw data'!M55) -> PS-Encoder: | B50: =IF('DF raw data'!N55="","",'DF raw data'!N55) -> 19.7503 | C50: =IF('DF raw data'!O55="","",'DF raw data'!O55) ->  | D50: =IF('DF raw data'!P55="","",'DF raw data'!P55) -> 
A51: =IF('DF raw data'!M56="","",'DF raw data'!M56) ->  | B51: =IF('DF raw data'!N56="","",'DF raw data'!N56) ->  | C51: =IF('DF raw data'!O56="","",'DF raw data'!O56) ->  | D51: =IF('DF raw data'!P56="","",'DF raw data'!P56) -> 
A52: =IF('DF raw data'!M57="","",'DF raw data'!M57) -> Monitor-Index | B52: =IF('DF raw data'!N57="","",'DF raw data'!N57) -> [1,1,4] | C52: =IF('DF raw data'!O57="","",'DF raw data'!O57) ->  | D52: =IF('DF raw data'!P57="","",'DF raw data'!P57) -> 
A53: =IF('DF raw data'!M58="","",'DF raw data'!M58) ->  | B53: =IF('DF raw data'!N58="","",'DF raw data'!N58) ->  | C53: =IF('DF raw data'!O58="","",'DF raw data'!O58) ->  | D53: =IF('DF raw data'!P58="","",'DF raw data'!P58) -> 
A54: =IF('DF raw data'!M59="","",'DF raw data'!M59) -> Time [s] | B54: =IF('DF raw data'!N59="","",'DF raw data'!N59) -> Y [mm] | C54: =IF('DF raw data'!O59="","",'DF raw data'!O59) -> X [mm] | D54: =IF('DF raw data'!P59="","",'DF raw data'!P59) -> Nominal current [A]
A55: =IF('DF raw data'!M60="","",'DF raw data'!M60) ->  | B55: =IF('DF raw data'!N60="","",'DF raw data'!N60) ->  | C55: =IF('DF raw data'!O60="","",'DF raw data'!O60) ->  | D55: =IF('DF raw data'!P60="","",'DF raw data'!P60) -> 
A56: =IF('DF raw data'!M61="","",'DF raw data'!M61) -> 210 | B56: =IF('DF raw data'!N61="","",'DF raw data'!N61) -> 31.15 | C56: =IF('DF raw data'!O61="","",'DF raw data'!O61) -> 302.3 | D56: =IF('DF raw data'!P61="","",'DF raw data'!P61) -> 0
A57: =IF('DF raw data'!M62="","",'DF raw data'!M62) ->  | B57: =IF('DF raw data'!N62="","",'DF raw data'!N62) ->  | C57: =IF('DF raw data'!O62="","",'DF raw data'!O62) ->  | D57: =IF('DF raw data'!P62="","",'DF raw data'!P62) -> 
A58: =IF('DF raw data'!M63="","",'DF raw data'!M63) -> Measurement-Index | B58: =IF('DF raw data'!N63="","",'DF raw data'!N63) -> [1,1,1201,2] | C58: =IF('DF raw data'!O63="","",'DF raw data'!O63) ->  | D58: =IF('DF raw data'!P63="","",'DF raw data'!P63) -> 
A59: =IF('DF raw data'!M64="","",'DF raw data'!M64) ->  | B59: =IF('DF raw data'!N64="","",'DF raw data'!N64) ->  | C59: =IF('DF raw data'!O64="","",'DF raw data'!O64) ->  | D59: =IF('DF raw data'!P64="","",'DF raw data'!P64) -> 
A60: =IF('DF raw data'!M65="","",'DF raw data'!M65) -> Z [mm] | B60: By [T] | C60: Bx [T] | D60: Bz [T] | F60: By_corr | G60: Bx_corr | H60: Bz_corr | J60: Iy | K60: Jy | L60: Ix | M60: Jx | N60: PI
A62: =IF('DF raw data'!M67="","",'DF raw data'!M67) -> -300 | B62: =IF('DF raw data'!N67="","",'DF raw data'!N67) -> -2.54875e-05 | C62: =IF('DF raw data'!O67="","",'DF raw data'!O67) -> 0.000190656 | D62: =IF('DF raw data'!P67="","",'DF raw data'!P67) -> -1.79499e-05 | F62: =(1-$G$1*($B$49))*B62 -> -2.613233375e-05 | G62: =(1-$G$1*($B$49-$G$2))*C62 -> 0.0001916664768 | H62: =(1-$G$1*($B$49-$G$2))*D62 -> -1.804503447e-05 | J62: =F62*$G$3 -> -1.306616688e-05 | K62: =J62*$G$3 -> -6.533083438e-06 | L62: =G62*$G$3 -> 9.58332384e-05 | M62: =L62*$G$3 -> 4.79166192e-05 | N62: =(J62^2+L62^2)*$G$3 -> 4.67736715e-09
A63: =IF('DF raw data'!M68="","",'DF raw data'!M68) -> -299.5 | B63: =IF('DF raw data'!N68="","",'DF raw data'!N68) -> -2.38852e-05 | C63: =IF('DF raw data'!O68="","",'DF raw data'!O68) -> 0.000186946 | D63: =IF('DF raw data'!P68="","",'DF raw data'!P68) -> -1.81631e-05 | F63: =(1-$G$1*($B$49-$G$2))*B63 -> -2.401179156e-05 | G63: =(1-$G$1*($B$49-$G$2))*C63 -> 0.0001879368138 | H63: -1.825936443e-05 | J63: =F63*$G$3+J62 -> -2.507206266e-05 | K63: =J63*$G$3+K62 -> -1.906911477e-05 | L63: =G63*$G$3+L62 -> 0.0001898016453 | M63: =L63*$G$3+M62 -> 0.0001428174419 | N63: =(J63^2+L63^2)*$G$3+N62 -> 2.300400359e-08
A64: =IF('DF raw data'!M69="","",'DF raw data'!M69) -> -299 | B64: =IF('DF raw data'!N69="","",'DF raw data'!N69) -> -2.15139e-05 | C64: =IF('DF raw data'!O69="","",'DF raw data'!O69) -> 0.000196448 | D64: =IF('DF raw data'!P69="","",'DF raw data'!P69) -> -1.86734e-05 | F64: =(1-$G$1*($B$49-$G$2))*B64 -> -2.162792367e-05 | G64: 0.0001974891744 | H64: -1.877236902e-05 | J64: =F64*$G$3+J63 -> -3.588602449e-05 | K64: =J64*$G$3+K63 -> -3.701212701e-05 | L64: =G64*$G$3+L63 -> 0.0002885462325 | M64: =L64*$G$3+M63 -> 0.0002870905581 | N64: =(J64^2+L64^2)*$G$3+N63 -> 6.527737111e-08
A65: =IF('DF raw data'!M70="","",'DF raw data'!M70) -> -298.5 | B65: =IF('DF raw data'!N70="","",'DF raw data'!N70) -> -2.36283e-05 | C65: =IF('DF raw data'!O70="","",'DF raw data'!O70) -> 0.00019183 | D65: =IF('DF raw data'!P70="","",'DF raw data'!P70) -> -1.89156e-05 | F65: -2.375352999e-05 | G65: 0.000192846699 | H65: -1.901585268e-05 | J65: -4.776278949e-05 | K65: -6.089352175e-05 | L65: 0.000384969582 | M65: 0.0004795753491 | N65: 1.405188027e-07
A66: =IF('DF raw data'!M71="","",'DF raw data'!M71) -> -298 | B66: =IF('DF raw data'!N71="","",'DF raw data'!N71) -> -3.23441e-05 | C66: =IF('DF raw data'!O71="","",'DF raw data'!O71) -> 0.000180132 | D66: =IF('DF raw data'!P71="","",'DF raw data'!P71) -> -1.87421e-05 | F66: -3.251552373e-05 | G66: 0.0001810866996 | H66: -1.884143313e-05 | J66: -6.402055135e-05 | K66: -9.290379743e-05 | L66: 0.0004755129318 | M66: 0.000717331815 | N66: 2.556243923e-07
A67: =IF('DF raw data'!M72="","",'DF raw data'!M72) -> -297.5 | B67: =IF('DF raw data'!N72="","",'DF raw data'!N72) -> -2.01035e-05 | C67: =IF('DF raw data'!O72="","",'DF raw data'!O72) -> 0.00018052 | D67: =IF('DF raw data'!P72="","",'DF raw data'!P72) -> -1.90801e-05 | F67: -2.021004855e-05 | G67: 0.000181476756 | H67: -1.918122453e-05 | J67: -7.412557563e-05 | K67: -0.0001299665852 | L67: 0.0005662513098 | M67: 0.00100045747 | N67: 4.186919657e-07
A68: =IF('DF raw data'!M73="","",'DF raw data'!M73) -> -297 | B68: =IF('DF raw data'!N73="","",'DF raw data'!N73) -> -3.0357e-05 | C68: =IF('DF raw data'!O73="","",'DF raw data'!O73) -> 0.000177277 | D68: =IF('DF raw data'!P73="","",'DF raw data'!P73) -> -1.97631e-05 | F68: -3.05178921e-05 | G68: 0.0001782165681 | H68: -1.986784443e-05 | J68: -8.938452168e-05 | K68: -0.0001746588461 | L68: 0.0006553595939 | M68: 0.001328137267 | N68: 6.374348607e-07
A69: =IF('DF raw data'!M74="","",'DF raw data'!M74) -> -296.5 | B69: =IF('DF raw data'!N74="","",'DF raw data'!N74) -> -3.54837e-05 | C69: =IF('DF raw data'!O74="","",'DF raw data'!O74) -> 0.000174564 | D69: =IF('DF raw data'!P74="","",'DF raw data'!P74) -> -1.96382e-05 | F69: -3.567176361e-05 | G69: 0.0001754891892 | H69: -1.974228246e-05 | J69: -0.0001072204035 | K69: -0.0002282690478 | L69: 0.0007431041885 | M69: 0.001699689361 | N69: 9.192848856e-07
A70: =IF('DF raw data'!M75="","",'DF raw data'!M75) -> -296 | B70: =IF('DF raw data'!N75="","",'DF raw data'!N75) -> -4.31747e-05 | C70: =IF('DF raw data'!O75="","",'DF raw data'!O75) -> 0.000184338 | D70: =IF('DF raw data'!P75="","",'DF raw data'!P75) -> -1.86091e-05 | F70: -4.340352591e-05 | G70: 0.0001853149914 | H70: -1.870772823e-05 | J70: -0.0001289221664 | K70: -0.000292730131 | L70: 0.0008357616842 | M70: 0.002117570203 | N70: 1.276844144e-06
A71: =IF('DF raw data'!M76="","",'DF raw data'!M76) -> -295.5 | B71: =IF('DF raw data'!N76="","",'DF raw data'!N76) -> -3.36265e-05 | C71: =IF('DF raw data'!O76="","",'DF raw data'!O76) -> 0.000185629 | D71: =IF('DF raw data'!P76="","",'DF raw data'!P76) -> -1.80508e-05 | F71: -3.380472045e-05 | G71: 0.0001866128337 | H71: -1.814646924e-05 | J71: -0.0001458245267 | K71: -0.0003656423944 | L71: 0.000929068101 | M71: 0.002582104254 | N71: 1.719060309e-06
A72: =IF('DF raw data'!M77="","",'DF raw data'!M77) -> -295 | B72: =IF('DF raw data'!N77="","",'DF raw data'!N77) -> -3.35622e-05 | C72: =IF('DF raw data'!O77="","",'DF raw data'!O77) -> 0.000182439 | D72: =IF('DF raw data'!P77="","",'DF raw data'!P77) -> -1.81607e-05 | F72: -3.374007966e-05 | G72: 0.0001834059267 | H72: -1.825695171e-05 | J72: -0.0001626945665 | K72: -0.0004469896776 | L72: 0.001020771064 | M72: 0.003092489786 | N72: 2.253281853e-06
A73: =IF('DF raw data'!M78="","",'DF raw data'!M78) -> -294.5 | B73: =IF('DF raw data'!N78="","",'DF raw data'!N78) -> -3.60617e-05 | C73: =IF('DF raw data'!O78="","",'DF raw data'!O78) -> 0.000186662 | D73: =IF('DF raw data'!P78="","",'DF raw data'!P78) -> -1.79091e-05 | F73: -3.625282701e-05 | G73: 0.0001876513086 | H73: -1.800401823e-05 | J73: -0.00018082098 | K73: -0.0005374001676 | L73: 0.001114596719 | M73: 0.003649788145 | N73: 2.890792889e-06
A74: =IF('DF raw data'!M79="","",'DF raw data'!M79) -> -294 | B74: =IF('DF raw data'!N79="","",'DF raw data'!N79) -> -3.71516e-05 | C74: =IF('DF raw data'!O79="","",'DF raw data'!O79) -> 0.000183842 | D74: =IF('DF raw data'!P79="","",'DF raw data'!P79) -> -1.73971e-05 | F74: -3.734850348e-05 | G74: 0.0001848163626 | H74: -1.748930463e-05 | J74: -0.0001994952317 | K74: -0.0006371477835 | L74: 0.0012070049 | M74: 0.004253290595 | N74: 3.639122477e-06
A75: =IF('DF raw data'!M80="","",'DF raw data'!M80) -> -293.5 | B75: =IF('DF raw data'!N80="","",'DF raw data'!N80) -> -1.93353e-05 | C75: =IF('DF raw data'!O80="","",'DF raw data'!O80) -> 0.000179857 | D75: =IF('DF raw data'!P80="","",'DF raw data'!P80) -> -1.78008e-05 | F75: -1.943777709e-05 | G75: 0.0001808102421 | H75: -1.789514424e-05 | J75: -0.0002092141203 | K75: -0.0007417548436 | L75: 0.001297410021 | M75: 0.004901995606 | N75: 4.502644132e-06
A76: =IF('DF raw data'!M81="","",'DF raw data'!M81) -> -293 | B76: =IF('DF raw data'!N81="","",'DF raw data'!N81) -> -3.01014e-05 | C76: =IF('DF raw data'!O81="","",'DF raw data'!O81) -> 0.000184992 | D76: =IF('DF raw data'!P81="","",'DF raw data'!P81) -> -1.85647e-05 | F76: -3.026093742e-05 | G76: 0.0001859724576 | H76: -1.866309291e-05 | J76: -0.000224344589 | K76: -0.0008539271381 | L76: 0.00139039625 | M76: 0.005597193731 | N76: 5.494410245e-06
A77: =IF('DF raw data'!M82="","",'DF raw data'!M82) -> -292.5 | B77: =IF('DF raw data'!N82="","",'DF raw data'!N82) -> -2.82427e-05 | C77: =IF('DF raw data'!O82="","",'DF raw data'!O82) -> 0.000179537 | D77: =IF('DF raw data'!P82="","",'DF raw data'!P82) -> -1.86949e-05 | F77: -2.839238631e-05 | G77: 0.0001804885461 | H77: -1.879398297e-05 | J77: -0.0002385407821 | K77: -0.0009731975292 | L77: 0.001480640523 | M77: 0.006337513992 | N77: 6.619009277e-06
A78: =IF('DF raw data'!M83="","",'DF raw data'!M83) -> -292 | B78: =IF('DF raw data'!N83="","",'DF raw data'!N83) -> -3.18315e-05 | C78: =IF('DF raw data'!O83="","",'DF raw data'!O83) -> 0.000185593 | D78: =IF('DF raw data'!P83="","",'DF raw data'!P83) -> -1.86277e-05 | F78: -3.200020695e-05 | G78: 0.0001865766429 | H78: -1.872642681e-05 | J78: -0.0002545408856 | K78: -0.001100467972 | L78: 0.001573928844 | M78: 0.007124478414 | N78: 7.890030811e-06
A79: =IF('DF raw data'!M84="","",'DF raw data'!M84) -> -291.5 | B79: =IF('DF raw data'!N84="","",'DF raw data'!N84) -> -2.38173e-05 | C79: =IF('DF raw data'!O84="","",'DF raw data'!O84) -> 0.00017707 | D79: =IF('DF raw data'!P84="","",'DF raw data'!P84) -> -2.41968e-05 | F79: -2.394353169e-05 | G79: 0.000178008471 | H79: -2.432504304e-05 | J79: -0.0002665126515 | K79: -0.001233724298 | L79: 0.00166293308 | M79: 0.007955944954 | N79: 9.308218522e-06
A80: =IF('DF raw data'!M85="","",'DF raw data'!M85) -> -291 | B80: =IF('DF raw data'!N85="","",'DF raw data'!N85) -> -3.39416e-05 | C80: =IF('DF raw data'!O85="","",'DF raw data'!O85) -> 0.00016736 | D80: =IF('DF raw data'!P85="","",'DF raw data'!P85) -> -2.60444e-05 | F80: -3.412149048e-05 | G80: 0.000168247008 | H80: -2.618243532e-05 | J80: -0.0002835733967 | K80: -0.001375510996 | L80: 0.001747056584 | M80: 0.008829473246 | N80: 1.087452881e-05
A81: =IF('DF raw data'!M86="","",'DF raw data'!M86) -> -290.5 | B81: =IF('DF raw data'!N86="","",'DF raw data'!N86) -> -4.3877e-05 | C81: =IF('DF raw data'!O86="","",'DF raw data'!O86) -> 0.000169397 | D81: =IF('DF raw data'!P86="","",'DF raw data'!P86) -> -2.27747e-05 | F81: -4.41095481e-05 | G81: 0.0001702948041 | H81: -2.289540591e-05 | J81: -0.0003056281708 | K81: -0.001528325081 | L81: 0.001832203986 | M81: 0.009745575239 | N81: 1.259971882e-05
A82: =IF('DF raw data'!M87="","",'DF raw data'!M87) -> -290 | B82: =IF('DF raw data'!N87="","",'DF raw data'!N87) -> -2.07353e-05 | C82: =IF('DF raw data'!O87="","",'DF raw data'!O87) -> 0.000170343 | D82: =IF('DF raw data'!P87="","",'DF raw data'!P87) -> -3.30272e-05 | F82: -2.084519709e-05 | G82: 0.0001712458179 | H82: -3.320224416e-05 | J82: -0.0003160507693 | K82: -0.001686350466 | L82: 0.001917826895 | M82: 0.01070448869 | N82: 1.448869287e-05
A83: =IF('DF raw data'!M88="","",'DF raw data'!M88) -> -289.5 | B83: =IF('DF raw data'!N88="","",'DF raw data'!N88) -> -1.99e-05 | C83: =IF('DF raw data'!O88="","",'DF raw data'!O88) -> 0.000169604 | D83: =IF('DF raw data'!P88="","",'DF raw data'!P88) -> -3.66175e-05 | F83: -2.000547e-05 | G83: 0.0001705029012 | H83: -3.681157275e-05 | J83: -0.0003260535043 | K83: -0.001849377218 | L83: 0.002003078345 | M83: 0.01170602786 | N83: 1.654800974e-05
A84: =IF('DF raw data'!M89="","",'DF raw data'!M89) -> -289 | B84: =IF('DF raw data'!N89="","",'DF raw data'!N89) -> -1.92677e-05 | C84: =IF('DF raw data'!O89="","",'DF raw data'!O89) -> 0.00017369 | D84: =IF('DF raw data'!P89="","",'DF raw data'!P89) -> -2.33985e-05 | F84: -1.936981881e-05 | G84: 0.000174610557 | H84: -2.352251205e-05 | J84: -0.0003357384137 | K84: -0.002017246425 | L84: 0.002090383624 | M84: 0.01275121967 | N84: 1.878922173e-05
A85: =IF('DF raw data'!M90="","",'DF raw data'!M90) -> -288.5 | B85: =IF('DF raw data'!N90="","",'DF raw data'!N90) -> -4.15637e-05 | C85: =IF('DF raw data'!O90="","",'DF raw data'!O90) -> 0.000171797 | D85: =IF('DF raw data'!P90="","",'DF raw data'!P90) -> -3.25125e-05 | F85: -4.178398761e-05 | G85: 0.0001727075241 | H85: -3.268481625e-05 | J85: -0.0003566304075 | K85: -0.002195561629 | L85: 0.002176737386 | M85: 0.01383958836 | N85: 2.122190718e-05
A86: =IF('DF raw data'!M91="","",'DF raw data'!M91) -> -288 | B86: =IF('DF raw data'!N91="","",'DF raw data'!N91) -> -3.2398e-05 | C86: =IF('DF raw data'!O91="","",'DF raw data'!O91) -> 0.000167195 | D86: =IF('DF raw data'!P91="","",'DF raw data'!P91) -> -3.45913e-05 | F86: -3.25697094e-05 | G86: 0.0001680811335 | H86: -3.477463389e-05 | J86: -0.0003729152622 | K86: -0.00238201926 | L86: 0.002260777953 | M86: 0.01496997734 | N86: 2.384699855e-05
A87: =IF('DF raw data'!M92="","",'DF raw data'!M92) -> -287.5 | B87: =IF('DF raw data'!N92="","",'DF raw data'!N92) -> -3.34913e-05 | C87: =IF('DF raw data'!O92="","",'DF raw data'!O92) -> 0.000172456 | D87: =IF('DF raw data'!P92="","",'DF raw data'!P92) -> -2.87956e-05 | F87: -3.366880389e-05 | G87: 0.0001733700168 | H87: -2.894821668e-05 | J87: -0.0003897496642 | K87: -0.002576894092 | L87: 0.002347462961 | M87: 0.01614370882 | N87: 2.667824213e-05
A88: =IF('DF raw data'!M93="","",'DF raw data'!M93) -> -287 | B88: =IF('DF raw data'!N93="","",'DF raw data'!N93) -> -2.62508e-05 | C88: =IF('DF raw data'!O93="","",'DF raw data'!O93) -> 0.000170944 | D88: =IF('DF raw data'!P93="","",'DF raw data'!P93) -> -2.67099e-05 | F88: -2.638992924e-05 | G88: 0.0001718500032 | H88: -2.685146247e-05 | J88: -0.0004029446288 | K88: -0.002778366406 | L88: 0.002433387963 | M88: 0.0173604028 | N88: 2.97201128e-05
A89: =IF('DF raw data'!M94="","",'DF raw data'!M94) -> -286.5 | B89: =IF('DF raw data'!N94="","",'DF raw data'!N94) -> -2.38781e-05 | C89: =IF('DF raw data'!O94="","",'DF raw data'!O94) -> 0.000162766 | D89: =IF('DF raw data'!P94="","",'DF raw data'!P94) -> -2.90657e-05 | F89: -2.400465393e-05 | G89: 0.0001636286598 | H89: -2.921974821e-05 | J89: -0.0004149469557 | K89: -0.002985839884 | L89: 0.002515202293 | M89: 0.01861800395 | N89: 3.296932457e-05
A90: =IF('DF raw data'!M95="","",'DF raw data'!M95) -> -286 | B90: =IF('DF raw data'!N95="","",'DF raw data'!N95) -> -2.34926e-05 | C90: =IF('DF raw data'!O95="","",'DF raw data'!O95) -> 0.000169531 | D90: =IF('DF raw data'!P95="","",'DF raw data'!P95) -> -3.05733e-05 | F90: -2.361711078e-05 | G90: 0.0001704295143 | H90: -3.073533849e-05 | J90: -0.0004267555111 | K90: -0.00319921764 | L90: 0.00260041705 | M90: 0.01991821247 | N90: 3.644146912e-05
A91: =IF('DF raw data'!M96="","",'DF raw data'!M96) -> -285.5 | B91: =IF('DF raw data'!N96="","",'DF raw data'!N96) -> -3.29113e-05 | C91: =IF('DF raw data'!O96="","",'DF raw data'!O96) -> 0.000173156 | D91: =IF('DF raw data'!P96="","",'DF raw data'!P96) -> -3.35819e-05 | F91: -3.308572989e-05 | G91: 0.0001740737268 | H91: -3.375988407e-05 | J91: -0.0004432983761 | K91: -0.003420866828 | L91: 0.002687453913 | M91: 0.02126193943 | N91: 4.015093012e-05
A92: =IF('DF raw data'!M97="","",'DF raw data'!M97) -> -285 | B92: =IF('DF raw data'!N97="","",'DF raw data'!N97) -> -2.77266e-05 | C92: =IF('DF raw data'!O97="","",'DF raw data'!O97) -> 0.000173944 | D92: =IF('DF raw data'!P97="","",'DF raw data'!P97) -> -2.41058e-05 | F92: -2.787355098e-05 | G92: 0.0001748659032 | H92: -2.423356074e-05 | J92: -0.0004572351516 | K92: -0.003649484404 | L92: 0.002774886865 | M92: 0.02264938286 | N92: 4.410546067e-05
A93: =IF('DF raw data'!M98="","",'DF raw data'!M98) -> -284.5 | B93: =IF('DF raw data'!N98="","",'DF raw data'!N98) -> -4.13687e-05 | C93: =IF('DF raw data'!O98="","",'DF raw data'!O98) -> 0.000167303 | D93: =IF('DF raw data'!P98="","",'DF raw data'!P98) -> -3.6419e-05 | F93: -4.158795411e-05 | G93: 0.0001681897059 | H93: -3.66120207e-05 | J93: -0.0004780291286 | K93: -0.003888498968 | L93: 0.002858981718 | M93: 0.02407887372 | N93: 4.830660482e-05
A94: =IF('DF raw data'!M99="","",'DF raw data'!M99) -> -284 | B94: =IF('DF raw data'!N99="","",'DF raw data'!N99) -> -3.07988e-05 | C94: =IF('DF raw data'!O99="","",'DF raw data'!O99) -> 0.000165173 | D94: =IF('DF raw data'!P99="","",'DF raw data'!P99) -> -2.99719e-05 | F94: -3.096203364e-05 | G94: 0.0001660484169 | H94: -3.013075107e-05 | J94: -0.0004935101454 | K94: -0.004135254041 | L94: 0.002942005926 | M94: 0.02554987668 | N94: 5.275608039e-05
A95: =IF('DF raw data'!M100="","",'DF raw data'!M100) -> -283.5 | B95: =IF('DF raw data'!N100="","",'DF raw data'!N100) -> -2.72664e-05 | C95: =IF('DF raw data'!O100="","",'DF raw data'!O100) -> 0.000168464 | D95: =IF('DF raw data'!P100="","",'DF raw data'!P100) -> -4.17774e-05 | F95: -2.741091192e-05 | G95: 0.0001693568592 | H95: -4.199882022e-05 | J95: -0.0005072156014 | K95: -0.004388861841 | L95: 0.003026684356 | M95: 0.02706321886 | N95: 5.746512331e-05
A96: =IF('DF raw data'!M101="","",'DF raw data'!M101) -> -283 | B96: =IF('DF raw data'!N101="","",'DF raw data'!N101) -> -2.19552e-05 | C96: =IF('DF raw data'!O101="","",'DF raw data'!O101) -> 0.000170519 | D96: =IF('DF raw data'!P101="","",'DF raw data'!P101) -> -2.9594e-05 | F96: -2.207156256e-05 | G96: 0.0001714227507 | H96: -2.97508482e-05 | J96: -0.0005182513827 | K96: -0.004647987533 | L96: 0.003112395731 | M96: 0.02861941673 | N96: 6.244291916e-05
A97: =IF('DF raw data'!M102="","",'DF raw data'!M102) -> -282.5 | B97: =IF('DF raw data'!N102="","",'DF raw data'!N102) -> -2.40731e-05 | C97: =IF('DF raw data'!O102="","",'DF raw data'!O102) -> 0.000177171 | D97: =IF('DF raw data'!P102="","",'DF raw data'!P102) -> -2.50485e-05 | F97: -2.420068743e-05 | G97: 0.0001781100063 | H97: -2.518125705e-05 | J97: -0.0005303517264 | K97: -0.004913163396 | L97: 0.003201450734 | M97: 0.03022014209 | N97: 6.770819903e-05
A98: =IF('DF raw data'!M103="","",'DF raw data'!M103) -> -282 | B98: =IF('DF raw data'!N103="","",'DF raw data'!N103) -> -3.5859e-05 | C98: =IF('DF raw data'!O103="","",'DF raw data'!O103) -> 0.00017464 | D98: =IF('DF raw data'!P103="","",'DF raw data'!P103) -> -3.37584e-05 | F98: -3.60490527e-05 | G98: 0.000175565592 | H98: -3.393731952e-05 | J98: -0.0005483762527 | K98: -0.005187351522 | L98: 0.00328923353 | M98: 0.03186475886 | N98: 7.32680859e-05
A99: =IF('DF raw data'!M104="","",'DF raw data'!M104) -> -281.5 | B99: =IF('DF raw data'!N104="","",'DF raw data'!N104) -> -2.93214e-05 | C99: =IF('DF raw data'!O104="","",'DF raw data'!O104) -> 0.000176878 | D99: =IF('DF raw data'!P104="","",'DF raw data'!P104) -> -3.54073e-05 | F99: -2.947680342e-05 | G99: 0.0001778154534 | H99: -3.559495869e-05 | J99: -0.0005631146545 | K99: -0.00546890885 | L99: 0.003378141257 | M99: 0.03355382949 | N99: 7.913255413e-05
A100: =IF('DF raw data'!M105="","",'DF raw data'!M105) -> -281 | B100: =IF('DF raw data'!N105="","",'DF raw data'!N105) -> -2.48397e-05 | C100: =IF('DF raw data'!O105="","",'DF raw data'!O105) -> 0.000174732 | D100: =IF('DF raw data'!P105="","",'DF raw data'!P105) -> -2.86985e-05 | F100: -2.497135041e-05 | G100: 0.0001756580796 | H100: -2.885060205e-05 | J100: -0.0005756003297 | K100: -0.005756709014 | L100: 0.003465970297 | M100: 0.03528681464 | N100: 8.530468705e-05
A101: =IF('DF raw data'!M106="","",'DF raw data'!M106) -> -280.5 | B101: =IF('DF raw data'!N106="","",'DF raw data'!N106) -> -4.30415e-05 | C101: =IF('DF raw data'!O106="","",'DF raw data'!O106) -> 0.0001753 | D101: =IF('DF raw data'!P106="","",'DF raw data'!P106) -> -2.62598e-05 | F101: -4.326961995e-05 | G101: 0.00017622909 | H101: -2.639897694e-05 | J101: -0.0005972351396 | K101: -0.006055326584 | L101: 0.003554084842 | M101: 0.03706385706 | N101: 9.179879149e-05
A102: =IF('DF raw data'!M107="","",'DF raw data'!M107) -> -280 | B102: =IF('DF raw data'!N107="","",'DF raw data'!N107) -> -3.1956e-05 | C102: =IF('DF raw data'!O107="","",'DF raw data'!O107) -> 0.000170841 | D102: =IF('DF raw data'!P107="","",'DF raw data'!P107) -> -2.42234e-05 | F102: -3.21253668e-05 | G102: 0.0001717464573 | H102: -2.435178402e-05 | J102: -0.000613297823 | K102: -0.006361975496 | L102: 0.00363995807 | M102: 0.03888383609 | N102: 9.861150598e-05
A103: =IF('DF raw data'!M108="","",'DF raw data'!M108) -> -279.5 | B103: =IF('DF raw data'!N108="","",'DF raw data'!N108) -> -3.36902e-05 | C103: =IF('DF raw data'!O108="","",'DF raw data'!O108) -> 0.000164455 | D103: =IF('DF raw data'!P108="","",'DF raw data'!P108) -> -1.82969e-05 | F103: -3.386875806e-05 | G103: 0.0001653266115 | H103: -1.839387357e-05 | J103: -0.0006302322021 | K103: -0.006677091597 | L103: 0.003722621376 | M103: 0.04074514678 | N103: 0.0001057390572
A104: =IF('DF raw data'!M109="","",'DF raw data'!M109) -> -279 | B104: =IF('DF raw data'!N109="","",'DF raw data'!N109) -> -2.54805e-05 | C104: =IF('DF raw data'!O109="","",'DF raw data'!O109) -> 0.000168581 | D104: =IF('DF raw data'!P109="","",'DF raw data'!P109) -> -2.8795e-05 | F104: -2.561554665e-05 | G104: 0.0001694744793 | H104: -2.89476135e-05 | J104: -0.0006430399754 | K104: -0.006998611584 | L104: 0.003807358616 | M104: 0.04264882609 | N104: 0.0001131937973
A105: =IF('DF raw data'!M110="","",'DF raw data'!M110) -> -278.5 | B105: =IF('DF raw data'!N110="","",'DF raw data'!N110) -> -2.63198e-05 | C105: =IF('DF raw data'!O110="","",'DF raw data'!O110) -> 0.000179522 | D105: =IF('DF raw data'!P110="","",'DF raw data'!P110) -> -1.92673e-05 | F105: -2.645929494e-05 | G105: 0.0001804734666 | H105: -1.936941669e-05 | J105: -0.0006562696229 | K105: -0.007326746396 | L105: 0.003897595349 | M105: 0.04459762376 | N105: 0.0001210047669
A106: =IF('DF raw data'!M111="","",'DF raw data'!M111) -> -278 | B106: =IF('DF raw data'!N111="","",'DF raw data'!N111) -> -2.38858e-05 | C106: =IF('DF raw data'!O111="","",'DF raw data'!O111) -> 0.00018206 | D106: =IF('DF raw data'!P111="","",'DF raw data'!P111) -> -1.71688e-05 | F106: -2.401239474e-05 | G106: 0.000183024918 | H106: -1.725979464e-05 | J106: -0.0006682758202 | K106: -0.007660884306 | L106: 0.003989107808 | M106: 0.04659217767 | N106: 0.0001291845538
A107: =IF('DF raw data'!M112="","",'DF raw data'!M112) -> -277.5 | B107: =IF('DF raw data'!N112="","",'DF raw data'!N112) -> -2.06824e-05 | C107: =IF('DF raw data'!O112="","",'DF raw data'!O112) -> 0.0001793 | D107: =IF('DF raw data'!P112="","",'DF raw data'!P112) -> -1.59621e-05 | F107: -2.079201672e-05 | G107: 0.00018025029 | H107: -1.604669913e-05 | J107: -0.0006786718286 | K107: -0.00800022022 | L107: 0.004079232953 | M107: 0.04863179414 | N107: 0.0001377349222
A108: =IF('DF raw data'!M113="","",'DF raw data'!M113) -> -277 | B108: =IF('DF raw data'!N113="","",'DF raw data'!N113) -> -2.5808e-05 | C108: =IF('DF raw data'!O113="","",'DF raw data'!O113) -> 0.000179023 | D108: =IF('DF raw data'!P113="","",'DF raw data'!P113) -> -1.80288e-05 | F108: -2.59447824e-05 | G108: 0.0001799718219 | H108: -1.812435264e-05 | J108: -0.0006916442198 | K108: -0.00834604233 | L108: 0.004169218864 | M108: 0.05071640358 | N108: 0.0001466653011
A109: =IF('DF raw data'!M114="","",'DF raw data'!M114) -> -276.5 | B109: =IF('DF raw data'!N114="","",'DF raw data'!N114) -> -3.06776e-05 | C109: =IF('DF raw data'!O114="","",'DF raw data'!O114) -> 0.000178112 | D109: =IF('DF raw data'!P114="","",'DF raw data'!P114) -> -1.91732e-05 | F109: -3.084019128e-05 | G109: 0.0001790559936 | H109: -1.927481796e-05 | J109: -0.0007070643154 | K109: -0.008699574488 | L109: 0.004258746861 | M109: 0.05284577701 | N109: 0.0001559837335
A110: =IF('DF raw data'!M115="","",'DF raw data'!M115) -> -276 | B110: =IF('DF raw data'!N115="","",'DF raw data'!N115) -> -3.36904e-05 | C110: =IF('DF raw data'!O115="","",'DF raw data'!O115) -> 0.000175204 | D110: =IF('DF raw data'!P115="","",'DF raw data'!P115) -> -1.79274e-05 | F110: -3.386895912e-05 | G110: 0.0001761325812 | H110: -1.802241522e-05 | J110: -0.000723998795 | K110: -0.009061573885 | L110: 0.004346813151 | M110: 0.05501918358 | N110: 0.0001656932129
A111: =IF('DF raw data'!M116="","",'DF raw data'!M116) -> -275.5 | B111: =IF('DF raw data'!N116="","",'DF raw data'!N116) -> -2.86799e-05 | C111: =IF('DF raw data'!O116="","",'DF raw data'!O116) -> 0.00017281 | D111: =IF('DF raw data'!P116="","",'DF raw data'!P116) -> -3.60042e-05 | F111: -2.883190347e-05 | G111: 0.000173725893 | H111: -3.619502226e-05 | J111: -0.0007384147467 | K111: -0.009430781259 | L111: 0.004433676098 | M111: 0.05723602163 | N111: 0.0001757945829
A112: =IF('DF raw data'!M117="","",'DF raw data'!M117) -> -275 | B112: =IF('DF raw data'!N117="","",'DF raw data'!N117) -> -2.62483e-05 | C112: =IF('DF raw data'!O117="","",'DF raw data'!O117) -> 0.000167005 | D112: =IF('DF raw data'!P117="","",'DF raw data'!P117) -> -3.06043e-05 | F112: -2.638741599e-05 | G112: 0.0001678901265 | H112: -3.076650279e-05 | J112: -0.0007516084547 | K112: -0.009806585486 | L112: 0.004517621161 | M112: 0.05949483221 | N112: 0.000186281491
A113: =IF('DF raw data'!M118="","",'DF raw data'!M118) -> -274.5 | B113: =IF('DF raw data'!N118="","",'DF raw data'!N118) -> -2.94526e-05 | C113: =IF('DF raw data'!O118="","",'DF raw data'!O118) -> 0.000160715 | D113: =IF('DF raw data'!P118="","",'DF raw data'!P118) -> -3.07322e-05 | F113: -2.960869878e-05 | G113: 0.0001615667895 | H113: -3.089508066e-05 | J113: -0.0007664128041 | K113: -0.01018979189 | L113: 0.004598404556 | M113: 0.06179403449 | N113: 0.0001971478475
A114: =IF('DF raw data'!M119="","",'DF raw data'!M119) -> -274 | B114: =IF('DF raw data'!N119="","",'DF raw data'!N119) -> -2.13133e-05 | C114: =IF('DF raw data'!O119="","",'DF raw data'!O119) -> 0.000170158 | D114: =IF('DF raw data'!P119="","",'DF raw data'!P119) -> -3.11912e-05 | F114: -2.142626049e-05 | G114: 0.0001710598374 | H114: -3.135651336e-05 | J114: -0.0007771259344 | K114: -0.01057835486 | L114: 0.004683934475 | M114: 0.06413600173 | N114: 0.000208419431
A115: =IF('DF raw data'!M120="","",'DF raw data'!M120) -> -273.5 | B115: =IF('DF raw data'!N120="","",'DF raw data'!N120) -> -3.37499e-05 | C115: =IF('DF raw data'!O120="","",'DF raw data'!O120) -> 0.000177148 | D115: =IF('DF raw data'!P120="","",'DF raw data'!P120) -> -2.52442e-05 | F115: -3.392877447e-05 | G115: 0.0001780868844 | H115: -2.537799426e-05 | J115: -0.0007940903216 | K115: -0.01097540002 | L115: 0.004772977917 | M115: 0.06652249069 | N115: 0.0002201253798
A116: =IF('DF raw data'!M121="","",'DF raw data'!M121) -> -273 | B116: =IF('DF raw data'!N121="","",'DF raw data'!N121) -> -3.16966e-05 | C116: =IF('DF raw data'!O121="","",'DF raw data'!O121) -> 0.000170545 | D116: =IF('DF raw data'!P121="","",'DF raw data'!P121) -> -2.88928e-05 | F116: -3.186459198e-05 | G116: 0.0001714488885 | H116: -2.904593184e-05 | J116: -0.0008100226176 | K116: -0.01138041132 | L116: 0.004858702361 | M116: 0.06895184187 | N116: 0.0002322569424
A117: =IF('DF raw data'!M122="","",'DF raw data'!M122) -> -272.5 | B117: =IF('DF raw data'!N122="","",'DF raw data'!N122) -> -3.21518e-05 | C117: =IF('DF raw data'!O122="","",'DF raw data'!O122) -> 0.000179829 | D117: =IF('DF raw data'!P122="","",'DF raw data'!P122) -> -1.89169e-05 | F117: -3.232220454e-05 | G117: 0.0001807820937 | H117: -1.901715957e-05 | J117: -0.0008261837198 | K117: -0.01179350318 | L117: 0.004949093408 | M117: 0.07142638857 | N117: 0.000244844995
A118: =IF('DF raw data'!M123="","",'DF raw data'!M123) -> -272 | B118: =IF('DF raw data'!N123="","",'DF raw data'!N123) -> -3.35006e-05 | C118: =IF('DF raw data'!O123="","",'DF raw data'!O123) -> 0.000178914 | D118: =IF('DF raw data'!P123="","",'DF raw data'!P123) -> -1.43903e-05 | F118: -3.367815318e-05 | G118: 0.0001798622442 | H118: -1.446656859e-05 | J118: -0.0008430227964 | K118: -0.01221501458 | L118: 0.00503902453 | M118: 0.07394590083 | N118: 0.0002578962228
A119: =IF('DF raw data'!M124="","",'DF raw data'!M124) -> -271.5 | B119: =IF('DF raw data'!N124="","",'DF raw data'!N124) -> -3.27269e-05 | C119: =IF('DF raw data'!O124="","",'DF raw data'!O124) -> 0.000179996 | D119: =IF('DF raw data'!P124="","",'DF raw data'!P124) -> -2.16332e-05 | F119: -3.290035257e-05 | G119: 0.0001809499788 | H119: -2.174785596e-05 | J119: -0.0008594729727 | K119: -0.01264475107 | L119: 0.005129499519 | M119: 0.07651065059 | N119: 0.0002714214524
A120: =IF('DF raw data'!M125="","",'DF raw data'!M125) -> -271 | B120: =IF('DF raw data'!N125="","",'DF raw data'!N125) -> -2.66414e-05 | C120: =IF('DF raw data'!O125="","",'DF raw data'!O125) -> 0.000177868 | D120: =IF('DF raw data'!P125="","",'DF raw data'!P125) -> -1.73538e-05 | F120: -2.678259942e-05 | G120: 0.0001788107004 | H120: -1.744577514e-05 | J120: -0.0008728642724 | K120: -0.01308118321 | L120: 0.00521890487 | M120: 0.07912010303 | N120: 0.0002854208824
A121: =IF('DF raw data'!M126="","",'DF raw data'!M126) -> -270.5 | B121: =IF('DF raw data'!N126="","",'DF raw data'!N126) -> -3.34288e-05 | C121: =IF('DF raw data'!O126="","",'DF raw data'!O126) -> 0.000182543 | D121: =IF('DF raw data'!P126="","",'DF raw data'!P126) -> -2.60406e-05 | F121: -3.360597264e-05 | G121: 0.0001835104779 | H121: -2.617861518e-05 | J121: -0.0008896672588 | K121: -0.01352601684 | L121: 0.005310660109 | M121: 0.08177543308 | N121: 0.0002999181917
A122: =IF('DF raw data'!M127="","",'DF raw data'!M127) -> -270 | B122: =IF('DF raw data'!N127="","",'DF raw data'!N127) -> -2.06727e-05 | C122: =IF('DF raw data'!O127="","",'DF raw data'!O127) -> 0.000185101 | D122: =IF('DF raw data'!P127="","",'DF raw data'!P127) -> -3.08128e-05 | F122: -2.078226531e-05 | G122: 0.0001860820353 | H122: -3.097610784e-05 | J122: -0.0009000583914 | K122: -0.01397604603 | L122: 0.005403701126 | M122: 0.08447728365 | N122: 0.0003149232372
A123: =IF('DF raw data'!M128="","",'DF raw data'!M128) -> -269.5 | B123: =IF('DF raw data'!N128="","",'DF raw data'!N128) -> -3.03472e-05 | C123: =IF('DF raw data'!O128="","",'DF raw data'!O128) -> 0.000170072 | D123: =IF('DF raw data'!P128="","",'DF raw data'!P128) -> -3.46844e-05 | F123: -3.050804016e-05 | G123: 0.0001709733816 | H123: -3.486822732e-05 | J123: -0.0009153124115 | K123: -0.01443370224 | L123: 0.005489187817 | M123: 0.08722187756 | N123: 0.000330407727
A124: =IF('DF raw data'!M129="","",'DF raw data'!M129) -> -269 | B124: =IF('DF raw data'!N129="","",'DF raw data'!N129) -> -3.259e-05 | C124: =IF('DF raw data'!O129="","",'DF raw data'!O129) -> 0.000173675 | D124: =IF('DF raw data'!P129="","",'DF raw data'!P129) -> -3.46456e-05 | F124: -3.2762727e-05 | G124: 0.0001745954775 | H124: -3.482922168e-05 | J124: -0.000931693775 | K124: -0.01489954912 | L124: 0.005576485556 | M124: 0.09001012033 | N124: 0.0003463903493
A125: =IF('DF raw data'!M130="","",'DF raw data'!M130) -> -268.5 | B125: =IF('DF raw data'!N130="","",'DF raw data'!N130) -> -3.95813e-05 | C125: =IF('DF raw data'!O130="","",'DF raw data'!O130) -> 0.000179696 | D125: =IF('DF raw data'!P130="","",'DF raw data'!P130) -> -2.56418e-05 | F125: -3.979108089e-05 | G125: 0.0001806483888 | H125: -2.577770154e-05 | J125: -0.0009515893154 | K125: -0.01537534378 | L125: 0.00566680975 | M125: 0.09284352521 | N125: 0.0003628994768
A126: =IF('DF raw data'!M131="","",'DF raw data'!M131) -> -268 | B126: =IF('DF raw data'!N131="","",'DF raw data'!N131) -> -3.10511e-05 | C126: =IF('DF raw data'!O131="","",'DF raw data'!O131) -> 0.00017207 | D126: =IF('DF raw data'!P131="","",'DF raw data'!P131) -> -3.6108e-05 | F126: -3.121567083e-05 | G126: 0.000172981971 | H126: -3.62993724e-05 | J126: -0.0009671971508 | K126: -0.01585894236 | L126: 0.005753300736 | M126: 0.09572017558 | N126: 0.0003799174466
A127: =IF('DF raw data'!M132="","",'DF raw data'!M132) -> -267.5 | B127: =IF('DF raw data'!N132="","",'DF raw data'!N132) -> -2.29794e-05 | C127: =IF('DF raw data'!O132="","",'DF raw data'!O132) -> 0.000176497 | D127: =IF('DF raw data'!P132="","",'DF raw data'!P132) -> -3.1302e-05 | F127: -2.310119082e-05 | G127: 0.0001774324341 | H127: -3.14679006e-05 | J127: -0.0009787477463 | K127: -0.01634831623 | L127: 0.005842016953 | M127: 0.09864118405 | N127: 0.0003974610012
A128: =IF('DF raw data'!M133="","",'DF raw data'!M133) -> -267 | B128: =IF('DF raw data'!N133="","",'DF raw data'!N133) -> -2.68901e-05 | C128: =IF('DF raw data'!O133="","",'DF raw data'!O133) -> 0.000182178 | D128: =IF('DF raw data'!P133="","",'DF raw data'!P133) -> -2.90676e-05 | F128: =(1-$G$1*($B$49-$G$2))*B128 -> -2.703261753e-05 | G128: 0.0001831435434 | H128: -2.922165828e-05 | J128: =F128*$G$3+J127 -> -0.000992264055 | K128: =J128*$G$3+K127 -> -0.01684444826 | L128: =G128*$G$3+L127 -> 0.005933588724 | M128: =L128*$G$3+M127 -> 0.1016079784 | N128: =(J128^2+L128^2)*$G$3+N127 -> 0.0004155570328
A129: =IF('DF raw data'!M134="","",'DF raw data'!M134) -> -266.5 | B129: =IF('DF raw data'!N134="","",'DF raw data'!N134) -> -2.36236e-05 | C129: =IF('DF raw data'!O134="","",'DF raw data'!O134) -> 0.000179456 | D129: =IF('DF raw data'!P134="","",'DF raw data'!P134) -> -2.61272e-05 | F129: -2.374880508e-05 | G129: 0.0001804071168 | H129: -2.626567416e-05 | J129: -0.001004138458 | K129: -0.01734651749 | L129: 0.006023792283 | M129: 0.1046198746 | N129: 0.0004342042165
A130: =IF('DF raw data'!M135="","",'DF raw data'!M135) -> -266 | B130: =IF('DF raw data'!N135="","",'DF raw data'!N135) -> -3.65651e-05 | C130: =IF('DF raw data'!O135="","",'DF raw data'!O135) -> 0.000178347 | D130: =IF('DF raw data'!P135="","",'DF raw data'!P135) -> -3.21143e-05 | F130: -3.675889503e-05 | G130: 0.0001792922391 | H130: -3.228450579e-05 | J130: -0.001022517905 | K130: -0.01785777644 | L130: 0.006113438402 | M130: 0.1076765938 | N130: 0.0004534140525
A131: =IF('DF raw data'!M136="","",'DF raw data'!M136) -> -265.5 | B131: =IF('DF raw data'!N136="","",'DF raw data'!N136) -> -3.19484e-05 | C131: =IF('DF raw data'!O136="","",'DF raw data'!O136) -> 0.000172123 | D131: =IF('DF raw data'!P136="","",'DF raw data'!P136) -> -3.59404e-05 | F131: -3.211772652e-05 | G131: 0.0001730352519 | H131: -3.613088412e-05 | J131: -0.001038576768 | K131: -0.01837706482 | L131: 0.006199956028 | M131: 0.1107765718 | N131: 0.0004731731007
A132: =IF('DF raw data'!M137="","",'DF raw data'!M137) -> -265 | B132: =IF('DF raw data'!N137="","",'DF raw data'!N137) -> -3.27142e-05 | C132: =IF('DF raw data'!O137="","",'DF raw data'!O137) -> 0.000175709 | D132: =IF('DF raw data'!P137="","",'DF raw data'!P137) -> -4.11974e-05 | F132: -3.288758526e-05 | G132: 0.0001766402577 | H132: -4.141574622e-05 | J132: -0.001055020561 | K132: -0.0189045751 | L132: 0.006288276157 | M132: 0.1139207099 | N132: 0.0004935008434
A133: =IF('DF raw data'!M138="","",'DF raw data'!M138) -> -264.5 | B133: =IF('DF raw data'!N138="","",'DF raw data'!N138) -> -2.20222e-05 | C133: =IF('DF raw data'!O138="","",'DF raw data'!O138) -> 0.000175912 | D133: =IF('DF raw data'!P138="","",'DF raw data'!P138) -> -2.52411e-05 | F133: -2.213891766e-05 | G133: 0.0001768443336 | H133: -2.537487783e-05 | J133: -0.00106609002 | K133: -0.01943762011 | L133: 0.006376698324 | M133: 0.117109059 | N133: 0.0005144002582
A134: =IF('DF raw data'!M139="","",'DF raw data'!M139) -> -264 | B134: =IF('DF raw data'!N139="","",'DF raw data'!N139) -> -3.32987e-05 | C134: =IF('DF raw data'!O139="","",'DF raw data'!O139) -> 0.000173485 | D134: =IF('DF raw data'!P139="","",'DF raw data'!P139) -> -2.90767e-05 | F134: -3.347518311e-05 | G134: 0.0001744044705 | H134: -2.923080651e-05 | J134: -0.001082827611 | K134: -0.01997903392 | L134: 0.006463900559 | M134: 0.1203410093 | N134: 0.0005358775212
A135: =IF('DF raw data'!M140="","",'DF raw data'!M140) -> -263.5 | B135: =IF('DF raw data'!N140="","",'DF raw data'!N140) -> -2.13157e-05 | C135: =IF('DF raw data'!O140="","",'DF raw data'!O140) -> 0.000178969 | D135: =IF('DF raw data'!P140="","",'DF raw data'!P140) -> -2.7608e-05 | F135: -2.142867321e-05 | G135: 0.0001799175357 | H135: -2.77543224e-05 | J135: -0.001093541948 | K135: -0.02052580489 | L135: 0.006553859327 | M135: 0.123617939 | N135: 0.0005579519742
A136: =IF('DF raw data'!M141="","",'DF raw data'!M141) -> -263 | B136: =IF('DF raw data'!N141="","",'DF raw data'!N141) -> -2.22752e-05 | C136: =IF('DF raw data'!O141="","",'DF raw data'!O141) -> 0.000173386 | D136: =IF('DF raw data'!P141="","",'DF raw data'!P141) -> -3.04982e-05 | F136: -2.239325856e-05 | G136: 0.0001743049458 | H136: -3.065984046e-05 | J136: -0.001104738577 | K136: -0.02107817418 | L136: 0.0066410118 | M136: 0.1269384449 | N136: 0.0005806137168
A137: =IF('DF raw data'!M142="","",'DF raw data'!M142) -> -262.5 | B137: =IF('DF raw data'!N142="","",'DF raw data'!N142) -> -2.06712e-05 | C137: =IF('DF raw data'!O142="","",'DF raw data'!O142) -> 0.000171321 | D137: =IF('DF raw data'!P142="","",'DF raw data'!P142) -> -3.31344e-05 | F137: -2.078075736e-05 | G137: 0.0001722290013 | H137: -3.331001232e-05 | J137: -0.001115128956 | K137: -0.02163573866 | L137: 0.006727126301 | M137: 0.130302008 | N137: 0.0006038625872
A138: =IF('DF raw data'!M143="","",'DF raw data'!M143) -> -262 | B138: =IF('DF raw data'!N143="","",'DF raw data'!N143) -> -2.11837e-05 | C138: =IF('DF raw data'!O143="","",'DF raw data'!O143) -> 0.000171981 | D138: =IF('DF raw data'!P143="","",'DF raw data'!P143) -> -3.34326e-05 | F138: -2.129597361e-05 | G138: 0.0001728924993 | H138: -3.360979278e-05 | J138: -0.001125776943 | K138: -0.02219862713 | L138: 0.00681357255 | M138: 0.1337087943 | N138: 0.0006277086595
A139: =IF('DF raw data'!M144="","",'DF raw data'!M144) -> -261.5 | B139: =IF('DF raw data'!N144="","",'DF raw data'!N144) -> -2.78435e-05 | C139: =IF('DF raw data'!O144="","",'DF raw data'!O144) -> 0.000181369 | D139: =IF('DF raw data'!P144="","",'DF raw data'!P144) -> -4.13078e-05 | F139: -2.799107055e-05 | G139: 0.0001823302557 | H139: -4.152673134e-05 | J139: -0.001139772478 | K139: -0.02276851337 | L139: 0.006904737678 | M139: 0.1371611631 | N139: 0.0006521959014
A140: =IF('DF raw data'!M145="","",'DF raw data'!M145) -> -261 | B140: =IF('DF raw data'!N145="","",'DF raw data'!N145) -> -2.96446e-05 | C140: =IF('DF raw data'!O145="","",'DF raw data'!O145) -> 0.000174555 | D140: =IF('DF raw data'!P145="","",'DF raw data'!P145) -> -3.09052e-05 | F140: -2.980171638e-05 | G140: 0.0001754801415 | H140: -3.106899756e-05 | J140: -0.001154673336 | K140: -0.02334585004 | L140: 0.006992477749 | M140: 0.140657402 | N140: 0.0006773099091
A141: =IF('DF raw data'!M146="","",'DF raw data'!M146) -> -260.5 | B141: =IF('DF raw data'!N146="","",'DF raw data'!N146) -> -3.11218e-05 | C141: =IF('DF raw data'!O146="","",'DF raw data'!O146) -> 0.0001723 | D141: =IF('DF raw data'!P146="","",'DF raw data'!P146) -> -2.61362e-05 | F141: -3.128674554e-05 | G141: 0.00017321319 | H141: -2.627472186e-05 | J141: -0.001170316709 | K141: -0.02393100839 | L141: 0.007079084344 | M141: 0.1441969442 | N141: 0.0007030514473
A142: =IF('DF raw data'!M147="","",'DF raw data'!M147) -> -260 | B142: =IF('DF raw data'!N147="","",'DF raw data'!N147) -> -2.29795e-05 | C142: =IF('DF raw data'!O147="","",'DF raw data'!O147) -> 0.000180814 | D142: =IF('DF raw data'!P147="","",'DF raw data'!P147) -> -3.11155e-05 | F142: -2.310129135e-05 | G142: 0.0001817723142 | H142: -3.128041215e-05 | J142: -0.001181867355 | K142: -0.02452194207 | L142: 0.007169970501 | M142: 0.1477819294 | N142: 0.000729454091
A143: =IF('DF raw data'!M148="","",'DF raw data'!M148) -> -259.5 | B143: =IF('DF raw data'!N148="","",'DF raw data'!N148) -> -2.29821e-05 | C143: =IF('DF raw data'!O148="","",'DF raw data'!O148) -> 0.000185211 | D143: =IF('DF raw data'!P148="","",'DF raw data'!P148) -> -2.71395e-05 | F143: -2.310390513e-05 | G143: 0.0001861926183 | H143: -2.728333935e-05 | J143: -0.001193419307 | K143: -0.02511865172 | L143: 0.00726306681 | M143: 0.1514134628 | N143: 0.0007565422856
